Workbook

Sheet Pres & Prop Rev (hidden)
B2: =IF(Base1_Billing2=2,"BILLED","") -> 
A4: WORK PAPER | D4: RESIDENTIAL | E4: GENERAL SVC. | F4: LG. GEN. SVC. | G4: EX LG GEN SVC | H4: ULX LG GEN SVC | I4: PUMPING | J4: ST & AREA LTG
A5: REFERENCE | C5: TOTAL | D5: SCHEDULE 1 | E5: SCH. 11,12 | F5: SCH. 21,22 | G5: SCHEDULE 25 | H5: SCHEDULE 26 | I5: SCH. 30, 31, 32 | J5: SCH. 41-48 | Q5: Print Header for all printed pages on this worksheet:
B6: PRESENT BILL DETERMINANTS | M6: Calculate all revenue exhibits using ____ rates: | Q6: ="AVISTA UTILITIES WASHINGTON ELECTRIC PRO FORMA REVENUE UNDER PRESENT AND PROPOSED "&O9&" RATES 12 MONTHS ENDED JUNE 30, 2013" -> AVISTA UTILITIES WASHINGTON ELECTRIC PRO FORMA REVENUE UNDER PRESENT AND PROPOSED BASE TARIFF RATES 12 MONTHS ENDED JUNE 30, 2013
B7: KILOWATT HOURS (KWHS) | L7: 1) | M7: BASE TARIFF
A8: PDE-E-10 | B8: BLOCK 1 | D8: ='Bill Determ'!$B$11 -> 1592525923 | E8: ='Bill Determ'!$B$19 -> 420252327.2 | F8: ='Bill Determ'!$B$30 -> 1271405693 | G8: ='Bill Determ'!$B$39 -> 119425698.9 | H8: ='Bill Determ'!$B$42 -> 6000000 | I8: =SUM('Bill Determ'!$B$46:$C$46) -> 49734289.52 | M8: or | O8: 1
A9: PDE-E-10 | B9: BLOCK 2 | D9: ='Bill Determ'!$C$11 -> 524802801.5 | E9: ='Bill Determ'!$C$19 -> 165857104.8 | F9: ='Bill Determ'!$C$30 -> 165400787.5 | G9: ='Bill Determ'!$C$39 -> 476858085.8 | H9: ='Bill Determ'!$C$42 -> 66000000 | I9: ='Bill Determ'!$D$47 -> 78193284.48 | L9: 2) | M9: BILLING | O9: =CHOOSE(Base1_Billing2,M7,M9) -> BASE TARIFF
A10: PDE-E-10 | B10: BLOCK 3 | D10: ='Bill Determ'!$D$11 -> 320179342.9 | G10: ='Bill Determ'!$D$39 -> 0 | H10: ='Bill Determ'!$D$42 -> 407842850.5 | O10: =CHOOSE(Base1_Billing2,"Base","Billing") -> Base
B11: BLOCK 4
A12: PDE-E-20 | B12: STREET & AREA LIGHTS | J12: ='Bill Determ'!$B$73 -> 25328044
B14: SUBTOTAL | C14: =SUM(D14:J14) -> 5689806233 | D14: =SUM(D8:D12) -> 2437508067 | E14: 586109432 | F14: 1436806481 | G14: 596283784.7 | H14: =SUM(H8:H12) -> 479842850.5 | I14: 127927574 | J14: 25328044
B17: SUBTOTAL | C17: =SUM(D17:J17) -> 5689806233 | D17: =D14+D15 -> 2437508067 | E17: =E14+E15 -> 586109432 | F17: 1436806481 | G17: 596283784.7 | H17: =H14+H15 -> 479842850.5 | I17: 127927574 | J17: 25328044
A18: PDE-E-10 | B18: ADJUSTMENT TO ACTUAL | C18: =SUM(D18:J18) -> 0 | D18: ='Bill Determ'!$E$13 -> 0 | E18: ='Bill Determ'!$D$23 -> 0 | F18: ='Bill Determ'!$D$35 -> 0 | G18: 0 | H18: 0 | I18: ='Bill Determ'!$E$49 -> 0 | J18: 0
B20: TOTAL BEFORE ADJUSTMENT | C20: =SUM(D20:J20) -> 5689806233 | D20: =D17+D18 -> 2437508067 | E20: 586109432 | F20: 1436806481 | G20: 596283784.7 | H20: =H17+H18 -> 479842850.5 | I20: 127927574 | J20: 25328044
A21: PDE-E-3 | B21: WEATHER & UNBILLED ADJ. KWHS | C21: =SUM(D21:J21) -> -9423456 | D21: =D142+D145 -> -4708855 | E21: 790565 | F21: -6250511 | G21: 0 | H21: =H142+H145 -> 0 | I21: 745345 | J21: =J142+J145 -> 0
B23: TOTAL PROFORMA KWHS | C23: =IF(ROUND(SUM(D23:J23),3)<>ROUND(SUM(C20:C21),3),#VALUE!,SUM(D23:J23)) -> 5680382777 | D23: =D20+D21 -> 2432799212 | E23: 586899997 | F23: 1430555970 | G23: 596283784.7 | H23: =H20+H21 -> 479842850.5 | I23: 128672919 | J23: 25328044
A25: PDE-E-10 | B25: TOTAL BILLS | D25: ='Bill Determ'!$F$11 -> 2494197 | E25: ='Bill Determ'!$F$19 -> 369788 | F25: ='Bill Determ'!$F$30 -> 24074 | G25: ='Bill Determ'!$G$39 -> 241 | H25: ='Bill Determ'!$G$42 -> 12 | I25: ='Bill Determ'!$F$46 -> 29462.32367
B26: MINIMUM BILLS
A27: PDE-E-10 | B27: EXCESS DEMAND | E27: ='Bill Determ'!$E$19 -> 364641 | F27: ='Bill Determ'!$E$30 -> 2697553 | G27: ='Bill Determ'!$F$39+'Bill Determ'!F40 -> 513017.6616 | H27: ='Bill Determ'!$F$42+'Bill Determ'!G43 -> 655055.3384 | I27: ='Bill Determ'!G46 -> 10292
B29: PROPOSED BILL DETERMINANTS
B30: KILOWATT HOURS (KWHS)
B31: BLOCK 1 | D31: =D8 -> 1592525923 | E31: 420252327.2 | F31: 1271405693 | G31: 119425698.9 | H31: =H8+H9 -> 72000000 | I31: 49734289.52 | J31: 0
B32: BLOCK 2 | D32: =D9 -> 524802801.5 | E32: 165857104.8 | F32: 165400787.5 | G32: ='Bill Determ'!$C$39 -> 476858085.8 | H32: ='Bill Determ'!$D$42 -> 407842850.5 | I32: 78193284.48 | J32: 0
B33: BLOCK 3 | D33: 320179342.9 | E33: 0 | F33: 0 | G33: ='Bill Determ'!$D$39 -> 0 | H33: 0 | I33: 0 | J33: 0
B34: BLOCK 4 | D34: 0 | E34: 0 | F34: 0 | G34: 0 | H34: =H11 -> 0 | I34: 0 | J34: 0
B35: STREET & AREA LIGHTS | D35: 0 | E35: 0 | F35: 0 | G35: 0 | H35: =H12 -> 0 | I35: 0 | J35: 25328044
B37: SUBTOTAL | C37: =SUM(D37:J37) -> 5689806233 | D37: =SUM(D31:D35) -> 2437508067 | E37: 586109432 | F37: 1436806481 | G37: 596283784.7 | H37: =SUM(H31:H35) -> 479842850.5 | I37: 127927574 | J37: 25328044
C38: =SUM(D38:J38) -> 0 | D38: =D15 -> 0 | E38: =E15 -> 0 | F38: 0 | G38: 0 | H38: =H15 -> 0 | I38: 0 | J38: 0
B40: SUBTOTAL | C40: =SUM(D40:J40) -> 5689806233 | D40: =D37+D38 -> 2437508067 | E40: 586109432 | F40: 1436806481 | G40: 596283784.7 | H40: =H37+H38 -> 479842850.5 | I40: 127927574 | J40: 25328044
B41: ADJUSTMENT TO ACTUAL | C41: =SUM(D41:J41) -> 0 | D41: =D18 -> 0 | E41: 0 | F41: 0 | G41: 0 | H41: =H18 -> 0 | I41: 0 | J41: 0
B43: TOTAL BEFORE ADJUSTMENT | C43: =SUM(D43:J43) -> 5689806233 | D43: =D40+D41 -> 2437508067 | E43: 586109432 | F43: 1436806481 | G43: 596283784.7 | H43: =H40+H41 -> 479842850.5 | I43: 127927574 | J43: 25328044
B44: WEATHER & UNBILLED ADJ. KWHS | C44: =SUM(D44:J44) -> -9423456 | D44: =D21 -> -4708855 | E44: 790565 | F44: -6250511 | G44: 0 | H44: =H21 -> 0 | I44: 745345 | J44: 0
B46: TOTAL PROFORMA KWHS | C46: =IF(ROUND(SUM(D46:J46),3)<>ROUND(SUM(C43:C44),3),#VALUE!,SUM(D46:J46)) -> 5680382777 | D46: =D43+D44 -> 2432799212 | E46: 586899997 | F46: 1430555970 | G46: 596283784.7 | H46: =H43+H44 -> 479842850.5 | I46: 128672919 | J46: 25328044
B48: TOTAL BILLS | D48: =D25 -> 2494197 | E48: 369788 | F48: 24074 | G48: 241 | H48: 12 | I48: 29462.32367
B49: MINIMUM BILLS
B50: EXCESS DEMAND | D50: =D27 -> 0 | E50: 364641 | F50: 2697553 | G50: 513017.6616 | H50: 655055.3384 | I50: 10292
D55: 1 | E55: 2 | F55: 3 | G55: 4 | H55: 5 | I55: 6 | J55: 6 | M55: =SUMPRODUCT(--(ISBLANK(D55:J55))) -> 0
A56: WORK PAPER | D56: RESIDENTIAL | E56: GENERAL SVC. | F56: LG. GEN. SVC. | G56: EX LG GEN SVC | H56: ULX LG GEN SVC | I56: PUMPING | J56: ST & AREA LTG | M56: ="selected in cell "&CELL("address",Base1_Billing2)&":" -> selected in cell $O$8:
A57: REFERENCE | C57: TOTAL | D57: SCHEDULE 1 | E57: SCH. 11,12 | F57: SCH. 21,22 | G57: SCHEDULE 25 | H57: SCHEDULE 26 | I57: SCH. 30, 31, 32 | J57: SCH. 41-48 | M57: =O10 -> Base
B58: PRESENT RATES | M58: ="Rates_"&$M$57&"_Present" -> Rates_Base_Present | O58: - range name where Present Rates table can be found
A59: PDE-E-21 | B59: BASIC CHARGE | D59: =INDEX(INDIRECT($M$58),$L59,D$55) -> 8 | E59: 15 | F59: 0 | G59: 0 | H59: 0 | I59: 15 | J59: 15 | L59: 1 | M59: ="Rates_"&$M$57&"_Proposed" -> Rates_Base_Proposed | O59: - range name where Proposed Rates table can be found
B60: MONTHLY MINIMUM
A62: PDE-E-21 | B62: BLOCK 1 PER KWH | D62: =INDEX(INDIRECT($M$58),$L62,D$55) -> 7.369 | E62: 11.391 | F62: 7.099 | G62: 5.708 | H62: 5.708 | I62: 9.545 | J62: 9.545 | L62: 2
A63: PDE-E-21 | B63: BLOCK 2 PER KWH | D63: 8.573 | E63: 8.37 | F63: 6.349 | G63: 5.135 | H63: =INDEX(INDIRECT($M$58),$L63,H$55) -> 5.135 | I63: =INDEX(INDIRECT($M$58),$L63,I$55) -> 6.817 | J63: 6.817 | L63: 3
A64: PDE-E-21 | B64: BLOCK 3 PER KWH | D64: 10.05 | E64: 0 | F64: 0 | G64: 4.391 | H64: 4.391 | I64: 0 | J64: 0 | L64: 4
B65: BLOCK 4 PER KWH | L65: 5
B67: ADJUST TO ACTUAL PER KWH | D67: =(D124-D111)/D14*100 -> 7.980388085 | E67: =(E124-E111-SUM(E117:E120))/E14*100 -> 10.53611815 | F67: =(F124-F111-SUM(F117:F120))/F14*100 -> 7.012662284 | I67: =(I124-I111-SUM(I117:I120))/I14*100 -> 7.877562135
A69: PDE-E-21 | B69: DEMAND BLOCK 1 | D69: =INDEX(INDIRECT($M$58),$L69,D$55) -> 0 | E69: 0 | F69: 450 | G69: 15000 | H69: 15000 | I69: 0 | J69: 0 | L69: 6
A70: PDE-E-21 | B70: DEMAND BLOCK 2 | D70: 0 | E70: 6 | F70: 6 | G70: 5.25 | H70: 5.25 | I70: 0 | J70: 0 | L70: 7
B75: PROPOSED RATES
B76: BASIC CHARGE | D76: =INDEX(INDIRECT($M$59),$L76,D$55) -> 8.5 | E76: =INDEX(INDIRECT($M$59),$L76,E$55) -> 16 | F76: =INDEX(INDIRECT($M$59),$L76,F$55) -> 21 | G76: 210 | H76: 210 | I76: =INDEX(INDIRECT($M$59),$L76,I$55) -> 16 | J76: =INDEX(INDIRECT($M$59),$L76,J$55) -> 16 | L76: 1
B77: MONTHLY MINIMUM
B79: BLOCK 1 PER KWH | D79: =INDEX(INDIRECT($M$59),$L79,D$55) -> 6.998 | E79: 10.048 | F79: 6.795 | G79: 5.468 | H79: 3.944 | I79: 9.732 | J79: 9.732 | L79: 2
B80: BLOCK 2 PER KWH | D80: 8.142 | E80: 7.383 | F80: 6.077 | G80: 4.919 | H80: 3.944 | I80: 6.95 | J80: 6.95 | L80: 3
B81: BLOCK 3 PER KWH | D81: 10.05 | G81: 4.919 | H81: 3.944 | L81: 4
B82: BLOCK 4 PER KWH | L82: 5
B84: ADJUST TO ACTUAL PER KWH | D84: =(D177-D164)/D37*100 -> 7.645202682 | E84: =(E177-E164-SUM(E170:E173))/E37*100 -> 9.293858946 | F84: =(F177-F164-SUM(F170:F173))/F37*100 -> 6.712346026 | I84: =(I177-I164-SUM(I170:I173))/I37*100 -> 8.031555675
B86: DEMAND BLOCK 1 | D86: =INDEX(INDIRECT($M$59),$L86,D$55) -> 0 | E86: 0 | F86: 480 | G86: 16000 | H86: 15000 | I86: 0 | J86: 0 | L86: 6
B87: DEMAND BLOCK 2 | D87: 0 | E87: 6.25 | F87: 6.25 | G87: 6.25 | H87: 6.25 | I87: 0 | J87: 0 | L87: 7
B95: =CHOOSE(Base1_Billing2,"Note: Rates do not include BPA Residential Exchange Program Schedule 59, Energy Efficiency Rider Adjustment Schedule 91, or Power Cost Surcharge Schedule 93.","") -> Note: Rates do not include BPA Residential Exchange Program Schedule 59, Energy Efficiency Rider Adjustment Schedule 91, or Power Cost Surcharge Schedule 93.
A107: WORK PAPER | D107: RESIDENTIAL | E107: GENERAL SVC. | F107: LG. GEN. SVC. | G107: EX LG GEN SVC | H107: ULX LG GEN SVC | I107: PUMPING | J107: ST & AREA LTG
A108: REFERENCE | C108: TOTAL | D108: SCHEDULE 1 | E108: SCH. 11,12 | F108: SCH. 21,22 | G108: SCHEDULE 25 | H108: SCHEDULE 26 | I108: SCH. 30, 31, 32 | J108: SCH. 41-48
B109: PRESENT REVENUE
B110: =UPPER(CHOOSE(Base1_Billing2,$O$9,$O$10))&" REVENUE" -> BASE TARIFF REVENUE
B111: BASIC CHARGE | C111: =SUM(D111:J111) -> 25942330.86 | D111: =D25*D59 -> 19953576 | E111: =E25*E59 -> 5546820 | F111: =F25*F59 -> 0 | G111: 0 | H111: 0 | I111: 441934.8551 | J111: 0 | M111: =C111/$C$124 -> 0.0528537854 | O111: =M111 -> 0.0528537854 | P111: =ROUND(O111+M122,3) -> 0.067
B112: MONTHLY MINIMUM | C112: 0
B113: BLOCK 1 | C113: 267387704.8 | D113: =ROUND(D8*D62/100,2) -> 117353235.2 | E113: 47870942.59 | F113: 90257090.18 | G113: 6816818.9 | H113: =ROUND(H8*H62/100,2) -> 342480 | I113: 4747137.93 | M113: =C113/$C$124 -> 0.5447641713 | O113: =M113 -> 0.5447641713 | P113: =O113/SUM($O$166:$O$168) -> 0.650594148 | Q113: =ROUND(P113*$O$117,3) -> 0.05 | R113: =ROUND(Q113+O113, 3) -> 0.595
B114: BLOCK 2 | C114: 102581078.8 | D114: 44991344.17 | E114: 13882239.67 | F114: 10501296 | G114: 24486662.71 | H114: =ROUND(H9*H63/100,2) -> 3389100 | I114: 5330436.2 | M114: 0.2089942632 | O114: =M114 -> 0.2089942632 | P114: =O114/SUM($O$166:$O$168) -> 0.2495950574 | Q114: =ROUND(P114*$O$117,3) -> 0.019 | R114: =ROUNDDOWN(Q114+O114,3) -> 0.227
B115: BLOCK 3 | C115: 50086403.53 | D115: =ROUND(D10*D64/100,2) -> 32178023.96 | G115: 0 | H115: =ROUND(H10*H64/100,2) -> 17908379.57 | M115: 0.1020438772 | O115: =M115 -> 0.1020438772 | P115: 0.1218676867 | Q115: 0.009 | R115: =ROUND(Q115+O115, 3) -> 0.111
B116: BLOCK 4 | C116: 0
B117: DEMAND BLOCK 1 | C117: 14628300 | D117: =D25*D69 -> 0 | E117: 0 | F117: =F25*F69 -> 10833300 | G117: =G25*G69 -> 3615000 | H117: =H25*H69 -> 180000 | I117: =I25*I69 -> 0 | J117: 0 | M117: =C117/$C$124 -> 0.02980306717 | O117: =M117+M118+M120 -> 0.07706737192
B118: DEMAND BLOCK 2 | C118: 24505547.25 | D118: =D27*D70 -> 0 | E118: =E27*E70 -> 2187846 | F118: =F27*F70 -> 16185318 | G118: =G27*G70 -> 2693342.723 | H118: =H27*H70 -> 3439040.527 | I118: =I27*I70 -> 0 | J118: 0 | M118: 0.04992654448
A119: PDE-E-22/23 | B119: POWER FACTOR ADJUSTMENT | C119: 136616 | E119: ='Bill Determ'!G19*0.5 -> 5084 | F119: =('Bill Determ'!G30)*0.5 -> 126386 | I119: ='Bill Determ'!G46*0.5 -> 5146
A120: PDE-E-29/8 | B120: PRIMARY VOLTAGE DISCOUNT | C120: -1306712.533 | F120: -72437 | G120: -226681 | H120: -1007594.533 | M120: -0.002662239727
B121: ANNUAL MINIMUM ADJUSTMENT | C121: 0
A122: PDE-E-11 | B122: STREET & AREA LIGHT REVENUE | C122: 6870762.72 | J122: ='Lighting summary'!D19 -> 6870762.72 | M122: 0.01399819547
B124: SUBTOTAL | C124: =IF(ROUND(SUM(C111:C122),3)<>ROUND(SUM(D124:J124),3),#VALUE!,SUM(D124:J124)) -> 490832031.4 | D124: =SUM(D111:D122) -> 214476179.4 | E124: 69492932.26 | F124: 127830953.2 | G124: 37385143.33 | H124: =SUM(H111:H122) -> 24251405.56 | I124: 10524654.99 | J124: 6870762.72
C125: =SUM(D125:J125) -> 0 | D125: =ROUND(D15*D67/100,2) -> 0 | E125: =ROUND(E15*E67/100,2) -> 0 | F125: 0 | G125: =ROUND(G15*G63/100,2) -> 0 | H125: =ROUND(H15*H63/100,2) -> 0 | I125: 0
B127: SUBTOTAL | C127: =SUM(D127:J127) -> 490832031.4 | D127: =D124+D125 -> 214476179.4 | E127: 69492932.26 | F127: 127830953.2 | G127: 37385143.33 | H127: =H124+H125 -> 24251405.56 | I127: 10524654.99 | J127: 6870762.72
B128: ADJUST TO ACTUAL | C128: =SUM(D128:J128) -> 0 | D128: =ROUND(D18*D67/100,2) -> 0 | E128: =ROUND(E18*E67/100,2) -> 0 | F128: 0 | G128: 0 | H128: =ROUND(H18*H67/100,2) -> 0 | I128: 0 | J128: 0
B130: ="TOTAL "&UPPER(CHOOSE(Base1_Billing2,$O$9,$O$10))&" REVENUE" -> TOTAL BASE TARIFF REVENUE | C130: =IF(ROUND(SUM(D130:J130),3)<>ROUND(SUM(C127:C128),3),#VALUE!,SUM(D130:J130)) -> 490832031.4 | D130: =D127+D128 -> 214476179.4 | E130: 69492932.26 | F130: 127830953.2 | G130: 37385143.33 | H130: =H127+H128 -> 24251405.56 | I130: 10524654.99 | J130: 6870762.72
B132: ADJUSTMENT REVENUE | K132: =D8/$D$14 -> 0.653341806 | M132: =$D$134*K132 -> -2433695.614 | O132: =M132*(D62/100) -> -179339.0298
B133: UNBILLED REVENUE ADJUSTMENT | K133: =D9/$D$14 -> 0.2153030009 | M133: =$D$134*K133 -> -802002.8171 | O133: =M133*(D63/100) -> -68755.70151
A134: PDE-E-15 | B134: UNBILLED LOAD KWHS | C134: =SUM(D134:J134) -> -7581891 | D134: ='Rev Runs 12MEJUNE2013'!O79+'Rev Runs 12MEJUNE2013'!D89 -> -3724996 | E134: ='Rev Runs 12MEJUNE2013'!O80+'Rev Runs 12MEJUNE2013'!O81+'Rev Runs 12MEJUNE2013'!D90+'Rev Runs 12MEJUNE2013'!D91 -> 1646405 | F134: ='Rev Runs 12MEJUNE2013'!O82+'Rev Runs 12MEJUNE2013'!O83+'Rev Runs 12MEJUNE2013'!D92+'Rev Runs 12MEJUNE2013'!D93 -> -6248645 | I134: ='Rev Runs 12MEJUNE2013'!O85+'Rev Runs 12MEJUNE2013'!O86+'Rev Runs 12MEJUNE2013'!D95+'Rev Runs 12MEJUNE2013'!D96 -> 745345 | K134: =D10/$D$14 -> 0.1313551931 | M134: -489297.569 | O134: -49174.40569
A135: PDE-E-5/6 | B135: UNBILLED LOAD RATE | D135: =D67 -> 7.980388085 | E135: =E67 -> 10.53611815 | F135: =F67 -> 7.012662284 | I135: =I67 -> 7.877562135 | K135: =SUM(K132:K134) -> 1 | M135: =SUM(M132:M134) -> -3724996 | O135: =SUM(O132:O134) -> -297269.137
B136: UNBILLED LOAD REVENUE | C136: =SUM(D136:J136) -> -503283.31 | D136: =ROUND(D134*D135/100,2) -> -297269.14 | E136: =ROUND(E134*E135/100,2) -> 173467.18 | F136: =ROUND(F134*F135/100,2) -> -438196.37 | I136: =ROUND(I134*I135/100,2) -> 58715.02
A138: PDE-E-17 | B138: WEATHER-SENSITIVE KWHS | C138: =SUM(D138:J138) -> 0 | D138: 0 | E138: 0 | F138: 0
A139: PDE-E-5/6 | B139: WEATHER-SENSITIVE RATE | D139: =J226 -> 9.194092878 | E139: =J245 -> 8.597161702 | F139: =J278 -> 6.898326127
B140: WEATHER-SENSITIVE REVENUE | C140: =SUM(D140:J140) -> 0 | D140: =ROUND(D138*D139/100,2) -> 0 | E140: =ROUND(E138*E139/100,2) -> 0 | F140: =ROUND(F138*F139/100,2) -> 0
A142: PDE-E-15 | B142: TOTAL UNBILLED KWH ADJUST | C142: =IF(ROUND(C134+C138,3)<>ROUND(SUM(D142:J142),3),#VALUE!,C134+C138) -> -7581891 | D142: =D134+D138 -> -3724996 | E142: =E134+E138 -> 1646405 | F142: =F134+F138 -> -6248645 | I142: =I134+I138 -> 745345 | J142: =J134+J138 -> 0
B143: TOTAL UNBILLED REVENUE ADJ | C143: =IF(ROUND(C136+C140,3)<>ROUND(SUM(D143:J143),3),#VALUE!,C136+C140) -> -503283.31 | D143: =D136+D140 -> -297269.14 | E143: =E136+E140 -> 173467.18 | F143: =F136+F140 -> -438196.37 | I143: =I136+I140 -> 58715.02
B144: WEATHER NORMALIZATION ADJ
A145: PDE-E-17 | B145: WEATHER-SENSITIVE KWHS | C145: =SUM(D145:J145) -> -1841565 | D145: -983859 | E145: -855840 | F145: -1866
A146: PDE-E-5/6 | B146: WEATHER-SENSITIVE RATE | D146: =J226 -> 9.194092878 | E146: =J245 -> 8.597161702 | F146: =J278 -> 6.898326127
B147: WEATHER-SENSITIVE REVENUE | C147: =SUM(D147:J147) -> -164163.58 | D147: =ROUND(D145*D146/100,2) -> -90456.91 | E147: =ROUND(E145*E146/100,2) -> -73577.95 | F147: =ROUND(F145*F146/100,2) -> -128.72
B149: TOTAL ADJUSTMENT REVENUE | C149: =IF(ROUND(C143+C147,3)<>ROUND(SUM(D149:J149),3),#VALUE!,C143+C147) -> -667446.89 | D149: =D147+D143 -> -387726.05 | E149: =E147+E143 -> 99889.23 | F149: =F147+F143 -> -438325.09 | I149: =I147+I143 -> 58715.02
B150: =B130 -> TOTAL BASE TARIFF REVENUE | C150: =C130 -> 490832031.4 | D150: 214476179.4 | E150: 69492932.26 | F150: 127830953.2 | G150: 37385143.33 | H150: =H130 -> 24251405.56 | I150: 10524654.99 | J150: 6870762.72
B152: TOTAL PRESENT REVENUE | C152: =IF(ROUND(C149+C150,3)<>ROUND(SUM(D152:J152),3),#VALUE!,SUM(D152:J152)) -> 490164584.5 | D152: =D149+D150 -> 214088453.3 | E152: 69592821.49 | F152: 127392628.1 | G152: 37385143.33 | H152: =H149+H150 -> 24251405.56 | I152: 10583370.01 | J152: 6870762.72
A160: WORK PAPER | D160: RESIDENTIAL | E160: GENERAL SVC. | F160: LG. GEN. SVC. | G160: EX LG GEN SVC | H160: ULX LG GEN SVC | I160: PUMPING | J160: ST & AREA LTG
A161: REFERENCE | C161: TOTAL | D161: SCHEDULE 1 | E161: SCH. 11,12 | F161: SCH. 21,22 | G161: SCHEDULE 25 | H161: SCHEDULE 26 | I161: SCH. 30, 31, 32 | J161: SCH. 41-48
B162: PROPOSED REVENUE
B163: =UPPER(CHOOSE(Base1_Billing2,$O$9,$O$10))&" REVENUE" -> BASE TARIFF REVENUE
B164: BASIC CHARGE | C164: =SUM(D164:J164) -> 28147363.68 | D164: =D48*D76 -> 21200674.5 | E164: =E48*E76 -> 5916608 | F164: =F48*F76 -> 505554 | G164: 50610 | H164: 2520 | I164: 471397.1787 | J164: 0 | M164: =C164/$C$177 -> 0.0594487598 | O164: =M164 -> 0.0594487598 | P164: =ROUND(O164+M175,3) -> 0.074
B165: MONTHLY MINIMUM | C165: 0 | D165: =D49*D77 -> 0
B166: BLOCK 1 | C166: 254273953 | D166: =ROUND(D31*D79/100,2) -> 111444964.1 | E166: 42226953.83 | F166: 86392016.87 | G166: 6530197.22 | H166: =ROUND(H31*H79/100,2) -> 2839680 | I166: =ROUND(I31*I79/100,2) -> 4840141.06 | J166: =ROUND(J31*J79/100,2) -> 0 | M166: =C166/$C$177 -> 0.5370403897 | O166: =M166 -> 0.5370403897 | P166: =O166/SUM($O$166:$O$168) -> 0.6413698866 | Q166: =P166*$O$170 -> 0.05652992007 | R166: =ROUND(Q166+O166, 3) -> 0.594
B167: BLOCK 2 | C167: 110002484.5 | D167: 42729444.1 | E167: 12245230.05 | F167: 10051405.86 | G167: 23456649.24 | H167: =ROUND(H32*H80/100,2) -> 16085322.03 | I167: 5434433.27 | J167: =ROUND(J32*J80/100,2) -> 0 | M167: 0.2323312178 | O167: =M167 -> 0.2323312178 | P167: =O167/SUM($O$166:$O$168) -> 0.277465624 | Q167: =P167*$O$170 -> 0.02445563765 | R167: =ROUND(Q167+O167,3) -> 0.257
B168: BLOCK 3 | C168: 32178023.96 | D168: =ROUND(D33*D81/100,2) -> 32178023.96 | E168: =ROUND(E33*E81/100,2) -> 0 | F168: 0 | G168: 0 | H168: =ROUND(H33*H81/100,2) -> 0 | I168: =ROUND(I33*I81/100,2) -> 0 | J168: 0 | M168: 0.06796173308 | O168: =M168 -> 0.06796173308 | P168: 0.08116448945 | Q168: 0.00715378473 | R168: =ROUND(Q168+O168, 3) -> 0.075
B169: BLOCK 4 | C169: 0 | D169: =ROUND(D34*D82/100,2) -> 0 | E169: =ROUND(E34*E82/100,2) -> 0 | F169: 0 | G169: 0 | H169: =ROUND(H34*H82/100,2) -> 0 | I169: =ROUND(I34*I82/100,2) -> 0 | J169: 0
B170: DEMAND BLOCK 1 | C170: 15591520 | D170: =ROUND(D48*D86,2) -> 0 | E170: 0 | F170: =ROUND(F48*F86,2) -> 11555520 | G170: =ROUND(G48*G86,2) -> 3856000 | H170: =ROUND(H48*H86,2) -> 180000 | I170: =ROUND(I48*I86,2) -> 0 | J170: 0 | M170: 0.03293013648 | O170: =M170+M171+M173 -> 0.08813934245
B171: DEMAND BLOCK 2 | C171: 26439168.76 | D171: =ROUND(D50*D87,2) -> 0 | E171: =ROUND(E50*E87,2) -> 2279006.25 | F171: =ROUND(F50*F87,2) -> 16859706.25 | G171: =ROUND(G50*G87,2) -> 3206360.39 | H171: =ROUND(H50*H87,2) -> 4094095.87 | I171: =ROUND(I50*I87,2) -> 0 | J171: 0 | M171: 0.05584095942
B172: POWER FACTOR ADJUSTMENT | C172: 136616 | E172: =E119 -> 5084 | F172: =F119 -> 126386 | G172: =G119 -> 0 | H172: 0 | I172: =I119 -> 5146
B173: PRIMARY VOLTAGE DISCOUNT | C173: -299118 | F173: =F120 -> -72437 | G173: ='WA Sch 25'!P142-H173 -> -226681 | H173: ='WA Sch 25'!P140+'WA Sch 25'!P141 -> 0 | M173: -0.0006317534508
B174: ANNUAL MINIMUM ADJUSTMENT | C174: 0
A175: PDE-E-11 | B175: STREET & AREA LIGHT REVENUE | C175: 7002668.881 | J175: ='Lighting summary'!G19 -> 7002668.881 | M175: 0.01479001675
B177: SUBTOTAL | C177: =IF(ROUND(SUM(C164:C175),3)<>ROUND(SUM(D177:J177),3),#VALUE!,SUM(D177:J177)) -> 473472680.9 | D177: =SUM(D164:D175) -> 207553106.6 | E177: 62672882.13 | F177: 125418152 | G177: 36873135.85 | H177: =SUM(H164:H175) -> 23201617.9 | I177: 10751117.51 | J177: 7002668.881
C178: =SUM(D178:J178) -> 0 | D178: =ROUND(D38*D84/100,2) -> 0 | E178: =ROUND(E38*E84/100,2) -> 0 | F178: 0 | G178: =ROUND(G38*G80/100,2) -> 0 | H178: =ROUND(H38*H80/100,2) -> 0 | I178: 0 | J178: 0
B180: SUBTOTAL | C180: =SUM(D180:J180) -> 473472680.9 | D180: =D177+D178 -> 207553106.6 | E180: 62672882.13 | F180: 125418152 | G180: 36873135.85 | H180: =H177+H178 -> 23201617.9 | I180: 10751117.51 | J180: 7002668.881
B181: ADJUST TO ACTUAL | C181: =SUM(D181:J181) -> 0 | D181: =ROUND(D41*D84/100,2) -> 0 | E181: 0 | F181: 0 | G181: 0 | H181: =ROUND(H41*H84/100,2) -> 0 | I181: 0 | J181: 0
B183: ="SUBTOTAL "&UPPER(CHOOSE(Base1_Billing2,$O$9,$O$10))&" REVENUE" -> SUBTOTAL BASE TARIFF REVENUE | C183: =IF(ROUND(SUM(D183:J183),3)<>ROUND(SUM(C180:C181),3),#VALUE!,SUM(D183:J183)) -> 473472680.9 | D183: =D180+D181 -> 207553106.6 | E183: 62672882.13 | F183: 125418152 | G183: 36873135.85 | H183: =H180+H181 -> 23201617.9 | I183: 10751117.51 | J183: 7002668.881
B185: ADJUSTMENT REVENUE
B186: UNBILLED REVENUE ADJUSTMENT
B187: UNBILLED LOAD KWHS | C187: =SUM(D187:J187) -> -7581891 | D187: =D134 -> -3724996 | E187: =E134 -> 1646405 | F187: =F134 -> -6248645 | G187: =G134 -> 0 | H187: 0 | I187: 745345 | J187: 0
B188: UNBILLED LOAD RATE | D188: =D84 -> 7.645202682 | E188: 9.293858946 | F188: =F84 -> 6.712346026 | G188: =G84 -> 0 | H188: 0 | I188: 8.031555675 | J188: 0
B189: UNBILLED LOAD REVENUE | C189: =SUM(D189:J189) -> -491336.8 | D189: =ROUND(D187*D188/100,2) -> -284783.49 | E189: =ROUND(E187*E188/100,2) -> 153014.56 | F189: =ROUND(F187*F188/100,2) -> -419430.67 | G189: =ROUND(G187*G188/100,2) -> 0 | H189: 0 | I189: 59862.8 | J189: 0
B191: WEATHER-SENSITIVE KWHS | C191: =SUM(D191:J191) -> 0 | D191: =D138 -> 0 | E191: =E138 -> 0 | F191: =F138 -> 0 | G191: =G138 -> 0 | H191: 0 | I191: 0 | J191: 0
B192: WEATHER-SENSITIVE RATE | D192: =J235 -> 8.944332574 | E192: =J253 -> 7.583392564 | F192: =J286 -> 6.602888212 | G192: =K286 -> 0 | H192: 0 | I192: 0 | J192: 0
B193: WEATHER-SENSITIVE REVENUE | C193: =SUM(D193:J193) -> 0 | D193: =ROUND(D191*D192/100,2) -> 0 | E193: =ROUND(E191*E192/100,2) -> 0 | F193: =ROUND(F191*F192/100,2) -> 0 | G193: =ROUND(G191*G192/100,2) -> 0 | H193: 0 | I193: 0 | J193: 0
B195: TOTAL UNBILLED KWH ADJUST | C195: =IF(ROUND(C187+C191,3)<>ROUND(SUM(D195:J195),3),#VALUE!,SUM(D195:J195)) -> -7581891 | D195: =D187+D191 -> -3724996 | E195: =E187+E191 -> 1646405 | F195: =F187+F191 -> -6248645 | G195: =G187+G191 -> 0 | H195: 0 | I195: 745345 | J195: 0
B196: TOTAL UNBILLED REVENUE ADJ | C196: =IF(ROUND(C189+C193,3)<>ROUND(SUM(D196:J196),3),#VALUE!,SUM(D196:J196)) -> -491336.8 | D196: =D189+D193 -> -284783.49 | E196: =E189+E193 -> 153014.56 | F196: =F189+F193 -> -419430.67 | G196: =G189+G193 -> 0 | H196: 0 | I196: 59862.8 | J196: 0
B197: WEATHER NORMALIZATION ADJ
B198: WEATHER-SENSITIVE KWHS | C198: =SUM(D198:J198) -> -1841565 | D198: =D145 -> -983859 | E198: =E145 -> -855840 | F198: =F145 -> -1866 | G198: =G145 -> 0 | H198: 0 | I198: 0 | J198: 0
B199: WEATHER-SENSITIVE RATE | D199: =J235 -> 8.944332574 | E199: =J253 -> 7.583392564 | F199: =J286 -> 6.602888212 | G199: =K286 -> 0 | H199: 0 | I199: 0 | J199: 0
B200: WEATHER-SENSITIVE REVENUE | C200: =SUM(D200:J200) -> -153024.54 | D200: =ROUND(D198*D199/100,2) -> -87999.62 | E200: =ROUND(E198*E199/100,2) -> -64901.71 | F200: =ROUND(F198*F199/100,2) -> -123.21 | G200: =ROUND(G198*G199/100,2) -> 0 | H200: 0 | I200: 0 | J200: 0
B202: TOTAL ADJUSTMENT REVENUE | C202: =IF(ROUND(SUM(D202:J202),3)<>ROUND(C196+C200,3),#VALUE!,SUM(D202:J202)) -> -644361.34 | D202: =D200+D196 -> -372783.11 | E202: =E200+E196 -> 88112.85 | F202: =F200+F196 -> -419553.88 | G202: =G200+G196 -> 0 | H202: 0 | I202: 59862.8 | J202: 0
B203: ="TOTAL "&UPPER(CHOOSE(Base1_Billing2,$O$9,$O$10))&" REVENUE" -> TOTAL BASE TARIFF REVENUE | C203: =SUM(D203:J203) -> 473472680.9 | D203: =D183 -> 207553106.6 | E203: 62672882.13 | F203: 125418152 | G203: 36873135.85 | H203: =H183 -> 23201617.9 | I203: 10751117.51 | J203: 7002668.881
B204: TOTAL PROPOSED REVENUE | C204: =IF(ROUND(SUM(D204:J204),3)<>ROUND(SUM(C202:C203),3),#VALUE!,SUM(D204:J204)) -> 472828319.5 | D204: =D202+D203 -> 207180323.5 | E204: 62760994.98 | F204: 124998598.1 | G204: 36873135.85 | H204: =H202+H203 -> 23201617.9 | I204: 10810980.31 | J204: 7002668.881
B205: TOTAL PRESENT REVENUE | C205: =SUM(D205:J205) -> 490164584.5 | D205: =D152 -> 214088453.3 | E205: 69592821.49 | F205: 127392628.1 | G205: 37385143.33 | H205: =H152 -> 24251405.56 | I205: 10583370.01 | J205: =J152 -> 6870762.72
B207: TOTAL REVENUE INCREASE | C207: =SUM(D207:J207) -> -17336264.98 | D207: =D204-D205 -> -6908129.8 | E207: -6831826.51 | F207: -2394029.99 | G207: -512007.4834 | H207: =H204-H205 -> -1049787.663 | I207: 227610.3037 | J207: 131906.1603
B208: PERCENT REVENUE INCREASE | C208: =C207/C205 -> -0.03536825289 | D208: =D207/D205 -> -0.03226764308 | E208: -0.09816855192 | F208: -0.01879253161 | G208: -0.01369548002 | H208: =H207/H205 -> -0.0432877039 | I208: 0.02150641087 | J208: =J207/J205 -> 0.01919818304
B209: =IF(Base1_Billing2=2,"Pres and Prop Revenues may be incorrect due to Sch 59--for example all of Sch 11 gets benefit of Sch 59 but it s/only be Sch 12; see Billing Rev on Exhibit page for fix","") -> 
C210: =C4 -> 
A216: WORK PAPER | D216: TOTAL | E216: TOTAL | F216: BASELOAD | G216: BASELOAD | I216: WTHR-SENS. | J216: WTHR-SENS.
A217: REFERENCE | C217: RATES | D217: KWHS | E217: REVENUE | F217: KWHS | G217: REVENUE | I217: KWHS | J217: REVENUE
B219: PRESENT BASELOAD AND WEATHER-SENSITIVE RATES
B220: SCHEDULE 1
B221: 0-600 KWHS | C221: =D62 -> 7.369 | D221: =D8 -> 1592525923 | E221: =C221*D221/100 -> 117353235.2 | F221: =MIN(D221,F225) -> 1592525923 | G221: =F221*C221/100 -> 117353235.2 | I221: =D221-F221 -> 0 | J221: =I221*C221/100 -> 0
B222: 601-1300 KWHS | C222: =D63 -> 8.573 | D222: =D9 -> 524802801.5 | E222: =C222*D222/100 -> 44991344.17 | F222: =MIN(F225-F221,D222) -> 83574461.43 | G222: =F222*C222/100 -> 7164838.578 | I222: =D222-F222 -> 441228340.1 | J222: =I222*C222/100 -> 37826505.6 | M222: =I222/$I$225 -> 0.5794902651 | O222: =M222*$D$145 -> -570136.7127 | P222: =O222*(D63/100) -> -48877.82038
B223: OVER 1300 KWHS | C223: =D64 -> 10.05 | D223: =D10 -> 320179342.9 | E223: =C223*D223/100 -> 32178023.96 | F223: =MIN(F225-F221-F222,D223) -> 0 | G223: =F223*C223/100 -> 0 | I223: =D223-F223 -> 320179342.9 | J223: =I223*C223/100 -> 32178023.96 | M223: =I223/$I$225 -> 0.4205097349 | O223: =M223*$D$145 -> -413722.2873 | P223: =O223*(D64/100) -> -41579.08987
O224: =SUM(O222:O223) -> -983859 | P224: =SUM(P222:P223) -> -90456.91025
B225: TOTAL | D225: =D221+D222+D223 -> 2437508067 | E225: 194522603.4 | F225: =672*D25 -> 1676100384 | G225: 124518073.8 | I225: 761407683 | J225: 70004529.56
B226: AVERAGE RATE | E226: =E225/D225*100 -> 7.980388086 | G226: =G225/F225*100 -> 7.429034382 | J226: =J225/I225*100 -> 9.194092878
B228: PROPOSED BASELOAD AND WEATHER-SENSITIVE RATES
B229: SCHEDULE 1
B230: 0-600 KWHS | C230: =D79 -> 6.998 | D230: =D221 -> 1592525923 | E230: =C230*D230/100 -> 111444964.1 | F230: =MIN(D230,F234) -> 1592525923 | G230: =F230*C230/100 -> 111444964.1 | I230: =I221 -> 0 | J230: =I230*C230/100 -> 0
B231: 601-1300 KWHS | C231: =D80 -> 8.142 | D231: =D222 -> 524802801.5 | E231: =C231*D231/100 -> 42729444.1 | F231: =MIN(F234-F230,D231) -> 83574461.43 | G231: =F231*C231/100 -> 6804632.649 | I231: =I222 -> 441228340.1 | J231: =I231*C231/100 -> 35924811.45
B232: OVER 1300 KWHS | C232: =D81 -> 10.05 | D232: =D223 -> 320179342.9 | E232: =C232*D232/100 -> 32178023.96 | F232: =MIN(F234-F230-F231,D232) -> 0 | G232: =F232*C232/100 -> 0 | I232: =I223 -> 320179342.9 | J232: =I232*C232/100 -> 32178023.96
B234: TOTAL | D234: =D230+D231+D232 -> 2437508067 | E234: 186352432.1 | F234: =F225 -> 1676100384 | G234: 118249596.7 | I234: 761407683 | J234: 68102835.41
B235: AVERAGE RATE | E235: =E234/D234*100 -> 7.645202682 | G235: =G234/F234*100 -> 7.055042636 | J235: =J234/I234*100 -> 8.944332574
B239: PRESENT BASELOAD AND WEATHER-SENSITIVE RATES
B240: SCHEDULE 11
B241: 0-3650 KWHS | C241: =E62 -> 11.391 | D241: =E8 -> 420252327.2 | E241: =C241*D241/100 -> 47870942.59 | F241: =MIN(D241,F244) -> 406766800 | G241: =F241*C241/100 -> 46334806.19 | I241: =D241-F241 -> 13485527.17 | J241: =I241*C241/100 -> 1536136.4
B242: over 3650 KWHS | C242: =E63 -> 8.37 | D242: =E9 -> 165857104.8 | E242: =C242*D242/100 -> 13882239.67 | F242: =MIN(F244-F241,D242) -> 0 | G242: =F242*C242/100 -> 0 | I242: =D242-F242 -> 165857104.8 | J242: =I242*C242/100 -> 13882239.67
B244: TOTAL | D244: =D241+D242 -> 586109432 | E244: 61753182.26 | F244: =1100*E25 -> 406766800 | G244: 46334806.19 | I244: 179342632 | J244: 15418376.07
B245: AVERAGE RATE | E245: =E244/D244*100 -> 10.53611815 | G245: =G244/F244*100 -> 11.391 | J245: =J244/I244*100 -> 8.597161702
B247: PROPOSED BASELOAD AND WEATHER-SENSITIVE RATES
B248: SCHEDULE 11
B249: 0-3650 KWHS | C249: =E79 -> 10.048 | D249: =E31 -> 420252327.2 | E249: =C249*D249/100 -> 42226953.83 | F249: =MIN(D249,F252) -> 406766800 | G249: =F249*C249/100 -> 40871928.06 | I249: =D249-F249 -> 13485527.17 | J249: =I249*C249/100 -> 1355025.771
B250: over 3650 KWHS | C250: =E80 -> 7.383 | D250: =E32 -> 165857104.8 | E250: =C250*D250/100 -> 12245230.05 | F250: =MIN(F252-F249,D250) -> 0 | G250: =F250*C250/100 -> 0 | I250: =D250-F250 -> 165857104.8 | J250: =I250*C250/100 -> 12245230.05
B252: TOTAL | D252: =D249+D250 -> 586109432 | E252: 54472183.88 | F252: =F244 -> 406766800 | G252: 40871928.06 | I252: 179342632 | J252: 13600255.82
B253: AVERAGE RATE | E253: =E252/D252*100 -> 9.293858947 | G253: =G252/F252*100 -> 10.048 | J253: =J252/I252*100 -> 7.583392564
B261: Note: Total Base Load for Sch. 1 = Base Load per bill times total billings (base load per bill on PDE-E-18) =
B262: ="672 X "&TEXT(D25,"#,##0")&" = "&TEXT(F225,"#,##0") -> 672 X 2,494,197 = 1,676,100,384
B263: ="Total Base Load for Sch. 11 = 1,100 X "&TEXT(E25,"#,##0")&" = "&TEXT(F244,"#,##0") -> Total Base Load for Sch. 11 = 1,100 X 369,788 = 406,766,800
B264: =IF(Base1_Billing2=2,"Pres and Prop Revenues may be incorrect due to Sch 59--for example all of Sch 11 gets benefit of Sch 59 but it s/only be Sch 12; see Billing Rev on Exhibit page for fix","") -> 
A269: WORK PAPER | D269: TOTAL | E269: TOTAL | F269: BASELOAD | G269: BASELOAD | I269: WTHR-SENS. | J269: WTHR-SENS.
A270: REFERENCE | C270: RATES | D270: KWHS | E270: REVENUE | F270: KWHS | G270: REVENUE | I270: KWHS | J270: REVENUE
B272: PRESENT BASELOAD AND WEATHER-SENSITIVE RATES
B273: SCHEDULE 21
B274: 0-250000 KWHS | C274: =F62 -> 7.099 | D274: =F8 -> 1271405693 | E274: =C274*D274/100 -> 90257090.18 | F274: =MIN(D274,F277) -> 818636370 | G274: =F274*C274/100 -> 58114995.91 | I274: =D274-F274 -> 452769323.5 | J274: =I274*C274/100 -> 32142094.28
B275: OVER 250000 KWHS | C275: =F63 -> 6.349 | D275: =F9 -> 165400787.5 | E275: =C275*D275/100 -> 10501296 | F275: =MIN(F277-F274,D275) -> 0 | G275: =F275*C275/100 -> 0 | I275: =D275-F275 -> 165400787.5 | J275: =I275*C275/100 -> 10501296
B277: TOTAL | D277: =D274+D275 -> 1436806481 | E277: =E274+E275 -> 100758386.2 | F277: =34005*F25 -> 818636370 | G277: =G274+G275 -> 58114995.91 | I277: =I274+I275 -> 618170111 | J277: =J274+J275 -> 42643390.27
B278: AVERAGE RATE | E278: =E277/D277*100 -> 7.012662283 | G278: =G277/F277*100 -> 7.099 | J278: =J277/I277*100 -> 6.898326127
B280: PROPOSED BASELOAD AND WEATHER-SENSITIVE RATES
B281: SCHEDULE 21
B282: 0-250000 KWHS | C282: =F79 -> 6.795 | D282: =D274 -> 1271405693 | E282: =C282*D282/100 -> 86392016.87 | F282: =MIN(D282,F285) -> 818636370 | G282: =F282*C282/100 -> 55626341.34 | I282: =I274 -> 452769323.5 | J282: =I282*C282/100 -> 30765675.53
B283: OVER 250000 KWHS | C283: =F80 -> 6.077 | D283: =D275 -> 165400787.5 | E283: =C283*D283/100 -> 10051405.86 | F283: =MIN(F285-F282,D283) -> 0 | G283: =F283*C283/100 -> 0 | I283: =I275 -> 165400787.5 | J283: =I283*C283/100 -> 10051405.86
B285: TOTAL | D285: =D282+D283 -> 1436806481 | E285: =E282+E283 -> 96443422.73 | F285: =F277 -> 818636370 | G285: =G282+G283 -> 55626341.34 | I285: =I282+I283 -> 618170111 | J285: =J282+J283 -> 40817081.39
B286: AVERAGE RATE | G286: =G285/F285*100 -> 6.795 | J286: =J285/I285*100 -> 6.602888212
B294: Note: Total Base Load for Sch. 21 = Base Load per bill times total billings (base load per bill on PDE-E-18) =
B295: ="34,005 X "&TEXT(F25,"#,##0")&" = "&TEXT(F277,"#,##0") -> 34,005 X 24,074 = 818,636,370
D299: =D207/D48 -> -2.769680903 | E299: =E207/E48 -> -18.47498164 | F299: -99.44462865 | G299: -2124.512379 | H299: -87482.30527 | I299: 7.725470204
D300: =D23/D25 -> 975.3837456
D302: =(800*((D79-D62)/100))+(165*((D80-D63)/100))+(D76-D59) -> -3.17915

Sheet Exh 1
A1: AVISTA UTILITIES | Q1: This worksheet pulls data from 'Pres & Prop Rev' tab.
A2: WASHINGTON ELECTRIC
A3: PROPOSED INCREASE BY SERVICE SCHEDULE
A4: 12 MONTHS ENDED JUNE 30, 2013
A5: (000s of Dollars)
D8: Base Tariff | F8: Base Tariff | G8: Base | H8: Total Billed | J8: Percent | N8: Percent | R8: Percent | S8: Total Billed
D9: Revenue | E9: Proposed | F9: Revenue | G9: Tariff | H9: Revenue | I9: Total | J9: Decrease | K9: Sch. 98 | L9: Sch. 93/94 | M9: Net General | N9: Decrease | R9: Increase | S9: Revenue
B10: Type of | C10: Schedule | D10: Under Present | E10: General | F10: Under Proposed | G10: Percent | H10: at Present | I10: General | J10: on Billed | K10: REC Revenue | L10: ERM/BPA | M10: & Sch. 93/94/98 | N10: on Billed | R10: on Base | S10: at Proposed
A11: No. | B11: Service | C11: Number | D11: Rates(1) | E11: Decrease | F11: Rates(1) | G11: Increase | H11: Rates (2) | I11: Decrease | J11: Revenue | K11: Decrease | L11: Increase | M11: Decrease | N11: Revenue | R11: Revenue | S11: Rates (2)
B12: (a) | C12: (b) | D12: (c) | E12: (d) | F12: (e) | G12: (f) | H12: (g) | I12: (h) | J12: (i) | K12: (j) | L12: (k) | M12: (l) | N12: (m) | P12: ="col (m) source" -> col (m) source
D13: =IF(Base1_Billing2<>1,"ERROR","") -> 
A14: 1 | B14: Residential | C14: 1 | D14: ='Pres & Prop Rev'!$D$152/1000 -> 214088.4533 | E14: ='Pres & Prop Rev'!$D$207/1000 -> -6908.1298 | F14: =D14+E14-0.1 -> 207180.2235 | G14: =E14/D14 -> -0.03226764308 | H14: 211558.3421 | I14: =E14 -> -6908.1298 | J14: =I14/H14 -> -0.03265354478 | K14: ='Generation Allocation'!D9/1000 -> -2510.633309 | L14: =('Pres & Prop Rev'!D23*(0.00164+0.00083))/1000 -> 6009.014054 | M14: =E14+K14+L14 -> -3409.749055 | N14: =(M14)/H14 -> -0.016117299 | P14: from Pres & Prop Rev tab | R14: =(E14+L14)/D14 -> -0.004199739558 | S14: =E14+H14+L14 -> 210659.2264
A16: 2 | B16: General Service | C16: 11/12 | D16: ='Pres & Prop Rev'!$E$152/1000 -> 69592.82149 | E16: ='Pres & Prop Rev'!$E$207/1000 -> -6831.82651 | F16: =D16+E16 -> 62760.99498 | G16: =E16/D16 -> -0.09816855192 | H16: 70608.15849 | I16: =E16 -> -6831.82651 | J16: =I16/H16 -> -0.09675689971 | K16: ='Generation Allocation'!E9/1000 -> -609.5538093 | L16: =('Pres & Prop Rev'!E23*(0.00224+0.00069))/1000 -> 1719.616991 | M16: =E16+K16+L16 -> -5721.763328 | N16: =(M16)/H16 -> -0.08103544194 | P16: from below | R16: =(E16+L16)/D16 -> -0.0734588627 | S16: =E16+H16+L16 -> 65495.94897
A18: 3 | B18: Large General Service | C18: 21/22 | D18: ='Pres & Prop Rev'!$F$152/1000 -> 127392.6281 | E18: ='Pres & Prop Rev'!$F$207/1000 -> -2394.02999 | F18: =D18+E18 -> 124998.5981 | G18: =E18/D18 -> -0.01879253161 | H18: 128866.1007 | I18: -2394.02999 | J18: =I18/H18 -> -0.01857765523 | K18: ='Generation Allocation'!F9/1000 -> -1508.646805 | L18: =('Pres & Prop Rev'!F23*(0.00169+0.00078))/1000 -> 3533.473246 | M18: =E18+K18+L18 -> -369.2035491 | N18: =(M18)/H18 -> -0.002865016843 | P18: from below | R18: =(E18+L18)/D18 -> 0.008944342173 | S18: =E18+H18+L18 -> 130005.544
A20: 4 | B20: Extra Large General Service | C20: 25 | D20: ='Pres & Prop Rev'!$G$152/1000 -> 37385.14333 | E20: ='Pres & Prop Rev'!$G$207/1000 -> -512.0074834 | F20: =D20+E20+0.3 -> 36873.43585 | G20: =E20/D20 -> -0.01369548002 | H20: 37635.58251 | I20: -512.0074834 | J20: =I20/H20 -> -0.01360434592 | K20: ='Generation Allocation'!G9/1000 -> -608.2094604 | L20: =('Pres & Prop Rev'!G23*(0.00108+0.00072))/1000 -> 1073.310813 | M20: =E20+K20+L20 -> -46.90613131 | N20: =(M20)/H20 -> -0.001246324042 | P20: from Pres & Prop Rev tab | R20: =(E20+L20)/D20 -> 0.01501407455 | S20: =E20+H20+L20 -> 38196.88584
A22: 5 | B22: Ultra Large General Service | C22: 26 | D22: ='Pres & Prop Rev'!$H$152/1000 -> 24251.40556 | E22: ='Pres & Prop Rev'!$H$207/1000 -> -1049.787663 | F22: =D22+E22+0.3 -> 23201.9179 | G22: =E22/D22 -> -0.0432877039 | H22: 24452.93955 | I22: =E22 -> -1049.787663 | J22: =I22/H22 -> -0.04293093928 | K22: ='Generation Allocation'!H9/1000 -> -475.044422 | L22: =('Pres & Prop Rev'!H23*(0.00108+0.00072))/1000 -> 863.717131 | M22: =E22+K22+L22 -> -661.1149543 | N22: =(M22)/H22 -> -0.02703621595
A24: 6 | B24: Pumping Service | C24: 30/31/32 | D24: ='Pres & Prop Rev'!$I$152/1000 -> 10583.37001 | E24: ='Pres & Prop Rev'!$I$207/1000 -> 227.6103037 | F24: =D24+E24 -> 10810.98031 | G24: =E24/D24 -> 0.02150641087 | H24: 10695.31546 | I24: 227.6103037 | J24: =I24/H24 -> 0.02128130812 | K24: ='Generation Allocation'!I9/1000 -> -143.2788829 | L24: =('Pres & Prop Rev'!I23*(0.0015+0.00072))/1000 -> 285.6538802 | M24: 369.985301 | N24: =(M24)/H24 -> 0.03459321069 | P24: from below | R24: =(E24+L24)/D24 -> 0.04849723515 | S24: =E24+H24+L24 -> 11208.57964
A26: 7 | B26: Street & Area Lights | C26: 41-48 | D26: ='Pres & Prop Rev'!$J$152/1000 -> 6870.76272 | E26: ='Pres & Prop Rev'!$J$207/1000 -> 131.9061603 | F26: =D26+E26-0.01 -> 7002.658881 | G26: =E26/D26 -> 0.01919818304 | H26: 7139.892225 | I26: 131.9061603 | J26: =I26/H26 -> 0.01847453101 | K26: ='Generation Allocation'!J9/1000 -> -26.34116576 | L26: =('Pres & Prop Rev'!J23*(0.00503+0.00067))/1000 -> 144.3698508 | M26: 249.9348454 | N26: =(M26)/H26 -> 0.03500540869 | P26: from Pres & Prop Rev tab | R26: =(E26+L26)/D26 -> 0.04021038455 | S26: =E26+H26+L26 -> 7416.168236
A28: 8 | B28: Total | D28: =SUM(D14:D26) -> 490164.5845 | E28: =SUM(E14:E26) -> -17336.26498 | F28: =SUM(F14:F26) -> 472828.8095 | G28: =E28/D28 -> -0.03536825289 | H28: =SUM(H14:H26) -> 490956.3311 | I28: =E28 -> -17336.26498 | J28: =I28/H28 -> -0.03531121585 | K28: =SUM(K14:K27) -> -5881.707854 | L28: =SUM(L14:L26) -> 13629.15597 | M28: =SUM(M14:M26) -> -9588.816872 | N28: =(M28)/H28 -> -0.01953089565 | P28: from below | R28: =(E28+L28)/D28 -> -0.007562988299 | S28: =E28+H28+L28 -> 487249.2221
D29: =ROUND(D28-'Pres & Prop Rev'!C205/1000,0) -> 0 | E29: =ROUND(E28-'Pres & Prop Rev'!C207/1000,0) -> 0 | F29: =ROUND(F28-'Pres & Prop Rev'!C204/1000,0) -> 0
D30: =IF(Base1_Billing2=2,"Exhibit won't work until Base1_Billing2 range set to '1'","") -> 
A33: (1) Excludes all present rate adjustments: Schedule 59 (BPA Residential Exchange), Schedule 91 (Public Purpose Rider Adjustment),
A34: Schedule 93 (Energy Recovery Mechanism), and Schedule 94 (BPA Transmission Revenue).
A36: (2) Includes all present rate adjustments: Schedule 59 (BPA Residential Exchange), Schedule 91 (Public Purpose Rider Adjustment),
A37: Schedule 93 (Energy Recovery Mechanism), and Schedule 94 (BPA Transmission Revenue).
B40: reduce billed revenue for BPA ResEx (already accounted for in Schs 1 & 48)
F41: Billing | I41: Billed Revenue
F42: Determinants | H42: Sch 59 Rate | I42: Impact
B43: Schedule 12 only | F43: ='Rev Runs 12MEJUNE2013'!P47+'Rev Runs 12MEJUNE2013'!P81+'Rev Runs 12MEJUNE2013'!P91 -> 53702003 | H43: -0.00195 | I43: =F43*H43 -> -104718.9058
B44: Schedule 22 only | F44: ='Rev Runs 12MEJUNE2013'!P49+'Rev Runs 12MEJUNE2013'!P83+'Rev Runs 12MEJUNE2013'!P93 -> 37710165 | H44: -0.00195 | I44: =F44*H44 -> -73534.82175
B45: Schedule 32 only | F45: ='Rev Runs 12MEJUNE2013'!P54+'Rev Runs 12MEJUNE2013'!P86+'Rev Runs 12MEJUNE2013'!P96 -> 8499403 | H45: -0.00195 | I45: -16573.83585
B47: Total | F47: =SUM(F43:F46) -> 99911571 | I47: =SUM(I43:I46) -> -194827.5634 | J47: Manually deducted in Column H
J50: ERM Reduction Calc | L50: 0 | M50: 1 | N50: =-D14*$L$51 -> 0 | P50: =0/'Pres & Prop Rev'!D23 -> 0 | Q50: =(D14/$D$28)*$N$56 -> 0
L51: =L50/D28 -> 0 | M51: 11 | N51: =-D16*L51 -> 0 | Q51: =(D16/$D$28)*$N$56 -> 0
M52: 21 | N52: =-D18*L51 -> 0 | Q52: =(D18/$D$28)*$N$56 -> 0
M53: 25 | N53: =-D20*L51 -> 0 | Q53: =(D20/$D$28)*$N$56 -> 0
M54: 31 | N54: =-D24*L51 -> 0 | Q54: =(D24/$D$28)*$N$56 -> 0
M55: 41-48 | N55: =-D26*L51 -> 0 | Q55: =(D26/$D$28)*$N$56 -> 0
N56: =SUM(N50:N55) -> 0 | Q56: =SUM(Q50:Q55) -> 0

Sheet Exh 2
A1: AVISTA UTILITIES | L1: This worksheet pulls data from 'ROR' tab.
A2: WASHINGTON ELECTRIC
A3: PRESENT & PROPOSED RATES OF RETURN BY RATE SCHEDULE
A4: 12 MONTHS ENDED JUNE 30, 2013
D9: Present Rates | G9: Base | I9: Proposed Rates
D10: Present | E10: Present | G10: Tariff | I10: Proposed | J10: Proposed
A11: Line | B11: Type of | C11: Sch. | D11: Rate of | E11: Relative | G11: Proposed | I11: Rate of | J11: Relative
A12: No. | B12: Service | C12: Number | D12: Return | E12: ROR | G12: Increase | I12: Return | J12: ROR
B13: (a) | C13: (b) | D13: (c) | E13: (d) | G13: (e) | I13: (f) | J13: (g)
A14: 1 | B14: Residential | C14: 1 | D14: =INDEX(ROR!$C$20:$J$20,$A14+1) -> 0.0373101336 | E14: =INDEX(ROR!$C$21:$J$21,$A14+1) -> 0.543744241 | G14: =INDEX(ROR!$C$47:$J$47,$A14+1) -> 0 | I14: =INDEX(ROR!$C$38:$J$38,$A14+1) -> 0.0373019738 | J14: =INDEX(ROR!$C$37:$J$37,$A14+1) -> 0.5748843298
A15: 2 | B15: General Service | C15: 11/12 | D15: =INDEX(ROR!$C$20:$J$20,$A15+1) -> 0.1142182117 | E15: =INDEX(ROR!$C$21:$J$21,$A15+1) -> 1.664574443 | G15: =INDEX(ROR!$C$47:$J$47,$A15+1) -> -0.04999680333 | I15: =INDEX(ROR!$C$38:$J$38,$A15+1) -> 0.1010903986 | J15: =INDEX(ROR!$C$37:$J$37,$A15+1) -> 1.557968121
A16: 3 | B16: Large General Service | C16: 21/22 | D16: =INDEX(ROR!$C$20:$J$20,$A16+1) -> 0.1025865107 | E16: =INDEX(ROR!$C$21:$J$21,$A16+1) -> 1.495058286 | G16: =INDEX(ROR!$C$47:$J$47,$A16+1) -> -0.02145553416 | I16: =INDEX(ROR!$C$38:$J$38,$A16+1) -> 0.09732054728 | J16: =INDEX(ROR!$C$37:$J$37,$A16+1) -> 1.499868557
A17: 4 | B17: Extra Large General Svc. | C17: 25 | D17: =INDEX(ROR!$C$20:$J$20,$A17+1) -> 0.09159877177 | E17: =INDEX(ROR!$C$21:$J$21,$A17+1) -> 1.334926998 | G17: =INDEX(ROR!$C$47:$J$47,$A17+1) -> -0.02289498009 | I17: =INDEX(ROR!$C$38:$J$38,$A17+1) -> 0.085649587 | J17: =INDEX(ROR!$C$37:$J$37,$A17+1) -> 1.32
A18: 5 | B18: Ultra Large General Svc. | C18: 26 | D18: =INDEX(ROR!$C$20:$J$20,$A18+1) -> 0.1104495521 | E18: =INDEX(ROR!$C$21:$J$21,$A18+1) -> 1.609651376 | G18: =INDEX(ROR!$C$47:$J$47,$A18+1) -> -0.05396469972 | I18: =INDEX(ROR!$C$38:$J$38,$A18+1) -> 0.09408477359 | J18: =INDEX(ROR!$C$37:$J$37,$A18+1) -> 1.45
A19: 6 | B19: Pumping Service | C19: 30/31/32 | D19: =INDEX(ROR!$C$20:$J$20,$A19+1) -> 0.05493564261 | E19: =INDEX(ROR!$C$21:$J$21,$A19+1) -> 0.800611963 | G19: =INDEX(ROR!$C$47:$J$47,$A19+1) -> 0 | I19: =INDEX(ROR!$C$38:$J$38,$A19+1) -> 0.05492047071 | J19: =INDEX(ROR!$C$37:$J$37,$A19+1) -> 0.8464141379
A20: 7 | B20: Street & Area Lights | C20: 41-48 | D20: =INDEX(ROR!$C$20:$J$20,$A20+1) -> 0.0609392138 | E20: =INDEX(ROR!$C$21:$J$21,$A20+1) -> 0.8881058137 | G20: =INDEX(ROR!$C$47:$J$47,$A20+1) -> 0 | I20: =INDEX(ROR!$C$38:$J$38,$A20+1) -> 0.06092277191 | J20: =INDEX(ROR!$C$37:$J$37,$A20+1) -> 0.938919401
A21: 8 | B21: Total | D21: =INDEX(ROR!$C$20:$J$20,1) -> 0.06861706439 | E21: =INDEX(ROR!$C$21:$J$21,1) -> 1 | G21: =INDEX(ROR!$C$47:$J$47,1) -> -0.01711489917 | I21: =INDEX(ROR!$C$38:$J$38,1) -> 0.06488605075 | J21: =INDEX(ROR!$C$37:$J$37,1) -> 1

Sheet Exh 3
A1: AVISTA UTILITIES | O1: This worksheet uses Base & Billing rates from 'Rate Design' tab.
A2: WASHINGTON ELECTRIC
A3: PRESENT AND PROPOSED RATE COMPONENTS BY SCHEDULE
F5: General | G5: Sch. 98 | H5: Sch. 93/94 | I5: Proposed | J5: Proposed | K5: Sch. 98 | L5: Sch. 93/94 | M5: Proposed Billing
B6: Base Tariff | C6: Present | D6: Present | E6: Block | F6: Rate | G6: REC Revenue | H6: ERM/BPA | I6: Billing | J6: Base Tariff | K6: REC Revenue | L6: ERM/BPA | M6: Rate With
A7: Type of Service | B7: Sch. Rate | C7: Other Adj.(1) | D7: Billing Rate | E7: Changes | F7: Inc/Dec | G7: Decrease | H7: Increase | I7: Rate | J7: Rate | K7: Decrease | L7: Increase | M7: ERM Decrease (2) | N7: non-printing | Q7: Present | R7: Proposed | S7: Proposed
A8: (a) | B8: (b) | C8: (c) | D8: (d) | F8: (e) | G8: (f) | H8: (g) | I8: (h) | J8: (i) | K8: (h) | L8: (i) | M8: (j) | N8: Base | O8: Billing | Q8: Billing | R8: Base | S8: Billing
A9: Residential Service - Schedule 1
A10: Basic Charge | B10: ='Rate Design'!D4 -> 8 | C10: =D10-B10 -> 0 | D10: ='Rate Design'!D14 -> 8 | F10: =IF(ROUND(I10-D10,5)<>ROUND(J10-B10,5),#VALUE!,J10-B10) -> 0.5 | I10: ='Rate Design'!D36 -> 8.5 | J10: ='Rate Design'!D26 -> 8.5 | M10: =J10 -> 8.5 | N10: =F10/B10 -> 0.0625 | O10: =F10/D10 -> 0.0625
A11: Energy Charge:
A12: ="First "&TEXT('Rate Design'!O5,"#,##0")&" kWhs" -> First 800 kWhs | B12: ='Rate Design'!D5/100 -> 0.07369 | C12: =D12-B12 -> -0.00104 | D12: ='Rate Design'!D15/100 -> 0.07265 | F12: =J12-B12 -> -0.00371 | G12: ='Generation Allocation'!D19 -> -0.001027448187 | H12: =0.00164+0.00083 -> 0.00247 | I12: ='Rate Design'!D37/100 -> 0.07142027448 | J12: ='Rate Design'!D27/100 -> 0.06998 | K12: ='Sch 98 REC Revenue'!D37 -> -0.001038245299 | L12: =0.00164+0.00083 -> 0.00247 | M12: =I12+K12+L12 -> 0.07285202918 | N12: =F12/B12 -> -0.05034604424 | O12: =F12/D12 -> -0.05106675843 | Q12: =B12+C12-D12 -> 0 | R12: =B12+F12-J12 -> 0 | S12: =D12+F12+G12+H12-I12 -> -0.001037722668
A13: =TEXT('Rate Design'!O5,"#,##0")&" - "&TEXT('Rate Design'!O6,"#,##0")&" kWhs" -> 800 - 1,500 kWhs | B13: ='Rate Design'!D6/100 -> 0.08573 | C13: =D13-B13 -> -0.00104 | D13: ='Rate Design'!D16/100 -> 0.08469 | F13: =J13-B13 -> -0.00431 | G13: =G12 -> -0.001027448187 | H13: =0.00164+0.00083 -> 0.00247 | I13: ='Rate Design'!D38/100 -> 0.08286027448 | J13: ='Rate Design'!D28/100 -> 0.08142 | K13: =K12 -> -0.001038245299 | L13: =L12 -> 0.00247 | M13: =I13+K13 -> 0.08182202918 | N13: =F13/B13 -> -0.05027411641 | O13: =F13/D13 -> -0.0508914866 | Q13: =B13+C13-D13 -> 0 | R13: =B13+F13-J13 -> 0 | S13: =D13+F13+G13+H13-I13 -> -0.001037722668
A14: ="All over "&TEXT('Rate Design'!O6,"#,##0")&" kWhs" -> All over 1,500 kWhs | B14: ='Rate Design'!D7/100 -> 0.1005 | C14: =D14-B14 -> -0.00104 | D14: ='Rate Design'!D17/100 -> 0.09946 | F14: 0 | G14: =G12 -> -0.001027448187 | H14: 0.00247 | I14: ='Rate Design'!D39/100 -> 0.1019402745 | J14: ='Rate Design'!D29/100 -> 0.1005 | K14: =K12 -> -0.001038245299 | L14: =L12 -> 0.00247 | M14: =I14+K14 -> 0.1009020292 | N14: =F14/B14 -> 0 | O14: =F14/D14 -> 0 | Q14: 0 | R14: 0 | S14: -0.001037722668
A16: General Services - Schedule 11
A17: Basic Charge | B17: ='Rate Design'!E4 -> 15 | C17: =D17-B17 -> 0 | D17: ='Rate Design'!E14 -> 15 | F17: =IF(ROUND(I17-D17,5)<>ROUND(J17-B17,5),#VALUE!,J17-B17) -> 1 | I17: ='Rate Design'!E36 -> 16 | J17: ='Rate Design'!E26 -> 16 | M17: =J17 -> 16 | N17: =F17/B17 -> 0.06666666667 | O17: =F17/D17 -> 0.06666666667
A18: Energy Charge:
A19: ="First "&TEXT('Rate Design'!P5,"#,##0")&" kWhs" -> First 3,650 kWhs | B19: ='Rate Design'!E5/100 -> 0.11391 | C19: =D19-B19 -> 0.00173 | D19: ='Rate Design'!E15/100 -> 0.11564 | F19: =J19-B19 -> -0.01343 | G19: ='Generation Allocation'!E19 -> -0.00103668027 | H19: =0.00224+0.00069 -> 0.00293 | I19: ='Rate Design'!E37/100 -> 0.1051503668 | J19: ='Rate Design'!E27/100 -> 0.10048 | K19: =K12 -> -0.001038245299 | L19: =L12 -> 0.00247 | M19: =I19+K19 -> 0.1041121215 | N19: =F19/B19 -> -0.1179000966 | O19: =F19/D19 -> -0.116136285 | Q19: 0 | R19: 0 | S19: -0.001047047073
A20: ="All over "&TEXT('Rate Design'!P5,"#,##0")&" kWhs" -> All over 3,650 kWhs | B20: ='Rate Design'!E6/100 -> 0.0837 | C20: =D20-B20 -> 0.00173 | D20: ='Rate Design'!E16/100 -> 0.08543 | F20: =J20-B20 -> -0.00987 | G20: =G19 -> -0.00103668027 | H20: =H19 -> 0.00293 | I20: ='Rate Design'!E38/100 -> 0.0785003668 | J20: ='Rate Design'!E28/100 -> 0.07383 | K20: =K19 -> -0.001038245299 | L20: =L19 -> 0.00247 | M20: =I20+K20 -> 0.0774621215 | N20: =F20/B20 -> -0.117921147 | O20: =F20/D20 -> -0.1155331851 | Q20: 0 | R20: 0 | S20: -0.001047047073
A21: Demand Charge:
A22: =TEXT('Rate Design'!P10,"#,##0")&" kW or less" -> 20 kW or less | B22: no charge | D22: no charge | F22: no charge | I22: no charge | J22: no charge | M22: no charge
A23: ="Over "&TEXT('Rate Design'!P10,"#,##0")&" kW" -> Over 20 kW | B23: ='Rate Design'!E10 -> 6 | C23: =D23-B23 -> 0 | D23: ='Rate Design'!E20 -> 6 | F23: =IF(ROUND(I23-D23,5)<>ROUND(J23-B23,5),#VALUE!,J23-B23) -> 0.25 | I23: ='Rate Design'!E42 -> 6.25 | J23: ='Rate Design'!E32 -> 6.25 | M23: ='Rate Design'!E32 -> 6.25 | N23: =F23/B23 -> 0.04166666667 | O23: =F23/D23 -> 0.04166666667
A24: Primary Voltage Discount | B24: 0.2 | C24: =D24-B24 -> 0 | D24: 0.2 | F24: =IF(ROUND(I24-D24,5)<>ROUND(J24-B24,5),#VALUE!,J24-B24) -> 0 | I24: 0.2 | J24: 0.2 | M24: 0.2 | N24: =F24/B24 -> 0 | O24: =F24/D24 -> 0
A26: Large General Service - Schedule 21
A27: Basic Charge | B27: ='Rate Design'!F4 -> 0 | D27: ='Rate Design'!F14 -> 0 | F27: =IF(ROUND(I27-D27,5)<>ROUND(J27-B27,5),#VALUE!,J27-B27) -> 21 | I27: ='Rate Design'!F36 -> 21 | J27: ='Rate Design'!F26 -> 21
A28: Energy Charge:
A29: ="First "&TEXT('Rate Design'!Q5,"#,##0")&" kWhs" -> First 250,000 kWhs | B29: ='Rate Design'!F5/100 -> 0.07099 | C29: =D29-B29 -> 0.00103 | D29: ='Rate Design'!F15/100 -> 0.07202 | F29: =J29-B29 -> -0.00304 | G29: ='Generation Allocation'!F19 -> -0.00104844233 | H29: =0.00169+0.00078 -> 0.00247 | I29: ='Rate Design'!F37/100 -> 0.07146048442 | J29: ='Rate Design'!F27/100 -> 0.06795 | K29: =K12 -> -0.001038245299 | L29: =L12 -> 0.00247 | M29: =I29+K29 -> 0.07042223912 | N29: =F29/B29 -> -0.04282293281 | O29: =F29/D29 -> -0.04221049708 | Q29: 0 | R29: 0 | S29: -0.001058926754
A30: ="All over "&TEXT('Rate Design'!Q5,"#,##0")&" kWhs" -> All over 250,000 kWhs | B30: ='Rate Design'!F6/100 -> 0.06349 | C30: =D30-B30 -> 0.00103 | D30: ='Rate Design'!F16/100 -> 0.06452 | F30: =J30-B30 -> -0.00272 | G30: =G29 -> -0.00104844233 | H30: =H29 -> 0.00247 | I30: ='Rate Design'!F38/100 -> 0.06428048442 | J30: ='Rate Design'!F28/100 -> 0.06077 | K30: =K29 -> -0.001038245299 | L30: =L29 -> 0.00247 | M30: =I30+K30 -> 0.06324223912 | N30: =F30/B30 -> -0.04284139235 | O30: =F30/D30 -> -0.04215747055 | Q30: 0 | R30: 0 | S30: -0.001058926754
A31: Demand Charge:
A32: =TEXT('Rate Design'!Q10,"#,##0")&" kW or less" -> 50 kW or less | B32: ='Rate Design'!F9 -> 450 | C32: =D32-B32 -> 0 | D32: ='Rate Design'!F19 -> 450 | F32: =IF(ROUND(I32-D32,5)<>ROUND(J32-B32,5),#VALUE!,J32-B32) -> 30 | I32: ='Rate Design'!F41 -> 480 | J32: ='Rate Design'!F31 -> 480 | M32: =J32 -> 480 | N32: =F32/B32 -> 0.06666666667 | O32: =F32/D32 -> 0.06666666667
A33: ="Over "&TEXT('Rate Design'!Q10,"#,##0")&" kW" -> Over 50 kW | B33: ='Rate Design'!F10 -> 6 | C33: =D33-B33 -> 0 | D33: ='Rate Design'!F20 -> 6 | F33: =IF(ROUND(I33-D33,5)<>ROUND(J33-B33,5),#VALUE!,J33-B33) -> 0.25 | I33: ='Rate Design'!F42 -> 6.25 | J33: ='Rate Design'!F32 -> 6.25 | M33: ='Rate Design'!F32 -> 6.25 | N33: =F33/B33 -> 0.04166666667 | O33: =F33/D33 -> 0.04166666667
A34: Primary Voltage Discount | B34: 0.2 | C34: =D34-B34 -> 0 | D34: 0.2 | F34: =IF(ROUND(I34-D34,5)<>ROUND(J34-B34,5),#VALUE!,J34-B34) -> 0 | I34: 0.2 | J34: 0.2 | M34: 0.2 | N34: =F34/B34 -> 0 | O34: =F34/D34 -> 0
A36: Extra Large General Service - Schedule 25 | E36: Two Blocks
A37: Basic Charge | B37: ='Rate Design'!G4 -> 0 | D37: ='Rate Design'!G14 -> 0 | F37: =IF(ROUND(I37-D37,5)<>ROUND(J37-B37,5),#VALUE!,J37-B37) -> 210 | I37: ='Rate Design'!G36 -> 210 | J37: ='Rate Design'!G26 -> 210
A38: Energy Charge:
A39: ="First "&TEXT('Rate Design'!R5,"#,##0")&" kWhs" -> First 500,000 kWhs | B39: ='Rate Design'!G5/100 -> 0.05708 | C39: =D39-B39 -> 0.00042 | D39: ='Rate Design'!G15/100 -> 0.0575 | E39: First 500,000 kWhs | F39: =J39-B39 -> -0.0024 | G39: ='Generation Allocation'!G19 -> -0.001020582695 | H39: =0.00108+0.00072 -> 0.0018 | I39: ='Rate Design'!G37/100 -> 0.05691020583 | J39: ='Rate Design'!G27/100 -> 0.05468 | K39: =K12 -> -0.001038245299 | L39: =L12 -> 0.00247 | M39: =I39+K39 -> 0.05587196053 | N39: =F39/B39 -> -0.04204625088 | O39: =F39/D39 -> -0.04173913043 | Q39: 0 | R39: 0 | S39: -0.001030788521
A40: =TEXT('Rate Design'!R27,"#,##0")&" - "&TEXT('Rate Design'!R28,"#,##0")&" kWhs" -> 500,000 - 6,000,000 kWhs | B40: ='Rate Design'!G6/100 -> 0.05135 | C40: =D40-B40 -> 0.00042 | D40: ='Rate Design'!G16/100 -> 0.05177 | E40: All over 500,000 kWhs | F40: =J40-B40 -> -0.00216 | G40: =G39 -> -0.001020582695 | H40: =H39 -> 0.0018 | I40: ='Rate Design'!G38/100 -> 0.05142020583 | J40: ='Rate Design'!G28/100 -> 0.04919 | K40: =K39 -> -0.001038245299 | L40: =L39 -> 0.00247 | M40: =I40+K40 -> 0.05038196053 | N40: =F40/B40 -> -0.04206426485 | O40: =F40/D40 -> -0.0417230056 | Q40: 0 | R40: 0 | S40: -0.001030788521
A41: ="All over "&TEXT('Rate Design'!R28,"#,##0")&" kWhs" -> All over 6,000,000 kWhs | B41: ='Rate Design'!G7/100 -> 0.04391 | C41: =D41-B41 -> 0.00042 | D41: ='Rate Design'!G17/100 -> 0.04433 | F41: 0.00528 | G41: =G40 -> -0.001020582695 | H41: =H40 -> 0.0018 | I41: ='Rate Design'!G39/100 -> 0.05142020583 | J41: ='Rate Design'!G29/100 -> 0.04919 | K41: =K39 -> -0.001038245299 | L41: =L39 -> 0.00247 | M41: 0.05038196053 | N41: =F41/B41 -> 0.1202459576 | O41: =F41/D41 -> 0.1191066998 | Q41: 0 | R41: 0 | S41: -0.001030788521
A42: Demand Charge:
A43: =TEXT('Rate Design'!R10,"#,##0")&" kva or less" -> 3,000 kva or less | B43: ='Rate Design'!G9 -> 15000 | C43: =D43-B43 -> 0 | D43: ='Rate Design'!G19 -> 15000 | F43: =IF(ROUND(I43-D43,5)<>ROUND(J43-B43,5),#VALUE!,J43-B43) -> 1000 | I43: ='Rate Design'!G41 -> 16000 | J43: ='Rate Design'!G31 -> 16000 | M43: ='Rate Design'!G31 -> 16000 | N43: =F43/B43 -> 0.06666666667 | O43: =F43/D43 -> 0.06666666667
A44: ="Over "&TEXT('Rate Design'!R10,"#,##0")&" kva" -> Over 3,000 kva | B44: ='Rate Design'!G10 -> 5.25 | C44: =D44-B44 -> 0 | D44: ='Rate Design'!G20 -> 5.25 | F44: =IF(ROUND(I44-D44,5)<>ROUND(J44-B44,5),#VALUE!,J44-B44) -> 1 | I44: ='Rate Design'!G42 -> 6.25 | J44: ='Rate Design'!G32 -> 6.25 | M44: ='Rate Design'!G32 -> 6.25 | N44: =F44/B44 -> 0.1904761905 | O44: =F44/D44 -> 0.1904761905
A45: Primary Volt. Discount
A46: 11 - 60 kv | B46: 0.2 | C46: =D46-B46 -> 0 | D46: 0.2 | F46: =IF(ROUND(I46-D46,5)<>ROUND(J46-B46,5),#VALUE!,J46-B46) -> 0 | I46: 0.2 | J46: 0.2 | M46: =J46 -> 0.2 | N46: =F46/B46 -> 0 | O46: =F46/D46 -> 0
A47: 60 - 115 kv | B47: 1.1 | C47: =D47-B47 -> 0 | D47: 1.1 | F47: =IF(ROUND(I47-D47,5)<>ROUND(J47-B47,5),#VALUE!,J47-B47) -> -1.099 | I47: 0.001 | J47: 0.001 | M47: =J47 -> 0.001 | N47: =F47/B47 -> -0.9990909091 | O47: =F47/D47 -> -0.9990909091
A48: 115 or higher kv | B48: 1.4 | C48: =D48-B48 -> 0 | D48: 1.4 | F48: =IF(ROUND(I48-D48,5)<>ROUND(J48-B48,5),#VALUE!,J48-B48) -> -1.399 | I48: 0.001 | J48: 0.001 | M48: 0.001 | N48: =F48/B48 -> -0.9992857143 | O48: =F48/D48 -> -0.9992857143
A49: Annual Minimum | B49: Present: | C49: =6000000*B39+5000000*B40+12*D43 -> 779230 | H49: Proposed: | I49: =6000000*J39+5000000*J40+12*J43+12*J37 -> 768550 | M49: =I49 -> 768550 | N49: =I49/C49-1 -> -0.01370583781
A51: Ultra Large General Service - Schedule 26 | E51: Single Block
A52: Basic Charge | B52: ='Rate Design'!H4 -> 0 | D52: ='Rate Design'!H14 -> 0 | F52: =IF(ROUND(I52-D52,5)<>ROUND(J52-B52,5),#VALUE!,J52-B52) -> 210 | I52: ='Rate Design'!H36 -> 210 | J52: ='Rate Design'!H26 -> 210
A53: Energy Charge:
A54: ="First "&TEXT('Rate Design'!S5,"#,##0")&" kWhs" -> First 500,000 kWhs | B54: ='Rate Design'!H5/100 -> 0.05708 | C54: =D54-B54 -> 0.00042 | D54: ='Rate Design'!H15/100 -> 0.0575 | E54: All kWh's | F54: =J54-B54 -> -0.01764 | G54: ='Generation Allocation'!H19 -> -0.0009918613222 | H54: =0.00108+0.00072 -> 0.0018 | I54: ='Rate Design'!H37/100 -> 0.04166991861 | J54: ='Rate Design'!H27/100 -> 0.03944 | K54: =K28 -> 0 | L54: =L28 -> 0 | M54: =I54+K54 -> 0.04166991861 | N54: =F54/B54 -> -0.3090399439 | O54: =F54/D54 -> -0.3067826087 | Q54: =B54+C54-D54 -> 0 | R54: =B54+F54-J54 -> 0 | S54: =D54+F54+G54+H54-I54 -> -0.001001779935
A55: =TEXT('Rate Design'!S27,"#,##0")&" - "&TEXT('Rate Design'!S28,"#,##0")&" kWhs" -> 500,000 - 6,000,000 kWhs | B55: ='Rate Design'!H6/100 -> 0.05135 | C55: =D55-B55 -> 0.00042 | D55: ='Rate Design'!H16/100 -> 0.05177 | F55: =J55-B55 -> -0.01191 | G55: =G54 -> -0.0009918613222 | H55: =H54 -> 0.0018 | I55: ='Rate Design'!H38/100 -> 0.04166991861 | J55: ='Rate Design'!H28/100 -> 0.03944 | K55: =K54 -> 0 | L55: =L54 -> 0 | M55: =I55+K55 -> 0.04166991861 | N55: =F55/B55 -> -0.2319376826 | O55: =F55/D55 -> -0.230056017 | Q55: 0 | R55: 0 | S55: -0.001001779935
A56: ="All over "&TEXT('Rate Design'!S28,"#,##0")&" kWhs" -> All over 6,000,000 kWhs | B56: ='Rate Design'!H7/100 -> 0.04391 | C56: =D56-B56 -> 0.00042 | D56: ='Rate Design'!H17/100 -> 0.04433 | F56: -0.00447 | G56: =G55 -> -0.0009918613222 | H56: =H55 -> 0.0018 | I56: ='Rate Design'!H39/100 -> 0.04166991861 | J56: ='Rate Design'!H29/100 -> 0.03944 | K56: =K54 -> 0 | L56: =L54 -> 0 | M56: 0.04166991861 | N56: =F56/B56 -> -0.1017991346 | O56: =F56/D56 -> -0.1008346492 | Q56: 0 | R56: 0 | S56: -0.001001779935
A57: Demand Charge:
A58: =TEXT('Rate Design'!S10,"#,##0")&" kva or less" -> 3,000 kva or less | B58: ='Rate Design'!H9 -> 15000 | C58: =D58-B58 -> 0 | D58: ='Rate Design'!H19 -> 15000 | F58: =IF(ROUND(I58-D58,5)<>ROUND(J58-B58,5),#VALUE!,J58-B58) -> 0 | I58: ='Rate Design'!H41 -> 15000 | J58: ='Rate Design'!H31 -> 15000 | M58: ='Rate Design'!G45 -> 0 | N58: =F58/B58 -> 0 | O58: =F58/D58 -> 0
A59: ="Over "&TEXT('Rate Design'!S10,"#,##0")&" kva" -> Over 3,000 kva | B59: ='Rate Design'!H10 -> 5.25 | C59: =D59-B59 -> 0 | D59: ='Rate Design'!H20 -> 5.25 | F59: =IF(ROUND(I59-D59,5)<>ROUND(J59-B59,5),#VALUE!,J59-B59) -> 1 | I59: ='Rate Design'!H42 -> 6.25 | J59: ='Rate Design'!H32 -> 6.25 | M59: ='Rate Design'!G46 -> 0 | N59: =F59/B59 -> 0.1904761905 | O59: =F59/D59 -> 0.1904761905
A60: Primary Volt. Discount
A61: 11 - 60 kv | B61: 0.2 | C61: =D61-B61 -> 0 | D61: 0.2 | F61: =IF(ROUND(I61-D61,5)<>ROUND(J61-B61,5),#VALUE!,J61-B61) -> 0 | I61: 0.2 | J61: 0.2 | M61: =J61 -> 0.2 | N61: =F61/B61 -> 0 | O61: =F61/D61 -> 0
A62: 60 - 115 kv | B62: 1.1 | C62: =D62-B62 -> 0 | D62: 1.1 | F62: =IF(ROUND(I62-D62,5)<>ROUND(J62-B62,5),#VALUE!,J62-B62) -> -1.099 | I62: 0.001 | J62: 0.001 | M62: =J62 -> 0.001 | N62: =F62/B62 -> -0.9990909091 | O62: =F62/D62 -> -0.9990909091
A63: 115 or higher kv | B63: 1.4 | C63: =D63-B63 -> 0 | D63: 1.4 | F63: =IF(ROUND(I63-D63,5)<>ROUND(J63-B63,5),#VALUE!,J63-B63) -> -1.399 | I63: 0.001 | J63: 0.001 | M63: 0.001 | N63: =F63/B63 -> -0.9992857143 | O63: =F63/D63 -> -0.9992857143
A64: Annual Minimum | B64: Present: | C64: =6000000*B54+5000000*B55+12*D58 -> 779230 | H64: Proposed: | I64: =11000000*J54+12*J58+12*J52 -> 616360 | M64: =I64 -> 616360 | N64: =I64/C64-1 -> -0.2090140267
A66: Pumping Service - Schedule 31
A67: Basic Charge | B67: ='Rate Design'!I4 -> 15 | C67: =D67-B67 -> 0 | D67: ='Rate Design'!I14 -> 15 | F67: =IF(ROUND(I67-D67,5)<>ROUND(J67-B67,5),#VALUE!,J67-B67) -> 1 | I67: ='Rate Design'!I36 -> 16 | J67: ='Rate Design'!I26 -> 16 | M67: =J67 -> 16 | N67: =F67/B67 -> 0.06666666667 | O67: =F67/D67 -> 0.06666666667
A68: Energy Charge:
A69: First 165 kW/kWh | B69: ='Rate Design'!I5/100 -> 0.09545 | C69: =D69-B69 -> 0.00087 | D69: ='Rate Design'!I15/100 -> 0.09632 | F69: =J69-B69 -> 0.00187 | G69: ='Generation Allocation'!I19 -> -0.001116953162 | H69: =0.0015+0.00072 -> 0.00222 | I69: ='Rate Design'!I37/100 -> 0.1004211695 | J69: ='Rate Design'!I27/100 -> 0.09732 | K69: =K12 -> -0.001038245299 | L69: =L12 -> 0.00247 | M69: =I69+K69 -> 0.09938292423 | N69: =F69/B69 -> 0.01959140911 | O69: =F69/D69 -> 0.01941445183 | Q69: 0 | R69: 0 | S69: -0.001128122693
A70: All additional kWhs | B70: ='Rate Design'!I6/100 -> 0.06817 | C70: =D70-B70 -> 0.00087 | D70: ='Rate Design'!I16/100 -> 0.06904 | F70: =J70-B70 -> 0.00133 | G70: =G69 -> -0.001116953162 | H70: =H69 -> 0.00222 | I70: ='Rate Design'!I38/100 -> 0.07260116953 | J70: ='Rate Design'!I28/100 -> 0.0695 | K70: =K69 -> -0.001038245299 | L70: =L69 -> 0.00247 | M70: =I70+K70 -> 0.07156292423 | N70: =F70/B70 -> 0.01951004841 | O70: =F70/D70 -> 0.01926419467 | Q70: 0 | R70: 0 | S70: -0.001128122693
A71: Demand Charge:
A72: =TEXT('Rate Design'!P59,"#,##0")&" kW or less" -> 0 kW or less | B72: no charge | D72: no charge | F72: no charge | I72: no charge | J72: no charge | M72: no charge
A73: ="Over "&TEXT('Rate Design'!P59,"#,##0")&" kW" -> Over 0 kW | B73: ='Rate Design'!I10 -> 0 | C73: =D73-B73 -> 0 | D73: ='Rate Design'!I20 -> 0 | F73: =IF(ROUND(I73-D73,5)<>ROUND(J73-B73,5),#VALUE!,J73-B73) -> 0 | I73: ='Rate Design'!I42 -> 0 | J73: ='Rate Design'!I32 -> 0 | M73: ='Rate Design'!E81 -> 0
A74: Primary Voltage Discount | B74: 0.2 | C74: =D74-B74 -> 0 | D74: 0.2 | F74: =IF(ROUND(I74-D74,5)<>ROUND(J74-B74,5),#VALUE!,J74-B74) -> 0 | I74: 0.2 | J74: 0.2 | M74: 0.2 | N74: =F74/B74 -> 0 | O74: =F74/D74 -> 0
A76: (1) Includes all present rate adjustments: Sch. 59 (BPA Residential Exchange), Sch. 91 (Public Purpose Rider Adjustment), Sch. 93 (Energy Recovery Mechanism) and Sch 94 (BPA Transmission Revenue)

Sheet Sch 98 REC Revenue (hidden)
A1: AVISTA UTILITIES
A2: WASHINGTON ELECTRIC
A3: PROPOSED REC REVENUE DECREASE BY SERVICE SCHEDULE
A4: 12 MONTHS ENDED JUNE 30, 2013
A5: (000s of Dollars)
F9: Billing | H9: REC
D10: kWh Rate | F10: Determinants | H10: Revenue
A11: 1 | B11: Residential | C11: 1 | D11: =D37 -> -0.001038245299 | F11: ='Pres & Prop Rev'!D46 -> 2432799212 | H11: =D11*F11 -> -2525842.345
A13: 2 | B13: General Service | C13: 11/12 | D13: =D37 -> -0.001038245299 | F13: ='Pres & Prop Rev'!E46 -> 586899997 | H13: =D13*F13 -> -609346.1627
A15: 3 | B15: Large General Service | C15: 21/22 | D15: =D37 -> -0.001038245299 | F15: ='Pres & Prop Rev'!F46 -> 1430555970 | H15: -1485268.011
A17: 4 | B17: Extra Large General Service | C17: 25 | D17: =D37 -> -0.001038245299 | F17: ='Pres & Prop Rev'!G46 -> 596283784.7 | H17: -619088.8363
A19: 5 | B19: Ultra Large General Service | C19: 26 | D19: =D37 -> -0.001038245299 | F19: ='Pres & Prop Rev'!H23 -> 479842850.5 | H19: =D19*F19 -> -498194.5837
A21: 6 | B21: Pumping Service | C21: 30/31/32 | D21: =D37 -> -0.001038245299 | F21: ='Pres & Prop Rev'!I46 -> 128672919 | H21: -133594.0532
A23: 7 | B23: Street & Area Lights | C23: 41-48 | D23: =D37 -> -0.001038245299 | F23: ='Pres & Prop Rev'!J46 -> 25328044 | H23: ='Generation Allocation'!J9 -> -26341.16576
A25: 8 | B25: Total | F25: =SUM(F11:F24) -> 5680382777 | H25: =SUM(H11:H24) -> -5897675.157
B31: Rate Calculation
B33: REC Revenue Available for Refund | D33: -7841726
B35: Total kWh's | D35: 8347293890
B37: Sch 98 Per kWh Rate | D37: ='Generation Allocation'!J19 -> -0.001038245299
B39: * From Johnson Exhibit

Sheet Rebate (hidden)
A1: REC Revenue Rebate Calculation
A2: REC Revenue and Expenses, 2012 through June 2016.
A3: Washington Allocation
C6: Projected | D6: Projected | E6: REC Revenue | F6: REC Expense | J6: Net REC
C7: REC | D7: REC | E7: In Base | F7: In Base | G7: Net REC | H7: Interest | I7: Estimated | J7: Revenue
C8: Revenue | D8: Expenses | E8: Rates | F8: Rates | G8: Revenue | H8: Rate | I8: Interest | J8: Balance
A10: 2012 - 2013 | C10: This is the REC revenue balance including interest as of 12-31-13. | J10: =1606948-36510-36955 -> 1533483
A12: 2014 | C12: ='[5]REC Revenue'!G12*0.6524+'[5]REC Revenue'!G24 -> 5677807.398 | D12: ='[5]REC Revenue'!G19*0.6524+'[5]REC Revenue'!G25 -> 770668 | E12: ='[5]REC Revenue'!G29 -> 3410297 | F12: ='[5]REC Revenue'!G31 -> 882335 | G12: =(C12-D12)-(E12-F12) -> 2379177.398 | H12: 0.0556 | I12: =(J10+G12/2)*0.0556 -> 151402.7865 | J12: =J10+G12+I12 -> 4064063.184
A14: 2015 | C14: ='[5]REC Revenue'!N12*0.6501+'[5]REC Revenue'!N24 -> 3044586.266 | D14: 45507 | E14: 0 | F14: 0 | G14: =(C14-D14)-(E14-F14) -> 2999079.266 | H14: 0.056885 | I14: =(J12+G14/2)*0.056885 -> 316485.5462 | J14: =J12+G14+I14 -> 7379627.996
A16: Jan 1 - Jun 30 2016 | C16: ='[5]REC Revenue'!U12*0.6501 -> 650100 | D16: ='[5]REC Revenue'!U19/2*0.6501 -> 22753.5 | E16: 0 | F16: 0 | G16: =(C16-D16)-(E16-F16) -> 627346.5 | H16: 0.056885 | I16: =(J14+G16/2)*0.0284425 -> 218816.7207 | J16: =J14+G16+I16 -> 8225791.217
A18: Total | J18: =-J16 -> -8225791.217
H19: Revenue Gross-up Factor | J19: =1/(1-0.045011) -> 1.04713248
H21: Revenue Requirement | J21: =J18*J19 -> -8613493.157

Sheet Generation Allocation (hidden)
C1: REC Revenues Rebate Allocation - Generation Level Consumption
H3: NEW
D4: RESIDENTIAL | E4: GENERAL SVC. | F4: LG. GEN. SVC. | G4: EX LG GEN SVC | H4: ULT LG GEN SVC | I4: PUMPING | J4: ST & AREA LTG
B5: DESCRIPTION | C5: TOTAL | D5: SCHEDULE 1 | E5: SCH. 11,12 | F5: SCH. 21,22 | G5: SCHEDULE 25 | H5: SCHEDULE 26 | I5: SCH. 30, 31, 32 | J5: SCH. 41-48
A6: Line No. | B6: A | C6: B | D6: C | E6: D | F6: E | G6: F | H6: G | I6: H | J6: I | K6: J
A7: 1 | B7: Generation Allocated
A8: =A7+1 -> 2 | B8: Total Generation Percentage | C8: =SUM(D8:J8) -> 1 | D8: 0.425053686 | E8: 0.1007244451 | F8: 0.2568153588 | G8: 0.1060460381 | H8: 0.08293602803 | I8: 0.0237896602 | J8: 0.004634783732 | K8: (1)
A9: 3 | B9: 2015 Rebate Amount | C9: =SUM(D9:J9) -> -5881707.854 | D9: =D10*D11 -> -2510633.309 | E9: -609553.8093 | F9: -1508646.805 | G9: -608209.4604 | H9: -475044.422 | I9: -143278.8829 | J9: -26341.16576
A10: 4 | B10: Annual Load (Rate Year) | C10: =SUM(D10:J10) -> 5689806233 | D10: 2437508067 | E10: 586109432 | F10: 1436806481 | G10: 596283784.7 | H10: 479842850.5 | I10: 127927574 | J10: 25328044 | K10: (2)
A11: 5 | B11: Cents Per kWh Rate | D11: =ROUND(D19,5) -> -0.00103 | E11: -0.00104 | F11: -0.00105 | G11: -0.00102 | H11: -0.00099 | I11: -0.00112 | J11: -0.00104
A12: 6 | B12: Total Bills | C12: =SUM(D12:J12) -> 2922458 | D12: 2494197 | E12: 369788 | F12: 24074 | G12: 241 | H12: 12 | I12: 34146
A13: 7 | B13: Avg Monthly Credit Per Customer | D13: =(D10/D12)*D11 -> -1.00658982 | E13: -1.648387209 | F13: -62.66706011 | G13: -2523.690707 | H13: -39587.03517 | I13: -4.196066388
A14: 8 | B14: Avg Annual Credit Per Customer | D14: =(D10/(D12/12))*D11 -> -12.07907784 | E14: -19.78064651 | F14: -752.0047213 | G14: -30284.28849 | H14: -475044.422 | I14: -50.35279665
A15: 9
A16: 10 | B16: Rate Calculation
A17: 11 | B17: 18-mo Rebate Amt | C17: =SUM(D17:J17) -> -8613493.157 | D17: =D8*Rebate!$J$21 -> -3661197.015 | E17: =E8*Rebate!$J$21 -> -867589.3189 | F17: =F8*Rebate!$J$21 -> -2212077.336 | G17: =G8*Rebate!$J$21 -> -913426.8237 | H17: =H8*Rebate!$J$21 -> -714368.9099 | I17: =I8*Rebate!$J$21 -> -204912.0753 | J17: =J8*Rebate!$J$21 -> -39921.67796
A18: 12 | B18: Load Forecast (18 Months) | C18: =SUM(D18:J18) -> 8347293891 | D18: 3563388464 | E18: 836891898 | F18: 2109870302 | G18: 895005205 | H18: 720230635 | I18: 183456283 | J18: 38451104
A19: 13 | B19: Cents Per kWh Rate | D19: =D17/D18 -> -0.001027448187 | E19: -0.00103668027 | F19: -0.00104844233 | G19: -0.001020582695 | H19: -0.0009918613222 | I19: -0.001116953162 | J19: -0.001038245299
A22: (1) | B22: E02 Allocator (Generation Level Consumption)
A23: (2) | B23: 2015 loads updated per Avista Response to Staff Data Request 24, Supplemental Attachment A

Sheet Rate Design (hidden)
A1: PRESENT RATES | D1: 1 | E1: 2 | F1: 3 | G1: 4 | H1: 5 | I1: 6 | J1: 7 | O1: Tiers - used for bill comparisons
C2: TOTAL | D2: SCH. 1 | E2: SCH. 11,12 | F2: SCH. 21,22 | G2: SCH. 25 | H2: SCH. 26 | I2: SCH. 30, 31, 32 | M2: Range Name | O2: SCHEDULE 1 | P2: SCH. 11,12 | Q2: SCH. 21,22 | R2: SCHEDULE 25 | S2: SCHEDULE 26 | T2: SCH. 30, 31, 32
B3: Base Tariff Rates
A4: 1 | B4: BASIC CHARGE | D4: 8 | E4: 15 | F4: 0 | G4: 0 | H4: 0 | I4: 15
A5: 2 | B5: BLOCK 1 PER KWH | D5: =7.133+0.236 -> 7.369 | E5: =11.031+0.36 -> 11.391 | F5: =6.878+0.221 -> 7.099 | G5: =5.539+0.169 -> 5.708 | H5: =5.539+0.169 -> 5.708 | I5: =9.253+0.292 -> 9.545 | O5: 800 | P5: 3650 | Q5: 250000 | R5: 500000 | S5: 500000
A6: 3 | B6: BLOCK 2 PER KWH | D6: =8.299+0.274 -> 8.573 | E6: =8.105+0.265 -> 8.37 | F6: =6.15+0.199 -> 6.349 | G6: =4.983+0.152 -> 5.135 | H6: =4.983+0.152 -> 5.135 | I6: =6.609+0.208 -> 6.817 | O6: 1500 | P6: 9999999 | Q6: 9999999 | R6: 9999999 | S6: 9999999
A7: 4 | B7: BLOCK 3 PER KWH | D7: =9.728+0.322 -> 10.05 | E7: 0 | F7: 0 | G7: 4.391 | H7: 4.391 | I7: 0 | M7: Rates_Base_Present | O7: 9999999 | P7: 9999999 | Q7: 9999999 | R7: 9999999 | S7: 9999999
A8: 5 | B8: BLOCK 4 PER KWH
A9: 6 | B9: DEMAND CHARGE | D9: 0 | E9: 0 | F9: 450 | G9: 15000 | H9: 15000 | I9: 0
A10: 7 | B10: DEMAND BLOCK 1 | D10: 0 | E10: 6 | F10: 6 | G10: 5.25 | H10: 5.25 | I10: 0 | O10: 0 | P10: 20 | Q10: 50 | R10: 3000 | S10: 3000 | T10: 0
B12: Billing Rates | D12: =IF(D13<>'Pres & Prop Rev'!D$5,#VALUE!,"") ->  | E12: =IF(E13<>'Pres & Prop Rev'!E$5,#VALUE!,"") ->  | F12: =IF(F13<>'Pres & Prop Rev'!F$5,#VALUE!,"") ->  | G12: =IF(G13<>'Pres & Prop Rev'!G$5,#VALUE!,"") ->  | H12: =IF(H13<>'Pres & Prop Rev'!H$5,#VALUE!,"") ->  | I12: =IF(I13<>'Pres & Prop Rev'!I$5,#VALUE!,"") -> 
D13: SCHEDULE 1 | E13: SCH. 11,12 | F13: SCH. 21,22 | G13: SCHEDULE 25 | H13: SCHEDULE 26 | I13: SCH. 30, 31, 32
A14: 1 | B14: BASIC CHARGE | D14: =D4 -> 8 | E14: 15 | F14: 0 | G14: 0 | H14: 0 | I14: 15
A15: 2 | B15: BLOCK 1 PER KWH | D15: =D5-0.195+0.338-0.164-0.083 -> 7.265 | E15: =E5+0.466-0.224-0.069 -> 11.564 | F15: =F5+0.35-0.169-0.078 -> 7.202 | G15: =G5+0.222-0.108-0.072 -> 5.75 | H15: 5.75 | I15: =I5+0.309-0.15-0.072 -> 9.632 | O15: =O5 -> 800 | P15: =P5 -> 3650 | Q15: =Q5 -> 250000 | R15: =R5 -> 500000 | S15: =S5 -> 500000
A16: 3 | B16: BLOCK 2 PER KWH | D16: =D6-0.195+0.338-0.164-0.083 -> 8.469 | E16: =E6+0.466-0.224-0.069 -> 8.543 | F16: =F6+0.35-0.169-0.078 -> 6.452 | G16: 5.177 | H16: 5.177 | I16: =I6+0.309-0.15-0.072 -> 6.904 | O16: =O6 -> 1500 | P16: 9999999 | Q16: 9999999 | R16: 9999999 | S16: =S6 -> 9999999
A17: 4 | B17: BLOCK 3 PER KWH | D17: =D7-0.195+0.338-0.164-0.083 -> 9.946 | G17: 4.433 | H17: 4.433 | M17: Rates_Billing_Present | O17: 9999999 | P17: 9999999 | Q17: 9999999 | R17: 9999999 | S17: =S7 -> 9999999
A18: 5 | B18: BLOCK 4 PER KWH
A19: 6 | B19: DEMAND CHARGE | D19: =D9 -> 0 | E19: 0 | F19: =F9 -> 450 | G19: 15000 | H19: 15000 | I19: =I9 -> 0
A20: 7 | B20: DEMAND BLOCK 1 | D20: =D10 -> 0 | E20: 6 | F20: 6 | G20: 5.25 | H20: 5.25 | I20: =I10 -> 0 | O20: =O10 -> 0 | P20: =P10 -> 20 | Q20: =Q10 -> 50 | R20: =R10 -> 3000 | S20: =S10 -> 3000
A22: PROPOSED RATES
B24: Base Tariff Rates | D24: =IF(D25<>'Pres & Prop Rev'!D$5,#VALUE!,"") ->  | E24: =IF(E25<>'Pres & Prop Rev'!E$5,#VALUE!,"") ->  | F24: =IF(F25<>'Pres & Prop Rev'!F$5,#VALUE!,"") ->  | G24: =IF(G25<>'Pres & Prop Rev'!G$5,#VALUE!,"") ->  | H24: =IF(H25<>'Pres & Prop Rev'!H$5,#VALUE!,"") ->  | I24: =IF(I25<>'Pres & Prop Rev'!I$5,#VALUE!,"") -> 
D25: SCHEDULE 1 | E25: SCH. 11,12 | F25: SCH. 21,22 | G25: SCHEDULE 25 | H25: SCHEDULE 26 | I25: SCH. 30, 31, 32 | V25: Rounding
A26: 1 | B26: BASIC CHARGE | D26: =ROUND(D62,$V26) -> 8.5 | E26: 16 | F26: 21 | G26: 210 | H26: 210 | I26: 16 | V26: 2 | W26: 2
A27: 2 | B27: BLOCK 1 PER KWH | D27: =ROUND(D85,$V27) -> 6.998 | E27: 10.048 | F27: 6.795 | G27: 5.468 | H27: 3.944 | I27: 9.732 | O27: 800 | P27: 3650 | Q27: 250000 | R27: 500000 | S27: 500000 | V27: 3 | W27: 3
A28: 3 | B28: BLOCK 2 PER KWH | D28: 8.142 | E28: 7.383 | F28: 6.077 | G28: 4.919 | H28: 3.944 | I28: 6.95 | O28: 1500 | P28: 9999999 | Q28: 9999999 | R28: 6000000 | S28: 6000000 | V28: 3 | W28: 3
A29: 4 | B29: BLOCK 3 PER KWH | D29: 10.05 | E29: 0 | F29: 0 | G29: =G28 -> 4.919 | H29: =H28 -> 3.944 | I29: 0 | M29: Rates_Base_Proposed | O29: 9999999 | P29: 9999999 | Q29: 9999999 | R29: 99999999 | S29: 99999999 | V29: 3 | W29: 3
A30: 5 | B30: BLOCK 4 PER KWH | V30: 3 | W30: 3
A31: 6 | B31: DEMAND CHARGE | D31: =ROUND(D66,$V31) -> 0 | E31: 0 | F31: 480 | G31: 16000 | H31: 15000 | I31: 0 | V31: 2 | W31: 2
A32: 7 | B32: DEMAND BLOCK 1 | D32: =ROUND(D69,$V32) -> 0 | E32: 6.25 | F32: 6.25 | G32: 6.25 | H32: 6.25 | I32: 0 | O32: 0 | P32: 20 | Q32: 50 | R32: 3000 | S32: 3000 | V32: 2 | W32: 2
B34: Billing Rates | D34: =IF(D35<>'Pres & Prop Rev'!D$5,#VALUE!,"") ->  | E34: =IF(E35<>'Pres & Prop Rev'!E$5,#VALUE!,"") ->  | F34: =IF(F35<>'Pres & Prop Rev'!F$5,#VALUE!,"") ->  | G34: =IF(G35<>'Pres & Prop Rev'!G$5,#VALUE!,"") ->  | H34: =IF(H35<>'Pres & Prop Rev'!H$5,#VALUE!,"") ->  | I34: =IF(I35<>'Pres & Prop Rev'!I$5,#VALUE!,"") -> 
D35: SCHEDULE 1 | E35: SCH. 11,12 | F35: SCH. 21,22 | G35: SCHEDULE 25 | H35: SCHEDULE 26 | I35: SCH. 30, 31, 32 | U35: LIRAP/DSM increase
A36: 1 | B36: BASIC CHARGE | D36: =D26 -> 8.5 | E36: 16 | F36: 21 | G36: 210 | H36: 210 | I36: 16 | U36: 1 | V36: 11 | W36: 21 | X36: 25 | Y36: 31
A37: 2 | B37: BLOCK 1 PER KWH | D37: =D27-0.195+0.338-'Generation Allocation'!$D$19 -> 7.142027448 | E37: =E27+0.466-'Generation Allocation'!$E$19 -> 10.51503668 | F37: =F27+0.35-'Generation Allocation'!$F$19 -> 7.146048442 | G37: =G27+0.222-'Generation Allocation'!$G$19 -> 5.691020583 | H37: =H27+0.222-'Generation Allocation'!$H$19 -> 4.166991861 | I37: =I27+0.309-'Generation Allocation'!$I$19 -> 10.04211695 | O37: =O27 -> 800 | P37: 3650 | Q37: 250000 | R37: 500000 | S37: =S27 -> 500000 | U37: 0 | V37: 0 | W37: 0 | X37: 0 | Y37: 0
A38: 3 | B38: BLOCK 2 PER KWH | D38: =D28-0.195+0.338-'Generation Allocation'!$D$19 -> 8.286027448 | E38: =E28+0.466-'Generation Allocation'!$E$19 -> 7.85003668 | F38: =F28+0.35-'Generation Allocation'!$F$19 -> 6.428048442 | G38: =G28+0.222-'Generation Allocation'!$G$19 -> 5.142020583 | H38: =H28+0.222-'Generation Allocation'!$H$19 -> 4.166991861 | I38: =I28+0.309-'Generation Allocation'!$I$19 -> 7.260116953 | O38: 1500 | P38: 9999999 | Q38: 9999999 | R38: 6000000 | S38: =S28 -> 6000000 | U38: =U$37 -> 0 | V38: =V$37 -> 0 | W38: =W$37 -> 0 | X38: =X$37 -> 0 | Y38: =Y$37 -> 0
A39: 4 | B39: BLOCK 3 PER KWH | D39: =D29-0.195+0.338-'Generation Allocation'!$D$19 -> 10.19402745 | G39: =G29+0.222-'Generation Allocation'!$G$19 -> 5.142020583 | H39: =H29+0.222-'Generation Allocation'!$H$19 -> 4.166991861 | M39: Rates_Billing_Proposed | O39: 9999999 | P39: 9999999 | Q39: 9999999 | R39: 99999999 | S39: =S29 -> 99999999 | U39: =U$37 -> 0 | V39: 0 | W39: 0 | X39: 0 | Y39: 0
A40: 5 | B40: BLOCK 4 PER KWH | U40: 0 | V40: 0 | W40: 0 | X40: 0 | Y40: 0
A41: 6 | B41: DEMAND CHARGE | D41: =D31 -> 0 | E41: 0 | F41: =F31 -> 480 | G41: 16000 | H41: 15000 | I41: =I31 -> 0
A42: 7 | B42: DEMAND BLOCK 1 | D42: =D32 -> 0 | E42: 6.25 | F42: 6.25 | G42: 6.25 | H42: 6.25 | I42: =I32 -> 0 | O42: =O32 -> 0 | P42: =P32 -> 20 | Q42: =Q32 -> 50 | R42: =R32 -> 3000 | S42: =S32 -> 3000
D45: 0 | E45: 0) ERM=0; 1) ERM as is
B47: Proposed Rate Workup - from Pres & Prop Rev tab
B49: KILOWATT HOURS (KWHS)
B50: BLOCK 1 | C50: =SUM(D50:I50) -> 3525343932 | D50: ='Pres & Prop Rev'!D31 -> 1592525923 | E50: ='Pres & Prop Rev'!E31 -> 420252327.2 | F50: ='Pres & Prop Rev'!F31 -> 1271405693 | G50: ='Pres & Prop Rev'!G31 -> 119425698.9 | H50: ='Pres & Prop Rev'!H31 -> 72000000 | I50: ='Pres & Prop Rev'!I31 -> 49734289.52
B51: BLOCK 2 | C51: =SUM(D51:I51) -> 1818954915 | D51: ='Pres & Prop Rev'!D32 -> 524802801.5 | E51: ='Pres & Prop Rev'!E32 -> 165857104.8 | F51: ='Pres & Prop Rev'!F32 -> 165400787.5 | G51: ='Pres & Prop Rev'!G32 -> 476858085.8 | H51: ='Pres & Prop Rev'!H32 -> 407842850.5 | I51: ='Pres & Prop Rev'!I32 -> 78193284.48
B52: BLOCK 3 | C52: =SUM(D52:I52) -> 320179342.9 | D52: ='Pres & Prop Rev'!D33 -> 320179342.9 | E52: ='Pres & Prop Rev'!E33 -> 0 | F52: ='Pres & Prop Rev'!F33 -> 0 | G52: ='Pres & Prop Rev'!G33 -> 0 | H52: ='Pres & Prop Rev'!H33 -> 0 | I52: ='Pres & Prop Rev'!I33 -> 0
B53: ADJ. TO ACTUAL/EE ADJ | C53: =SUM(D53:I53) -> 0 | D53: ='Pres & Prop Rev'!D41+'Pres & Prop Rev'!D38 -> 0 | E53: ='Pres & Prop Rev'!E41+'Pres & Prop Rev'!E38 -> 0 | F53: ='Pres & Prop Rev'!F41+'Pres & Prop Rev'!F38 -> 0 | G53: ='Pres & Prop Rev'!G41+'Pres & Prop Rev'!G38 -> 0 | H53: ='Pres & Prop Rev'!H41+'Pres & Prop Rev'!H38 -> 0 | I53: ='Pres & Prop Rev'!I41+'Pres & Prop Rev'!I38 -> 0
B54: WEATHER & U/B KWHS | C54: =SUM(D54:I54) -> -9423456 | D54: ='Pres & Prop Rev'!D44 -> -4708855 | E54: ='Pres & Prop Rev'!E44 -> 790565 | F54: ='Pres & Prop Rev'!F44 -> -6250511 | G54: ='Pres & Prop Rev'!G44 -> 0 | H54: ='Pres & Prop Rev'!H44 -> 0 | I54: ='Pres & Prop Rev'!I44 -> 745345
B55: TOTAL PROFORMA KWHS | C55: =IF(ROUND(SUM(D55:J55),3)<>ROUND(SUM(C50:C54),3),#VALUE!,SUM(D55:J55)) -> 5655054733 | D55: =SUM(D50:D54) -> 2432799212 | E55: 586899997 | F55: 1430555970 | G55: 596283784.7 | H55: 479842850.5 | I55: 128672919
B56: TOTAL BILLS | D56: ='Pres & Prop Rev'!D48 -> 2494197 | E56: ='Pres & Prop Rev'!E48 -> 369788 | F56: ='Pres & Prop Rev'!F48 -> 24074 | G56: ='Pres & Prop Rev'!G48 -> 241 | H56: ='Pres & Prop Rev'!H48 -> 12 | I56: ='Pres & Prop Rev'!I48 -> 29462.32367
B57: EXCESS DEMAND | D57: ='Pres & Prop Rev'!D50 -> 0 | E57: ='Pres & Prop Rev'!E50 -> 364641 | F57: ='Pres & Prop Rev'!F50 -> 2697553 | G57: ='Pres & Prop Rev'!G50 -> 513017.6616 | H57: ='Pres & Prop Rev'!H50 -> 655055.3384 | I57: ='Pres & Prop Rev'!I50 -> 10292
K58: Proposed rates: | L58: Formulas to copy
B59: Proposed Revenue | C59: =SUM(D59:J59) -> 465824000 | D59: =ROR!D46 -> 207184000 | E59: =ROR!E46 -> 62761011.18 | F59: =ROR!F46 -> 124993398.8 | G59: =ROR!G46 -> 36874966.35 | H59: =ROR!H46 -> 23199623.67 | I59: =ROR!I46 -> 10811000 | K59: same as current | L59: FLOOR | M59: CEILING | N59: OTHER
B60: Targeted Rate Increase | C60: =ROR!C47 -> -0.01711489917 | D60: =ROR!D47 -> 0 | E60: =ROR!E47 -> -0.04999680333 | F60: =ROR!F47 -> -0.02145553416 | G60: =ROR!G47 -> -0.02289498009 | H60: =ROR!H47 -> -0.05396469972 | I60: =ROR!I47 -> 0 | K60: diff than current
B61: Present Basic Charge | D61: =D4 -> 8 | E61: 15 | F61: 0 | G61: 0 | H61: 0 | I61: 15
B62: BASIC CHARGE | D62: 8.5 | E62: 16 | F62: 21 | G62: =H62 -> 210 | H62: 210 | I62: =E62 -> 16 | L62: =FLOOR(L61*(1+L$60),$L63) -> 0 | M62: =CEILING(M61*(1+M$60),$M63) -> 0 | N62: =N61*(1+N$60) -> 0
B63: % D in Basic Charge | D63: =IF(D61,D62/D61-1,0) -> 0.0625 | E63: =IF(E61,E62/E61-1,0) -> 0.06666666667 | F63: 0 | G63: 0 | H63: 0 | I63: =IF(I61,I62/I61-1,0) -> 0.06666666667 | L63: 0.05 | M63: 0.05
B64: Basic Charge Revenue | C64: =SUM(D64:J64) -> 28147363.68 | D64: =D56*D62 -> 21200674.5 | E64: 5916608 | F64: 505554 | G64: 50610 | H64: 2520 | I64: 471397.1787
B65: Present Demand Block 1 | D65: =D9 -> 0 | E65: 0 | F65: 450 | G65: 15000 | H65: 15000 | I65: 0
B66: DEMAND BLOCK 1 | D66: 0 | E66: 0 | F66: =(F65*E63)+F65 -> 480 | G66: =(G65*F67)+G65 -> 16000 | H66: 15000 | I66: 0 | L66: =FLOOR(L65*(1+L$60),$L67) -> 0 | M66: =CEILING(M65*(1+M$60),$M67) -> 0 | N66: =N65*(1+N$60) -> 0
B67: % D in Demand Block 1 | D67: =IF(D65,D66/D65-1,0) -> 0 | E67: 0 | F67: 0.06666666667 | G67: 0.06666666667 | H67: 0 | I67: 0 | L67: 5 | M67: 10
B68: Present Demand Block 2 | D68: =D10 -> 0 | E68: 6 | F68: 6 | G68: 5.25 | H68: 5.25 | I68: 0
B69: DEMAND BLOCK 2 | D69: 0 | E69: 6.25 | F69: =E69 -> 6.25 | G69: =F69 -> 6.25 | H69: =G69 -> 6.25 | I69: 0 | L69: =FLOOR(L68*(1+L$60),$L70) -> 0 | M69: =CEILING(M68*(1+M$60),$M70) -> 0 | N69: =N68*(1+N$60) -> 0
B70: % D in Demand Block 2 | E70: =IF(E68,E69/E68-1,0) -> 0.04166666667 | F70: 0.04166666667 | G70: 0.1904761905 | H70: 0.1904761905 | I70: 0 | L70: 0.05 | M70: 0.05
B71: Demand Revenue | C71: =SUM(D71:J71) -> 42030688.75 | D71: =D56*D66+D57*D69 -> 0 | E71: 2279006.25 | F71: 28415226.25 | G71: 7062360.385 | H71: =H56*H66+H57*H69 -> 4274095.865 | I71: =I56*I66+I57*I69 -> 0
B72: Pwr Fctr/Prim Voltg Disc | C72: =SUM(D72:J72) -> -162502 | E72: ='Pres & Prop Rev'!E172+'Pres & Prop Rev'!E173 -> 5084 | F72: ='Pres & Prop Rev'!F172+'Pres & Prop Rev'!F173 -> 53949 | G72: ='Pres & Prop Rev'!G172+'Pres & Prop Rev'!G173 -> -226681 | H72: ='Pres & Prop Rev'!H172+'Pres & Prop Rev'!H173 -> 0 | I72: ='Pres & Prop Rev'!I172+'Pres & Prop Rev'!I173 -> 5146
B74: Present Block 1 Base Rate | D74: =D5 -> 7.369 | E74: 11.391 | F74: 7.099 | G74: 5.708 | H74: 5.708 | I74: 9.545
B75: Present Block 2 Base Rate | D75: =D6 -> 8.573 | E75: 8.37 | F75: 6.349 | G75: 5.135 | H75: =H6 -> 5.135 | I75: 6.817
B76: Present Block 3 Base Rate | D76: 10.05 | E76: 0 | F76: 0 | G76: 4.391 | H76: =H7 -> 4.391 | I76: 0
B78: 1) Flat Rate Increase | D78: 1 | E78: 1 | F78: 1 | G78: 1 | H78: 1 | I78: 1
B79: 2) % Rate Increase | D79: -0.05033579082 | E79: -0.1179045664 | F79: -0.04287645837 | G79: -0.042001866 | H79: -0.3091127538 | I79: 0.01955032837 | N79: =N$60 -> 0
B80: Method ---> | D80: 2 | E80: 2 | F80: 2 | G80: 2 | H80: 2 | I80: 2
A82: Calculated | B82: BLOCK 1 PER KWH | D82: =CHOOSE(D$80,D74+D$78,D74*(1+D$79)) -> 6.998075557 | E82: =CHOOSE(E$80,E74+E$78,E74*(1+E$79)) -> 10.04794908 | F82: =CHOOSE(F$80,F74+F$78,F74*(1+F$79)) -> 6.794620022 | G82: =CHOOSE(G$80,G74+G$78,G74*(1+G$79)) -> 5.468253349 | H82: =CHOOSE(H$80,H74+H$78,H74*(1+H$79)) -> 3.943584401 | I82: =CHOOSE(I$80,I74+I$78,I74*(1+I$79)) -> 9.731607884 | T82: 3rd Block
B83: BLOCK 2 PER KWH | D83: 8.141471265 | E83: 7.383138779 | F83: 6.076777366 | G83: =CHOOSE(G$80,G75+G$78,G75*(1+G$79)) -> 4.919320418 | H83: =H82 -> 3.943584401 | I83: 6.950274589 | N83: =0.75*N82 -> 0 | S83: =D82-$D$82 -> 0 | T83: Current
B84: BLOCK 3 PER KWH | D84: =IF(T83="Current",D76,CHOOSE(D$80,D76+D$78,D76*(1+D$79))) -> 10.05 | E84: 0 | F84: 0 | G84: =G83 -> 4.919320418 | H84: =H83 -> 3.943584401 | I84: 0 | S84: =D83-$D$82 -> 1.143395708
A85: Input | B85: BLOCK 1 PER KWH | D85: =D82 -> 6.998075557 | E85: =E82 -> 10.04794908 | F85: 6.794620022 | G85: =G82 -> 5.468253349 | H85: =H82 -> 3.943584401 | I85: =I82 -> 9.731607884 | N85: =N82 -> 0 | S85: 3.051924443 | T85: =S85-S84 -> 1.908528735
B86: BLOCK 2 PER KWH | D86: =D83+0.001 -> 8.142471265 | E86: 7.383138779 | F86: 6.076777366 | G86: =G83 -> 4.919320418 | H86: =H85 -> 3.943584401 | I86: =I83 -> 6.950274589 | K86: =G86-G85 -> -0.5489329308 | N86: =N83 -> 0 | O86: =0.75*(O85-O74)+O75 -> 0
B87: BLOCK 3 PER KWH | D87: =D84 -> 10.05 | E87: =E84 -> 0 | F87: 0 | I87: 0 | K87: =G87-G86 -> -4.919320418 | N87: =N84 -> 0
B88: Blocks 1-3 Revenue | C88: =SUM(D88:J88) -> 396452810.9 | D88: =SUMPRODUCT(D50:D52,D85:D87)/100 -> 186356108.6 | E88: 54472200.08 | F88: 96438223.43 | G88: 29988676.96 | H88: 18923007.8 | I88: 10274594.02
B89: Adj. to Actual Revenue | C89: =SUM(D89:J89) -> 0 | D89: ='Pres & Prop Rev'!D181+'Pres & Prop Rev'!D178 -> 0 | E89: ='Pres & Prop Rev'!E181+'Pres & Prop Rev'!E178 -> 0 | F89: ='Pres & Prop Rev'!F181+'Pres & Prop Rev'!F178 -> 0 | G89: ='Pres & Prop Rev'!G181+'Pres & Prop Rev'!G178 -> 0 | H89: ='Pres & Prop Rev'!H181+'Pres & Prop Rev'!H178 -> 0 | I89: ='Pres & Prop Rev'!I181+'Pres & Prop Rev'!I178 -> 0
B90: Weather & U/B Revenue | C90: =SUM(D90:J90) -> -644361.34 | D90: ='Pres & Prop Rev'!D202 -> -372783.11 | E90: ='Pres & Prop Rev'!E202 -> 88112.85 | F90: ='Pres & Prop Rev'!F202 -> -419553.88 | G90: ='Pres & Prop Rev'!G202 -> 0 | H90: ='Pres & Prop Rev'!H202 -> 0 | I90: ='Pres & Prop Rev'!I202 -> 59862.8
B92: Revenue Remaining | C92: =IF(ROUND(C59-C64-C71-C72-SUM(C88:C90),3)<>ROUND(SUM(D92:J92),3),#VALUE!,SUM(D92:J92)) -> -3.352761269e-08 | D92: =D59-D64-D71-D72-SUM(D88:D90) -> 0 | E92: 0 | F92: 0 | G92: -3.352761269e-08 | H92: 0 | I92: 0 | K92: there will be some remainder in Schs. 21 & 25 because some components of their revenue don't change w/a rate change.
B93: Revenue Remaining - ¢/kWh | C93: =C92/C55*100 -> -5.928786593e-16 | D93: =D92/D55*100 -> 0 | E93: 0 | F93: 0 | G93: -5.622761099e-15 | H93: =H92/H55*100 -> 0 | I93: 0
B94: check - < $6k is rounding | C94: =SUM(D94:J94) -> -1650.648726 | D94: =D59-'Pres & Prop Rev'!D204-D92 -> 3676.49 | E94: =E59-'Pres & Prop Rev'!E204-E92 -> 16.20494409 | F94: =F59-'Pres & Prop Rev'!F204-F92 -> -5199.300116 | G94: =G59-'Pres & Prop Rev'!G204-G92 -> 1830.496523 | H94: =H59-'Pres & Prop Rev'!H204-H92 -> -1994.23135 | I94: =I59-'Pres & Prop Rev'!I204-I92 -> 19.69127361
A95: =IF(Base1_Billing2=2,"MAKE SURE TO CHANGE Base1_Billing2 to '1' before designing Base Rates","") -> 
B96: Proposed Target | C96: =SUM(D96:J96) -> 465824000 | D96: =D59 -> 207184000 | E96: 62761011.18 | F96: 124993398.8 | G96: 36874966.35 | H96: 23199623.67 | I96: 10811000
B97: Proposed Actual | C97: =SUM(D97:J97) -> 465825650.6 | D97: ='Pres & Prop Rev'!D204 -> 207180323.5 | E97: ='Pres & Prop Rev'!E204 -> 62760994.98 | F97: ='Pres & Prop Rev'!F204 -> 124998598.1 | G97: ='Pres & Prop Rev'!G204 -> 36873135.85 | H97: ='Pres & Prop Rev'!H204 -> 23201617.9 | I97: ='Pres & Prop Rev'!I204 -> 10810980.31
C98: =SUM(D98:I98) -> 1650.648726 | D98: =D97-D96 -> -3676.49 | E98: =E97-E96 -> -16.20494409 | F98: 5199.300116 | G98: -1830.496523 | H98: 1994.23135 | I98: -19.69127361
B99: Rate D Check
B100: Basic Charge | C100: ='Pres & Prop Rev'!C164/'Pres & Prop Rev'!C111-1 -> 0.08499748292 | D100: ='Pres & Prop Rev'!D164/'Pres & Prop Rev'!D111-1 -> 0.0625 | E100: ='Pres & Prop Rev'!E164/'Pres & Prop Rev'!E111-1 -> 0.06666666667 | F100: ='Pres & Prop Rev'!F164/'Pres & Prop Rev'!F111-1 ->  | G100: ='Pres & Prop Rev'!G164/'Pres & Prop Rev'!G111-1 ->  | H100: ='Pres & Prop Rev'!H164/'Pres & Prop Rev'!H111-1 ->  | I100: ='Pres & Prop Rev'!I164/'Pres & Prop Rev'!I111-1 -> 0.06666666667
B101: Demand Charge | C101: =SUM('Pres & Prop Rev'!C170:C171)/SUM('Pres & Prop Rev'!C117:C118)-1 -> 0.0740239387 | D101: =SUM('Pres & Prop Rev'!D170:D171)/SUM('Pres & Prop Rev'!D117:D118)-1 ->  | E101: =SUM('Pres & Prop Rev'!E170:E171)/SUM('Pres & Prop Rev'!E117:E118)-1 -> 0.04166666667 | F101: =SUM('Pres & Prop Rev'!F170:F171)/SUM('Pres & Prop Rev'!F117:F118)-1 -> 0.05169058795 | G101: =SUM('Pres & Prop Rev'!G170:G171)/SUM('Pres & Prop Rev'!G117:G118)-1 -> 0.1195270612 | H101: =SUM('Pres & Prop Rev'!H170:H171)/SUM('Pres & Prop Rev'!H117:H118)-1 -> 0.1810024891 | I101: =SUM('Pres & Prop Rev'!I170:I171)/SUM('Pres & Prop Rev'!I117:I118)-1 -> 
B102: Adj. to Actual Revenue | C102: ='Pres & Prop Rev'!C181/'Pres & Prop Rev'!C128-1 ->  | D102: ='Pres & Prop Rev'!D181/'Pres & Prop Rev'!D128-1 ->  | E102: ='Pres & Prop Rev'!E181/'Pres & Prop Rev'!E128-1 ->  | F102: ='Pres & Prop Rev'!F181/'Pres & Prop Rev'!F128-1 ->  | G102: ='Pres & Prop Rev'!G181/'Pres & Prop Rev'!G128-1 ->  | H102: ='Pres & Prop Rev'!H181/'Pres & Prop Rev'!H128-1 ->  | I102: ='Pres & Prop Rev'!I181/'Pres & Prop Rev'!I128-1 -> 
B103: Weather & U/B Revenue | C103: ='Pres & Prop Rev'!C202/'Pres & Prop Rev'!C149-1 -> -0.03458784563 | D103: ='Pres & Prop Rev'!D202/'Pres & Prop Rev'!D149-1 -> -0.03853994334 | E103: ='Pres & Prop Rev'!E202/'Pres & Prop Rev'!E149-1 -> -0.1178943916 | F103: ='Pres & Prop Rev'!F202/'Pres & Prop Rev'!F149-1 -> -0.0428248586 | G103: ='Pres & Prop Rev'!G202/'Pres & Prop Rev'!G149-1 ->  | H103: ='Pres & Prop Rev'!H202/'Pres & Prop Rev'!H149-1 ->  | I103: ='Pres & Prop Rev'!I202/'Pres & Prop Rev'!I149-1 -> 0.01954832
B104: Block Energy Charges | C104: =SUM('Pres & Prop Rev'!C166:C169)/SUM('Pres & Prop Rev'!C113:C116)-1 -> -0.05618482115 | D104: =SUM('Pres & Prop Rev'!D166:D169)/SUM('Pres & Prop Rev'!D113:D116)-1 -> -0.04200114074 | E104: =SUM('Pres & Prop Rev'!E166:E169)/SUM('Pres & Prop Rev'!E113:E116)-1 -> -0.1179048288 | F104: =SUM('Pres & Prop Rev'!F166:F169)/SUM('Pres & Prop Rev'!F113:F116)-1 -> -0.04282485671 | G104: =SUM('Pres & Prop Rev'!G166:G169)/SUM('Pres & Prop Rev'!G113:G116)-1 -> -0.04206034225 | H104: =SUM('Pres & Prop Rev'!H166:H169)/SUM('Pres & Prop Rev'!H113:H116)-1 -> -0.1254603795 | I104: =SUM('Pres & Prop Rev'!I166:I169)/SUM('Pres & Prop Rev'!I113:I116)-1 -> 0.01954837518
B105: Overall Revenue | C105: ='Pres & Prop Rev'!C208 -> -0.03536825289 | D105: ='Pres & Prop Rev'!D208 -> -0.03226764308 | E105: ='Pres & Prop Rev'!E208 -> -0.09816855192 | F105: ='Pres & Prop Rev'!F208 -> -0.01879253161 | G105: ='Pres & Prop Rev'!G208 -> -0.01369548002 | H105: ='Pres & Prop Rev'!H208 -> -0.0432877039 | I105: ='Pres & Prop Rev'!I208 -> 0.02150641087
B107: Avg. Usage | D107: =D55/D56 -> 975.3837456 | E107: 1587.125588 | F107: 59423.27698 | G107: 2474206.576 | H107: 39986904.21 | I107: 4367.371713
B108: Bill Compare: | C108: =INDEX($D$2:$J$2,L108) -> SCH. 1 | F108: =INDEX($D$2:$J$2,M108) -> SCH. 11,12 | L108: 1 | M108: 2
B109: =IF(Base1_Billing2=2,"BILLING RATES","BASE RATES") -> BASE RATES | C109: Pres | D109: Prop | E109: % Incr | F109: Pres | G109: Prop | H109: Prop | I109: % Incr
B110: 100
B111: 200
B112: 300
B113: 400
B114: 500
B115: 600
B116: 700
B117: 800
B118: 900
B119: 1000 | C119: =ROUND(D14+600*D15/100+400*D16/100,2) -> 85.47 | D119: =ROUND(D36+600*D37/100+400*D38/100,2) -> 84.5 | E119: =D119/C119-1 -> -0.01134901135 | F119: =D119-C119 -> -0.97
B120: 1100
B121: 1200
B122: 1300
B123: 1400
B124: 1500
D125: 2425727000 | E125: =395341000+52692000 -> 448033000
D126: =205474*12 -> 2465688 | E126: =(19967+8691)*12 -> 343896
D127: =D125/D126 -> 983.7931644 | E127: =E125/E126 -> 1302.815386

Sheet ROR (hidden)
B1: AVISTA UTILITIES
B2: WASHINGTON ELECTRIC
B3: PRESENT & PROPOSED RATE OF RETURN BY RATE SCHEDULE
B4: 12 MONTHS ENDED JUNE 30, 2013
C7: Total | D7: Sch 1 | E7: Sch 11 | F7: Sch 21 | G7: Sch 25 | H7: Sch 26 | I7: Sch 31 | J7: Schs 41-48
B8: Total Rate Base | C8: =SUM(D8:J8) -> 1369601000 | D8: 689544998.3 | E8: 155795088.2 | F8: 323407903.1 | G8: 90125541.17 | H8: 50042953.52 | I8: 33583018.33 | J8: 27101497.38 | K8: from COS
B10: Revenue From Retail Rates | C10: =SUM(D10:J10) -> 480926000 | D10: 207184000 | E10: 66064000 | F10: 127734000 | G10: 37739000 | H10: 24523000 | I10: 10811000 | J10: 6871000 | K10: from COS
B11: Other Operating Revenues | C11: =SUM(D11:J11) -> 58007000 | D11: 26722795.47 | E11: 6214736.282 | F11: 14526273.73 | G11: 5155669.872 | H11: 3481086.121 | I11: 1426177.906 | J11: 480260.6177 | K11: from COS
B12: Total Revenues | C12: =IF(ROUND(C10+C11,0)<>ROUND(SUM(D12:J12),0),#VALUE!,SUM(D12:J12)) -> 538933000 | D12: =D10+D11 -> 233906795.5 | E12: 72278736.28 | F12: 142260273.7 | G12: 42894669.87 | H12: 28004086.12 | I12: 12237177.91 | J12: 7351260.618
B14: Total Operating Exp b4 conv items & taxes | C14: =SUM(D14:J14) -> 392070000 | D14: =D17-D15-D16 -> 194919396.9 | E14: =E17-E15-E16 -> 44076408.08 | F14: 89960536.02 | G14: 29750151.61 | H14: 19083661.84 | I14: 9390977.459 | J14: 4888868.124
B15: Revenue Related conversion items | C15: =SUM(D15:J15) -> 22249000 | D15: 9584919.127 | E15: 3056307.906 | F15: 5909336.917 | G15: 1745913.116 | H15: 1134503.493 | I15: 500147.505 | J15: 317871.9366 | K15: from COS
B16: Income Taxes | C16: =SUM(D16:J16) -> 30636000 | D16: 3675463.478 | E16: 7351383.922 | F16: 13213112.48 | G16: 3143216.271 | H16: 2258698.988 | I16: 501148.249 | J16: 492976.6133 | K16: from COS
B17: Total Expenses | C17: =IF(ROUND(SUM(C14:C16),0)<>ROUND(SUM(D17:J17),0),#VALUE!,SUM(D17:J17)) -> 444955000 | D17: 208179779.5 | E17: 54484099.91 | F17: 109082985.4 | G17: 34639281 | H17: 22476864.32 | I17: 10392273.21 | J17: 5699716.674 | K17: from COS
D18: .
B19: Net Operating Income | C19: =IF(ROUND(C12-C17,0)<>ROUND(SUM(D19:J19),0),#VALUE!,ROUND(SUM(D19:J19),-3)) -> 93978000 | D19: =D12-D17 -> 25727016.01 | E19: 17794636.37 | F19: 33177288.31 | G19: 8255388.876 | H19: =H12-H17 -> 5527221.801 | I19: 1844904.693 | J19: 1651543.943
B20: Present Rate of Return | C20: =C19/C8 -> 0.06861706439 | D20: 0.0373101336 | E20: 0.1142182117 | F20: 0.1025865107 | G20: 0.09159877177 | H20: =H19/H8 -> 0.1104495521 | I20: 0.05493564261 | J20: =J19/J8 -> 0.0609392138
B21: Present Return Ratio | C21: =C20/$C20 -> 1 | D21: 0.543744241 | E21: 1.664574443 | F21: 1.495058286 | G21: 1.334926998 | H21: =H20/$C20 -> 1.609651376 | I21: =I20/$C20 -> 0.800611963 | J21: 0.8881058137
B23: Interest Expense | C23: =SUM(D23:J23) -> 37686000 | D23: 18973549.82 | E23: 4286864.346 | F23: 8898905.766 | G23: 2479898.266 | H23: 1376984.06 | I23: 924071.7763 | J23: 745725.9672 | K23: from COS
B25: Proposed Misc Revenue Increase | C25: 0
B26: Proposed Rate Revenue Increase | C26: -8231000 | D26: =C26/C10 -> -0.01711489917
B27: Proposed Rev Increase | C27: =C25+C26 -> -8231000
D28: change
B29: Proposed Rate Revenues | C29: =C10+C26 -> 472695000 | D29: =C29-C10 -> -8231000 | F29: Uncollectibles | G29: 0.004449
B30: incremental conversion expenses | C30: =ROUND(C27*G29,-3)+ROUND(C27*G30,-3)+ROUND(C27*G31,-3) -> -370000 | F30: Commiss Fees | G30: 0.002
B31: incremental Income Taxes | C31: =ROUND(C27*G32,-3) -> -2751000 | F31: Excise Tax | G31: 0.038562
B32: Proposed Return | C32: =C19+C27-C30-C31 -> 88868000 | D32: =C32-C19 -> -5110000 | F32: Federal Inc Tax | G32: 0.334246
B33: Proposed Return % | C33: =C32/C8 -> 0.06488605075
B35: Allocation of incremental Misc Rev | C35: =SUM(D35:J35) -> 0 | D35: 0 | E35: 0 | F35: 0 | G35: 0 | H35: 0 | I35: 0 | J35: 0 | K35: from COS
B37: Target Relative Return | C37: =C38/C33 -> 1 | D37: =D39/D8/C33 -> 0.5748843298 | E37: 1.557968121 | F37: 1.499868557 | G37: 1.32 | H37: 1.45 | I37: 0.8464141379 | J37: 0.938919401 | K37: Input | L37: =D26 -> -0.01711489917
B38: Target Return % | C38: =C39/C8 -> 0.06488605075 | D38: =D39/D8 -> 0.0373019738 | E38: 0.1010903986 | F38: 0.09732054728 | G38: 0.085649587 | H38: =H39/H8 -> 0.09408477359 | I38: 0.05492047071 | J38: 0.06092277191
B39: Target Return (NOI b4 Interest) | C39: =C32 -> 88868000 | D39: =$C$32-SUM(E39:J39) -> 25721389.46 | E39: =E8*E37*$C$32/$C$8 -> 15749387.57 | F39: 31474234.13 | G39: 7719215.379 | H39: 4708279.952 | I39: 1844395.175 | J39: 1651098.344 | K39: =ROUND(C39-SUM(D39:J39),0) -> 0
B40: Target Return after Interest Expense | C40: =C39-C23 -> 51182000 | D40: =D39-D23 -> 6747839.641 | E40: 11462523.22 | F40: 22575328.36 | G40: 5239317.114 | H40: =H39-H23 -> 3331295.891 | I40: 920323.3985 | J40: 905372.3764 | K40: 0
B41: Target Return b4 Income Taxes & Interest | C41: =C40+C16+C31+C23 -> 116753000 | D41: =D40+D23+D40/$C40*SUM($C$16,$C$31) -> 29397750.45 | E41: =E40+E23+E40/$C40*SUM($C$16,$C$31) -> 21994404.57 | F41: 43773734.56 | G41: =G40+G23+G40/$C40*SUM($C$16,$C$31) -> 10573702.46 | H41: =H40+H23+H40/$C40*SUM($C$16,$C$31) -> 6523238.06 | I41: 2345806.178 | J41: 2144363.724 | K41: 0
B42: Target Return b4 Misc Rev | C42: =C41-C11-$C$25*C35 -> 58746000 | D42: =D41-D11-$C$25*D35 -> 2674954.98 | E42: =E41-E11-$C$25*E35 -> 15779668.28 | F42: 29247460.83 | G42: 5418032.587 | H42: =H41-H11-$C$25*H35 -> 3042151.939 | I42: 919628.2722 | J42: 1664103.107 | K42: 0
B43: =B14 -> Total Operating Exp b4 conv items & taxes | C43: =C14 -> 392070000 | D43: =D14 -> 194919396.9 | E43: 44076408.08 | F43: 89960536.02 | G43: 29750151.61 | H43: =H14 -> 19083661.84 | I43: 9390977.459 | J43: =J14 -> 4888868.124 | K43: 0
B44: Conversion Items | C44: =C15+C30 -> 21879000 | D44: =$C44*D46/$C46 -> 9589648.158 | E44: 2904934.818 | F44: 5785401.945 | G44: 1706782.151 | H44: =$C44*H46/$C46 -> 1073809.891 | I44: 500394.269 | J44: 318028.7691 | K44: =ROUND(C44-SUM(D44:J44),0) -> 0
B45: Incremental Rate Revenue | C45: =C26 -> -8231000 | D45: =(D42-D10+D14+($C$44*D10)/$C$29)/(1-$C$44/$C$29) -> -1.953043035e-08 | E45: =(E42-E10+E14+($C$44*E10)/$C$29)/(1-$C$44/$C$29) -> -3302988.815 | F45: -2740601.2 | G45: =(G42-G10+G14+($C$44*G10)/$C$29)/(1-$C$44/$C$29) -> -864033.6535 | H45: =(H42-H10+H14+($C$44*H10)/$C$29)/(1-$C$44/$C$29) -> -1323376.331 | I45: -1.830977845e-10 | J45: =(J42-J10+J14+($C$44*J10)/$C$29)/(1-$C$44/$C$29) -> -7.323911381e-10 | K45: =ROUND(C45-SUM(D45:J45),0) -> 0
B46: Target Rate Revenue | C46: =C42+C43+C44 -> 472695000 | D46: =D10+D45 -> 207184000 | E46: =E10+E45 -> 62761011.18 | F46: 124993398.8 | G46: 36874966.35 | H46: =H10+H45 -> 23199623.67 | I46: 10811000 | J46: 6871000 | K46: =ROUND(C46-SUM(D46:J46),0) -> 0 | N46: =C46-J46 -> 465824000
B47: Change in Rate Revenue | C47: =C46/C10-1 -> -0.01711489917 | D47: 0 | E47: =E46/E10-1 -> -0.04999680333 | F47: -0.02145553416 | G47: -0.02289498009 | H47: =H46/H10-1 -> -0.05396469972 | I47: 0 | J47: 0
B49: Incremental Rate Revenue - rounded | C49: =SUM(D49:J49) -> -8231000 | D49: =ROUND(D45,-3) -> 0 | E49: =ROUND(E45,-3) -> -3303000 | F49: -2741000 | G49: -864000 | H49: =ROUND(H45,-3) -> -1323000 | I49: 0 | J49: 0
B50: Target Rate Revenue - rounded | C50: =SUM(D50:J50) -> 472695000 | D50: =ROUND(D46,-3) -> 207184000 | E50: =ROUND(E46,-3) -> 62761000 | F50: 124993000 | G50: 36875000 | H50: =ROUND(H46,-3) -> 23200000 | I50: 10811000 | J50: =ROUND(J46,-3) -> 6871000
B52: ERM Revenue decrease | C52: =SUM(D52:J52) -> 0 | D52: 0 | E52: 0 | F52: 0 | G52: 0 | I52: 0 | J52: 0
B53: Net Increase | C53: =SUM(D53:J53) -> -6907623.669 | D53: =D45+D52 -> -1.953043035e-08 | E53: =E45+E52 -> -3302988.815 | F53: -2740601.2 | G53: -864033.6535 | I53: -1.830977845e-10 | J53: -7.323911381e-10
B54: Present Billed | C54: =SUM(D54:J54) -> 481541000 | D54: 204738000 | E54: 66923000 | F54: 129127000 | G54: 62716000 | I54: 10909000 | J54: 7128000
B55: Net Increase as % of billed | C55: =C53/C54 -> -0.01434482976 | D55: =D53/D54 -> -9.539230797e-17 | E55: =E53/E54 -> -0.04935506201 | F55: -0.02122407552 | G55: -0.0137769254 | I55: -1.678410345e-17 | J55: -1.027484762e-16
B57: Movement To Unity | D57: =(D37-D21)/(1-D21) -> 0.06825138781 | E57: =(E37-E21)/(1-E21) -> 0.1604129118 | F57: =(F37-F21)/(1-F21) -> -0.009716573304 | G57: 0.04456791484 | I57: 0.2297137562 | J57: 0.4541217826
B60: Uniform Present Return | C60: =C19 -> 93978000 | D60: =$C60*D$8/$C$8 -> 47314553.54 | E60: =$C60*E$8/$C$8 -> 10690201.6 | F60: 22191300.91 | G60: 6184150.061 | H60: 3433800.563 | I60: 2304368.131 | J60: 1859625.191
B61: Present Income Taxes at Unity | C61: =C16 -> 30636000 | D61: 15424127.59 | E61: 3484911.535 | F61: 7234168.579 | G61: 2015978.434 | H61: 1119388.73 | I61: 751203.708 | J61: 606221.4279
B62: Operating Expenses (Excl. Rev Rel exp & inc tax) | C62: =SUM(D62:J62) -> 392070000 | D62: =D14 -> 194919396.9 | E62: =E14 -> 44076408.08 | F62: 89960536.02 | G62: 29750151.61 | H62: =H14 -> 19083661.84 | I62: 9390977.459 | J62: 4888868.124
B63: Deduct Other Operating Revenues | C63: =SUM(D63:J63) -> -58007000 | D63: =-D11 -> -26722795.47 | E63: =-E11 -> -6214736.282 | F63: -14526273.73 | G63: -5155669.872 | H63: =-H11 -> -3481086.121 | I63: -1426177.906 | J63: -480260.6177
B64: Revenue Related Expenses at Unity | C64: =C15 -> 22249000 | D64: =$C64*SUM(D60:D63)/SUM($C$60:$C$63) -> 11201954.97 | E64: =$C64*SUM(E60:E63)/SUM($C$60:$C$63) -> 2524143.195 | F64: 5086420.667 | G64: 1590764.924 | H64: =$C64*SUM(H60:H63)/SUM($C$60:$C$63) -> 977693.7054 | I64: 534564.0682 | J64: 333458.4682
B65: Total Uniform Cost at Present Return | C65: =SUM(C60:C64) -> 480926000 | D65: =SUM(D60:D64) -> 242137237.5 | E65: 54560928.13 | F65: 109946152.4 | G65: 34385375.16 | H65: =SUM(H60:H64) -> 21133458.72 | I65: 11554935.46 | J65: 7207912.594
B67: Uniform Proposed Return | C67: =C32 -> 88868000 | D67: =$C67*D$8/$C$8 -> 44741851.75 | E67: =$C67*E$8/$C$8 -> 10108928 | F67: =$C67*F$8/$C$8 -> 20984661.62 | G67: 5847890.439 | H67: 3247089.622 | I67: 2179069.432 | J67: 1758509.135
B68: Proposed Income Taxes at Unity | C68: =C16+C31 -> 27885000 | D68: 14039097.72 | E68: 3171979.31 | F68: 6584566.876 | G68: 1834950.993 | H68: 1018871.744 | I68: 683748.3809 | J68: 551784.9757
B69: Operating Expenses (Excl. Rev Rel exp & inc tax) | C69: =SUM(D69:J69) -> 392070000 | D69: =D14 -> 194919396.9 | E69: =E14 -> 44076408.08 | F69: 89960536.02 | G69: 29750151.61 | H69: =H14 -> 19083661.84 | I69: 9390977.459 | J69: 4888868.124
B70: Deduct Other Operating Revenues | C70: =SUM(D70:J70) -> -58007000 | D70: =-D11-$C$25*D35 -> -26722795.47 | E70: =-E11-$C$25*E35 -> -6214736.282 | F70: -14526273.73 | G70: -5155669.872 | H70: =-H11-$C$25*H35 -> -3481086.121 | I70: -1426177.906 | J70: -480260.6177
B71: Proposed Revenue Related Expenses at Unity | C71: =C15+C30 -> 21879000 | D71: =$C71*SUM(D67:D70)/SUM($C$67:$C$70) -> 11015673.44 | E71: =$C71*SUM(E67:E70)/SUM($C$67:$C$70) -> 2482051.41 | F71: 4998964.932 | G71: 1566482.897 | H71: =$C71*SUM(H67:H70)/SUM($C$67:$C$70) -> 964259.7486 | I71: 525485.8753 | J71: 326081.7018
B72: Total Uniform Cost at Proposed Return | C72: =SUM(C67:C71) -> 472695000 | D72: =SUM(D67:D71) -> 237993224.3 | E72: 53624630.52 | F72: 108002455.7 | G72: 33843806.07 | H72: =SUM(H67:H71) -> 20832796.83 | I72: 11353103.24 | J72: 7044983.319
B74: Revenue Change to Achieve Unity (rounded) | C74: =SUM(D74:J74) -> -8233000 | D74: =ROUND(D72-D10,-3)-2000 -> 30807000 | E74: =ROUND(E72-E10,-3) -> -12439000 | F74: -19732000 | G74: -3895000 | H74: -3690000 | I74: 542000 | J74: 174000
B76: Revenue to Cost Ratio at Present Rates | C76: =C10/C65 -> 1 | D76: =D10/D65 -> 0.8556469965 | E76: =E10/E65 -> 1.210829842 | F76: =F10/F65 -> 1.161786903 | G76: 1.097530559 | H76: =H10/H65 -> 1.160387437 | I76: 0.9356175149 | J76: 0.9532579524
B77: Revenue to Cost Ratio at Proposed Rates | C77: =C46/C72 -> 1 | D77: =D46/D72 -> 0.8705457923 | E77: =E46/E72 -> 1.170376571 | F77: 1.15731997 | G77: 1.089563221 | H77: =H46/H72 -> 1.113610614 | I77: 0.9522506552 | J77: 0.9753039417
B78: Change in Revenue to Cost Ratio | C78: =C77-C76 -> 0 | D78: =D77-D76 -> 0.01489879576 | E78: =E77-E76 -> -0.04045327138 | F78: -0.004466933542 | G78: =G77-G76 -> -0.007967337557 | H78: =H77-H76 -> -0.04677682335 | I78: 0.01663314032 | J78: =J77-J76 -> 0.02204598929
C79: =C78/(1-C76) -> 0 | D79: =D78/(1-D76) -> 0.103210847 | E79: 0.1918764012 | F79: 0.02760998231 | G79: 0.08169067909 | H79: =H78/(1-H76) -> 0.2916489231 | I79: 0.2583488396 | J79: 0.4716521935

Sheet Bill Determ (hidden)
A1: AVISTA UTILITIES
A2: WASHINGTON ELECTRIC
A3: ACTUAL / PRO FORMA BILLING DETERMINANTS BY RATE SCHEDULE
A4: 12 MONTHS ENDED JUNE 30, 2013
A6: Billing Determinants
A7: Rate Year
B8: Current GRC | I8: Last GRC | P8: Difference | W8: Percentage | AD8: 2015 | AK8: 2016
A10: Schedule 1 | B10: 0-800 kwhs | C10: 801-1500 kwhs | D10: over 1500 kwhs | E10: Total kwhs | F10: Total Billings(2) | I10: 0-800 kwhs | J10: 801-1500 kwhs | K10: over 1500 kwhs | L10: Total kwhs | M10: Total Billings(2) | P10: 0-800 kwhs | Q10: 801-1500 kwhs | R10: over 1500 kwhs | S10: Total kwhs | T10: Total Billings(2) | W10: 0-800 kwhs | X10: 801-1500 kwhs | Y10: over 1500 kwhs | Z10: Total kwhs | AA10: Total Billings(2) | AD10: 0-800 kwhs | AE10: 801-1500 kwhs | AF10: over 1500 kwhs | AG10: Total kwhs | AH10: Total Billings(2) | AK10: 0-800 kwhs | AL10: 801-1500 kwhs | AM10: over 1500 kwhs | AN10: Total kwhs | AO10: Total Billings(2)
A11: kwhs per billing run(1) | B11: =IF($A$7="Rate Year",AD11,IF($A$7="Rate Plan 2016",AK11,'Block Data'!O21)) -> 1592525923 | C11: =IF($A$7="Rate Year",AE11,IF($A$7="Rate Plan 2016",AL11,'Block Data'!O22)) -> 524802801.5 | D11: =IF($A$7="Rate Year",AF11,IF($A$7="Rate Plan 2016",AM11,'Block Data'!O23)) -> 320179342.9 | E11: =B11+C11+D11 -> 2437508067 | F11: =IF($A$7="Rate Year",AH11,IF($A$7="Rate Plan 2016",AO11,'Rev Runs 12MEJUNE2013'!P11*12)) -> 2494197 | I11: =IF($A$7="Test Year", 1545098943, '[6]Block Data'!O21) -> 1539744220 | J11: =IF($A$7="Test Year", 536148271,'[6]Block Data'!O22) -> 507409059.2 | K11: =IF($A$7="Test Year", 340356550,'[6]Block Data'!O23) -> 309567515.1 | L11: =I11+J11+K11 -> 2356720794 | M11: =IF($A$7="Test Year", 2417371,'[6]Rev Runs 12MEJUNE2013'!P11*12) -> 2437081 | P11: =B11-I11 -> 52781702.84 | Q11: =C11-J11 -> 17393742.31 | R11: 10611827.85 | S11: =P11+Q11+R11 -> 80787273 | T11: =F11-M11 -> 57116 | W11: =P11/I11 -> 0.03427952654 | X11: =Q11/J11 -> 0.03427952654 | Y11: 0.03427952654 | Z11: =S11/L11 -> 0.03427952654 | AA11: =T11/M11 -> 0.02343623376 | AD11: 1592525923 | AE11: 524802801.5 | AF11: 320179342.9 | AG11: =AD11+AE11+AF11 -> 2437508067 | AH11: 2494197 | AK11: 1609856953 | AL11: 530514088.9 | AM11: 323663768.4 | AN11: =AK11+AL11+AM11 -> 2464034810 | AO11: 2517892
A12: Total kwhs per Rev. Run(2) | E12: =IF($A$7="Rate Year",AG12,IF($A$7="Rate Plan 2016",AN12,'Rev Runs 12MEJUNE2013'!P45)) -> 2437508067 | L12: =IF($A$7="Test Year", 2425025822,'[6]Rev Runs 12MEJUNE2013'!P45) -> 2356720794 | S12: =E12-L12 -> 80787273 | Z12: =S12/L12 -> 0.03427952654 | AG12: 2437508067 | AN12: 2464034810
A13: Adjust. kwhs to Actual | E13: =E12-E11 -> 0 | L13: =L12-L11 -> 0 | S13: =S12-S11 -> 0 | Z13: =Z12-Z11 -> 0 | AG13: =AG12-AG11 -> 0 | AN13: =AN12-AN11 -> 0
A16: Schedule 11,12 | B16: 0-3,650 kwhs | C16: over 3,650 kwhs | D16: Total kwhs | E16: kw over 20(1) | F16: Total Billings(2) | G16: kvar billed(1) | I16: 0-3,650 kwhs | J16: over 3,650 kwhs | K16: Total kwhs | L16: kw over 20(1) | M16: Total Billings(2) | N16: kvar billed(1) | P16: 0-3,650 kwhs | Q16: over 3,650 kwhs | R16: Total kwhs | S16: kw over 20(1) | T16: Total Billings(2) | U16: kvar billed(1) | W16: 0-3,650 kwhs | X16: over 3,650 kwhs | Y16: Total kwhs | Z16: kw over 20(1) | AA16: Total Billings(2) | AB16: kvar billed(1) | AD16: 0-3,650 kwhs | AE16: over 3,650 kwhs | AF16: Total kwhs | AG16: kw over 20(1) | AH16: Total Billings(2) | AI16: kvar billed(1) | AK16: 0-3,650 kwhs | AL16: over 3,650 kwhs | AM16: Total kwhs | AN16: kw over 20(1) | AO16: Total Billings(2) | AP16: kvar billed(1)
A17: kwhs per Revenue Run(1) | B17: =IF($A$7="Rate Year",AD17,IF($A$7="Rate Plan 2016",AK17,'Block Data'!O38)) -> 420252327.2 | C17: =IF($A$7="Rate Year",AE17,IF($A$7="Rate Plan 2016",AL17,'Block Data'!O39)) -> 165857104.8 | D17: =B17+C17 -> 586109432 | E17: =IF($A$7="Rate Year",AG17,IF($A$7="Rate Plan 2016",AN17,'Block Data'!O45)) -> 364641 | F17: =IF($A$7="Rate Year",AH17,IF($A$7="Rate Plan 2016",AO17,SUM('Rev Runs 12MEJUNE2013'!P12:P13)*12)) -> 369788 | G17: =IF($A$7="Rate Year",AI17,IF($A$7="Rate Plan 2016",AP17,'Block Data'!O49)) -> 10168 | I17: =IF($A$7="Test Year", 360711380,'[6]Block Data'!O38) -> 395607176 | J17: =IF($A$7="Test Year",82577095,'[6]Block Data'!O39) -> 149045323 | K17: =I17+J17 -> 544652499 | L17: =IF($A$7="Test Year",178118,'[6]Block Data'!O45) -> 313092 | M17: =IF($A$7="Test Year",335404,SUM('[6]Rev Runs 12MEJUNE2013'!P12:P13)*12) -> 351004 | N17: =IF($A$7="Test Year",7997,'[6]Block Data'!O49) -> 10168.36364 | P17: =B17-I17 -> 24645151.13 | Q17: 16811781.87 | R17: =P17+Q17 -> 41456933 | S17: =E17-L17 -> 51549 | T17: 18784 | U17: -0.3636363636 | W17: =P17/I17 -> 0.06229702752 | X17: 0.1127964402 | Y17: 0.07611629998 | Z17: 0.1646448967 | AA17: 0.05351505966 | AB17: -3.576154204e-05 | AD17: 420252327.2 | AE17: 165857104.8 | AF17: =AD17+AE17 -> 586109432 | AG17: 364641 | AH17: 369788 | AI17: 10168 | AK17: 427471529.3 | AL17: 168706240.7 | AM17: =AK17+AL17 -> 596177770 | AN17: 364641 | AO17: 376154 | AP17: 10168
A18: Shifted from Sch 21(4) | B18: =IF($A$7="Rate Year",AD18,IF($A$7="Rate Plan 2016",AK18,2852230+607380)) -> 0 | C18: =IF($A$7="Rate Year",AE18,IF($A$7="Rate Plan 2016",AL18,7106369+1344311)) -> 0 | D18: =SUM(B18:C18) -> 0 | E18: =IF($A$7="Rate Year",AG18,IF($A$7="Rate Plan 2016",AN18,23136+3595)) -> 0 | F18: =IF($A$7="Rate Year",AH18,IF($A$7="Rate Plan 2016",AO18,(133*6)+101+72)) -> 0 | G18: 0 | I18: =IF($A$7="Test Year",15570939,2852230+607380) -> 3459610 | J18: =IF($A$7="Test Year",29370828,7106369+1344311) -> 8450680 | K18: =SUM(I18:J18) -> 11910290 | L18: =IF($A$7="Test Year",52537,23136+3595) -> 26731 | M18: =IF($A$7="Test Year",4332,(133*6)+101+72) -> 971 | N18: 0 | P18: -3459610 | Q18: -8450680 | R18: =SUM(P18:Q18) -> -11910290 | S18: -26731 | T18: -971 | U18: 0 | W18: -1 | X18: -1 | Y18: -1 | Z18: -1 | AA18: -1 | AB18: =U18/N18 ->  | AD18: 0 | AE18: 0 | AF18: 0 | AG18: 0 | AH18: 0 | AI18: 0 | AK18: 0 | AL18: 0 | AM18: =SUM(AK18:AL18) -> 0 | AN18: 0 | AO18: 0 | AP18: 0
A19: Total by Block | B19: =SUM(B17:B18) -> 420252327.2 | C19: =SUM(C17:C18) -> 165857104.8 | D19: 586109432 | E19: 364641 | F19: 369788 | G19: 10168 | I19: =SUM(I17:I18) -> 399066786 | J19: =SUM(J17:J18) -> 157496003 | K19: 556562789 | L19: 339823 | M19: 351975 | N19: 10168.36364 | P19: =SUM(P17:P18) -> 21185541.13 | Q19: =SUM(Q17:Q18) -> 8361101.866 | R19: 29546643 | S19: 24818 | T19: 17813 | U19: -0.3636363636 | W19: 0.05308770831 | X19: 0.05308770831 | Y19: 0.05308770831 | Z19: 0.07303213732 | AA19: 0.050608708 | AB19: -3.576154204e-05 | AD19: =SUM(AD17:AD18) -> 420252327.2 | AE19: =SUM(AE17:AE18) -> 165857104.8 | AF19: 586109432 | AG19: 364641 | AH19: 369788 | AI19: 10168 | AK19: =SUM(AK17:AK18) -> 427471529.3 | AL19: =SUM(AL17:AL18) -> 168706240.7 | AM19: 596177770 | AN19: 364641 | AO19: 376154 | AP19: 10168
A20: Total kwhs per Rev. Run(2) | D20: =IF($A$7="Rate Year",AF20,IF($A$7="Rate Plan 2016",AM20,'Rev Runs 12MEJUNE2013'!P46+'Rev Runs 12MEJUNE2013'!P47)) -> 586109432 | K20: =IF($A$7="Test Year",445118651,'[6]Rev Runs 12MEJUNE2013'!P46+'[6]Rev Runs 12MEJUNE2013'!P47) -> 544652499 | R20: =D20-K20 -> 41456933 | Y20: 0.07611629998 | AF20: 586109432 | AM20: 596177770
A21: Schedule Shifting from 21 | D21: =D18 -> 0 | K21: =K18 -> 11910290 | R21: =R18 -> -11910290 | Y21: -1 | AF21: =AF18 -> 0 | AM21: =AM18 -> 0
A22: Total Adjusted kwhs | D22: =D20+D21 -> 586109432 | K22: =K20+K21 -> 556562789 | R22: =R20+R21 -> 29546643 | Y22: 0.05308770831 | AF22: =AF20+AF21 -> 586109432 | AM22: =AM20+AM21 -> 596177770
A23: Adjust. kwhs to Actual | D23: =D22-D19 -> 0 | K23: =K22-K19 -> 0 | R23: =R22-R19 -> 0 | AF23: =AF22-AF19 -> 0 | AM23: =AM22-AM19 -> 0
A26: Schedule 21,22 | B26: 0-250,000 kwhs | C26: over 250,000 kwhs | D26: Total kwhs | E26: kw over 50(1) | F26: Total Billings(2) | G26: kvar billed(1) | I26: 0-250,000 kwhs | J26: over 250,000 kwhs | K26: Total kwhs | L26: kw over 50(1) | M26: Total Billings(2) | N26: kvar billed(1) | P26: 0-250,000 kwhs | Q26: over 250,000 kwhs | R26: Total kwhs | S26: kw over 50(1) | T26: Total Billings(2) | U26: kvar billed(1) | W26: 0-250,000 kwhs | X26: over 250,000 kwhs | Y26: Total kwhs | Z26: kw over 50(1) | AA26: Total Billings(2) | AB26: kvar billed(1) | AD26: 0-250,000 kwhs | AE26: over 250,000 kwhs | AF26: Total kwhs | AG26: kw over 50(1) | AH26: Total Billings(2) | AI26: kvar billed(1) | AK26: 0-250,000 kwhs | AL26: over 250,000 kwhs | AM26: Total kwhs | AN26: kw over 50(1) | AO26: Total Billings(2) | AP26: kvar billed(1)
A27: kwhs per Revenue Run(1) | B27: =IF($A$7="Rate Year",AD27,IF($A$7="Rate Plan 2016",AK27,'Block Data'!O64)) -> 1271405693 | C27: =IF($A$7="Rate Year",AE27,IF($A$7="Rate Plan 2016",AL27,'Block Data'!O65)) -> 165400787.5 | D27: =B27+C27 -> 1436806481 | E27: =IF($A$7="Rate Year",AG27,IF($A$7="Rate Plan 2016",AN27,'Block Data'!O71)) -> 2697553 | F27: =IF($A$7="Rate Year",AH27,IF($A$7="Rate Plan 2016",AO27,SUM('Rev Runs 12MEJUNE2013'!P14:P15)*12)) -> 24074 | G27: =IF($A$7="Rate Year",AI27,IF($A$7="Rate Plan 2016",AP27,'Block Data'!O75)) -> 252772 | I27: =IF($A$7="Test Year",1385138692,'[6]Block Data'!O64) -> 1277844983 | J27: =IF($A$7="Test Year",147736411,'[6]Block Data'!O65) -> 164689049.4 | K27: =I27+J27 -> 1442534032 | L27: =IF($A$7="Test Year",2651934,'[6]Block Data'!O71) -> 2732630.182 | M27: =IF($A$7="Test Year",36503,SUM('[6]Rev Runs 12MEJUNE2013'!P14:P15)*12) -> 26398 | N27: =IF($A$7="Test Year",244236,'[6]Block Data'!O75) -> 252772.3636 | P27: =B27-I27 -> -6439289.089 | Q27: 711738.0893 | R27: =P27+Q27 -> -5727551 | S27: =E27-L27 -> -35077.18182 | T27: -2324 | U27: -0.3636363636 | W27: =P27/I27 -> -0.005039178599 | X27: 0.00432170865 | Y27: -0.003970478944 | Z27: -0.01283641747 | AA27: -0.0880369725 | AB27: -1.438592251e-06 | AD27: 1271405693 | AE27: 165400787.5 | AF27: =AD27+AE27 -> 1436806481 | AG27: 2697553 | AH27: 24074 | AI27: 252772 | AK27: 1277469116 | AL27: 166189595.4 | AM27: =AK27+AL27 -> 1443658711 | AN27: 2697553 | AO27: 24085 | AP27: 252772
A28: Special Contract Shifted to Sched 21 | B28: 0 | C28: 0 | D28: =SUM(B28:C28) -> 0 | E28: 0 | F28: 0 | G28: 0 | I28: =IF($A$7="Test Year", 555000, 0) -> 0 | J28: 0 | K28: =SUM(I28:J28) -> 0 | L28: =IF($A$7="Test Year", 15700,0) -> 0 | M28: =IF($A$7="Test Year", 12,0) -> 0 | N28: 0 | P28: 0 | Q28: 0 | R28: =SUM(P28:Q28) -> 0 | S28: 0 | T28: 0 | U28: 0 | AD28: 0 | AE28: 0 | AF28: =SUM(AD28:AE28) -> 0 | AG28: 0 | AH28: 0 | AI28: 0 | AK28: 0 | AL28: 0 | AM28: =SUM(AK28:AL28) -> 0 | AN28: 0 | AO28: 0 | AP28: 0
A29: Shifted to Sch 011(4) | B29: =-D18 -> 0 | D29: =SUM(B29:C29) -> 0 | E29: =IF($A$7="Rate Year",AG29,IF($A$7="Rate Plan 2016",AN29,-6638-751)) -> 0 | F29: =-F18 -> 0 | G29: 0 | I29: =IF($A$7="Test Year", -44941767,-K18) -> -11910290 | K29: =SUM(I29:J29) -> -11910290 | L29: =IF($A$7="Test Year",AN29,-6638-751) -> -7389 | M29: =IF($A$7="Test Year", -4332, -M18) -> -971 | N29: 0 | P29: 11910290 | Q29: 0 | R29: =SUM(P29:Q29) -> 11910290 | S29: 7389 | T29: 971 | U29: 0 | W29: -1 | Y29: -1 | Z29: =S29/L29 -> -1 | AA29: -1 | AD29: =-AF18 -> 0 | AF29: =SUM(AD29:AE29) -> 0 | AG29: 0 | AH29: =-AH18 -> 0 | AI29: 0 | AK29: 0 | AM29: =SUM(AK29:AL29) -> 0 | AN29: 0 | AO29: 0 | AP29: =-AP18 -> 0
A30: Total | B30: =SUM(B27:B29) -> 1271405693 | C30: =SUM(C27:C29) -> 165400787.5 | D30: =SUM(B30:C30) -> 1436806481 | E30: =SUM(E27:E29) -> 2697553 | F30: =SUM(F27:F29) -> 24074 | G30: =SUM(G27:G29) -> 252772 | I30: =SUM(I27:I29) -> 1265934693 | J30: =SUM(J27:J29) -> 164689049.4 | K30: =SUM(I30:J30) -> 1430623742 | L30: =SUM(L27:L29) -> 2725241.182 | M30: =SUM(M27:M29) -> 25427 | N30: =SUM(N27:N29) -> 252772.3636 | P30: =SUM(P27:P29) -> 5471000.911 | Q30: =SUM(Q27:Q29) -> 711738.0893 | R30: =SUM(P30:Q30) -> 6182739 | S30: =SUM(S27:S29) -> -27688.18182 | T30: =SUM(T27:T29) -> -1353 | U30: =SUM(U27:U29) -> -0.3636363636 | W30: 0.00432170865 | X30: 0.00432170865 | Y30: 0.00432170865 | Z30: -0.01015990144 | AA30: -0.0532111535 | AB30: -1.438592251e-06 | AD30: =SUM(AD27:AD29) -> 1271405693 | AE30: =SUM(AE27:AE29) -> 165400787.5 | AF30: =SUM(AD30:AE30) -> 1436806481 | AG30: =SUM(AG27:AG29) -> 2697553 | AH30: =SUM(AH27:AH29) -> 24074 | AI30: =SUM(AI27:AI29) -> 252772 | AK30: =SUM(AK27:AK29) -> 1277469116 | AL30: =SUM(AL27:AL29) -> 166189595.4 | AM30: =SUM(AK30:AL30) -> 1443658711 | AN30: =SUM(AN27:AN29) -> 2697553 | AO30: =SUM(AO27:AO29) -> 24085 | AP30: =SUM(AP27:AP29) -> 252772
A31: Total kwhs per Rev. Run(2) | D31: =IF($A$7="Rate Year",AF31,IF($A$7="Rate Plan 2016",AM31,'Rev Runs 12MEJUNE2013'!P48+'Rev Runs 12MEJUNE2013'!P49)) -> 1436806481 | K31: =IF($A$7="Test Year",1532907878,'[6]Rev Runs 12MEJUNE2013'!P48+'[6]Rev Runs 12MEJUNE2013'!P49) -> 1442534032 | R31: =D31-K31 -> -5727551 | Y31: -0.003970478944 | AF31: 1436806481 | AM31: 1443658711
A32: Schedule Shifting to Sch. 21 | D32: =D28 -> 0 | K32: =K28 -> 0 | R32: =R28 -> 0 | AF32: =AF28 -> 0 | AM32: =AM28 -> 0
A33: Schedule Shifting to Sch. 11 | D33: =D29 -> 0 | K33: =K29 -> -11910290 | R33: =R29 -> 11910290 | Y33: -1 | AF33: =AF29 -> 0 | AM33: =AM29 -> 0
A34: Total adjusted kwhs | D34: =D31+D32+D33 -> 1436806481 | K34: =K31+K32+K33 -> 1430623742 | R34: =R31+R32+R33 -> 6182739 | Y34: 0.00432170865 | AF34: =AF31+AF32+AF33 -> 1436806481 | AM34: =AM31+AM32+AM33 -> 1443658711
A35: Adjust. kwhs to Actual | D35: =D34-D30 -> 0 | K35: =K34-K30 -> 0 | R35: =R34-R30 -> 3.576278687e-07 | AF35: =AF34-AF30 -> 0 | AM35: =AM34-AM30 -> 0
A38: Schedule 25(3) | B38: 0-500,000 kwhs | C38: 500,001-6M kwhs | D38: > 6M kwhs | E38: Total kwhs | F38: kva over 3,000 | G38: Total Billings(2) | I38: 0-500,000 kwhs | J38: 500,001-6M kwhs | K38: > 6M kwhs | L38: Total kwhs | M38: kva over 3,000 | N38: Total Billings(2) | P38: 0-500,000 kwhs | Q38: 500,001-6M kwhs | R38: > 6M kwhs | S38: Total kwhs | T38: kva over 3,000 | U38: Total Billings(2) | W38: 0-500,000 kwhs | X38: 500,001-6M kwhs | Y38: > 6M kwhs | Z38: Total kwhs | AA38: kva over 3,000 | AB38: Total Billings(2) | AD38: 0-500,000 kwhs | AE38: 500,001-6M kwhs | AF38: > 6M kwhs | AG38: Total kwhs | AH38: kva over 3,000 | AI38: Total Billings(2) | AK38: 0-500,000 kwhs | AL38: 500,001-6M kwhs | AM38: > 6M kwhs | AN38: Total kwhs | AO38: kva over 3,000 | AP38: Total Billings(2)
A39: Total | B39: =IF($A$7="Rate Year",AD39,IF($A$7="Rate Plan 2016",AK39,'WA Sch 25'!Q25-B42)) -> 119425698.9 | C39: =IF($A$7="Rate Year",AE39,IF($A$7="Rate Plan 2016",AL39,'WA Sch 25'!R25-C42)) -> 476858085.8 | D39: =IF($A$7="Rate Year",AF39,IF($A$7="Rate Plan 2016",AM39,'WA Sch 25'!S25-D42)) -> 0 | E39: =SUM(B39:D39) -> 596283784.7 | F39: =IF($A$7="Rate Year",AH39,IF($A$7="Rate Plan 2016",AO39,'WA Sch 25'!P85-F42)) -> 513017.6616 | G39: =IF($A$7="Rate Year",AI39,IF($A$7="Rate Plan 2016",AP39,(21*12)-G42)) -> 241 | I39: =IF($A$7="Test Year",132000000,'[6]WA Sch 25'!Q25) -> 126000000 | J39: =IF($A$7="Test Year",534573579,'[6]WA Sch 25'!R25) -> 545814451 | K39: =IF($A$7="Test Year",396688780,'[6]WA Sch 25'!S25) -> 408634245.3 | L39: =SUM(I39:K39) -> 1080448696 | M39: =IF($A$7="Test Year",1258425,'[6]WA Sch 25'!P85) -> 1248234 | N39: =IF($A$7="Test Year",264,21*12) -> 252 | P39: =B39-I39 -> -6574301.053 | Q39: =C39-J39 -> -68956365.21 | R39: -408634245.3 | S39: =SUM(P39:R39) -> -484164911.6 | T39: =F39-M39 -> -735216.3384 | U39: -11 | W39: =P39/I39 -> -0.05217699249 | X39: -0.1263366426 | Y39: -1 | Z39: -0.4481146705 | AA39: -0.5890052173 | AB39: -0.04365079365 | AD39: 119425698.9 | AE39: 476858085.8 | AF39: 0 | AG39: =SUM(AD39:AF39) -> 596283784.7 | AH39: 513017.6616 | AI39: 241 | AK39: 121118712.7 | AL39: 484687353 | AM39: 0.263718009 | AN39: =SUM(AK39:AM39) -> 605806066 | AO39: 513017.6616 | AP39: 241
A41: Schedule 26(3) | B41: 0-500,000 kwhs | C41: 500,001-6M kwhs | D41: > 6M kwhs | E41: Total kwhs | F41: kva over 3,000 | G41: Total Billings(2) | I41: 0-500,000 kwhs | J41: 500,001-6M kwhs | K41: > 6M kwhs | L41: Total kwhs | M41: kva over 3,000 | N41: Total Billings(2) | P41: 0-500,000 kwhs | Q41: 500,001-6M kwhs | R41: > 6M kwhs | S41: Total kwhs | T41: kva over 3,000 | U41: Total Billings(2) | W41: 0-500,000 kwhs | X41: 500,001-6M kwhs | Y41: > 6M kwhs | Z41: Total kwhs | AA41: kva over 3,000 | AB41: Total Billings(2) | AD41: 0-500,000 kwhs | AE41: 500,001-6M kwhs | AF41: > 6M kwhs | AG41: Total kwhs | AH41: kva over 3,000 | AI41: Total Billings(2) | AK41: 0-500,000 kwhs | AL41: 500,001-6M kwhs | AM41: > 6M kwhs | AN41: Total kwhs | AO41: kva over 3,000 | AP41: Total Billings(2)
A42: Total | B42: =IF($A$7="Rate Year",AD42,IF($A$7="Rate Plan 2016",AK42,'WA Sch 25'!Q12)) -> 6000000 | C42: =IF($A$7="Rate Year",AE42,IF($A$7="Rate Plan 2016",AL42,'WA Sch 25'!R12)) -> 66000000 | D42: =IF($A$7="Rate Year",AF42,IF($A$7="Rate Plan 2016",AM42,'WA Sch 25'!S12)) -> 407842850.5 | E42: =SUM(B42:D42) -> 479842850.5 | F42: =IF($A$7="Rate Year",AH42,IF($A$7="Rate Plan 2016",AO42,'WA Sch 25'!P72)) -> 655055.3384 | G42: 12 | I42: ='WA Sch 25'!X12 -> 0 | J42: ='WA Sch 25'!Y12 -> 0 | K42: ='WA Sch 25'!Z12 -> 0 | L42: =SUM(I42:K42) -> 0 | M42: ='WA Sch 25'!W72 -> 0 | N42: 12 | P42: =B42-I42 -> 6000000 | Q42: =C42-J42 -> 66000000 | R42: =D42-K42 -> 407842850.5 | S42: =SUM(P42:R42) -> 479842850.5 | T42: =F42-M42 -> 655055.3384 | U42: =G42-N42 -> 0 | W42: =P42/I42 ->  | X42: =Q42/J42 ->  | Y42: =R42/K42 ->  | Z42: =S42/L42 ->  | AA42: =T42/M42 ->  | AB42: =U42/N42 -> 0 | AD42: 6000000 | AE42: 66000000 | AF42: 407842850.5 | AG42: =SUM(AD42:AF42) -> 479842850.5 | AH42: 655055.3384 | AI42: 12 | AK42: 6000000 | AL42: 66000000 | AM42: 412201124 | AN42: =SUM(AK42:AM42) -> 484201124 | AO42: 655055.3384 | AP42: 12
A45: Schedule 30, 31, & 32 | B45: Block 1 kwhs | C45: Block 2 kwhs | D45: Block 3 kwhs | E45: Total kwhs | F45: Total Billings(2) | G45: kvar billed(1) | I45: Block 1 kwhs | J45: Block 2 kwhs | K45: Block 3 kwhs | L45: Total kwhs | M45: Total Billings(2) | N45: kvar billed(1) | P45: Block 1 kwhs | Q45: Block 2 kwhs | R45: Block 3 kwhs | S45: Total kwhs | T45: Total Billings(2) | U45: kvar billed(1) | W45: Block 1 kwhs | X45: Block 2 kwhs | Y45: Block 3 kwhs | Z45: Total kwhs | AA45: Total Billings(2) | AB45: kvar billed(1) | AD45: Block 1 kwhs | AE45: Block 2 kwhs | AF45: Block 3 kwhs | AG45: Total kwhs | AH45: Total Billings(2) | AI45: kvar billed(1) | AK45: Block 1 kwhs | AL45: Block 2 kwhs | AM45: Block 3 kwhs | AN45: Total kwhs | AO45: Total Billings(2) | AP45: kvar billed(1)
A46: kwhs per billing run (30,31& 32)(1) | B46: =IF($A$7="Rate Year",AD46,IF($A$7="Rate Plan 2016",AK46,'Block Data'!O92)) -> 39236822.24 | C46: =IF($A$7="Rate Year",AE46,IF($A$7="Rate Plan 2016",AL46,'Block Data'!O93)) -> 10497467.28 | D46: =IF($A$7="Rate Year",AF46,IF($A$7="Rate Plan 2016",AM46,'Block Data'!O94)) -> 78193284.48 | E46: =B46+C46+D46 -> 127927574 | F46: =IF($A$7="Rate Year",AH46,IF($A$7="Rate Plan 2016",AO46,SUM('Rev Runs 12MEJUNE2013'!P18:P20)*12)) -> 29462.32367 | G46: =IF($A$7="Rate Year",AI46,IF($A$7="Rate Plan 2016",AP46,'Block Data'!O99)) -> 10292 | I46: =IF($A$7="Test Year",32797555,'[6]Block Data'!O92) -> 40146496.73 | J46: =IF($A$7="Test Year",8896000,'[6]Block Data'!O93) -> 10740842.71 | K46: =IF($A$7="Test Year",85546282,'[6]Block Data'!O94) -> 80006133.56 | L46: =I46+J46+K46 -> 130893473 | M46: =IF($A$7="Test Year",28803,SUM('[6]Rev Runs 12MEJUNE2013'!P18:P20)*12) -> 29062 | N46: =IF($A$7="Test Year",9359,'[6]Block Data'!O99) -> 10291.63636 | P46: =B46-I46 -> -909674.4993 | Q46: =C46-J46 -> -243375.4252 | R46: =D46-K46 -> -1812849.075 | S46: =SUM(P46:R46) -> -2965899 | T46: =F46-M46 -> 400.3236704 | U46: =G46-N46 -> 0.3636363636 | W46: =P46/I46 -> -0.0226588762 | X46: =Q46/J46 -> -0.0226588762 | Y46: =R46/K46 -> -0.0226588762 | Z46: -0.0226588762 | AA46: 0.01377481489 | AB46: 3.5333192e-05 | AD46: 39236822.24 | AE46: 10497467.28 | AF46: 78193284.48 | AG46: =AD46+AE46+AF46 -> 127927574 | AH46: 29462.32367 | AI46: 10292 | AK46: 39831413.53 | AL46: 10656544.96 | AM46: 79378218.51 | AN46: =AK46+AL46+AM46 -> 129866177 | AO46: 34481 | AP46: 10292
A47: Total Schs. 30,31&32 | D47: =D46 -> 78193284.48 | E47: =E46 -> 127927574 | K47: =K46 -> 80006133.56 | L47: =L46 -> 130893473 | R47: =R46 -> -1812849.075 | S47: =S46 -> -2965899 | Y47: -0.0226588762 | Z47: -0.0226588762 | AF47: =AF46 -> 78193284.48 | AG47: =AG46 -> 127927574 | AM47: =AM46 -> 79378218.51 | AN47: =AN46 -> 129866177
A48: Total kwhs per Rev. Run(2) | E48: =IF($A$7="Rate Year",AG48,IF($A$7="Rate Plan 2016",AN48,'Rev Runs 12MEJUNE2013'!P52+'Rev Runs 12MEJUNE2013'!P53+'Rev Runs 12MEJUNE2013'!P54)) -> 127927574 | L48: =IF($A$7="Test Year",123844494,'[6]Rev Runs 12MEJUNE2013'!P52+'[6]Rev Runs 12MEJUNE2013'!P53+'[6]Rev Runs 12MEJUNE2013'!P54) -> 130893473 | S48: =E48-L48 -> -2965899 | Z48: -0.0226588762 | AG48: 127927574 | AN48: 129866177
A49: Adjust kwhs to Actual | E49: =E48-E47 -> 0 | L49: =L48-L47 -> 0 | S49: =S48-S47 -> 3.725290298e-09 | AG49: =AG48-AG47 -> 0 | AN49: =AN48-AN47 -> 0
A53: (1) From workpaper PDE-E-22/23
A54: (2) From workpaper PDE-E-19
A55: (3) From workpaper PDE-E-7/8
A56: (4) From workpaper PDE-E-30
AD63: =AG12+AF20+AF31+AG39+AG48+AG42 -> 5664478189 | AK63: =AN12+AM20+AM31+AN39+AN48+AN42 -> 5723744658
AD65: 5689806233 | AK65: 5748975839
A66: Revenue Runs from this sheet | B66: =E12+D20+D31+E39+E48+E42 -> 5664478189
AD67: 0 | AE67: rev. runs too high | AK67: 0 | AL67: rev. runs too high
A68: actual Revenue Runs | B68: =IF($A$7="Rate Year",AD65,IF($A$7="Rate Plan 2016",AK65,'Rev Runs 12MEJUNE2013'!P68)) -> 5689806233
A69: less: | AD69: =AF28 -> 0 | AE69: not shown on this sheet | AK69: =AM28 -> 0 | AL69: not shown on this sheet
A70: Sch 25 Adj | B70: =IF($A$7="Rate Year",AD67,IF($A$7="Rate Plan 2016",AK67,'Rev Runs 12MEJUNE2013'!P50-'Bill Determ'!E39-E42)) -> 0 | C70: rev. runs too high | AD70: 25328044 | AE70: not shown on this sheet | AK70: 25231181 | AL70: not shown on this sheet
AD71: =AD65-SUM(AD67:AD70) -> 5664478189 | AK71: =AK65-SUM(AK67:AK70) -> 5723744658
A72: Sch shifting | B72: =D28 -> 0 | C72: not shown on this sheet | AD72: =AD63-AD71 -> 0.2782707214 | AK72: =AK63-AK71 -> -0.01591205597
A73: Schs 41-48 St & Area Lt | B73: =IF($A$7="Rate Year",AD70,IF($A$7="Rate Plan 2016",AK70,SUM('Rev Runs 12MEJUNE2013'!P55:P62))) -> 25328044 | C73: not shown on this sheet
B74: =B68-SUM(B70:B73) -> 5664478189 | AD74: 5689806233 | AK74: 5748975839
A75: Diff | B75: =B66-B74 -> 0.2782707214 | AD75: =AD63+AD70+AD69 -> 5689806233 | AK75: =AK63+AK70+AK69 -> 5748975839
AD76: =AD74-AD75 -> -0.2782707214 | AK76: =AK74-AK75 -> 0.01591205597
A77: from Present Rev tab | B77: =IF($A$7="Rate Year",AD74,IF($A$7="Rate Plan 2016",AK74,'Pres & Prop Rev'!C20-'Pres & Prop Rev'!C15)) -> 5689806233
A78: this sheet + SAL | B78: =B66+B73+B72 -> 5689806233
A79: Diff | B79: =B77-B78 -> -0.2782707214
A82: Rev. Run customers | B82: =IF($A$7="Rate Year",AD82,IF($A$7="Rate Plan 2016",AK82,'Rev Runs 12MEJUNE2013'!P34*12)) -> 2917774.324 | AD82: =AH11+AH19+AH30+AI39+AI42+AH46 -> 2917774.324 | AK82: =AO11+AO19+AO30+AP39+AP42+AO46 -> 2952865
A83: less:
A84: normalize Sch 25 | B84: =IF($A$7="Rate Year",AD84,IF($A$7="Rate Plan 2016",AK84,('Rev Runs 12MEJUNE2013'!P16*12)-G39-G42)) -> 0 | C84: rev. runs too high | AD84: 0 | AE84: rev. runs too high | AK84: 0 | AL84: rev. runs too high
A85: Sch Shifting | B85: =-F28 -> 0 | C85: not shown on this sheet | AD85: =-AH28 -> 0 | AE85: not shown on this sheet | AK85: =-AO28 -> 0 | AL85: not shown on this sheet
A86: Schs 41-48 St & Area Lt | B86: =IF($A$7="Rate Year",AD86,IF($A$7="Rate Plan 2016",AK86,SUM('Rev Runs 12MEJUNE2013'!P21:P28)*12)) -> 4503 | C86: not shown on this sheet | AD86: =SUM('Rev Runs 12MEJUNE2013'!P21:P28)*12 -> 4503 | AE86: not shown on this sheet | AK86: =SUM('Rev Runs 12MEJUNE2013'!P21:P28)*12 -> 4503 | AL86: not shown on this sheet
B87: =B82-SUM(B83:B86) -> 2913271.324 | AD87: =AD82-SUM(AD83:AD86) -> 2913271.324 | AK87: =AK82-SUM(AK83:AK86) -> 2948362
A89: from Present Rev tab | B89: =IF($A$7="Rate Year",AD89,IF($A$7="Rate Plan 2016",AK89,SUM('Pres & Prop Rev'!D25:I25))) -> 2913271.324 | AD89: =AD87 -> 2913271.324 | AK89: =AK87 -> 2948362
A90: Diff | B90: =B87-B89 -> 0 | AD90: =AD87-AD89 -> 0 | AK90: =AK87-AK89 -> 0

Sheet Lighting summary (hidden)
B1: AVISTA UTILITIES
B2: WASHINGTON ELECTRIC
B3: STREET & AREA LIGHT REVENUE UNDER PRESENT & PROPOSED RATES
B4: 12 MONTHS ENDED JUNE 30, 2013
C7: ="Present "&IF(Base1_Billing2=2,"Billing ","")&"Rates(1)" -> Present Rates(1) | D7: ="Present "&IF(Base1_Billing2=2,"Billing","")&" Rates" -> Present Rates | F7: ="Proposed "&IF(Base1_Billing2=2,"Billing ","")&"Rates(2)" -> Proposed Rates(2) | G7: ="Proposed "&IF(Base1_Billing2=2,"Billing ","")&"Rates" -> Proposed Rates | I7: % Revenue Change
C8: Monthly | D8: Annual | F8: Monthly | G8: Annual | L8: Target Base | O8: Present | P8: Proposed
C9: Revenue | D9: Revenue | F9: Revenue | G9: Revenue | I9: Base Rates | J9: Billing Rates | L9: % Change | N9: kWh's | O9: kWh Rate | P9: kWh Rate
B11: Schedule 41 | C11: ='St Lts'!Y$54*IF(Base1_Billing2=2,1+$I$39,1) -> 1977.33 | D11: =C11*12 -> 23727.96 | F11: ='St Lts'!AQ$54*IF(Base1_Billing2=2,1+$D$39,1) -> 1977.33 | G11: =F11*12 -> 23727.96 | I11: =G11/D11-1 -> 0 | J11: 0 | L11: 0
B12: Schedule 42 | C12: ='St Lts'!Z$54*IF(Base1_Billing2=2,1+$I$39,1) -> 371887.73 | D12: =C12*12 -> 4462652.76 | F12: ='St Lts'!AR$54*IF(Base1_Billing2=2,1+$D$39,1) -> 382879.91 | G12: =F12*12 -> 4594558.92 | I12: =G12/D12-1 -> 0.02955779154 | J12: 0.02955779154 | L12: =L11 -> 0
B13: Schedule 44 | C13: ='St Lts'!AA$54*IF(Base1_Billing2=2,1+$I$39,1) -> 3168.94 | D13: 38027.28 | F13: ='St Lts'!AS$54*IF(Base1_Billing2=2,1+$D$39,1) -> 3168.94 | G13: =F13*12 -> 38027.28 | I13: 0 | J13: 0 | L13: =L11 -> 0
B14: Schedule 45 | C14: ='St Lts'!AB$54*IF(Base1_Billing2=2,1+$I$39,1) -> 6185.96 | D14: 74231.52 | F14: ='St Lts'!AT$54*IF(Base1_Billing2=2,1+$D$39,1) -> 6185.96 | G14: 74231.52 | I14: =G14/D14-1 -> 0 | J14: 0 | L14: =L11 -> 0
B15: Schedule 46 | C15: ='St Lts'!AC$54*IF(Base1_Billing2=2,1+$I$39,1) -> 13845.74 | D15: 166148.88 | F15: ='St Lts'!AU$54*IF(Base1_Billing2=2,1+$D$39,1) -> 13845.74 | G15: 166148.88 | I15: 0 | J15: 0 | L15: =L11 -> 0 | N15: ='Rev Runs 12MEJUNE2013'!P60 -> 1668234 | O15: =D15/N15 -> 0.09959566823 | P15: =G15/N15 -> 0.09959566823
B16: Schedule 47 | C16: =IF(Base1_Billing2=1,'Area Lts'!S40,'Area Lts'!S49) -> 108945.92 | D16: 1307351.04 | F16: =IF(Base1_Billing2=1,'Area Lts'!AG40,'Area Lts'!AG49) -> 108945.92 | G16: 1307351.04 | I16: 0 | J16: -0.01366663517 | L16: =L11 -> 0
B17: Schedule 48 | C17: =IF(Base1_Billing2=1,'Area Lts'!T40,'Area Lts'!T49) -> 66551.94002 | D17: 798623.2803 | F17: =IF(Base1_Billing2=1,'Area Lts'!AH40,'Area Lts'!AH49) -> 66551.94005 | G17: 798623.2806 | I17: 4.056983638e-10 | J17: 4.088425154e-10 | L17: =L11 -> 0
B19: Total | C19: =SUM(C11:C17) -> 572563.56 | D19: =SUM(D11:D17) -> 6870762.72 | F19: =SUM(F11:F17) -> 583555.7401 | G19: =SUM(G11:G17) -> 7002668.881 | I19: =G19/D19-1 -> 0.01919818304 | J19: 0.01661258092 | L19: =L11 -> 0
C20: =ROUND(C19-CHOOSE(Base1_Billing2,'St Lts'!AC56+'Area Lts'!T41,'St Lts'!AC62+'Area Lts'!T50),0) -> 0 | F20: =ROUND(F19-CHOOSE(Base1_Billing2,'St Lts'!AU55+'Area Lts'!AH41,'St Lts'!AU61+'Area Lts'!AH50),0) -> 0 | L20: =I19-L19 -> 0.01919818304
B21: Sch 46 Per kWh Rate | D21: =D15/N15 -> 0.09959566823 | G21: =G15/N15 -> 0.09959566823
B23: (1) from PDE-E-12/14
B24: (2) from PDE-E-13/14
C26: Billed | D26: =D19*(1+I39)+'Area Lts'!T48*12 -> 7139892.225 | F26: b4 Sch 91 | G26: =G19*(1+J39)+'Area Lts'!AH48*12 -> 7277087.823 | I26: =G26/D26-1 -> 0.0192153597 | K26: =G26-D26 -> 137195.5974
C27: Diff | D27: =D26-D19 -> 269129.5051 | F27: b4 Sch 91 | G27: =G26-G19 -> 274418.9421
C28: Pres 91 | D28: =D$19*(I36+I37) -> 275517.5851 | F28: 91 b4 Sch 91 | G28: =G$19*(J36+J37) -> 280807.0221
C29: Pres 93 | D29: =D$19*I38 -> 0 | F29: 93 b4 Sch 91 | G29: =G$19*J38 -> 0
C30: add'l 91 | D30: =D28*($L$36+L37) -> 0
C31: Billed | D31: =D26 -> 7139892.225 | F31: w/Sch 91 | G31: =G19*(1+D39)+'Area Lts'!AH48*12 -> 7277087.823 | I31: =G31/D31-1 -> 0.0192153597 | K31: =G31-D26 -> 137195.5974 | L31: =K31-J$19 -> 137195.5807
J34: Revised
D35: Proposed | I35: Present | J35: Present | K35: Proposed
D36: =K36 -> 0.0313 | G36: Sch 91-DSM | I36: 0.0313 | J36: =(L19+(1+I36))/(1+L19)-1 -> 0.0313 | K36: =J36*(1+L36) -> 0.0313 | L36: 0
D37: =K37 -> 0.0088 | G37: Sch 91-LIRAP | I37: 0.0088 | J37: =(L19+(1+I37))/(1+L19)-1 -> 0.0088 | K37: =J37*(1+L37) -> 0.0088 | L37: 0 | M37: Reflects additional LIRAP funding
D38: =K38 -> 0 | G38: Sch 93 - surch | I38: 0 | J38: =(L19+(1+I38))/(1+L19)-1 -> 0 | K38: =J38*(1+$L$38) -> 0 | L38: 0
D39: =D36+D37+D38 -> 0.0401 | G39: Total adder | I39: =I36+I37+I38 -> 0.0401 | J39: =J36+J37+J38 -> 0.0401 | K39: =K36+K37+K38 -> 0.0401
B42: copy of Total above | C42: 488916.6501 | D42: 5866999.801 | F42: 556466.5401 | G42: 6677598.481
B43: diff from curr Total above | C43: =C19-C42 -> 83646.90997 | D43: =D19-D42 -> 1003762.92 | F43: =F19-F42 -> 27089.2 | G43: =G19-G42 -> 325070.4
B44: % diff | C44: =C43/C42 -> 0.1710862372 | D44: =D43/D42 -> 0.1710862372 | F44: =F43/F42 -> 0.04868073469 | G44: =G43/G42 -> 0.04868073469

Sheet Bill Comparison
A1: Line No. | B1: (a) | C1: (b) | D1: (c) | F1: (d) | G1: (e) | I1: (f) | J1: (g)
A2: 1 | B2: Bill Comparison
A3: 2 | B3: Schedule 1 - Residential
A4: 3 | C4: Current | F4: Proposed | I4: Revised | O4: 3/4-inch | P4: 0.75
A5: 4 | B5: Customer Count | C5: ='Bill Determ'!F11/12 -> 207849.75 | F5: =C5 -> 207849.75 | I5: =F5 -> 207849.75 | O5: 1-inch | P5: 1
A6: 5 | B6: Base | C6: ='Rate Design'!D4 -> 8 | F6: 15 | I6: ='Rate Design'!D26 -> 8.5 | O6: 1 1/2-inch | P6: 1.5
A7: 6 | B7: Allowance | C7: 0 | F7: 0 | I7: 0 | O7: 2-inch | P7: 2
A8: 7 | B8: Rate 1 | C8: ='Rate Design'!D15/100 -> 0.07265 | F8: 0.07056 | I8: ='Rate Design'!D37/100 -> 0.07142027448 | O8: 3-inch | P8: 3
A9: 8 | B9: Rate 2 | C9: ='Rate Design'!D16/100 -> 0.08469 | F9: 0.08202 | I9: ='Rate Design'!D38/100 -> 0.08286027448 | O9: 4-inch | P9: 4
A10: 9 | B10: Rate 3 | C10: ='Rate Design'!D17/100 -> 0.09946 | F10: 0.09605 | I10: ='Rate Design'!D39/100 -> 0.1019402745 | O10: 6-inch | P10: 6
A11: 10 | B11: Block 1 | C11: ='Rate Design'!O5 -> 800 | F11: =C11 -> 800 | I11: =F11 -> 800
A12: 11 | B12: Block 2 | C12: ='Rate Design'!O6 -> 1500 | F12: =C12 -> 1500 | I12: =F12 -> 1500
A13: 12 | B13: Block 3 (Over) | C13: =C12+1 -> 1501 | F13: =F12+1 -> 1501 | I13: =I12+1 -> 1501
A14: 13 | B14: Usage Per kWh | C14: 1 | F14: 1 | I14: 1
A15: 14
A16: 15 | B16: =B14 -> Usage Per kWh | C16: Current Monthly Bill | D16: Proposed vs. Current | F16: Proposed Monthly Bill | G16: Revised vs. Proposed | I16: Revised Monthly Bill | J16: Revised vs. Current
A17: 16 | B17: 0 | C17: =(($C$6)+(IF($B17<$C$7,0,((IF(($B17-$C$7)>$C$11,($C$11/$C$14*$C$8),(IF(($B17-$C$7)>$C$11,$C$11,+($B17-$C$7)))/$C$14*$C$8)))+((IF(($B17-$C$7)>$C$12,(((($C$12-$C$11)/$C$14)*$C$9)),((IF(($B17-$C$7)>($C$12),($C$12-$C$11),(+($B17-$C$7)-(IF(($B17-$C$7)>$C$11,$C$11,+($B17-$C$7)))))))/$C$14*$C$9)))+((IF((IF(($B17-$C$7)>($C$13),($B17-$C$7)-($C$12),0))<1,0,(IF(($B17-$C$7)>($C$13),($B17-$C$7)-($C$12),0))/$C$14*$C$10)))))) -> 8 | D17: =(F17-C17)/C17 -> 0.875 | F17: =(($F$6)+(IF($B17<$F$7,0,((IF(($B17-$F$7)>$F$11,($F$11/$F$14*$F$8),(IF(($B17-$F$7)>$F$11,$F$11,+($B17-$F$7)))/$F$14*$F$8)))+((IF(($B17-$F$7)>$F$12,(((($F$12-$F$11)/$F$14)*$F$9)),((IF(($B17-$F$7)>($F$12),($F$12-$F$11),(+($B17-$F$7)-(IF(($B17-$F$7)>$F$11,$F$11,+($B17-$F$7)))))))/$F$14*$F$9)))+((IF((IF(($B17-$F$7)>($F$13),($B17-$F$7)-($F$12),0))<1,0,(IF(($B17-$F$7)>($F$13),($B17-$F$7)-($F$12),0))/$F$14*$F$10)))))) -> 15 | G17: =(I17-F17)/F17 -> -0.4333333333 | I17: =(($I$6)+(IF($B17<$I$7,0,((IF(($B17-$I$7)>$I$11,($I$11/$I$14*$I$8),(IF(($B17-$I$7)>$I$11,$I$11,+($B17-$I$7)))/$I$14*$I$8)))+((IF(($B17-$I$7)>$I$12,(((($I$12-$I$11)/$I$14)*$I$9)),((IF(($B17-$I$7)>($I$12),($I$12-$I$11),(+($B17-$I$7)-(IF(($B17-$I$7)>$I$11,$I$11,+($B17-$I$7)))))))/$I$14*$I$9)))+((IF((IF(($B17-$I$7)>($I$13),($B17-$I$7)-($I$12),0))<1,0,(IF(($B17-$I$7)>($I$13),($B17-$I$7)-($I$12),0))/$I$14*$I$10)))))) -> 8.5 | J17: =(+I17-C17)/C17 -> 0.0625
A18: 17 | B18: 50 | C18: =(($C$6)+(IF($B18<$C$7,0,((IF(($B18-$C$7)>$C$11,($C$11/$C$14*$C$8),(IF(($B18-$C$7)>$C$11,$C$11,+($B18-$C$7)))/$C$14*$C$8)))+((IF(($B18-$C$7)>$C$12,(((($C$12-$C$11)/$C$14)*$C$9)),((IF(($B18-$C$7)>($C$12),($C$12-$C$11),(+($B18-$C$7)-(IF(($B18-$C$7)>$C$11,$C$11,+($B18-$C$7)))))))/$C$14*$C$9)))+((IF((IF(($B18-$C$7)>($C$13),($B18-$C$7)-($C$12),0))<1,0,(IF(($B18-$C$7)>($C$13),($B18-$C$7)-($C$12),0))/$C$14*$C$10)))))) -> 11.6325 | D18: =(F18-C18)/C18 -> 0.5927788524 | F18: =(($F$6)+(IF($B18<$F$7,0,((IF(($B18-$F$7)>$F$11,($F$11/$F$14*$F$8),(IF(($B18-$F$7)>$F$11,$F$11,+($B18-$F$7)))/$F$14*$F$8)))+((IF(($B18-$F$7)>$F$12,(((($F$12-$F$11)/$F$14)*$F$9)),((IF(($B18-$F$7)>($F$12),($F$12-$F$11),(+($B18-$F$7)-(IF(($B18-$F$7)>$F$11,$F$11,+($B18-$F$7)))))))/$F$14*$F$9)))+((IF((IF(($B18-$F$7)>($F$13),($B18-$F$7)-($F$12),0))<1,0,(IF(($B18-$F$7)>($F$13),($B18-$F$7)-($F$12),0))/$F$14*$F$10)))))) -> 18.528 | G18: =(I18-F18)/F18 -> -0.3484988275 | I18: =(($I$6)+(IF($B18<$I$7,0,((IF(($B18-$I$7)>$I$11,($I$11/$I$14*$I$8),(IF(($B18-$I$7)>$I$11,$I$11,+($B18-$I$7)))/$I$14*$I$8)))+((IF(($B18-$I$7)>$I$12,(((($I$12-$I$11)/$I$14)*$I$9)),((IF(($B18-$I$7)>($I$12),($I$12-$I$11),(+($B18-$I$7)-(IF(($B18-$I$7)>$I$11,$I$11,+($B18-$I$7)))))))/$I$14*$I$9)))+((IF((IF(($B18-$I$7)>($I$13),($B18-$I$7)-($I$12),0))<1,0,(IF(($B18-$I$7)>($I$13),($B18-$I$7)-($I$12),0))/$I$14*$I$10)))))) -> 12.07101372 | J18: =(+I18-C18)/C18 -> 0.03769728984
A19: 18 | B19: 100 | C19: =(($C$6)+(IF($B19<$C$7,0,((IF(($B19-$C$7)>$C$11,($C$11/$C$14*$C$8),(IF(($B19-$C$7)>$C$11,$C$11,+($B19-$C$7)))/$C$14*$C$8)))+((IF(($B19-$C$7)>$C$12,(((($C$12-$C$11)/$C$14)*$C$9)),((IF(($B19-$C$7)>($C$12),($C$12-$C$11),(+($B19-$C$7)-(IF(($B19-$C$7)>$C$11,$C$11,+($B19-$C$7)))))))/$C$14*$C$9)))+((IF((IF(($B19-$C$7)>($C$13),($B19-$C$7)-($C$12),0))<1,0,(IF(($B19-$C$7)>($C$13),($B19-$C$7)-($C$12),0))/$C$14*$C$10)))))) -> 15.265 | D19: 0.4448738945 | F19: =(($F$6)+(IF($B19<$F$7,0,((IF(($B19-$F$7)>$F$11,($F$11/$F$14*$F$8),(IF(($B19-$F$7)>$F$11,$F$11,+($B19-$F$7)))/$F$14*$F$8)))+((IF(($B19-$F$7)>$F$12,(((($F$12-$F$11)/$F$14)*$F$9)),((IF(($B19-$F$7)>($F$12),($F$12-$F$11),(+($B19-$F$7)-(IF(($B19-$F$7)>$F$11,$F$11,+($B19-$F$7)))))))/$F$14*$F$9)))+((IF((IF(($B19-$F$7)>($F$13),($B19-$F$7)-($F$12),0))<1,0,(IF(($B19-$F$7)>($F$13),($B19-$F$7)-($F$12),0))/$F$14*$F$10)))))) -> 22.056 | G19: -0.2908039786 | I19: =(($I$6)+(IF($B19<$I$7,0,((IF(($B19-$I$7)>$I$11,($I$11/$I$14*$I$8),(IF(($B19-$I$7)>$I$11,$I$11,+($B19-$I$7)))/$I$14*$I$8)))+((IF(($B19-$I$7)>$I$12,(((($I$12-$I$11)/$I$14)*$I$9)),((IF(($B19-$I$7)>($I$12),($I$12-$I$11),(+($B19-$I$7)-(IF(($B19-$I$7)>$I$11,$I$11,+($B19-$I$7)))))))/$I$14*$I$9)))+((IF((IF(($B19-$I$7)>($I$13),($B19-$I$7)-($I$12),0))<1,0,(IF(($B19-$I$7)>($I$13),($B19-$I$7)-($I$12),0))/$I$14*$I$10)))))) -> 15.64202745 | J19: 0.02469881744
A20: 19 | B20: 150 | C20: 18.8975 | D20: 0.3538298717 | F20: 25.584 | G20: -0.2490212175 | I20: 19.21304117 | J20: 0.01669750879
A21: 20 | B21: 200 | C21: 22.53 | D21: 0.2921438083 | F21: 29.112 | G21: -0.2173655229 | I21: 22.7840549 | J21: 0.01127629367
A22: 21 | B22: 250 | C22: 26.1625 | D22: 0.2475871954 | F22: 32.64 | G22: -0.1925530447 | I22: 26.35506862 | J22: 0.007360482388
A23: 22 | B23: 300 | C23: 29.795 | D23: 0.2138949488 | F23: 36.168 | G23: -0.1725812225 | I23: 29.92608234 | J23: 0.004399474561
A24: 23 | B24: 350 | C24: 33.4275 | D24: 0.1875252412 | F24: 39.696 | G24: -0.1561594098 | I24: 33.49709607 | J24: 0.002082000408
A25: 24 | B25: 400 | C25: 37.06 | D25: 0.1663248786 | F25: 43.224 | G25: -0.1424183372 | I25: 37.06810979 | J25: 0.0002188287303
A26: 25 | B26: 450 | C26: 40.6925 | D26: 0.1489095042 | F26: 46.752 | G26: -0.1307511226 | I26: 40.63912352 | J26: -0.001311703217
A27: 26 | B27: 500 | C27: 44.325 | D27: 0.1343485618 | F27: 50.28 | G27: -0.1207212164 | I27: 44.21013724 | J27: -0.002591376403
A28: 27 | B28: 550 | C28: 47.9575 | D28: 0.1219934317 | F28: 53.808 | G28: -0.112006561 | I28: 47.78115097 | J28: -0.003677194078
A29: 28 | B29: 600 | C29: 51.59 | D29: 0.1113781741 | F29: 57.336 | G29: -0.1043643664 | I29: 51.35216469 | J29: -0.004610104882
A30: 29 | B30: 650 | C30: 55.2225 | D30: 0.1021594459 | F30: 60.864 | G30: -0.09760813596 | I30: 54.92317841 | J30: -0.00542028316
A31: 30 | B31: 700 | C31: 58.855 | D31: 0.09407866791 | F31: 64.392 | G31: -0.09159224535 | I31: 58.49419214 | J31: -0.006130453873
A32: 31 | B32: 750 | C32: 62.4875 | D32: 0.08693738748 | F32: 67.92 | G32: -0.08620132713 | I32: 62.06520586 | J32: -0.006758057829
A33: 32 | B33: 800 | C33: 66.12 | D33: 0.08058076225 | F33: 71.448 | G33: -0.08134280056 | I33: 65.63621959 | J33: -0.007316703184 | V33: Avg.
A34: 33 | B34: 850 | C34: 70.3545 | D34: 0.07383323028 | F34: 75.549 | G34: -0.07637118546 | I34: 69.77923331 | J34: -0.008176686501 | V34: 965
A35: 34 | B35: 900 | C35: 74.589 | D35: 0.06785182802 | F35: 79.65 | G35: -0.071911525 | I35: 73.92224703 | J35: -0.00893902541
A36: 35 | B36: 950 | C36: 78.8235 | D36: 0.06251308303 | F36: 83.751 | G36: -0.06788861318 | I36: 78.06526076 | J36: -0.009619456662 | U36: =I17/I36 -> 0.1088832589 | V36: =I36-C36 -> -0.7582392422
A37: 36 | B37: 1000 | C37: 83.058 | D37: 0.05771870259 | F37: 87.852 | G37: -0.06424128669 | I37: 82.20827448 | J37: -0.01023050782 | U37: =I17/I37 -> 0.1033959179 | V37: =I37-C37 -> -0.8497255181
A38: 37 | B38: 1100 | C38: 91.527 | D38: 0.04946081484 | F38: 96.054 | G38: -0.05788096352 | I38: 90.49430193 | J38: -0.0112829883
A39: 38 | B39: 1200 | C39: 99.996 | D39: 0.04260170407 | F39: 104.256 | G39: -0.05252139562 | I39: 98.78032938 | J39: -0.01215719251
A40: 39 | B40: 1300 | C40: 108.465 | D40: 0.03681371871 | F40: 112.458 | G40: -0.04794361605 | I40: 107.0663568 | J40: -0.01289488013
A41: 40 | B41: 1400 | C41: 116.934 | D41: 0.03186412848 | F41: 120.66 | G41: -0.04398819597 | I41: 115.3523843 | J41: -0.01352571301
A42: 41 | B42: 1500 | C42: 125.403 | D42: 0.02758307218 | F42: 128.862 | G42: -0.04053629679 | I42: 123.6384117 | J42: -0.01407134022
A43: 42 | B43: 1600 | C43: 135.349 | D43: 0.02303674205 | F43: 138.467 | G43: -0.03347050798 | I43: 133.8324392 | J43: -0.01120481739
A44: 43 | B44: 1700 | C44: 145.295 | D44: 0.0191128394 | F44: 148.072 | G44: -0.02732139352 | I44: 144.0264666 | J44: -0.008730743528
A45: 44 | B45: 1800 | C45: 155.241 | D45: 0.01569173092 | F45: 157.677 | G45: -0.0219214339 | I45: 154.2204941 | J45: -0.006573688218
A46: 45 | B46: 1900 | C46: 165.187 | D46: 0.01268259609 | F46: 167.282 | G46: -0.01714158418 | I46: 164.4145215 | J46: -0.004676387878
A47: 46 | B47: 2000 | C47: 175.133 | D47: 0.01001524556 | F47: 176.887 | G47: -0.01288082808 | I47: 174.608549 | J47: -0.002994587178
A48: 47 | B48: 2100 | C48: 185.079 | D48: 0.007634577667 | F48: 186.492 | G48: -0.009058960106 | I48: 184.8025764 | J48: -0.001493543774
A49: 48 | B49: 2200 | C49: 195.025 | D49: 0.005496731188 | F49: 196.097 | G49: -0.005611488905 | I49: 194.9966039 | J49: -0.0001456025632
A50: 49 | B50: 2300 | C50: 204.971 | D50: 0.003566358168 | F50: 205.702 | G50: -0.002485968497 | I50: 205.1906313 | J50: 0.001071523817
A51: 50 | B51: 2600 | C51: 234.809 | D51: -0.001243563918 | F51: 234.517 | G51: 0.005354467492 | I51: 235.7727137 | J51: 0.004104244952
A52: 51 | B52: 2800 | C52: 254.701 | D52: -0.003824091778 | F52: 253.727 | G52: 0.009592075535 | I52: 256.1607685 | J52: 0.005731302779
A53: 52 | B53: 3000 | C53: 274.593 | D53: -0.006030743682 | F53: 272.937 | G53: 0.01323317632 | I53: 276.5488234 | J53: 0.007122626744
A54: 53 | B54: 3200 | C54: 294.485 | D54: -0.007939283834 | F54: 292.147 | G54: 0.01639543908 | I54: 296.9368783 | J54: 0.008325987205
A55: 54 | B55: 3400 | C55: 314.377 | D55: -0.009606300715 | F55: 311.357 | G55: 0.01916749339 | I55: 317.3249332 | J55: 0.009377063966
A56: 55 | B56: 3600 | C56: 334.269 | D56: -0.01107491272 | F56: 330.567 | G56: 0.02161736693 | I56: 337.7129881 | J56: 0.01030304376
A57: 56 | B57: 3800 | C57: 354.161 | D57: -0.012378551 | F57: 349.777 | G57: 0.02379814291 | I57: 358.101043 | J57: 0.01112500538
A58: 57 | B58: 4000 | C58: 374.053 | D58: -0.01354353527 | F58: 368.987 | G58: 0.02575185014 | I58: 378.4890979 | J58: 0.01185954377
A59: 58 | B59: 4200 | C59: 393.945 | D59: -0.01459086928 | F59: 388.197 | G59: 0.02751219825 | I59: 398.8771528 | J59: 0.01251990208
A60: 59 | B60: 4400 | C60: 413.837 | D60: -0.01553751839 | F60: 407.407 | G60: 0.02910653897 | I60: 419.2652077 | J60: 0.01311677719
A61: 60 | B61: 4600 | C61: 433.729 | D61: -0.01639733566 | F61: 426.617 | G61: 0.03055729757 | I61: 439.6532626 | J61: 0.01365890364
A62: 61 | B62: 4800 | C62: 453.621 | D62: -0.01718174423 | F62: 445.827 | G62: 0.03188303426 | I62: 460.0413175 | J62: 0.01415348388
A63: 62 | B63: 5300 | C63: 503.351 | D63: -0.01887152305 | F63: 493.852 | G63: 0.03474614815 | I63: 511.0114548 | J63: 0.01521891236
A64: 63 | B64: 5800 | C64: 553.081 | D64: -0.02025743065 | F64: 541.877 | G64: 0.03710176294 | I64: 561.981592 | J64: 0.0160927459
A65: 64 | B65: 6300 | C65: 602.811 | D65: -0.02141467226 | F65: 589.902 | G65: 0.03907382792 | I65: 612.9517292 | J65: 0.01682240244
A66: 65 | B66: 6800 | C66: 652.541 | D66: -0.02239552764 | F66: 637.927 | G66: 0.04074896732 | I66: 663.9218665 | J66: 0.01744084506
A67: 66 | B67: 7300 | C67: 702.271 | D67: -0.02323746816 | F67: 685.952 | G67: 0.04218954638 | I67: 714.8920037 | J67: 0.01797169998
A68: 67 | B68: 7800 | C68: 752.001 | D68: -0.02396805323 | F68: 733.977 | G68: 0.04344160779 | I68: 765.862141 | J68: 0.01843234378
A69: 68 | B69: 8300 | C69: 801.731 | D69: -0.02460800443 | F69: 782.002 | G69: 0.04453988378 | I69: 816.8322782 | J69: 0.0188358417
A70: 69 | B70: 8800 | C70: 851.461 | D70: -0.0251732023 | F70: 830.027 | G70: 0.04551106824 | I70: 867.8024154 | J70: 0.01919220662
A71: 70 | B71: 9300 | C71: 901.191 | D71: -0.02567602206 | F71: 878.052 | G71: 0.04637601495 | I71: 918.7725527 | J71: 0.01950924131
A72: 71 | B72: 9800 | C72: 950.921 | D72: -0.02612625024 | F72: 926.077 | G72: 0.04715125192 | I72: 969.7426899 | J72: 0.01979311628
A73: 72 | B73: 10300 | C73: 1000.651 | D73: -0.02653172785 | F73: 974.102 | G73: 0.0478500477 | I73: 1020.712827 | J73: 0.02004877541
A74: 73 | B74: 10800 | C74: 1050.381 | D74: -0.026898811 | F74: 1022.127 | G74: 0.04848317714 | I74: 1071.682964 | J74: 0.02028022632
A75: 74 | B75: 11300 | C75: 1100.111 | D75: -0.02723270652 | F75: 1070.152 | G75: 0.04905948094 | I75: 1122.653102 | J75: 0.02049075197
A76: 75 | B76: 11800 | C76: 1149.841 | D76: -0.02753772043 | F76: 1118.177 | G76: 0.04958628096 | I76: 1173.623239 | J76: 0.02068306739
A77: 76 | B77: 12300 | C77: 1199.571 | D77: -0.02781744474 | F77: 1166.202 | G77: 0.05006969301 | I77: 1224.593376 | J77: 0.02085943735
A78: 77 | B78: 12800 | C78: 1249.301 | D78: -0.02807489948 | F78: 1214.227 | G78: 0.05051486532 | I78: 1275.563513 | J78: 0.02102176607
A79: 78 | B79: 13300 | C79: 1299.031 | D79: -0.02831264227 | F79: 1262.252 | G79: 0.05092616261 | I79: 1326.533651 | J79: 0.02117166612
A80: 79 | B80: 13800 | C80: 1348.761 | D80: -0.02853285349 | F80: 1310.277 | G80: 0.05130730971 | I80: 1377.503788 | J80: 0.02131051228
A81: 80 | B81: 14300 | C81: 1398.491 | D81: -0.02873740339 | F81: 1358.302 | G81: 0.05166150465 | I81: 1428.473925 | J81: 0.02143948377
A82: 81 | B82: 14800 | C82: 1448.221 | D82: =(F82-C82)/C82 -> -0.02892790534 | F82: 1406.327 | G82: =(I82-F82)/F82 -> 0.05199150861 | I82: 1479.444062 | J82: =(+I82-C82)/C82 -> 0.02155959783
A83: 82 | B83: 15300 | C83: =(($C$6)+(IF($B83<$C$7,0,((IF(($B83-$C$7)>$C$11,($C$11/$C$14*$C$8),(IF(($B83-$C$7)>$C$11,$C$11,+($B83-$C$7)))/$C$14*$C$8)))+((IF(($B83-$C$7)>$C$12,(((($C$12-$C$11)/$C$14)*$C$9)),((IF(($B83-$C$7)>($C$12),($C$12-$C$11),(+($B83-$C$7)-(IF(($B83-$C$7)>$C$11,$C$11,+($B83-$C$7)))))))/$C$14*$C$9)))+((IF((IF(($B83-$C$7)>($C$13),($B83-$C$7)-($C$12),0))<1,0,(IF(($B83-$C$7)>($C$13),($B83-$C$7)-($C$12),0))/$C$14*$C$10)))))) -> 1497.951 | D83: -0.02910575847 | F83: =(($F$6)+(IF($B83<$F$7,0,((IF(($B83-$F$7)>$F$11,($F$11/$F$14*$F$8),(IF(($B83-$F$7)>$F$11,$F$11,+($B83-$F$7)))/$F$14*$F$8)))+((IF(($B83-$F$7)>$F$12,(((($F$12-$F$11)/$F$14)*$F$9)),((IF(($B83-$F$7)>($F$12),($F$12-$F$11),(+($B83-$F$7)-(IF(($B83-$F$7)>$F$11,$F$11,+($B83-$F$7)))))))/$F$14*$F$9)))+((IF((IF(($B83-$F$7)>($F$13),($B83-$F$7)-($F$12),0))<1,0,(IF(($B83-$F$7)>($F$13),($B83-$F$7)-($F$12),0))/$F$14*$F$10)))))) -> 1454.352 | G83: 0.05229971807 | I83: =(($I$6)+(IF($B83<$I$7,0,((IF(($B83-$I$7)>$I$11,($I$11/$I$14*$I$8),(IF(($B83-$I$7)>$I$11,$I$11,+($B83-$I$7)))/$I$14*$I$8)))+((IF(($B83-$I$7)>$I$12,(((($I$12-$I$11)/$I$14)*$I$9)),((IF(($B83-$I$7)>($I$12),($I$12-$I$11),(+($B83-$I$7)-(IF(($B83-$I$7)>$I$11,$I$11,+($B83-$I$7)))))))/$I$14*$I$9)))+((IF((IF(($B83-$I$7)>($I$13),($B83-$I$7)-($I$12),0))<1,0,(IF(($B83-$I$7)>($I$13),($B83-$I$7)-($I$12),0))/$I$14*$I$10)))))) -> 1530.4142 | J83: 0.02167173664
A84: 83 | B84: 15800 | C84: 1547.681 | D84: -0.02927218206 | F84: 1502.377 | G84: 0.05258822307 | I84: 1581.384337 | J84: 0.02177666897
A85: 84 | B85: 16300 | C85: 1597.411 | D85: -0.02942824358 | F85: 1550.402 | G85: 0.05285885471 | I85: 1632.354474 | J85: 0.02187506788
A86: 85 | B86: 16800 | C86: 1647.141 | D86: -0.02957488157 | F86: 1598.427 | G86: 0.053113224 | I86: 1683.324611 | J86: 0.02196752512
A87: 86 | B87: 17300 | C87: 1696.871 | D87: -0.02971292455 | F87: 1646.452 | G87: 0.053352754 | I87: 1734.294749 | J87: 0.0220545631
A88: 87 | B88: 17800 | C88: 1746.601 | D88: -0.0298431067 | F88: 1694.477 | G88: 0.05357870645 | I88: 1785.264886 | J88: 0.0221366447
A89: 88 | B89: 18300 | C89: 1796.331 | D89: -0.02996608086 | F89: 1742.502 | G89: 0.05379220398 | I89: 1836.235023 | J89: 0.02221418158
A90: 89 | B90: 18800 | C90: 1846.061 | D90: -0.03008242956 | F90: 1790.527 | G90: 0.05399424877 | I90: 1887.20516 | J90: 0.02228754102
A91: 90 | B91: 19300 | C91: 1895.791 | D91: -0.03019267419 | F91: 1838.552 | G91: 0.05418573829 | I91: 1938.175298 | J91: 0.02235705175
A92: 91 | B92: 19800 | C92: 1945.521 | D92: -0.03029728284 | F92: 1886.577 | G92: 0.05436747864 | I92: 1989.145435 | J92: 0.02242300892
A93: 92 | B93: 20800 | C93: 2044.981 | D93: -0.03049123684 | F93: 1982.627 | G93: 0.05470454565 | I93: 2091.085709 | J93: 0.02254529955
A94: 93 | B94: 21800 | C94: 2144.441 | D94: -0.03066719952 | F94: 2078.677 | G94: 0.05501046276 | I94: 2193.025984 | J94: 0.02265624641
A95: 94 | B95: 22800 | C95: 2243.901 | D95: -0.03082756325 | F95: 2174.727 | G95: 0.05528935732 | I95: 2294.966258 | J95: 0.02275735792
A96: 95 | B96: 23800 | C96: 2343.361 | D96: -0.03097431424 | F96: 2270.777 | G96: 0.05554465836 | I96: 2396.906533 | J96: 0.02284988641
A97: 96 | B97: 24800 | C97: 2442.821 | D97: -0.03110911524 | F97: 2366.827 | G97: 0.05577923826 | I97: 2498.846807 | J97: 0.02293488027
A98: 97 | B98: 25800 | C98: 2542.281 | D98: -0.03123336877 | F98: 2462.877 | G98: 0.05599552135 | I98: 2600.787082 | J98: 0.02301322381
A99: 98 | B99: 26800 | C99: 2641.741 | D99: -0.03134826616 | F99: 2558.927 | G99: 0.05619556795 | I99: 2702.727356 | J99: 0.02308566817
A100: 99 | B100: 27800 | C100: 2741.201 | D100: -0.03145482582 | F100: 2654.977 | G100: 0.05638114025 | I100: 2804.667631 | J100: 0.02315285548
A101: 100 | B101: 28800 | C101: 2840.661 | D101: -0.03155392354 | F101: 2751.027 | G101: 0.05655375432 | I101: 2906.607905 | J101: 0.02321533794
A102: 101 | B102: 29800 | C102: 2940.121 | D102: -0.0316463166 | F102: 2847.077 | G102: 0.05671472165 | I102: 3008.54818 | J102: 0.02327359301
A103: 102 | B103: 30800 | C103: 3039.581 | D103: -0.03173266315 | F103: 2943.127 | G103: 0.05686518252 | I103: 3110.488454 | J103: 0.02332803569
A104: 103 | B104: 31800 | C104: 3139.041 | D104: -0.03181353796 | F104: 3039.177 | G104: 0.05700613308 | I104: 3212.428729 | J104: 0.02337902835
A105: 104 | B105: 32800 | C105: 3238.501 | D105: -0.03188944515 | F105: 3135.227 | G105: 0.05713844739 | I105: 3314.369003 | J105: 0.02342688886
A106: 105 | B106: 33800 | C106: 3337.961 | D106: -0.03196082878 | F106: 3231.277 | G106: 0.05726289559 | I106: 3416.309277 | J106: 0.02347189721
A107: 106 | B107: 34800 | C107: 3437.421 | D107: -0.03202808152 | F107: 3327.327 | G107: 0.0573801589 | I107: 3518.249552 | J107: 0.02351430097
A108: 107 | B108: 35800 | C108: 3536.881 | D108: -0.03209155185 | F108: 3423.377 | G108: 0.05749084207 | I108: 3620.189826 | J108: 0.02355431988
A109: 108 | B109: 36800 | C109: 3636.341 | D109: -0.03215155014 | F109: 3519.427 | G109: 0.05759548385 | I109: 3722.130101 | J109: 0.02359214962
A110: 109 | B110: 37800 | C110: 3735.801 | D110: -0.03220835371 | F110: 3615.477 | G110: 0.05769456573 | I110: 3824.070375 | J110: 0.02362796504
A111: 110 | B111: 38800 | C111: 3835.261 | D111: -0.0322622111 | F111: 3711.527 | G111: 0.05778851936 | I111: 3926.01065 | J111: 0.02366192285
A112: 111 | B112: 39800 | C112: 3934.721 | D112: -0.03231334572 | F112: 3807.577 | G112: 0.05787773284 | I112: 4027.950924 | J112: 0.02369416393
A113: 112 | B113: 49800 | C113: 4929.321 | D113: -0.03271119897 | F113: 4768.077 | G113: 0.05857218103 | I113: 5047.353669 | J113: 0.02394501579
A114: 113 | B114: 59800 | C114: 5923.921 | D114: -0.03297545663 | F114: 5728.577 | G114: 0.05903375551 | I114: 6066.756414 | J114: 0.02411163383
A115: 114 | B115: 69800 | C115: 6918.521 | D115: -0.03316373543 | F115: 6689.077 | G115: 0.0593627729 | I115: 7086.159159 | J115: 0.02423034617
A116: 115 | B116: 79800 | C116: 7913.121 | D116: -0.03330468471 | F116: 7649.577 | G116: 0.05960916579 | I116: 8105.561904 | J116: 0.02431921661
A117: 116 | B117: 89800 | C117: 8907.721 | D117: -0.03341415835 | F117: 8610.077 | G117: 0.05980058581 | I117: 9124.964648 | J117: 0.02438824122
A118: 117 | B118: 99800 | C118: 9902.321 | D118: -0.03350164068 | F118: 9570.577 | G118: 0.05995358412 | I118: 10144.36739 | J118: 0.02444340002
A119: 118 | B119: 109800 | C119: 10896.921 | D119: -0.03357315337 | F119: 10531.077 | G119: 0.06007867364 | I119: 11163.77014 | J119: 0.02448848974
A120: 119 | B120: 119800 | C120: 11891.521 | D120: -0.0336327035 | F120: 11491.577 | G120: 0.06018285244 | I120: 12183.17288 | J120: 0.02452603691
A121: 120 | B121: 129800 | C121: 12886.121 | D121: -0.03368306102 | F121: 12452.077 | G121: 0.06027095943 | I121: 13202.57563 | J121: 0.02455778801
A122: 121 | B122: 139800 | C122: 13880.721 | D122: -0.03372620197 | F122: 13412.577 | G122: 0.06034644741 | I122: 14221.97837 | J122: 0.02458498896
A123: 122 | B123: 149800 | C123: 14875.321 | D123: -0.03376357391 | F123: 14373.077 | G123: 0.06041184622 | I123: 15241.38112 | J123: 0.02460855247
A124: 123 | B124: 159800 | C124: 15869.921 | D124: -0.03379626149 | F124: 15333.577 | G124: 0.06046905182 | I124: 16260.78386 | J124: 0.02462916244
A125: 124 | B125: 169800 | C125: 16864.521 | D125: -0.03382509352 | F125: 16294.077 | G125: 0.06051951313 | I125: 17280.18661 | J125: 0.02464734142
A126: 125 | B126: 179800 | C126: 17859.121 | D126: -0.03385071415 | F126: 17254.577 | G126: 0.06056435645 | I126: 18299.58935 | J126: 0.02466349558
A127: 126 | B127: 189800 | C127: 18853.721 | D127: -0.03387363163 | F127: 18215.077 | G127: 0.0606044705 | I127: 19318.9921 | J127: 0.02467794536
A128: 127 | B128: 199800 | C128: 19848.321 | D128: -0.03389425231 | F128: 19175.577 | G128: 0.06064056594 | I128: 20338.39484 | J128: 0.02469094698
A129: 128 | B129: 209800 | C129: 20842.921 | D129: -0.03391290501 | F129: 20136.077 | G129: 0.06067321784 | I129: 21357.79759 | J129: 0.02470270776
A130: 129 | B130: 219800 | C130: 21837.521 | D130: -0.03392985861 | F130: 21096.577 | G130: 0.06070289655 | I130: 22377.20033 | J130: 0.02471339724
A131: 130 | B131: 229800 | C131: 22832.121 | D131: -0.03394533517 | F131: 22057.077 | G131: 0.06072999047 | I131: 23396.60308 | J131: 0.02472315541
A132: 131 | B132: 239800 | C132: 23826.721 | D132: -0.03395951965 | F132: 23017.577 | G132: 0.06075482318 | I132: 24416.00582 | J132: 0.02473209892
A133: 132 | B133: 249800 | C133: 24821.321 | D133: -0.03397256737 | F133: 23978.077 | G133: 0.06077766643 | I133: 25435.40857 | J133: 0.02474032569
A134: 133 | B134: 349800 | C134: 34767.321 | D134: -0.03406198597 | F134: 33583.077 | G134: 0.06093423226 | I134: 35629.43601 | J134: 0.02479670532

Sheet Revenue Stability
B1: AVISTA UTILITIES
B2: WASHINGTON ELECTRIC
B3: COLLECTION OF REVENUE AND DIFFERENCE IN RATES
B4: 12 MONTHS ENDED JUNE 30, 2013
A5: Line No. | B5: A | C5: B | D5: C | E5: D | F5: E | G5: F | H5: G | I5: H | J5: I | K5: J | L5: K
A6: 1 | C6: Rates | G6: Revenue Percentages Collected by Rate Design (Sch. 1)
A7: 2 | C7: Current | D7: Proposed | E7: Revised | H7: Last GRC (Current) | I7: Last GRC (Staff) | J7: Current | K7: Proposed | L7: Revised
A8: 3 | B8: Base | C8: ='Bill Comparison'!C6 -> 8 | D8: ='Bill Comparison'!F6 -> 15 | E8: ='Bill Comparison'!I6 -> 8.5 | G8: Base | H8: 0.07209845921 | I8: 0.08742453106 | J8: ='Pres & Prop Rev'!P111 -> 0.067 | K8: 0.1697151906 | L8: ='Pres & Prop Rev'!P164 -> 0.074
A9: 4 | B9: 0-800 | C9: ='Bill Comparison'!C8 -> 0.07265 | D9: ='Bill Comparison'!F8 -> 0.07056 | E9: ='Bill Comparison'!I8 -> 0.07142027448 | G9: 1st Block | H9: 0.4324967572 | I9: 0.5354915266 | J9: ='Pres & Prop Rev'!R113 -> 0.595 | K9: 0.5008874993 | L9: ='Pres & Prop Rev'!R166 -> 0.594
A10: 5 | B10: 800-1,500 | C10: ='Bill Comparison'!C9 -> 0.08469 | D10: ='Bill Comparison'!F9 -> 0.08202 | E10: ='Bill Comparison'!I9 -> 0.08286027448 | G10: Sub-Total | H10: =SUM(H8:H9) -> 0.5045952164 | I10: =SUM(I8:I9) -> 0.6229160577 | J10: =SUM(J8:J9) -> 0.662 | K10: =SUM(K8:K9) -> 0.6706026899 | L10: =SUM(L8:L9) -> 0.668
A11: 6 | B11: 1500+ | C11: ='Bill Comparison'!C10 -> 0.09946 | D11: ='Bill Comparison'!F10 -> 0.09605 | E11: ='Bill Comparison'!I10 -> 0.1019402745
A12: 7 | G12: 2nd Block | H12: 0.2891595755 | I12: 0.2161944169 | J12: ='Pres & Prop Rev'!R114 -> 0.227 | K12: 0.1920592163 | L12: ='Pres & Prop Rev'!R167 -> 0.257
A13: 8 | C13: Difference in Rates (from Revised) | G13: 3rd Block | H13: 0.2062452081 | I13: 0.1608895255 | J13: ='Pres & Prop Rev'!R115 -> 0.111 | K13: 0.1373380938 | L13: ='Pres & Prop Rev'!R168 -> 0.075
A14: 9 | C14: Current | D14: Proposed | E14: Revised | G14: Sub-Total | H14: =SUM(H12:H13) -> 0.4954047836 | I14: 0.3770839423 | J14: =SUM(J12:J13) -> 0.338 | K14: 0.3293973101 | L14: 0.332
A15: 10 | B15: Base | C15: =$E8-C8 -> 0.5 | D15: -6.5 | E15: 0
A16: 11 | B16: 0-800 | C16: -0.001229725518 | D16: 0.0008602744819 | E16: 0 | G16: Grand Total | H16: =H14+H10 -> 1 | I16: =I14+I10 -> 1 | J16: =J14+J10 -> 1 | K16: =K14+K10 -> 1 | L16: =L14+L10 -> 1
A17: 12 | B17: 800-1,500 | C17: =$E10-C10 -> -0.001829725518 | D17: =$E10-D10 -> 0.0008402744819 | E17: 0
A18: 13 | B18: 1500+ | C18: =$E11-C11 -> 0.002480274482 | D18: =$E11-D11 -> 0.005890274482 | E18: 0
A19: 14 | H19: Percentage Difference in Revenues (from Revised)
A20: 15 | H20: Last GRC (Current) | I20: Last GRC (Staff) | J20: Current | K20: Proposed | L20: Revised
A21: 16 | G21: Base | H21: =$L8-H8 -> 0.001901540786 | I21: -0.01342453106 | J21: =$L8-J8 -> 0.007 | K21: -0.09571519056 | L21: 0
A22: 17 | G22: 1st Block | H22: 0.1615032428 | I22: 0.05850847337 | J22: -0.001 | K22: 0.09311250067 | L22: 0
A23: 18 | G23: 2nd Block | H23: =$L12-H12 -> -0.03215957548 | I23: 0.04080558315 | J23: 0.03 | K23: 0.06494078372 | L23: 0
A24: 19 | G24: 3rd Block | H24: -0.1312452081 | I24: -0.08588952545 | J24: -0.036 | K24: -0.06233809383 | L24: 0
A25: 20 | H25: =SUM(H21:H24) -> 0 | I25: =SUM(I21:I24) -> -1.665334537e-16 | J25: =SUM(J21:J24) -> 0 | K25: =SUM(K21:K24) -> 5.551115123e-17 | L25: =SUM(L21:L24) -> 0
A26: 21

Sheet Bill Impact (hidden)
A3: Schedule 001 Bill Impact
A7: Schedule 001 Present | G7: Schedule 001 Proposed
B8: Basic Charge | C8: Block 1 | D8: Block 2 | E8: Total Bill | G8: Basic Charge | H8: Block 1 | I8: Block 2 | J8: Total Bill | L8: Bill Impact | M8: % Change
B9: ='Exh 3'!B10 -> 8 | C9: ='Exh 3'!D12 -> 0.07265 | D9: ='Exh 3'!D13 -> 0.08469 | G9: ='Exh 3'!M10 -> 8.5 | H9: ='Exh 3'!I12 -> 0.07142027448 | I9: ='Exh 3'!I13 -> 0.08286027448
A10: 100 | B10: =$B$9 -> 8 | C10: =A10*$C$9 -> 7.265 | E10: =SUM(B10:D10) -> 15.265 | G10: =$G$9 -> 8.5 | H10: =A10*$H$9 -> 7.142027448 | J10: =SUM(G10:I10) -> 15.64202745 | L10: =J10-E10 -> 0.3770274482 | M10: =L10/E10 -> 0.02469881744
A11: 200 | B11: =$B$9 -> 8 | C11: =A11*$C$9 -> 14.53 | E11: =SUM(B11:D11) -> 22.53 | G11: =$G$9 -> 8.5 | H11: =A11*$H$9 -> 14.2840549 | J11: =SUM(G11:I11) -> 22.7840549 | L11: =J11-E11 -> 0.2540548964 | M11: =L11/E11 -> 0.01127629367
A12: 300 | B12: 8 | C12: 21.795 | E12: 29.795 | G12: 8.5 | H12: 21.42608234 | J12: 29.92608234 | L12: 0.1310823446 | M12: 0.004399474561
A13: 400 | B13: 8 | C13: 29.06 | E13: 37.06 | G13: 8.5 | H13: 28.56810979 | J13: 37.06810979 | L13: 0.008109792746 | M13: 0.0002188287303
A14: 500 | B14: 8 | C14: 36.325 | E14: 44.325 | G14: 8.5 | H14: 35.71013724 | J14: 44.21013724 | L14: -0.1148627591 | M14: -0.002591376403
A15: 600 | B15: =$B$9 -> 8 | C15: =A15*$C$9 -> 43.59 | E15: =SUM(B15:D15) -> 51.59 | G15: =$G$9 -> 8.5 | H15: =A15*$H$9 -> 42.85216469 | J15: =SUM(G15:I15) -> 51.35216469 | L15: -0.2378353109 | M15: =L15/E15 -> -0.004610104882
A16: 700 | B16: 8 | C16: =A16*$C$9 -> 50.855 | E16: =SUM(B16:D16) -> 58.855 | G16: 8.5 | H16: =A16*$H$9 -> 49.99419214 | J16: =SUM(G16:I16) -> 58.49419214 | L16: -0.3608078627 | M16: =L16/E16 -> -0.006130453873
A17: 800 | B17: 8 | C17: =A17*$C$9 -> 58.12 | E17: 66.12 | G17: 8.5 | H17: =A17*$H$9 -> 57.13621959 | J17: 65.63621959 | L17: -0.4837804145 | M17: -0.007316703184
A18: 965 | B18: 8 | C18: =ROUND($C$17,2) -> 58.12 | D18: =ROUND((A18-$A$17)*$D$9,2) -> 13.97 | E18: 80.09 | G18: 8.5 | H18: =ROUND($H$17,2) -> 57.14 | I18: =ROUND((A18-$A$17)*$I$9,2) -> 13.67 | J18: =SUM(G18:I18) -> 79.31 | L18: -0.78 | M18: -0.009739043576
A19: 1000 | B19: 8 | C19: =ROUND($C$17,2) -> 58.12 | D19: =ROUND((A19-$A$17)*$D$9,2) -> 16.94 | E19: 83.06 | G19: 8.5 | H19: =ROUND($H$17,2) -> 57.14 | I19: =ROUND((A19-$A$17)*$I$9,2) -> 16.57 | J19: 82.21 | L19: -0.85 | M19: -0.0102335661
A20: 1100 | B20: 8 | C20: =$C$17 -> 58.12 | D20: =(A20-$A$17)*$D$9 -> 25.407 | E20: =SUM(B20:D20) -> 91.527 | G20: 8.5 | H20: =$H$17 -> 57.13621959 | I20: =(A20-$A$17)*$I$9 -> 24.85808234 | J20: =SUM(G20:I20) -> 90.49430193 | L20: -1.03269807 | M20: =L20/E20 -> -0.0112829883
A21: 1200 | B21: 8 | C21: 58.12 | D21: =(A21-$A$17)*$D$9 -> 33.876 | E21: 99.996 | G21: 8.5 | H21: 57.13621959 | I21: =(A21-$A$17)*$I$9 -> 33.14410979 | J21: 98.78032938 | L21: -1.215670622 | M21: -0.01215719251
A22: 1300 | B22: 8 | C22: 58.12 | D22: =(A22-$A$17)*$D$9 -> 42.345 | E22: =SUM(B22:D22) -> 108.465 | G22: 8.5 | H22: 57.13621959 | I22: =(A22-$A$17)*$I$9 -> 41.43013724 | J22: =SUM(G22:I22) -> 107.0663568 | L22: -1.398643174 | M22: =L22/E22 -> -0.01289488013
A23: 1400 | B23: 8 | C23: 58.12 | D23: =(A23-$A$17)*$D$9 -> 50.814 | E23: 116.934 | G23: 8.5 | H23: 57.13621959 | I23: 49.71616469 | J23: 115.3523843 | L23: -1.581615725 | M23: -0.01352571301
A24: 1500 | B24: 8 | C24: 58.12 | D24: 59.283 | E24: 125.403 | G24: 8.5 | H24: 57.13621959 | I24: 58.00219214 | J24: 123.6384117 | L24: -1.764588277 | M24: -0.01407134022

Sheet WA Sch 25 (hidden)
A1: Washington Schedule 25 Billing Determinants | Q1: 1st | R1: =Q2 -> 500000 | S1: =R2 -> 6000000
P2: 12-mo Ended | Q2: 500000 | R2: 6000000 | S2: 99999999
B3: KWHs | C3: Acct No. | D3: 2012-07-01 | E3: 2012-08-01 | F3: 2012-09-01 | G3: 2012-10-01 | H3: 2012-11-01 | I3: 2012-12-01 | J3: 2013-01-01 | K3: 2013-02-01 | L3: 2013-03-01 | M3: 2013-04-01 | N3: 2013-05-01 | O3: 2013-06-01 | P3: Total | Q3: kwhs/mo | R3: kwhs/mo | S3: kwhs/mo | V3: Energy
A4: 1 | B4: BF Goodrich | C4: 770037736 | D4: 4920409 | E4: 5471306 | F4: 5089955 | G4: 4422298 | H4: 4694815 | I4: 5445493 | J4: 5033826 | K4: 4877725 | L4: 5530526 | M4: 5120850 | N4: 4452916 | O4: 3330474 | P4: =SUM(D4:O4) -> 58390593 | Q4: =Q$2*12-SUMPRODUCT(--($D4:$O4<=Q$2),Q$2-$D4:$O4) -> 6000000 | R4: =R$2*12-SUM($Q4:Q4)-SUMPRODUCT(--($D4:$O4<=R$2),R$2-$D4:$O4) -> 52390593 | S4: =S$2*12-SUM($Q4:R4)-SUMPRODUCT(--($D4:$O4<=S$2),S$2-$D4:$O4) -> 0 | V4: =P4/$P$25 -> 0.05404291124
A5: 2 | B5: Boise Cascade Plywood | C5: 500017 | D5: 3325249 | E5: 3446923 | F5: 3236491 | G5: 3368492 | H5: 3063022 | I5: 2609788 | J5: 2963335 | K5: 3091540 | L5: 3348299 | M5: 3278856 | N5: 3200870 | O5: 3189022 | P5: 38121887 | Q5: =Q$2*12-SUMPRODUCT(--($D5:$O5<=Q$2),Q$2-$D5:$O5) -> 6000000 | R5: =R$2*12-SUM($Q5:Q5)-SUMPRODUCT(--($D5:$O5<=R$2),R$2-$D5:$O5) -> 32121887 | S5: =S$2*12-SUM($Q5:R5)-SUMPRODUCT(--($D5:$O5<=S$2),S$2-$D5:$O5) -> 0 | V5: 0.0352833847
A6: 3 | B6: Boise Cascade Sawmill | C6: 500018 | D6: 1245605 | E6: 1206076 | F6: 1212763 | G6: 1410623 | H6: 1428388 | I6: 1462269 | J6: 1571434 | K6: 1385908 | L6: 1351486 | M6: 1442672 | N6: 1338567 | O6: 1310046 | P6: 16365837 | Q6: 6000000 | R6: =R$2*12-SUM($Q6:Q6)-SUMPRODUCT(--($D6:$O6<=R$2),R$2-$D6:$O6) -> 10365837 | S6: =S$2*12-SUM($Q6:R6)-SUMPRODUCT(--($D6:$O6<=S$2),S$2-$D6:$O6) -> 0 | V6: 0.0151472597
A7: 4 | B7: City of Spokane Sewage Treatment Plt | C7: 1900002 | D7: 1349275 | E7: 1305515 | F7: 1318655 | G7: 1341383 | H7: 1351362 | I7: 1419006 | J7: 1455130 | K7: 1340094 | L7: 1352240 | M7: 1282447 | N7: 1333145 | O7: 1344481 | P7: 16192733 | Q7: 6000000 | R7: =R$2*12-SUM($Q7:Q7)-SUMPRODUCT(--($D7:$O7<=R$2),R$2-$D7:$O7) -> 10192733 | S7: =S$2*12-SUM($Q7:R7)-SUMPRODUCT(--($D7:$O7<=S$2),S$2-$D7:$O7) -> 0 | V7: 0.01498704479
A8: 5 | B8: Deaconess Medical Center | C8: 1900011 | D8: 1871797 | E8: 1846297 | F8: 1652204 | G8: 1708501 | H8: 1667005 | I8: 1724612 | J8: 1779078 | K8: 1558513 | L8: 1704854 | M8: 1661570 | N8: 1706762 | O8: 1676678 | P8: 20557871 | Q8: 6000000 | R8: =R$2*12-SUM($Q8:Q8)-SUMPRODUCT(--($D8:$O8<=R$2),R$2-$D8:$O8) -> 14557871 | S8: =S$2*12-SUM($Q8:R8)-SUMPRODUCT(--($D8:$O8<=S$2),S$2-$D8:$O8) -> 0 | V8: 0.01902716072
A9: 6 | B9: Gonzaga University | C9: 622922 | D9: 2112986 | E9: 2096094 | F9: 2221114 | G9: 2299928 | H9: 2302779 | I9: 2257024 | J9: 2524035 | K9: 2279264 | L9: 2214254 | M9: 2169880 | N9: 1855787 | O9: 1667061 | P9: 26000206 | Q9: 6000000 | R9: =R$2*12-SUM($Q9:Q9)-SUMPRODUCT(--($D9:$O9<=R$2),R$2-$D9:$O9) -> 20000206 | S9: =S$2*12-SUM($Q9:R9)-SUMPRODUCT(--($D9:$O9<=S$2),S$2-$D9:$O9) -> 0 | V9: 0.02406426708
A10: 7 | B10: Honeywell Electronics | C10: 2304636 | D10: 1330785 | E10: 1331285 | F10: 1160949 | G10: 1113904 | H10: 941444 | I10: 993294 | J10: 1143128 | K10: 1020478 | L10: 1114488 | M10: 1094131 | N10: 1134949 | O10: 1171446 | P10: 13550281 | Q10: 6000000 | R10: =R$2*12-SUM($Q10:Q10)-SUMPRODUCT(--($D10:$O10<=R$2),R$2-$D10:$O10) -> 7550281 | S10: =S$2*12-SUM($Q10:R10)-SUMPRODUCT(--($D10:$O10<=S$2),S$2-$D10:$O10) -> 0 | V10: 0.01254134606
A11: 8 | B11: Huntwood Industries | C11: 610074869 | D11: 1020480 | E11: 1060961 | F11: 904686 | G11: 1056652 | H11: 983049 | I11: 945158 | J11: 1088948 | K11: 979060 | L11: 1120757 | M11: 1192620 | N11: 1192460 | O11: 1114540 | P11: 12659371 | Q11: 6000000 | R11: =R$2*12-SUM($Q11:Q11)-SUMPRODUCT(--($D11:$O11<=R$2),R$2-$D11:$O11) -> 6659371 | S11: =S$2*12-SUM($Q11:R11)-SUMPRODUCT(--($D11:$O11<=S$2),S$2-$D11:$O11) -> 0 | V11: 0.01171677197
A12: 9 | B12: Inland Empire Paper | C12: 2500004 | D12: =AVERAGE($G$12:$O$12) -> 40052853.78 | E12: =AVERAGE($G$12:$O$12) -> 40052853.78 | F12: 40052853.78 | G12: 40253596 | H12: 39265150 | I12: 41024296 | J12: 41052588 | K12: 38060916 | L12: 41297528 | M12: 38366954 | N12: 41641788 | O12: 39512868 | P12: =SUM(D12:O12) -> 480634245.3 | Q12: 6000000 | R12: =R$2*12-SUM($Q12:Q12)-SUMPRODUCT(--($D12:$O12<=R$2),R$2-$D12:$O12) -> 66000000 | S12: =S$2*12-SUM($Q12:R12)-SUMPRODUCT(--($D12:$O12<=S$2),S$2-$D12:$O12) -> 408634245.3 | V12: =P12/$P$25 -> 0.4448468927
A13: 10 | B13: JR Simplot | C13: 290048778 | D13: 5365097 | E13: 5662877 | F13: 4790125 | G13: 5345689 | H13: 4084492 | I13: 4161309 | J13: 5209449 | K13: 4853734 | L13: 3677570 | M13: 3833416 | N13: 4333694 | O13: 5378755 | P13: 56696207 | Q13: 6000000 | R13: =R$2*12-SUM($Q13:Q13)-SUMPRODUCT(--($D13:$O13<=R$2),R$2-$D13:$O13) -> 50696207 | S13: =S$2*12-SUM($Q13:R13)-SUMPRODUCT(--($D13:$O13<=S$2),S$2-$D13:$O13) -> 0 | V13: 0.05247468685
A14: 11 | B14: McCaine Foods Inc | C14: 2500003 | D14: 5179832 | E14: 5791783 | F14: 5605242 | G14: 5723642 | H14: 5553061 | I14: 4487661 | J14: 5543513 | K14: 5064522 | L14: 5803330 | M14: 5573562 | N14: 5707050 | O14: 5669266 | P14: 65702464 | Q14: 6000000 | R14: =R$2*12-SUM($Q14:Q14)-SUMPRODUCT(--($D14:$O14<=R$2),R$2-$D14:$O14) -> 59702464 | S14: =S$2*12-SUM($Q14:R14)-SUMPRODUCT(--($D14:$O14<=S$2),S$2-$D14:$O14) -> 0 | V14: 0.06081035057
A15: 12 | B15: Sacred Heart Medical Center | C15: 500020 | D15: 4737463 | E15: 4601902 | F15: 3904977 | G15: 3507191 | H15: 3237719 | I15: 3370325 | J15: 3411857 | K15: 3017819 | L15: 3303430 | M15: 3278116 | N15: 3773589 | O15: 3888007 | P15: 44032395 | Q15: 6000000 | R15: =R$2*12-SUM($Q15:Q15)-SUMPRODUCT(--($D15:$O15<=R$2),R$2-$D15:$O15) -> 38032395 | S15: =S$2*12-SUM($Q15:R15)-SUMPRODUCT(--($D15:$O15<=S$2),S$2-$D15:$O15) -> 0 | V15: 0.04075380455
A16: 13 | B16: Spokane County Courthouse | C16: 1900012 | D16: 1417366 | E16: 1349681 | F16: 1141757 | G16: 1078535 | H16: 957881 | I16: 988449 | J16: 1075456 | K16: 932614 | L16: 995415 | M16: 1037127 | N16: 1166901 | O16: 1198724 | P16: 13339906 | Q16: 6000000 | R16: =R$2*12-SUM($Q16:Q16)-SUMPRODUCT(--($D16:$O16<=R$2),R$2-$D16:$O16) -> 7339906 | S16: =S$2*12-SUM($Q16:R16)-SUMPRODUCT(--($D16:$O16<=S$2),S$2-$D16:$O16) -> 0 | V16: 0.01234663529
A17: 14 | B17: Spokane Steel Foundry | C17: 2400169 | D17: 1219413 | E17: 1163969 | F17: 1018843 | G17: 1189123 | H17: =728188+225158 -> 953346 | I17: 939408 | J17: 1166260 | K17: 1120552 | L17: 1168683 | M17: 1185477 | N17: 960245 | O17: 830943 | P17: 12916262 | Q17: 6000000 | R17: =R$2*12-SUM($Q17:Q17)-SUMPRODUCT(--($D17:$O17<=R$2),R$2-$D17:$O17) -> 6916262 | S17: =S$2*12-SUM($Q17:R17)-SUMPRODUCT(--($D17:$O17<=S$2),S$2-$D17:$O17) -> 0 | V17: 0.01195453523
A18: 15 | B18: Triumph Composite / Boeing | C18: 690067830 | D18: 1648227 | E18: 1655766 | F18: 1311778 | G18: 1403816 | H18: 1218231 | I18: 1110875 | J18: 1431129 | K18: 1255544 | L18: 1391275 | M18: 1410007 | N18: 1431868 | O18: 1452461 | P18: 16720977 | Q18: 6000000 | R18: =R$2*12-SUM($Q18:Q18)-SUMPRODUCT(--($D18:$O18<=R$2),R$2-$D18:$O18) -> 10720977 | S18: =S$2*12-SUM($Q18:R18)-SUMPRODUCT(--($D18:$O18<=S$2),S$2-$D18:$O18) -> 0 | V18: 0.01547595648
A19: 16 | B19: Vaagen Brothers Lumber | C19: 1300001 | D19: 1745318 | E19: 1829682 | F19: 1782452 | G19: 1972690 | H19: 1962442 | I19: 1999508 | J19: 2244127 | K19: 1988683 | L19: 1905394 | M19: 1564046 | N19: 1417287 | O19: 1709226 | P19: 22120855 | Q19: 6000000 | R19: =R$2*12-SUM($Q19:Q19)-SUMPRODUCT(--($D19:$O19<=R$2),R$2-$D19:$O19) -> 16120855 | S19: =S$2*12-SUM($Q19:R19)-SUMPRODUCT(--($D19:$O19<=S$2),S$2-$D19:$O19) -> 0 | V19: 0.02047376713
A20: 17 | B20: WSU - MP-A South Campus Feeder | C20: 290081951 | D20: 2271438 | E20: 2262747 | F20: 2139010 | G20: 2409590 | H20: 2333313 | I20: 2444730 | J20: 2638255 | K20: 2332254 | L20: 2356670 | M20: 2288468 | N20: 2182393 | O20: 2064362 | P20: 27723230 | Q20: 6000000 | R20: =R$2*12-SUM($Q20:Q20)-SUMPRODUCT(--($D20:$O20<=R$2),R$2-$D20:$O20) -> 21723230 | S20: =S$2*12-SUM($Q20:R20)-SUMPRODUCT(--($D20:$O20<=S$2),S$2-$D20:$O20) -> 0 | V20: 0.02565899713
A21: 18 | B21: WSU - MP-B East Campus EA | C21: 500033 | D21: 4620198 | E21: 4715859 | F21: 4124530 | G21: 3744719 | H21: 3554234 | I21: 3913433 | J21: 4231100 | K21: 3766162 | L21: 3719392 | M21: 3551882 | N21: 4130053 | O21: 4230878 | P21: 48302440 | Q21: 6000000 | R21: =R$2*12-SUM($Q21:Q21)-SUMPRODUCT(--($D21:$O21<=R$2),R$2-$D21:$O21) -> 42302440 | S21: =S$2*12-SUM($Q21:R21)-SUMPRODUCT(--($D21:$O21<=S$2),S$2-$D21:$O21) -> 0 | V21: 0.04470590798
A22: 19 | B22: WSU - MP-C East Campus EB | C22: 410031282 | D22: 2227751 | E22: 2515888 | F22: 2700747 | G22: 2629196 | H22: 2708047 | I22: 2835756 | J22: 2834223 | K22: 2519513 | L22: 2894430 | M22: 2702041 | N22: 2612648 | O22: 2522688 | P22: 31702928 | Q22: 6000000 | R22: =R$2*12-SUM($Q22:Q22)-SUMPRODUCT(--($D22:$O22<=R$2),R$2-$D22:$O22) -> 25702928 | S22: =S$2*12-SUM($Q22:R22)-SUMPRODUCT(--($D22:$O22<=S$2),S$2-$D22:$O22) -> 0 | V22: 0.02934237239
A23: 20 | B23: WSU - MP -D Casp East (no PVD) | C23: 500032 | D23: 2293464 | E23: 2426472 | F23: 2344272 | G23: 2466848 | H23: 2227032 | I23: 2523904 | J23: 2785896 | K23: 2379520 | L23: 2476472 | M23: 2382824 | N23: 2243200 | O23: 2172704 | P23: 28722608 | Q23: 6000000 | R23: =R$2*12-SUM($Q23:Q23)-SUMPRODUCT(--($D23:$O23<=R$2),R$2-$D23:$O23) -> 22722608 | S23: =S$2*12-SUM($Q23:R23)-SUMPRODUCT(--($D23:$O23<=S$2),S$2-$D23:$O23) -> 0 | V23: 0.02658396285
A24: 21 | B24: WSU - MP-E Casp West (no PVD) | C24: 500034 | D24: 3261144 | E24: 3431408 | F24: 2813376 | G24: 2436600 | H24: 2415920 | I24: 2251232 | J24: 2532256 | K24: 2213008 | L24: 2230728 | M24: 2253344 | N24: 1963672 | O24: 2192712 | P24: 29995400 | Q24: 6000000 | R24: =R$2*12-SUM($Q24:Q24)-SUMPRODUCT(--($D24:$O24<=R$2),R$2-$D24:$O24) -> 23995400 | S24: =S$2*12-SUM($Q24:R24)-SUMPRODUCT(--($D24:$O24<=S$2),S$2-$D24:$O24) -> 0 | V24: 0.02776198454
B25: Schedule 25 Total | D25: =SUM(D4:D24) -> 93216150.78 | E25: 95225344.78 | F25: 90526779.78 | G25: 90883016 | H25: 86902732 | I25: 88907530 | J25: 93715023 | K25: 86037423 | L25: 90957221 | M25: 86670290 | N25: 89779844 | O25: 87627342 | P25: =IF(ROUND(SUM(P4:P24),0)<>ROUND(SUM(D25:O25),0),#VALUE!,SUM(P4:P24)) -> 1080448696 | Q25: =SUM(Q4:Q24) -> 126000000 | R25: =SUM(R4:R24) -> 545814451 | S25: =SUM(S4:S24) -> 408634245.3 | V25: 1
S26: =SUM(Q25:S25) -> 1080448696
B27: Revenue Run Total | D27: 81226635 | E27: 88403539 | F27: 89901749 | G27: 86977636 | H27: 90883016 | I27: 86677574 | J27: 88907530 | K27: 93723602 | L27: 86028844 | M27: 90957221 | N27: 86670290 | O27: 89779844 | P27: =SUM(D27:O27) -> 1060137480
B28: Booked Unbilled Reversal | D28: -81531354 | E28: -87739172 | F28: -89901749 | G28: -87038621 | H28: -90860287 | I28: -86678014 | J28: -88803368 | K28: -93820991 | L28: -85942864 | M28: -90373972 | N28: -86422164 | O28: -89792204 | P28: =SUM(D28:O28) -> -1058904760
B29: Gross Booked Unbilled | D29: 87739172 | E29: 89901749 | F29: 87038621 | G29: 90860287 | H29: 86678014 | I29: 88803368 | J29: 93820991 | K29: 85942864 | L29: 90373972 | M29: 86422164 | N29: 89792204 | O29: 87183410 | P29: =SUM(D29:O29) -> 1064556816
B30: Gross Unbilled True-up | D30: 664367 | E30: 0 | F30: -60985 | G30: 22729 | H30: -440 | I30: 104162 | J30: -105968 | K30: 94559 | L30: 583249 | M30: 248126 | N30: -12360 | O30: 443932 | P30: 1981371
B31: Unbilled Reversal True-up | D31: 304719 | E31: -664367 | F31: 0 | G31: 60985 | H31: -22729 | I31: 440 | J31: -104162 | K31: 105968 | L31: -94559 | M31: -583249 | N31: -248126 | O31: 12360 | P31: -1232720
B32: Spokane Steel Foundry | H32: 225158 | P32: 225158
B33: IEP Adjustment | D33: =D12-35240242 -> 4812611.778 | E33: =E12-34729258 -> 5323595.778 | F33: =F12-36503710 -> 3549143.778 | K33: -8579 | L33: 8579 | P33: 13685351.33
B34: Adj Revenue Runs, Sch 25 | D34: =SUM(D27:D33) -> 93216150.78 | E34: 95225344.78 | F34: 90526779.78 | G34: 90883016 | H34: 86902732 | I34: 88907530 | J34: 93715023 | K34: =SUM(K27:K33) -> 86037423 | L34: =SUM(L27:L33) -> 90957221 | M34: =SUM(M27:M33) -> 86670290 | N34: 89779844 | O34: 87627342 | P34: =IF(ROUND(SUM(P27:P33),0)<>ROUND(SUM(D34:O34),0),#VALUE!,SUM(P27:P33)) -> 1080448696
D35: =D34-D25 -> 0 | E35: 0 | F35: 0 | G35: 0 | H35: 0 | I35: 0 | J35: 0 | K35: 0 | L35: 0 | M35: 0 | N35: 0 | O35: 0 | P35: 0
V37: Demand | X37: Peak
B38: KVA | D38: =D$3 -> 2012-07-01 | E38: =E$3 -> 2012-08-01 | F38: 2012-09-01 | G38: 2012-10-01 | H38: 2012-11-01 | I38: 2012-12-01 | J38: 2013-01-01 | K38: 2013-02-01 | L38: 2013-03-01 | M38: 2013-04-01 | N38: 2013-05-01 | O38: 2013-06-01 | P38: Total | Q38: Peak | R38: Month
A39: 1 | B39: BF Goodrich | C39: 770037736 | D39: 9152 | E39: 9863 | F39: 9547 | G39: 10244 | H39: 10381 | I39: 9919 | J39: 10296 | K39: 9917 | L39: 10518 | M39: 10002 | N39: 8957 | O39: 7450 | P39: =SUM(D39:O39) -> 116246 | Q39: =MAX(D39:O39) -> 10518 | R39: =INDEX($D$38:$O$38,MATCH(Q39,$D39:$O39,0)) -> 2013-03-01 | V39: =P39/$P$60 -> 0.05833894159 | X39: =Q39/$Q$60 -> 1.215712823 | Y39: =Q39/$Q$60 -> 1.215712823
A40: 2 | B40: Boise Cascade Plywood | C40: 500017 | D40: 5234 | E40: 5242 | F40: 5347 | G40: 5248 | H40: 5258 | I40: 4973 | J40: 5317 | K40: 5257 | L40: 5267 | M40: 5287 | N40: 5202 | O40: 5303 | P40: 62935 | Q40: =MAX(D40:O40) -> 5347 | R40: =INDEX($D$38:$O$38,MATCH(Q40,$D40:$O40,0)) -> 2012-09-01 | V40: =P40/$P$60 -> 0.03158440969 | X40: =Q40/$Q$60 -> 0.6180278062 | Y40: =Q40/$Q$60 -> 0.6180278062
A41: 3 | B41: Boise Cascade Sawmill | C41: 500018 | D41: 2668 | E41: 2674 | F41: 2828 | G41: 3082 | H41: 3168 | I41: 3187 | J41: 3181 | K41: 3141 | L41: 3093 | M41: 3143 | N41: 3035 | O41: 2909 | P41: 36109 | Q41: 3187 | R41: 2012-12-01 | V41: 0.01812157702 | X41: 0.3683663023 | Y41: 0.3683663023
A42: 4 | B42: City of Spokane Sewage Treatment Plt | C42: 1900002 | D42: 2620 | E42: 2553 | F42: 2537 | G42: 2722 | H42: 2754 | I42: 2805 | J42: 2608 | K42: 2811 | L42: 3319 | M42: 2723 | N42: 2763 | O42: 2913 | P42: 33128 | Q42: 3319 | R42: 2013-03-01 | V42: 0.01662553943 | X42: 0.3836233942 | Y42: 0.3836233942
A43: 5 | B43: Deaconess Medical Center | C43: 1900011 | D43: 3538 | E43: 3573 | F43: 3336 | G43: 2763 | H43: 2799 | I43: 2981 | J43: 3028 | K43: 2910 | L43: 2853 | M43: 2802 | N43: 2913 | O43: 3506 | P43: 37002 | Q43: 3573 | R43: 2012-08-01 | V43: 0.01856973588 | X43: 0.4129817377 | Y43: 0.4129817377
A44: 6 | B44: Gonzaga University | C44: 622922 | D44: 5258 | E44: 5238 | F44: 5270 | G44: 4733 | H44: 4886 | I44: 4700 | J44: 5026 | K44: 4677 | L44: 4368 | M44: 4549 | N44: 5745 | O44: 4556 | P44: 59006 | Q44: 5745 | R44: 2013-05-01 | V44: 0.02961261108 | X44: 0.66403025 | Y44: 0.66403025
A45: 7 | B45: Honeywell Electronics | C45: 2304636 | D45: 3433 | E45: 3545 | F45: 3085 | G45: 2975 | H45: 2656 | I45: 2757 | J45: 3013 | K45: 2872 | L45: 2875 | M45: 2722 | N45: 3010 | O45: 3040 | P45: 35983 | Q45: 3545 | R45: 2012-08-01 | V45: 0.01805834296 | X45: 0.4097453849 | Y45: 0.4097453849
A46: 8 | B46: Huntwood Industries | C46: 610074869 | D46: 4327 | E46: 4182 | F46: 4078 | G46: 4137 | H46: 4082 | I46: 4052 | J46: 4088 | K46: 4063 | L46: 4053 | M46: 4292 | N46: 4310 | O46: 4206 | P46: 49870 | Q46: 4327 | R46: 2012-07-01 | V46: 0.02502763981 | X46: 0.500132096 | Y46: 0.500132096
A47: 9 | B47: Inland Empire Paper | C47: 2500004 | D47: =AVERAGE($G$47:$O$47) -> 61339.33333 | E47: =AVERAGE($G$47:$O$47) -> 61339.33333 | F47: 61339.33333 | G47: 59660 | H47: 61138 | I47: 60356 | J47: 61910 | K47: 62007 | L47: 61616 | M47: 62993 | N47: 61451 | O47: 60923 | P47: 736072 | Q47: 62993 | R47: 2013-04-01 | V47: 0.3694033465 | X47: 7.280984776 | Y47: 7.280984776
A48: 10 | B48: JR Simplot | C48: 290048778 | D48: 8613 | E48: 8684 | F48: 8372 | G48: 8375 | H48: 8241 | I48: 8149 | J48: 8184 | K48: 8049 | L48: 8247 | M48: 8344 | N48: 8693 | O48: 8654 | P48: 100605 | Q48: 8693 | R48: 2013-05-01 | V48: 0.05048938646 | X48: 1.004771969 | Y48: 1.004771969
A49: 11 | B49: McCaine Foods Inc | C49: 2500003 | D49: 9578 | E49: 9518 | F49: 9247 | G49: 9021 | H49: 9008 | I49: 8928 | J49: 8821 | K49: 9081 | L49: 9170 | M49: 9250 | N49: 9638 | O49: 9558 | P49: 110818 | Q49: 9638 | R49: 2013-05-01 | V49: 0.0556148584 | X49: 1.113998877 | Y49: 1.113998877
A50: 12 | B50: Sacred Heart Medical Center | C50: 500020 | D50: 8827 | E50: 8744 | F50: 7829 | G50: 7297 | H50: 6310 | I50: 5604 | J50: 5625 | K50: 5478 | L50: 5981 | M50: 6769 | N50: 8047 | O50: 7804 | P50: 84315 | Q50: 8827 | R50: 2012-07-01 | V50: 0.04231412574 | X50: 1.020260229 | Y50: 1.020260229
A51: 13 | B51: Spokane County Courthouse | C51: 1900012 | D51: 3278 | E51: 3250 | F51: 2850 | G51: 2897 | H51: 2109 | I51: 2082 | J51: 2195 | K51: 2126 | L51: 2078 | M51: 2620 | N51: 2920 | O51: 2944 | P51: 31349 | Q51: 3278 | R51: 2012-07-01 | V51: 0.01573273472 | X51: 0.378884449 | Y51: 0.378884449
A52: 14 | B52: Spokane Steel Foundry | C52: 2400169 | D52: 5044 | E52: 4980 | F52: 4949 | G52: 5047 | H52: 4986 | I52: 4990 | J52: 5727 | K52: 5433 | L52: 5132 | M52: 5136 | N52: 4955 | O52: 5005 | P52: 61384 | Q52: 5727 | R52: 2013-01-01 | V52: 0.03080602851 | X52: 0.6619497375 | Y52: 0.6619497375
A53: 15 | B53: Triumph Composite / Boeing | C53: 690067830 | D53: 3830 | E53: 3874 | F53: 3496 | G53: 3204 | H53: 2872 | I53: 2975 | J53: 3047 | K53: 2953 | L53: 2976 | M53: 3052 | N53: 3529 | O53: 3834 | P53: 39642 | Q53: 3874 | R53: 2012-08-01 | V53: 0.01989464001 | X53: 0.4477725306 | Y53: 0.4477725306
A54: 16 | B54: Vaagen Brothers Lumber | C54: 1300001 | D54: 4182 | E54: 4267 | F54: 4203 | G54: 4368 | H54: 4494 | I54: 4633 | J54: 4640 | K54: 4736 | L54: 4526 | M54: 4012 | N54: 4139 | O54: 4197 | P54: 52397 | Q54: 4736 | R54: 2013-02-01 | V54: 0.02629583403 | X54: 0.5474059641 | Y54: 0.5474059641
A55: 17 | B55: WSU - MP-A South Campus Feeder | C55: 290081951 | D55: 4406 | E55: 4418 | F55: 4704 | G55: 4613 | H55: 5132 | I55: 5000 | J55: 5135 | K55: 5131 | L55: 4946 | M55: 4563 | N55: 3908 | O55: 3994 | P55: 55950 | Q55: 5135 | R55: 2013-01-01 | V55: 0.02807893417 | X55: 0.5935239919 | Y55: 0.5935239919
A56: 18 | B56: WSU - MP-B East Campus EA | C56: 500033 | D56: 11045 | E56: 10735 | F56: 9736 | G56: 7987 | H56: 7550 | I56: 7765 | J56: 8624 | K56: 8294 | L56: 7698 | M56: 7712 | N56: 10039 | O56: 10134 | P56: 107319 | Q56: 11045 | R56: 2012-07-01 | V56: 0.05385885856 | X56: 1.276625607 | Y56: 1.276625607
A57: 19 | B57: WSU - MP-C East Campus EB | C57: 410031282 | D57: 4322 | E57: 4463 | F57: 4751 | G57: 5099 | H57: 5373 | I57: 5229 | J57: 5372 | K57: 5300 | L57: 5465 | M57: 4949 | N57: 4536 | O57: 4488 | P57: 59347 | Q57: 5465 | R57: 2013-03-01 | V57: 0.02978374453 | X57: 0.6316667217 | Y57: 0.6316667217
A58: 20 | B58: WSU - MP -D Casp East (no PVD) | C58: 500032 | D58: 4644 | E58: 4650 | F58: 4784 | G58: 4734 | H58: 5013 | I58: 4882 | J58: 5191 | K58: 4974 | L58: 4828 | M58: 4554 | N58: 4322 | O58: 4273 | P58: 56849 | Q58: 5191 | R58: 2013-01-01 | V58: 0.02853010418 | X58: 0.5999966976 | Y58: 0.5999966976
A59: 21 | B59: WSU - MP-E Casp West (no PVD) | C59: 500034 | D59: 7169 | E59: 7523 | F59: 6393 | G59: 5621 | H59: 4932 | I59: 4766 | J59: 4966 | K59: 4781 | L59: 4629 | M59: 4492 | N59: 4858 | O59: 6141 | P59: 66271 | Q59: 7523 | R59: 2012-08-01 | V59: 0.03325860673 | X59: 0.8695386546 | Y59: 0.8695386546
B60: Schedule 25 Total | D60: =SUM(D39:D59) -> 172507.3333 | E60: 173315.3333 | F60: 168681.3333 | G60: 163827 | H60: 163142 | I60: 160733 | J60: 165994 | K60: 163991 | L60: 163638 | M60: 163966 | N60: 166970 | O60: 165832 | P60: =IF(ROUND(SUM(P39:P59),0)<>ROUND(SUM(D60:O60),0),#VALUE!,SUM(P39:P59)) -> 1992597 | Q60: =AVERAGE(Q39:Q59) -> 8651.714286 | V60: 1 | X60: 1 | Y60: 1
P62: =P$2 -> 12-mo Ended
B63: KVA in excess of 3,000 | D63: =D$3 -> 2012-07-01 | E63: =E$3 -> 2012-08-01 | F63: 2012-09-01 | G63: 2012-10-01 | H63: 2012-11-01 | I63: 2012-12-01 | J63: 2013-01-01 | K63: 2013-02-01 | L63: 2013-03-01 | M63: 2013-04-01 | N63: 2013-05-01 | O63: 2013-06-01 | P63: Total
A64: 1 | B64: =B4 -> BF Goodrich | C64: 770037736 | D64: =IF(D39>3000,D39-3000,0) -> 6152 | E64: 6863 | F64: 6547 | G64: =MAX(0,G39-3000) -> 7244 | H64: =MAX(0,H39-3000) -> 7381 | I64: 6919 | J64: 7296 | K64: 6917 | L64: 7518 | M64: 7002 | N64: 5957 | O64: 4450 | P64: =SUM(D64:O64) -> 80246
A65: 2 | B65: Boise Cascade Plywood | C65: 500017 | D65: 2234 | E65: 2242 | F65: 2347 | G65: 2248 | H65: =MAX(0,H40-3000) -> 2258 | I65: 1973 | J65: 2317 | K65: 2257 | L65: 2267 | M65: 2287 | N65: 2202 | O65: 2303 | P65: 26935
A66: 3 | B66: Boise Cascade Sawmill | C66: 500018 | D66: 0 | E66: 0 | F66: 0 | G66: 82 | H66: 168 | I66: 187 | J66: 181 | K66: 141 | L66: 93 | M66: 143 | N66: 35 | O66: 0 | P66: 1030
A67: 4 | B67: City of Spokane Sewage Treatment Plt | C67: 1900002 | D67: 0 | E67: 0 | F67: 0 | G67: 0 | H67: 0 | I67: 0 | J67: 0 | K67: 0 | L67: 319 | M67: 0 | N67: 0 | O67: 0 | P67: 319
A68: 5 | B68: Deaconess Medical Center | C68: 1900011 | D68: 538 | E68: 573 | F68: 336 | G68: 0 | H68: 0 | I68: 0 | J68: 28 | K68: 0 | L68: 0 | M68: 0 | N68: 0 | O68: 506 | P68: 1981
A69: 6 | B69: Gonzaga University | C69: 622922 | D69: 2258 | E69: 2238 | F69: 2270 | G69: 1733 | H69: 1886 | I69: 1700 | J69: 2026 | K69: 1677 | L69: 1368 | M69: 1549 | N69: 2745 | O69: 1556 | P69: 23006
A70: 7 | B70: Honeywell Electronics | C70: 2304636 | D70: 433 | E70: 545 | F70: 85 | G70: 0 | H70: 0 | I70: 0 | J70: 13 | K70: 0 | L70: 0 | M70: 0 | N70: 10 | O70: 40 | P70: 1126
A71: 8 | B71: Huntwood Industries | C71: 610074869 | D71: 1327 | E71: 1182 | F71: 1078 | G71: 1137 | H71: 1082 | I71: 1052 | J71: 1088 | K71: 1063 | L71: 1053 | M71: 1292 | N71: 1310 | O71: 1206 | P71: 13870
A72: 9 | B72: =B12 -> Inland Empire Paper | C72: 2500004 | D72: =MAX(0,D47-3000) -> 58339.33333 | E72: 58339.33333 | F72: 58339.33333 | G72: =MAX(0,G47-3000) -> 56660 | H72: 58138 | I72: 57356 | J72: 58910 | K72: 59007 | L72: 58616 | M72: 59993 | N72: 58451 | O72: 57923 | P72: 700072
A73: 10 | B73: JR Simplot | C73: 290048778 | D73: 5613 | E73: 5684 | F73: 5372 | G73: 5375 | H73: 5241 | I73: 5149 | J73: 5184 | K73: 5049 | L73: 5247 | M73: 5344 | N73: 5693 | O73: 5654 | P73: 64605
A74: 11 | B74: McCaine Foods Inc | C74: 2500003 | D74: 6578 | E74: 6518 | F74: 6247 | G74: 6021 | H74: 6008 | I74: 5928 | J74: 5821 | K74: 6081 | L74: 6170 | M74: 6250 | N74: 6638 | O74: 6558 | P74: 74818
A75: 12 | B75: Sacred Heart Medical Center | C75: 500020 | D75: 5827 | E75: 5744 | F75: 4829 | G75: 4297 | H75: =MAX(0,H50-3000) -> 3310 | I75: 2604 | J75: 2625 | K75: 2478 | L75: 2981 | M75: 3769 | N75: 5047 | O75: 4804 | P75: 48315
A76: 13 | B76: Spokane County Courthouse | C76: 1900012 | D76: 278 | E76: 250 | F76: 0 | G76: 0 | H76: 0 | I76: 0 | J76: 0 | K76: 0 | L76: 0 | M76: 0 | N76: 0 | O76: 0 | P76: 528
A77: 14 | B77: Spokane Steel Foundry | C77: 2400169 | D77: 2044 | E77: 1980 | F77: 1949 | G77: 2047 | H77: 1986 | I77: 1990 | J77: 2727 | K77: 2433 | L77: 2132 | M77: 2136 | N77: 1955 | O77: 2005 | P77: 25384
A78: 15 | B78: Triumph Composite / Boeing | C78: 690067830 | D78: 830 | E78: 874 | F78: 496 | G78: 204 | H78: 0 | I78: 0 | J78: 47 | K78: 0 | L78: 0 | M78: 52 | N78: 529 | O78: 834 | P78: 3866
A79: 16 | B79: Vaagen Brothers Lumber | C79: 1300001 | D79: 1182 | E79: 1267 | F79: 1203 | G79: 1368 | H79: 1494 | I79: 1633 | J79: 1640 | K79: 1736 | L79: 1526 | M79: 1012 | N79: 1139 | O79: 1197 | P79: 16397
A80: 17 | B80: WSU - MP-A South Campus Feeder | C80: 290081951 | D80: 1406 | E80: 1418 | F80: 1704 | G80: 1613 | H80: 2132 | I80: 2000 | J80: 2135 | K80: 2131 | L80: 1946 | M80: 1563 | N80: 908 | O80: 994 | P80: 19950
A81: 18 | B81: WSU - MP-B East Campus EA | C81: 500033 | D81: 8045 | E81: 7735 | F81: 6736 | G81: 4987 | H81: 4550 | I81: 4765 | J81: 5624 | K81: 5294 | L81: 4698 | M81: 4712 | N81: 7039 | O81: 7134 | P81: 71319
A82: 19 | B82: WSU - MP-C East Campus EB | C82: 410031282 | D82: 1322 | E82: 1463 | F82: 1751 | G82: 2099 | H82: 2373 | I82: 2229 | J82: 2372 | K82: 2300 | L82: 2465 | M82: 1949 | N82: 1536 | O82: 1488 | P82: 23347
A83: 20 | B83: WSU - MP -D Casp East (no PVD) | C83: 500032 | D83: 1644 | E83: 1650 | F83: 1784 | G83: 1734 | H83: 2013 | I83: 1882 | J83: 2191 | K83: 1974 | L83: 1828 | M83: 1554 | N83: 1322 | O83: 1273 | P83: 20849
A84: 21 | B84: WSU - MP-E Casp West (no PVD) | C84: 500034 | D84: 4169 | E84: 4523 | F84: 3393 | G84: 2621 | H84: 1932 | I84: 1766 | J84: 1966 | K84: 1781 | L84: 1629 | M84: 1492 | N84: 1858 | O84: 3141 | P84: 30271
B85: Schedule 25 Total | D85: =SUM(D64:D84) -> 110219.3333 | E85: 111088.3333 | F85: 106466.3333 | G85: 101470 | H85: 101952 | I85: 99133 | J85: 104191 | K85: 102319 | L85: 101856 | M85: 102099 | N85: 104374 | O85: 103066 | P85: =IF(ROUND(SUM(P64:P84),0)<>ROUND(SUM(D85:O85),0),#VALUE!,SUM(P64:P84)) -> 1248234
P87: =P$2 -> 12-mo Ended
B88: KW | D88: =D$3 -> 2012-07-01 | E88: =E$3 -> 2012-08-01 | F88: 2012-09-01 | G88: 2012-10-01 | H88: 2012-11-01 | I88: 2012-12-01 | J88: 2013-01-01 | K88: 2013-02-01 | L88: 2013-03-01 | M88: 2013-04-01 | N88: 2013-05-01 | O88: 2013-06-01 | P88: Total
A89: 1 | B89: =B4 -> BF Goodrich | C89: 770037736 | D89: 8719 | E89: 9383 | F89: 9080 | G89: 9769 | H89: 9828 | I89: 9374 | J89: 9761 | K89: 9358 | L89: 9920 | M89: 9576 | N89: 8518 | O89: 7014 | P89: =SUM(D89:O89) -> 110300
A90: 2 | B90: Boise Cascade Plywood | C90: 500017 | D90: 5233 | E90: 5242 | F90: 5309 | G90: 5233 | H90: 5258 | I90: 4973 | J90: 5317 | K90: 5216 | L90: 5225 | M90: 5242 | N90: 5166 | O90: 5300 | P90: 62714
A91: 3 | B91: Boise Cascade Sawmill | C91: 500018 | D91: 2444 | E91: 2470 | F91: 2635 | G91: 2862 | H91: 2946 | I91: 2962 | J91: 2974 | K91: 2929 | L91: 2881 | M91: 2926 | N91: 2828 | O91: 2682 | P91: 33539
A92: 4 | B92: City of Spokane Sewage Treatment Plt | C92: 1900002 | D92: 2024 | E92: 1999 | F92: 2024 | G92: 2184 | H92: 2260 | I92: 2268 | J92: 2163 | K92: 2293 | L92: 2827 | M92: 2146 | N92: 2255 | O92: 2318 | P92: 26761
A93: 5 | B93: Deaconess Medical Center | C93: 1900011 | D93: 3284 | E93: 3322 | F93: 3104 | G93: 2629 | H93: 2692 | I93: 2881 | J93: 2919 | K93: 2776 | L93: 2709 | M93: 2654 | N93: 2747 | O93: 3255 | P93: 34972
A94: 6 | B94: Gonzaga University | C94: 622922 | D94: 4760 | E94: 4766 | F94: 4822 | G94: 4357 | H94: 4721 | I94: 4547 | J94: 4850 | K94: 4491 | L94: 4200 | M94: 4172 | N94: 5242 | O94: 4060 | P94: 54988
A95: 7 | B95: Honeywell Electronics | C95: 2304636 | D95: 2828 | E95: 2878 | F95: 2456 | G95: 2369 | H95: 2181 | I95: 2246 | J95: 2503 | K95: 2419 | L95: 2335 | M95: 2201 | N95: 2453 | O95: 2433 | P95: 29302
A96: 8 | B96: Huntwood Industries | C96: 610074869 | D96: 3654 | E96: 3503 | F96: 3427 | G96: 3503 | H96: 3427 | I96: 3419 | J96: 3461 | K96: 3410 | L96: 3394 | M96: 3595 | N96: 3595 | O96: 3536 | P96: 41924
A97: 9 | B97: =B12 -> Inland Empire Paper | C97: 2500004 | D97: =AVERAGE($G$97:$O$97) -> 61120 | E97: =AVERAGE($G$97:$O$97) -> 61120 | F97: 61120 | G97: 59448 | H97: 60916 | I97: 60152 | J97: 61664 | K97: 61788 | L97: 61388 | M97: 62788 | N97: 61236 | O97: 60700 | P97: 733440
A98: 10 | B98: JR Simplot | C98: 290048778 | D98: 8324 | E98: 8392 | F98: 8106 | G98: 8114 | H98: 8005 | I98: 7913 | J98: 7930 | K98: 7812 | L98: 7997 | M98: 8064 | N98: 8383 | O98: 8358 | P98: 97398
A99: 11 | B99: McCaine Foods Inc | C99: 2500003 | D99: 9296 | E99: 9251 | F99: 8960 | G99: 8770 | H99: 8770 | I99: 8725 | J99: 8579 | K99: 8814 | L99: 8781 | M99: 8837 | N99: 9229 | O99: 9195 | P99: 107207
A100: 12 | B100: Sacred Heart Medical Center | C100: 500020 | D100: 8442 | E100: 8366 | F100: 7543 | G100: 7056 | H100: 6187 | I100: 5561 | J100: 5578 | K100: 5439 | L100: 5880 | M100: 6594 | N100: 7736 | O100: 7522 | P100: 81904
A101: 13 | B101: Spokane County Courthouse | C101: 1900012 | D101: 2911 | E101: 2890 | F101: 2524 | G101: 2608 | H101: 1898 | I101: 1890 | J101: 1999 | K101: 1932 | L101: 1877 | M101: 2339 | N101: 2570 | O101: 2579 | P101: 28017
A102: 14 | B102: Spokane Steel Foundry | C102: 2400169 | D102: 4474 | E102: 4465 | F102: 4375 | G102: 4603 | H102: 4385 | I102: 4520 | J102: 5125 | K102: 4970 | L102: 4716 | M102: 4729 | N102: 4465 | O102: 4414 | P102: 55241
A103: 15 | B103: Triumph Composite / Boeing | C103: 690067830 | D103: 3368 | E103: 3419 | F103: 3066 | G103: 2797 | H103: 2520 | I103: 2646 | J103: 2722 | K103: 2638 | L103: 2638 | M103: 2688 | N103: 3066 | O103: 3368 | P103: 34936
A104: 16 | B104: Vaagen Brothers Lumber | C104: 1300001 | D104: 3730 | E104: 3819 | F104: 3774 | G104: 3920 | H104: 4066 | I104: 4166 | J104: 4211 | K104: 4301 | L104: 4122 | M104: 3595 | N104: 3752 | O104: 3752 | P104: 47208
A105: 17 | B105: WSU - MP-A South Campus Feeder | C105: 290081951 | D105: 3864 | E105: 3931 | F105: 4178 | G105: 4099 | H105: 4670 | I105: 4514 | J105: 4626 | K105: 4648 | L105: 4491 | M105: 4066 | N105: 3450 | O105: 3830 | P105: 50367
A106: 18 | B106: WSU - MP-B East Campus EA | C106: 500033 | D106: 10176 | E106: 9872 | F106: 8898 | G106: 7227 | H106: 7005 | I106: 7270 | J106: 8078 | K106: 7726 | L106: 7128 | M106: 7160 | N106: 9616 | O106: 9704 | P106: 99860
A107: 19 | B107: WSU - MP-C East Campus EB | C107: 410031282 | D107: 3923 | E107: 4024 | F107: 4318 | G107: 4687 | H107: 4956 | I107: 4754 | J107: 4922 | K107: 4880 | L107: 5116 | M107: 4838 | N107: 4418 | O107: 4427 | P107: 55263
A108: 20 | B108: WSU - MP -D Casp East (no PVD) | C108: 500032 | D108: 4160 | E108: 4256 | F108: 4368 | G108: 4320 | H108: 4688 | I108: 4528 | J108: 4816 | K108: 4608 | L108: 4464 | M108: 4144 | N108: 3856 | O108: 3872 | P108: 52080
A109: 21 | B109: WSU - MP-E Casp West (no PVD) | C109: 500034 | D109: 6720 | E109: 7008 | F109: 5872 | G109: 5216 | H109: 4576 | I109: 4448 | J109: 4656 | K109: 4464 | L109: 4320 | M109: 4160 | N109: 4496 | O109: 5712 | P109: 61648
B110: Schedule 25 Total | D110: =SUM(D89:D109) -> 163454 | E110: 164376 | F110: 159959 | G110: 155771 | H110: 155955 | I110: 153757 | J110: 158854 | K110: 156912 | L110: 156409 | M110: 156514 | N110: 159077 | O110: 158031 | P110: =IF(ROUND(SUM(P89:P109),0)<>ROUND(SUM(D110:O110),0),#VALUE!,SUM(P89:P109)) -> 1899069
B116: IEP KWHs | D116: =D$3 -> 2012-07-01 | E116: =E$3 -> 2012-08-01 | F116: 2012-09-01 | G116: 2012-10-01 | H116: 2012-11-01 | I116: 2012-12-01 | J116: 2013-01-01 | K116: 2013-02-01 | L116: 2013-03-01 | M116: 2013-04-01 | N116: 2013-05-01 | O116: 2013-06-01 | P116: Total
B117: Inland Empire Paper 60 KV | D117: =AVERAGE($G$117:$O$117) -> 4668916 | E117: =AVERAGE($G$117:$O$117) -> 4668916 | F117: 4668916 | G117: 4736520 | H117: 4443552 | I117: 4392216 | J117: 4879224 | K117: 4612320 | L117: 4933080 | M117: 4556088 | N117: 4840272 | O117: 4626972 | P117: =SUM(D117:O117) -> 56026992
B118: Inland Empire Paper 4.16 KV | D118: =AVERAGE($G$118:$O$118) -> 1701817.778 | E118: =AVERAGE($G$118:$O$118) -> 1701817.778 | F118: 1701817.778 | G118: 1771540 | H118: 1687630 | I118: 1744840 | J118: 1910940 | K118: 1586940 | L118: 1690760 | M118: 1629530 | N118: 1682580 | O118: 1611600 | P118: =SUM(D118:O118) -> 20421813.33
B119: Inland Empire Paper 115 KV | D119: =AVERAGE($G$119:$O$119) -> 33682120 | E119: =AVERAGE($G$119:$O$119) -> 33682120 | F119: 33682120 | G119: 33745536 | H119: 33133968 | I119: 34887240 | J119: 34262424 | K119: 31861656 | L119: 34673688 | M119: 32181336 | N119: 35118936 | O119: 33274296 | P119: =SUM(D119:O119) -> 404185440
A120: * | B120: Total Inland Empire Paper | D120: =SUM(D117:D119) -> 40052853.78 | E120: 40052853.78 | F120: 40052853.78 | G120: 40253596 | H120: 39265150 | I120: 41024296 | J120: 41052588 | K120: 38060916 | L120: 41297528 | M120: 38366954 | N120: 41641788 | O120: 39512868 | P120: 480634245.3
D121: =D12 -> 40052853.78 | E121: 40052853.78 | F121: 40052853.78 | G121: 40253596 | H121: 39265150 | I121: 41024296 | J121: 41052588 | K121: 38060916 | L121: 41297528 | M121: 38366954 | N121: 41641788 | O121: 39512868 | P121: =SUM(D121:O121) -> 480634245.3
B122: IEP KVA
B123: Inland Empire Paper 60 KV | D123: =AVERAGE($G$123:$O$123) -> 9560.555556 | E123: =AVERAGE($G$123:$O$123) -> 9560.555556 | F123: 9560.555556 | G123: 12332 | H123: 8759 | I123: 8629 | J123: 12107 | K123: 9052 | L123: 9243 | M123: 8727 | N123: 8436 | O123: 8760 | P123: =SUM(D123:O123) -> 114726.6667
B124: Inland Empire Paper 4.16 KV | D124: =AVERAGE($G$124:$O$124) -> 4375.111111 | E124: =AVERAGE($G$124:$O$124) -> 4375.111111 | F124: 4375.111111 | G124: 8618 | H124: 3222 | I124: 3204 | J124: 8568 | K124: 3172 | L124: 3156 | M124: 3144 | N124: 3144 | O124: 3148 | P124: =SUM(D124:O124) -> 52501.33333
B125: Inland Empire Paper 115 KV | D125: =AVERAGE($G$125:$O$125) -> 52464 | E125: =AVERAGE($G$125:$O$125) -> 52464 | F125: 52464 | G125: 50832 | H125: 52272 | I125: 51696 | J125: 52416 | K125: 52416 | L125: 52416 | M125: 53856 | N125: 51984 | O125: 54288 | P125: =SUM(D125:O125) -> 629568
A126: * | B126: Total Inland Empire Paper | D126: =SUM(D123:D125) -> 66399.66667 | E126: 66399.66667 | F126: 66399.66667 | G126: 71782 | H126: 64253 | I126: 63529 | J126: 73091 | K126: 64640 | L126: 64815 | M126: 65727 | N126: 63564 | O126: 66196 | P126: 796796
D127: =D47 -> 61339.33333 | E127: 61339.33333 | F127: 61339.33333 | G127: 59660 | H127: 61138 | I127: 60356 | J127: 61910 | K127: 62007 | L127: 61616 | M127: 62993 | N127: 61451 | O127: 60923 | P127: =SUM(D127:O127) -> 736072
B128: IEP KW
B129: Inland Empire Paper 60 KV | D129: =AVERAGE($G$129:$O$129) -> 8576 | E129: =AVERAGE($G$129:$O$129) -> 8576 | F129: 8576 | G129: 11016 | H129: 7776 | I129: 7704 | J129: 10800 | K129: 8208 | L129: 8352 | M129: 7848 | N129: 7560 | O129: 7920 | P129: =SUM(D129:O129) -> 102912
B130: Inland Empire Paper 4.16 KV | D130: =AVERAGE($G$130:$O$130) -> 3653.333333 | E130: =AVERAGE($G$130:$O$130) -> 3653.333333 | F130: 3653.333333 | G130: 7580 | H130: 2600 | I130: 2580 | J130: 7480 | K130: 2540 | L130: 2520 | M130: 2520 | N130: 2520 | O130: 2540 | P130: =SUM(D130:O130) -> 43840
B131: Inland Empire Paper 115 KV | D131: =AVERAGE($G$131:$O$131) -> 52464 | E131: =AVERAGE($G$131:$O$131) -> 52464 | F131: 52464 | G131: 50832 | H131: 52272 | I131: 51696 | J131: 52416 | K131: 52416 | L131: 52416 | M131: 53856 | N131: 51984 | O131: 54288 | P131: =SUM(D131:O131) -> 629568
A132: * | B132: Total Inland Empire Paper | D132: =SUM(D129:D131) -> 64693.33333 | E132: 64693.33333 | F132: 64693.33333 | G132: 69428 | H132: 62648 | I132: 61980 | J132: 70696 | K132: 63164 | L132: 63288 | M132: 64224 | N132: 62064 | O132: 64748 | P132: 776320
D133: =D97 -> 61120 | E133: 61120 | F133: 61120 | G133: 59448 | H133: 60916 | I133: 60152 | J133: 61664 | K133: 61788 | L133: 61388 | M133: 62788 | N133: 61236 | O133: 60700 | P133: =SUM(D133:O133) -> 733440
B135: Calc Revenue for IEP | D135: =500000*0.05634+MIN(5500000,D12-500000)*0.05095+MAX(0,D12-6000000)*0.04652+14000+D72*4.25-D123*1.1-D125*1.35 -> 2073132.913 | E135: =500000*0.05528+MIN(5500000,E12-500000)*0.04989+MAX(0,E12-6000000)*0.04546+14000+E72*4.25-E123*1.1-E125*1.35 -> 2030676.888 | F135: =500000*0.05528+MIN(5500000,F12-500000)*0.04989+MAX(0,F12-6000000)*0.04546+14000+F72*4.25-F123*1.1-F125*1.35 -> 2030676.888 | G135: 2031820.074 | H135: 1995153.119 | I135: 2072720.996 | J135: =500000*0.05642+MIN(5500000,J12-500000)*0.05086+MAX(0,J12-6000000)*0.04494+14500+J72*4.75-J123*1.1-J125*1.4 -> 2090825.705 | K135: =500000*0.05642+MIN(5500000,K12-500000)*0.05086+MAX(0,K12-6000000)*0.04494+14500+K72*4.75-K123*1.1-K125*1.4 -> 1960201.215 | L135: 2103587.208 | M135: 1976979.563 | N135: 2119767.003 | O135: 2018003.338 | P135: =SUM(D135:O135) -> 24503544.91
B136: Revenue for IEP per Handbill Report | D136: 1829885.41 | E136: 1788226.27 | F136: 1852217.91 | G136: 2031820.07 | H136: 1995153.12 | I136: 2072721 | J136: 2090825.7 | K136: 1960201.22 | L136: 2103587.21 | M136: 1976979.56 | N136: 2119767 | O136: 2018003.34 | P136: =SUM(D136:O136) -> 23839387.81
D137: =D135-D136 -> 243247.5033 | E137: =E135-E136 -> 242450.6183 | F137: 178458.9783
B138: Primary Voltage Discount
B139: >11 and <60 | C139: -0.2 | D139: =(D60-D58-D59-D47)*$C139 -> -19871 | E139: =(E60-E58-E59-E47)*$C139 -> -19960.6 | F139: -19233 | G139: -18762.4 | H139: =(H60-H58-H59-H47)*$C139 -> -18411.8 | I139: -18145.8 | J139: -18785.4 | K139: -18445.8 | L139: -18513 | M139: =(M60-M58-M59-M47)*$C139 -> -18385.4 | N139: -19267.8 | O139: =(O60-O58-O59-O47)*$C139 -> -18899 | P139: =SUM(D139:O139) -> -226681
B140: >60 and <115 | C140: 0 | D140: =D123*$C140 -> 0 | E140: =E123*$C140 -> 0 | F140: 0 | G140: 0 | H140: =H123*$C140 -> 0 | I140: 0 | J140: 0 | K140: 0 | L140: 0 | M140: 0 | N140: 0 | O140: =O123*$C140 -> 0 | P140: =SUM(D140:O140) -> 0
B141: >115 | C141: 0 | D141: =D125*$C141 -> 0 | E141: =E125*$C141 -> 0 | F141: 0 | G141: 0 | H141: 0 | I141: 0 | J141: =J125*$C141 -> 0 | K141: 0 | L141: 0 | M141: 0 | N141: 0 | O141: =O125*$C141 -> 0 | P141: =SUM(D141:O141) -> 0
D142: =SUM(D139:D141) -> -19871 | E142: -19960.6 | F142: -19233 | G142: -18762.4 | H142: -18411.8 | I142: -18145.8 | J142: -18785.4 | K142: -18445.8 | L142: -18513 | M142: -18385.4 | N142: -19267.8 | O142: -18899 | P142: -226681
B144: Base Revenues
B145: BF Goodrich | C145: 770037736 | D145: =500000*0.05708+MIN(5500000,D4-500000)*0.05135+MAX(0,D4-6000000)*0.04391+15000+D64*5.25-0.2*D39 -> 300995.6021 | E145: =500000*0.05708+MIN(5500000,E4-500000)*0.05135+MAX(0,E4-6000000)*0.04391+15000+E64*5.25-0.2*E39 -> 332874.7131 | F145: 311696.5392 | G145: 280932.2023 | H145: 295617.8003 | I145: 331832.0156 | J145: 312596.7651 | K145: 302667.0287 | L145: 339223.4101 | M145: 315580.7475 | N145: 276005.0866 | O145: 210757.3399 | P145: =SUM(D145:O145) -> 3610779.251
B146: Boise Cascade Plywood | C146: 500017 | D146: =500000*0.05708+MIN(5500000,D5-500000)*0.05135+MAX(0,D5-6000000)*0.04391+15000+D65*5.25-0.2*D40 -> 199298.2362 | E146: 205586.596 | F146: 195311.1628 | G146: 201589.4642 | H146: 185954.0797 | I146: 161241.2638 | J146: 181133.1023 | K146: 187413.429 | L146: 200648.5036 | M146: 197183.6056 | N146: 192749.7745 | O146: 192651.4297 | P146: =SUM(D146:O146) -> 2300760.647
B147: Boise Cascade Sawmill | C147: 500018 | D147: 81293.21675 | E147: 79262.2026 | F147: 79574.78005 | G147: 90114.59105 | H147: 91461.1238 | I147: 93296.86315 | J147: 98872.1859 | K147: 89143.4258 | L147: 87133.4561 | M147: 92068.3572 | N147: 86177.16545 | O147: 84554.0621 | P147: 1052951.43
B148: City of Spokane Sewage Treatment Plt | C148: 1900002 | D148: 86626.27125 | E148: 84392.59525 | F148: 85070.53425 | G148: 86200.61705 | H148: 86706.6387 | I148: 90169.9581 | J148: 92064.3255 | K148: 86116.6269 | L148: 88313.474 | M148: 83174.05345 | N148: 85769.39575 | O148: 86321.49935 | P148: 1040925.99
B149: Deaconess Medical Center | C149: 1900011 | D149: 116098.6759 | E149: 114966.0009 | F149: 103802.4754 | G149: 105043.9263 | H149: 102905.9067 | I149: 105827.6262 | J149: 108762.0553 | K149: 97312.64255 | L149: 104838.6529 | M149: 102626.2195 | N149: 104924.6287 | O149: 105917.7153 | P149: 1273026.526
B150: Gonzaga University | C150: 622922 | D150: 137169.7311 | E150: 136201.3269 | F150: 142782.7039 | G150: 144117.9528 | H150: 145037.0016 | I150: 141748.1824 | J150: 157105.4972 | K150: 142774.0564 | L150: 137875.3429 | M150: 136510.788 | N150: 126421.9125 | O150: 110726.3823 | P150: 1658470.878
B151: Honeywell Electronics | C151: 2304636 | D151: 87787.45975 | E151: 88378.73475 | F151: 77308.98115 | G151: 74468.9704 | H151: 65676.9494 | I151: 68319.2469 | J151: 76030.2728 | K151: 69692.1453 | L151: 74518.9588 | M151: 73504.22685 | N151: 75595.13115 | O151: 77620.7521 | P151: 908901.8294
B152: Huntwood Industries | C152: 610074869 | D152: 76367.998 | E152: 77714.44735 | F152: 69164.5261 | G152: 77265.9302 | H152: 73208.66615 | I152: 71111.4633 | J152: 78676.8798 | K152: 72907.881 | L152: 80133.52195 | M152: 85030.637 | N152: 85113.321 | O152: 80586.929 | P152: 927282.2009
B153: Inland Empire Paper | C153: 2500004 | D153: =500000*0.05708+MIN(5500000,D12-500000)*0.05135+MAX(0,D12-6000000)*0.04391+15000+D72*5.25-1.1*D123-1.4*D125 -> 2043541.098 | E153: =500000*0.05708+MIN(5500000,E12-500000)*0.05135+MAX(0,E12-6000000)*0.04391+15000+E72*5.25-1.1*E123-1.4*E125 -> 2043541.098 | F153: 2043541.098 | G153: 2042775.4 | H153: =500000*0.05708+MIN(5500000,H12-500000)*0.05135+MAX(0,H12-6000000)*0.04391+15000+H72*5.25-1.1*H123-1.4*H125 -> 2009046.536 | I153: 2083134.537 | J153: =500000*0.05708+MIN(5500000,J12-500000)*0.05135+MAX(0,J12-6000000)*0.04391+15000+J72*5.25-1.1*J123-1.4*J125 -> 2087701.539 | K153: =500000*0.05708+MIN(5500000,K12-500000)*0.05135+MAX(0,K12-6000000)*0.04391+15000+K72*5.25-1.1*K123-1.4*K125 -> 1960206.972 | L153: 2100063.754 | M153: 1977163.1 | N153: 2115806.461 | O153: 2015971.584 | P153: 24522493.18
B154: JR Simplot | C154: 290048778 | D154: =500000*0.05708+MIN(5500000,D13-500000)*0.05135+MAX(0,D13-6000000)*0.04391+15000+D73*5.25-0.2*D48 -> 321108.381 | E154: =500000*0.05708+MIN(5500000,E13-500000)*0.05135+MAX(0,E13-6000000)*0.04391+15000+E73*5.25-0.2*E48 -> 336757.934 | F154: 290366.5187 | G154: 318909.8801 | H154: 253470.7142 | I154: 256950.6672 | J154: 310949.4061 | K154: 292001.6909 | L154: 232605.5695 | M154: 241098.1116 | N154: 268549.8369 | O154: 322016.7693 | P154: 3444785.479
B155: McCaine Foods Inc | C155: 2500003 | D155: =500000*0.05708+MIN(5500000,D14-500000)*0.05135+MAX(0,D14-6000000)*0.04391+15000+D74*5.25-0.2*D49 -> 316468.2732 | E155: 347588.9571 | F155: 336641.5267 | G155: 341580.0667 | H155: 332755.0824 | I155: 277642.7924 | J155: 331320.4425 | K155: 308037.2547 | L155: 346424.4955 | M155: 335029.9087 | N155: 343843.9175 | O155: 341499.7091 | P155: 3958832.426
B156: Sacred Heart Medical Center | C156: 500020 | D156: 289960.075 | E156: 282579.8677 | F156: 242172.0189 | G156: 219059.1079 | H156: 200237.3706 | I156: 203481.3888 | J156: 205720.1069 | K156: 184743.9057 | L156: 201950.1805 | M156: 204629.7066 | N156: 236526.1451 | O156: 241174.3595 | P156: 2712234.233
B157: Spokane County Courthouse | C157: 1900012 | D157: 91450.6441 | E157: 87833.61935 | F157: 75924.22195 | G157: 72668.37225 | H157: 66630.38935 | I157: 68205.45615 | J157: 72650.6656 | K157: 65329.5289 | L157: 68563.96025 | M157: 70597.47145 | N157: 77201.36635 | O157: 78830.6774 | P157: 895886.3731
B158: Spokane Steel Foundry | C158: 2400169 | D158: 90204.05755 | E158: 87033.80815 | F158: 79425.03805 | G158: 88663.81605 | H158: 76248.6171 | I158: 75553.1008 | J158: 90923.801 | K158: 87091.9952 | L158: 88043.47205 | M158: 88926.04395 | N158: 76446.33075 | O158: 70059.17305 | P158: 998619.2537
B159: Stimson Lumber - Colville | C159: 610018682 | D159: 106092.9564 | E159: 106702.2841 | F159: 87129.6003 | G159: 90381.1516 | H159: 79846.76185 | I159: 74313.43125 | J159: 90990.82415 | K159: 81746.5844 | L159: 88711.77125 | M159: 89931.45945 | N159: 93462.8718 | O159: 96060.57235 | P159: 1085370.269
B160: Triumph Composite / Boeing | C160: 690067830 | D160: 112856.1793 | E160: 117617.5207 | F160: 114869.0602 | G160: 125471.0315 | H160: 125581.0967 | I160: 128186.3858 | J160: 140782.9214 | K160: 128150.6721 | L160: 122813.2819 | M160: 102689.3621 | N160: 95794.63745 | O160: 111078.6051 | P160: 1425890.754
B161: Vaagen Brothers Lumber | C161: 1300001 | D161: 141003.6413 | E161: 140617.9585 | F161: 135708.3635 | G161: 149143.0965 | H161: 147847.2226 | I161: 152901.8855 | J161: 163521.1443 | K161: 147787.7929 | L161: 148107.3045 | M161: 142670.9818 | N161: 133916.2805 | O161: 128289.6887 | P161: 1731515.361
B162: WSU - MP-A South Campus Feeder | C162: 290081951 | D162: 295139.4173 | E162: 298486.1096 | F162: 263076.4155 | G162: 234740.6707 | H162: 222752.4159 | I162: 242283.0346 | J162: 262933.185 | K162: 237392.1187 | L162: 231980.6792 | M162: 223449.7407 | N162: 264890.1716 | O162: 270547.2853 | P162: 3047671.244
B163: WSU - MP-B East Campus EA | C163: 500033 | D163: 138336.1138 | E163: 153843.9988 | F163: 164790.9084 | G163: 162874.1646 | H163: 168306.8634 | I163: 174137.5206 | J163: 174780.9511 | K163: 158256.9925 | L163: 178342.2305 | M163: 165857.2553 | N163: 159181.2748 | O163: 154319.4288 | P163: 1953027.703
B164: WSU - MP-C East Campus EB | C164: 410031282 | D164: =500000*0.05708+MIN(5500000,D23-500000)*0.05135+MAX(0,D23-6000000)*0.04391+15000+D83*5.25 -> 144265.3764 | E164: =500000*0.05708+MIN(5500000,E23-500000)*0.05135+MAX(0,E23-6000000)*0.04391+15000+E83*5.25 -> 151126.8372 | F164: 147609.3672 | G164: 153641.1448 | H164: 142791.3432 | I164: 157347.9704 | J164: 172423.5096 | K164: 150416.852 | L164: 154628.8372 | M164: 148381.5124 | N164: 139993.82 | O164: 136116.6004 | P164: 1798743.171
B165: WSU - MP -D Casp East (no PVD) | C165: 500032 | D165: =500000*0.05708+MIN(5500000,D24-500000)*0.05135+MAX(0,D24-6000000)*0.04391+15000+D84*5.25 -> 207211.9944 | E165: =500000*0.05708+MIN(5500000,E24-500000)*0.05135+MAX(0,E24-6000000)*0.04391+15000+E84*5.25 -> 217813.5508 | F165: 180145.1076 | G165: 156744.66 | H165: 152065.492 | I165: 142737.2632 | J165: 158217.8456 | K165: 140853.2108 | L165: 140965.1328 | M165: 141407.2144 | N165: 128454.0572 | O165: 146951.0112 | P165: 1913566.54
B166: Schedule 25 Total | P166: =SUM(P145:P165) -> 62261734.74
P167: =P166-'Pres & Prop Rev'!G152 -> 24876591.4

Sheet St Lts (hidden)
A1: Street Light Summary | I1: WASHINGTON Street Lights | AJ1: % rate increase --> | AK1: ='Lighting summary'!L11 -> 0 | AL1: ='Lighting summary'!L12 -> 0 | AM1: ='Lighting summary'!L13 -> 0 | AN1: ='Lighting summary'!L14 -> 0 | AO1: ='Lighting summary'!L15 -> 0 | BE1: compare input Present Billing Rates to calculated Present Billing Rates | BL1: =BE2 -> 1.0401
A2: DWWPAOAE Report, as of 01/10/12 | M2: Number of Lights(1) | S2: Present Rates | Y2: Monthly Revenue at Present Rates | AE2: Number of Lights | AK2: Proposed Rates | AQ2: Monthly Revenue at Proposed Rates | AX2: Present Billing Rates | BD2: =-0.00067-0.00503 -> -0.0057 | BE2: =1+'Lighting summary'!I39 -> 1.0401 | BF2: Sch 91 & 93 | BL2: New Billing Rates | BR2: Increase
I3: Fixture Type | J3: Pole Facility | K3: Size | L3: Sched | M3: 041 | N3: 042 | O3: 044 | P3: 045 | Q3: 046 | S3: 041 | T3: 042 | U3: 044 | V3: 045 | W3: 046 | Y3: 041 | Z3: 042 | AA3: 044 | AB3: 045 | AC3: 046 | AE3: 041 | AF3: 042 | AG3: 044 | AH3: 045 | AI3: 046 | AK3: 041 | AL3: 042 | AM3: 044 | AN3: 045 | AO3: 046 | AQ3: 041 | AR3: 042 | AS3: 044 | AT3: 045 | AU3: 046 | AW3: kwh | AX3: 041 | AY3: 042 | AZ3: 044 | BA3: 045 | BB3: 046 | BD3: Sch 93 | BE3: 041 | BF3: 042 | BG3: 044 | BH3: 045 | BI3: 046 | BL3: 041 | BM3: 042 | BN3: 044 | BO3: 045 | BP3: 046 | BR3: 041 | BS3: 042 | BT3: 044 | BU3: 045 | BV3: 046
I4: Single Mercury Vapor | J4: Direct Burial | K4: 4000 | L4: 214 | M4: =SUMIF($G:$G,TEXT(M$3,"000")&TEXT($L4,"000"),$E:$E) -> 75 | N4: 0 | O4: 0 | P4: 0 | Q4: 0 | S4: 13.89 | T4: 0 | U4: 0 | V4: 0 | W4: 0 | Y4: =IF(AND(M4<>0,S4=0),#VALUE!,M4*S4) -> 1041.75 | Z4: =IF(AND(N4<>0,T4=0),#VALUE!,N4*T4) -> 0 | AA4: =IF(AND(O4<>0,U4=0),#VALUE!,O4*U4) -> 0 | AB4: =IF(AND(P4<>0,V4=0),#VALUE!,P4*V4) -> 0 | AC4: =IF(AND(Q4<>0,W4=0),#VALUE!,Q4*W4) -> 0 | AE4: =M4 -> 75 | AF4: =N4 -> 0 | AG4: 0 | AH4: 0 | AI4: 0 | AK4: =ROUND(S4*(1+AK$1),2) -> 13.89 | AL4: 0 | AM4: 0 | AN4: 0 | AO4: 0 | AQ4: =IF(AND(AE4<>0,AK4=0),#VALUE!,AE4*AK4) -> 1041.75 | AR4: =IF(AND(AF4<>0,AL4=0),#VALUE!,AF4*AL4) -> 0 | AS4: =IF(AND(AG4<>0,AM4=0),#VALUE!,AG4*AM4) -> 0 | AT4: =IF(AND(AH4<>0,AN4=0),#VALUE!,AH4*AN4) -> 0 | AU4: =IF(AND(AI4<>0,AO4=0),#VALUE!,AI4*AO4) -> 0 | AV4: =SUM(AQ4:AU4)-SUM(Y4:AC4) -> 0 | AW4: 42 | AX4: 14.21 | BD4: =ROUND(AW4*$BD$2,2) -> -0.24 | BE4: =ROUND((S4*$BE$2)+$BD4-AX4,2) -> 0 | BL4: =AK4*$BL$1 -> 14.446989 | BM4: =AL4*$BL$1 -> 0 | BN4: 0 | BO4: 0 | BP4: 0 | BR4: =BL4-AX4 -> 0.236989 | BS4: =BM4-AY4 -> 0 | BT4: =BN4-AZ4 -> 0 | BU4: =BO4-BA4 -> 0 | BV4: =BP4-BB4 -> 0
B5: State | C5: Sched | D5: Rate Sub | E5: # of Lights | I5: Single High-Pressure Sodium Vapor | J5: Direct Burial | K5: 50W | L5: 234 | M5: 0 | N5: 129 | O5: 0 | P5: 0 | Q5: 0 | S5: 0 | T5: 13.04 | U5: 0 | V5: 0 | W5: 0 | Y5: =IF(AND(M5<>0,S5=0),#VALUE!,M5*S5) -> 0 | Z5: =IF(AND(N5<>0,T5=0),#VALUE!,N5*T5) -> 1682.16 | AA5: =IF(AND(O5<>0,U5=0),#VALUE!,O5*U5) -> 0 | AB5: =IF(AND(P5<>0,V5=0),#VALUE!,P5*V5) -> 0 | AC5: =IF(AND(Q5<>0,W5=0),#VALUE!,Q5*W5) -> 0 | AE5: =M5 -> 0 | AF5: 129 | AG5: 0 | AH5: 0 | AI5: 0 | AK5: 0 | AL5: 13.04 | AM5: 0 | AN5: 0 | AO5: 0 | AQ5: =IF(AND(AE5<>0,AK5=0),#VALUE!,AE5*AK5) -> 0 | AR5: =IF(AND(AF5<>0,AL5=0),#VALUE!,AF5*AL5) -> 1682.16 | AS5: 0 | AT5: 0 | AU5: 0 | AV5: 0 | AW5: 20 | AY5: 13.45 | BD5: =ROUND(AW5*$BD$2,2) -> -0.11 | BF5: =ROUND((T5*$BE$2)+$BD5-AY5,2) -> 0 | BL5: =AK5*$BL$1 -> 0 | BM5: =AL5*$BL$1 -> 13.562904 | BN5: =AM5*$BL$1 -> 0 | BO5: =AN5*$BL$1 -> 0 | BP5: =AO5*$BL$1 -> 0 | BR5: =BL5-AX5 -> 0 | BS5: =BM5-AY5 -> 0.112904 | BT5: =BN5-AZ5 -> 0 | BU5: =BO5-BA5 -> 0 | BV5: =BP5-BB5 -> 0
I6: High-Pressure Sodium Vapor | J6: Dusk to Dawn | K6: 70W | L6: 335 | M6: 0 | N6: 0 | O6: 0 | P6: 0 | Q6: 41 | S6: 0 | T6: 0 | U6: 0 | V6: 0 | W6: 3.36 | Y6: 0 | Z6: 0 | AA6: 0 | AB6: 0 | AC6: 137.76 | AE6: 0 | AF6: 0 | AG6: 0 | AH6: 0 | AI6: 41 | AK6: 0 | AL6: 0 | AM6: 0 | AN6: 0 | AO6: 3.36 | AQ6: 0 | AR6: 0 | AS6: 0 | AT6: 0 | AU6: 137.76 | AV6: 0 | AW6: 25 | BB6: 3.34 | BD6: -0.14 | BI6: 0.01 | BL6: 0 | BM6: 0 | BN6: 0 | BO6: 0 | BP6: 3.494736 | BR6: 0 | BS6: 0 | BT6: 0 | BU6: 0 | BV6: 0.154736
B7: 2 | C7: 041 | D7: 214 | E7: =75 -> 75 | G7: =IF(OR(ISBLANK(C7),ISBLANK(D7)),"",TEXT(C7,"000")&TEXT(D7,"000")) -> 041214 | I7: Single Mercury Vapor | J7: Wood Pole | K7: 7000 | L7: 411 | M7: 34 | N7: 0 | O7: 0 | P7: 0 | Q7: 0 | S7: 15.06 | T7: 0 | U7: 0 | V7: 0 | W7: 0 | Y7: 512.04 | Z7: 0 | AA7: 0 | AB7: 0 | AC7: 0 | AE7: 34 | AF7: 0 | AG7: 0 | AH7: 0 | AI7: 0 | AK7: 15.06 | AL7: 0 | AM7: 0 | AN7: 0 | AO7: 0 | AQ7: 512.04 | AR7: 0 | AS7: 0 | AT7: 0 | AU7: 0 | AV7: 0 | AW7: 80 | AX7: 15.21 | BD7: -0.46 | BE7: =ROUND((S7*$BE$2)+$BD7-AX7,2) -> -0.01 | BL7: 15.663906 | BM7: 0 | BN7: 0 | BO7: 0 | BP7: 0 | BR7: 0.453906 | BS7: 0 | BT7: 0 | BU7: 0 | BV7: 0
B8: 2 | C8: 041 | D8: 411 | E8: 34 | G8: 041411 | I8: Mercury Vapor | J8: Dusk to Dawn | K8: 7000 | L8: 415 | M8: 0 | N8: 0 | O8: 0 | P8: 87 | Q8: 0 | S8: 0 | T8: 0 | U8: 0 | V8: 6.61 | W8: 0 | Y8: 0 | Z8: 0 | AA8: 0 | AB8: 575.07 | AC8: 0 | AE8: 0 | AF8: 0 | AG8: 0 | AH8: 87 | AI8: 0 | AK8: 0 | AL8: 0 | AM8: 0 | AN8: 6.61 | AO8: 0 | AQ8: 0 | AR8: 0 | AS8: 0 | AT8: 575.07 | AU8: 0 | AV8: 0 | AW8: 80 | BA8: 6.43 | BD8: -0.46 | BH8: -0.01 | BL8: 0 | BM8: 0 | BN8: 0 | BO8: 6.875061 | BP8: 0 | BR8: 0 | BS8: 0 | BT8: 0 | BU8: 0.445061 | BV8: 0
B9: 2 | C9: 041 | D9: 511 | E9: 6 | G9: 041511 | I9: Mercury Vapor | J9: Dusk to 1 AM | K9: 7000 | L9: 419 | M9: 0 | N9: 0 | O9: 0 | P9: 16 | Q9: 0 | S9: 0 | T9: 0 | U9: 0 | V9: 4.47 | W9: 0 | Y9: 0 | Z9: 0 | AA9: 0 | AB9: 71.52 | AC9: 0 | AE9: =M9 -> 0 | AF9: =N9 -> 0 | AG9: =O9 -> 0 | AH9: =P9 -> 16 | AI9: =Q9 -> 0 | AK9: 0 | AL9: 0 | AM9: 0 | AN9: 4.47 | AO9: 0 | AQ9: 0 | AR9: 0 | AS9: 0 | AT9: 71.52 | AU9: 0 | AV9: 0 | AW9: 80 | BA9: 4.2 | BD9: -0.46 | BH9: -0.01 | BL9: =AK9*$BL$1 -> 0 | BM9: =AL9*$BL$1 -> 0 | BN9: =AM9*$BL$1 -> 0 | BO9: =AN9*$BL$1 -> 4.649247 | BP9: =AO9*$BL$1 -> 0 | BR9: 0 | BS9: 0 | BT9: 0 | BU9: 0.449247 | BV9: 0
B10: 2 | C10: 041 | D10: 611 | E10: 12 | G10: 041611 | I10: Single High-Pressure Sodium Vapor | J10: Wood Pole | K10: 100W | L10: 421 | M10: 0 | N10: 9 | O10: 0 | P10: 0 | Q10: 0 | S10: 0 | T10: 24.75 | U10: 0 | V10: 0 | W10: 0 | Y10: 0 | Z10: 222.75 | AA10: 0 | AB10: 0 | AC10: 0 | AE10: 0 | AF10: 9 | AG10: 0 | AH10: 0 | AI10: 0 | AK10: 0 | AL10: 24.75 | AM10: 0 | AN10: 0 | AO10: 0 | AQ10: 0 | AR10: 222.75 | AS10: 0 | AT10: 0 | AU10: 0 | AV10: 0 | AW10: 40 | AY10: 25.51 | BD10: -0.23 | BF10: 0 | BL10: 0 | BM10: 25.742475 | BN10: 0 | BO10: 0 | BP10: 0 | BR10: 0 | BS10: 0.232475 | BT10: 0 | BU10: 0 | BV10: 0
B11: 2 | C11: 041 | E11: =SUM(E7:E10) -> 127 | I11: Single High-Pressure Sodium Vapor | J11: Wood Pole | K11: 100W | L11: 431 | M11: 0 | N11: 9750 | O11: 3 | P11: 0 | Q11: 0 | S11: 0 | T11: 15.02 | U11: 7.1 | V11: 0 | W11: 0 | Y11: 0 | Z11: 146445 | AA11: 21.3 | AB11: 0 | AC11: 0 | AE11: 0 | AF11: 9750 | AG11: 3 | AH11: 0 | AI11: 0 | AK11: 0 | AL11: =ROUND(T11*(1+AL$1),2)+1 -> 16.02 | AM11: 7.1 | AN11: 0 | AO11: 0 | AQ11: 0 | AR11: =IF(AND(AF11<>0,AL11=0),#VALUE!,AF11*AL11) -> 156195 | AS11: 21.3 | AT11: 0 | AU11: 0 | AV11: =SUM(AQ11:AU11)-SUM(Y11:AC11) -> 9750 | AW11: 40 | AY11: 15.39 | AZ11: 7.15 | BD11: -0.23 | BF11: 0 | BG11: 0 | BL11: 0 | BM11: 16.662402 | BN11: 7.38471 | BO11: 0 | BP11: 0 | BR11: 0 | BS11: 1.272402 | BT11: 0.23471 | BU11: 0 | BV11: 0
I12: Single High-Pressure Sodium Vapor | J12: Pedestal Base | K12: 100W | L12: 432 | M12: 0 | N12: 144 | O12: 20 | P12: 0 | Q12: 0 | S12: 0 | T12: 24.75 | U12: 7.1 | V12: 0 | W12: 0 | Y12: 0 | Z12: 3564 | AA12: 142 | AB12: 0 | AC12: 0 | AE12: 0 | AF12: 144 | AG12: 20 | AH12: 0 | AI12: 0 | AK12: 0 | AL12: =ROUND(T12*(1+AL$1),2) -> 24.75 | AM12: 7.1 | AN12: 0 | AO12: 0 | AQ12: 0 | AR12: 3564 | AS12: 142 | AT12: 0 | AU12: 0 | AV12: 0 | AW12: 40 | AY12: 25.51 | AZ12: 7.15 | BD12: -0.23 | BF12: 0 | BG12: 0 | BL12: 0 | BM12: 25.742475 | BN12: 7.38471 | BO12: 0 | BP12: 0 | BR12: 0 | BS12: 0.232475 | BT12: 0.23471 | BU12: 0 | BV12: 0
B13: 2 | C13: 042 | D13: 234 | E13: 129 | G13: 042234 | I13: Single High-Pressure Sodium Vapor | J13: Direct Burial | K13: 100W | L13: 433 | M13: 0 | N13: 85 | O13: 10 | P13: 0 | Q13: 0 | S13: 0 | T13: 24.75 | U13: 7.1 | V13: 0 | W13: 0 | Y13: 0 | Z13: 2103.75 | AA13: 71 | AB13: 0 | AC13: 0 | AE13: 0 | AF13: 85 | AG13: 10 | AH13: 0 | AI13: 0 | AK13: 0 | AL13: 24.75 | AM13: 7.1 | AN13: 0 | AO13: 0 | AQ13: 0 | AR13: 2103.75 | AS13: 71 | AT13: 0 | AU13: 0 | AV13: 0 | AW13: 40 | AY13: 25.51 | AZ13: 7.15 | BD13: -0.23 | BF13: 0 | BG13: 0 | BL13: 0 | BM13: 25.742475 | BN13: 7.38471 | BO13: 0 | BP13: 0 | BR13: 0 | BS13: 0.232475 | BT13: 0.23471 | BU13: 0 | BV13: 0
B14: 2 | C14: 042 | D14: 421 | E14: 9 | G14: 042421 | I14: Single High-Pressure Sodium Vapor | J14: Direct Burial | K14: 100W | L14: 434 | M14: =SUMIF($G:$G,TEXT(M$3,"000")&TEXT($L14,"000"),$E:$E) -> 0 | N14: 2507 | O14: 0 | P14: 0 | Q14: 0 | S14: 0 | T14: 13.96 | U14: 0 | V14: 0 | W14: 0 | Y14: 0 | Z14: 34997.72 | AA14: 0 | AB14: 0 | AC14: 0 | AE14: 0 | AF14: 2507 | AG14: 0 | AH14: 0 | AI14: 0 | AK14: 0 | AL14: 13.96 | AM14: 0 | AN14: 0 | AO14: 0 | AQ14: 0 | AR14: 34997.72 | AS14: 0 | AT14: 0 | AU14: 0 | AV14: 0 | AW14: 40 | AY14: 14.29 | BD14: -0.23 | BF14: 0 | BL14: 0 | BM14: 14.519796 | BN14: 0 | BO14: 0 | BP14: 0 | BR14: 0 | BS14: 0.229796 | BT14: 0 | BU14: 0 | BV14: 0
B15: 2 | C15: 042 | D15: 431 | E15: 9750 | G15: 042431 | I15: Single High-Pressure Sodium Vapor | J15: No Pole / Dusk to Dawn (046) | K15: 100W | L15: 435 | M15: 0 | N15: 2470 | O15: 45 | P15: 0 | Q15: 81 | S15: 0 | T15: 13.23 | U15: 7.1 | V15: 0 | W15: 4.75 | Y15: 0 | Z15: 32678.1 | AA15: 319.5 | AB15: 0 | AC15: 384.75 | AE15: 0 | AF15: 2470 | AG15: 45 | AH15: 0 | AI15: 81 | AK15: 0 | AL15: 13.23 | AM15: 7.1 | AN15: 0 | AO15: 4.75 | AQ15: 0 | AR15: 32678.1 | AS15: 319.5 | AT15: 0 | AU15: 384.75 | AV15: 0 | AW15: 40 | AY15: 13.53 | AZ15: 7.15 | BB15: 4.71 | BD15: -0.23 | BF15: 0 | BG15: 0 | BI15: 0 | BL15: 0 | BM15: 13.760523 | BN15: 7.38471 | BO15: 0 | BP15: 4.940475 | BR15: 0 | BS15: 0.230523 | BT15: 0.23471 | BU15: 0 | BV15: 0.230475
B16: 2 | C16: 042 | D16: 432 | E16: 144 | G16: 042432 | I16: Single High-Pressure Sodium Vapor | J16: Developer Contributed | K16: 100W | L16: 436 | M16: 0 | N16: 603 | O16: 0 | P16: 0 | Q16: 0 | S16: 0 | T16: 13.96 | U16: 0 | V16: 0 | W16: 0 | Y16: 0 | Z16: 8417.88 | AA16: 0 | AB16: 0 | AC16: 0 | AE16: 0 | AF16: 603 | AG16: 0 | AH16: 0 | AI16: 0 | AK16: 0 | AL16: =AL11 -> 16.02 | AM16: 0 | AN16: 0 | AO16: 0 | AQ16: 0 | AR16: 9660.06 | AS16: 0 | AT16: 0 | AU16: 0 | AV16: 1242.18 | AW16: 40 | AY16: 14.29 | BD16: -0.23 | BF16: 0 | BL16: 0 | BM16: 16.662402 | BN16: 0 | BO16: 0 | BP16: 0 | BR16: 0 | BS16: 2.372402 | BT16: 0 | BU16: 0 | BV16: 0
B17: 2 | C17: 042 | D17: 433 | E17: 85 | G17: 042433 | I17: Decorative Sodium Vapor | J17: No Pole | K17: Kim Light 100W | L17: 438 | M17: 0 | N17: 32 | O17: 0 | P17: 0 | Q17: 0 | S17: 0 | T17: 13.96 | U17: 0 | V17: 0 | W17: 0 | Y17: 0 | Z17: 446.72 | AA17: 0 | AB17: 0 | AC17: 0 | AE17: 0 | AF17: 32 | AG17: 0 | AH17: 0 | AI17: 0 | AK17: 0 | AL17: =ROUND(T17*(1+AL$1),2) -> 13.96 | AM17: 0 | AN17: 0 | AO17: 0 | AQ17: 0 | AR17: 446.72 | AS17: 0 | AT17: 0 | AU17: 0 | AV17: 0 | AW17: 40 | AY17: 14.29 | BD17: -0.23 | BF17: 0 | BL17: 0 | BM17: 14.519796 | BN17: 0 | BO17: 0 | BP17: 0 | BR17: 0 | BS17: 0.229796 | BT17: 0 | BU17: 0 | BV17: 0
B18: 2 | C18: 042 | D18: 434 | E18: 2507 | G18: 042434 | I18: Double High-Pressure Sodium Vapor | J18: Wood Pole | K18: 100W | L18: 441 | M18: 0 | N18: 24 | O18: 0 | P18: 0 | Q18: 0 | S18: 0 | T18: 27.19 | U18: 12.45 | V18: 0 | W18: 0 | Y18: 0 | Z18: 652.56 | AA18: 0 | AB18: 0 | AC18: 0 | AE18: 0 | AF18: 24 | AG18: 0 | AH18: 0 | AI18: 0 | AK18: 0 | AL18: 27.19 | AM18: 12.45 | AN18: 0 | AO18: 0 | AQ18: 0 | AR18: 652.56 | AS18: 0 | AT18: 0 | AU18: 0 | AV18: 0 | AW18: 80 | AY18: 27.83 | AZ18: 12.5 | BD18: -0.46 | BF18: -0.01 | BG18: -0.01 | BL18: 0 | BM18: 28.280319 | BN18: 12.949245 | BO18: 0 | BP18: 0 | BR18: 0 | BS18: 0.450319 | BT18: 0.449245 | BU18: 0 | BV18: 0
B19: 2 | C19: 042 | D19: 435 | E19: 2470 | G19: 042435 | I19: Decorative Sodium Vapor | J19: Direct Burial | K19: Granville 100W | L19: 474 | M19: 0 | N19: 190 | O19: 0 | P19: 0 | Q19: 0 | S19: 0 | T19: 24.31 | U19: 0 | V19: 0 | W19: 0 | Y19: 0 | Z19: 4618.9 | AA19: 0 | AB19: 0 | AC19: 0 | AE19: 0 | AF19: 190 | AG19: 0 | AH19: 0 | AI19: 0 | AK19: 0 | AL19: 24.31 | AM19: 0 | AN19: 0 | AO19: 0 | AQ19: 0 | AR19: 4618.9 | AS19: 0 | AT19: 0 | AU19: 0 | AV19: 0 | AW19: 40 | AY19: 25.05 | BD19: -0.23 | BF19: 0 | BL19: 0 | BM19: 25.284831 | BN19: 0 | BO19: 0 | BP19: 0 | BR19: 0 | BS19: 0.234831 | BT19: 0 | BU19: 0 | BV19: 0
B20: 2 | C20: 042 | D20: 436 | E20: 603 | G20: 042436 | I20: Decorative Sodium Vapor (Capital Only) | J20: Direct Burial | K20: Granville 100W | L20: 478 | M20: 0 | N20: 30 | O20: 0 | P20: 0 | Q20: 0 | S20: 0 | T20: 17.2 | U20: 0 | V20: 0 | W20: 0 | Y20: 0 | Z20: 516 | AA20: 0 | AB20: 0 | AC20: 0 | AE20: 0 | AF20: 30 | AG20: 0 | AH20: 0 | AI20: 0 | AK20: =ROUND(S20*(1+AK$1),2) -> 0 | AL20: 17.2 | AM20: 0 | AN20: 0 | AO20: 0 | AQ20: 0 | AR20: 516 | AS20: 0 | AT20: 0 | AU20: 0 | AV20: 0 | AY20: 17.89 | BD20: 0 | BF20: =ROUND((T20*$BE$2)+$BD20-AY20,2) -> 0 | BL20: 0 | BM20: 17.88972 | BN20: 0 | BO20: 0 | BP20: 0 | BR20: 0 | BS20: -0.00028 | BT20: 0 | BU20: 0 | BV20: 0
B21: 2 | C21: 042 | D21: 438 | E21: 32 | G21: 042438 | I21: Decorative Sodium Vapor | J21: Direct Burial | K21: Post Top 100W | L21: 484 | M21: 0 | N21: 161 | O21: 0 | P21: 0 | Q21: 0 | S21: 0 | T21: 23.14 | U21: 0 | V21: 0 | W21: 0 | Y21: 0 | Z21: 3725.54 | AA21: 0 | AB21: 0 | AC21: 0 | AE21: 0 | AF21: 161 | AG21: 0 | AH21: 0 | AI21: 0 | AK21: 0 | AL21: 23.14 | AM21: 0 | AN21: 0 | AO21: 0 | AQ21: 0 | AR21: 3725.54 | AS21: 0 | AT21: 0 | AU21: 0 | AV21: 0 | AW21: 40 | AY21: 23.84 | BD21: -0.23 | BF21: 0 | BL21: 0 | BM21: 24.067914 | BN21: 0 | BO21: 0 | BP21: 0 | BR21: 0 | BS21: 0.227914 | BT21: 0 | BU21: 0 | BV21: 0
B22: 2 | C22: 042 | D22: 441 | E22: 24 | G22: 042441 | I22: LED (Dusk to Dawn) | J22: Dusk to Dawn | K22: 100W | L22: 495 | M22: 0 | N22: 0 | O22: 0 | P22: 0 | Q22: 44 | S22: 0 | T22: 0 | U22: 0 | V22: 0 | W22: 4.75 | Y22: 0 | Z22: 0 | AA22: 0 | AB22: 0 | AC22: 209 | AE22: =SUMIF($G:$G,TEXT(AE$3,"000")&TEXT($L22,"000"),$E:$E) -> 0 | AF22: 0 | AG22: 0 | AH22: 0 | AI22: 44 | AK22: 0 | AL22: 0 | AM22: 0 | AN22: 0 | AO22: 4.75 | AQ22: 0 | AR22: 0 | AS22: 0 | AT22: 0 | AU22: 209 | AW22: 49 | BB22: 4.66 | BD22: -0.28 | BI22: =ROUND((W22*$BE$2)+$BD22-BB22,2) -> 0 | BL22: =AK22*$BL$1 -> 0 | BM22: 0 | BN22: 0 | BO22: 0 | BP22: 4.940475 | BR22: =BL22-AX22 -> 0 | BS22: 0 | BT22: 0 | BU22: 0 | BV22: 0.280475
B23: 2 | C23: 042 | D23: 474 | E23: 190 | G23: 042474 | I23: LED (Dusk to 11:00) | J23: Dusk to 11 PM | K23: 100W | L23: 499 | M23: 0 | N23: 0 | O23: 0 | P23: 0 | Q23: 45 | S23: 0 | T23: 0 | U23: 0 | V23: 0 | W23: 2.63 | Y23: 0 | Z23: 0 | AA23: 0 | AB23: 0 | AC23: 118.35 | AE23: 0 | AF23: 0 | AG23: 0 | AH23: 0 | AI23: 45 | AK23: 0 | AL23: 0 | AM23: 0 | AN23: 0 | AO23: 2.63 | AQ23: 0 | AR23: 0 | AS23: 0 | AT23: 0 | AU23: 118.35 | AW23: 21 | BB23: 2.62 | BD23: -0.12 | BI23: 0 | BL23: 0 | BM23: 0 | BN23: 0 | BO23: 0 | BP23: 2.735463 | BR23: 0 | BS23: 0 | BT23: 0 | BU23: 0 | BV23: 0.115463
B24: 3 | C24: 042 | D24: 478 | E24: 30 | G24: =IF(OR(ISBLANK(C24),ISBLANK(D24)),"",TEXT(C24,"000")&TEXT(D24,"000")) -> 042478 | I24: Single Mercury Vapor | J24: Wood Pole | K24: 10000 | L24: 511 | M24: =SUMIF($G:$G,TEXT(M$3,"000")&TEXT($L24,"000"),$E:$E) -> 6 | N24: 0 | O24: 0 | P24: 0 | Q24: 0 | S24: 18.41 | T24: 0 | U24: 0 | V24: 0 | W24: 0 | Y24: 110.46 | Z24: 0 | AA24: 0 | AB24: 0 | AC24: 0 | AE24: 6 | AF24: =N24 -> 0 | AG24: =O24 -> 0 | AH24: =P24 -> 0 | AI24: =Q24 -> 0 | AK24: 18.41 | AL24: 0 | AM24: 0 | AN24: 0 | AO24: 0 | AQ24: 110.46 | AR24: 0 | AS24: 0 | AT24: 0 | AU24: 0 | AV24: 0 | AW24: 111 | AX24: 18.52 | BD24: -0.63 | BE24: 0 | BL24: 19.148241 | BM24: 0 | BN24: 0 | BO24: 0 | BP24: 0 | BR24: 0.628241 | BS24: 0 | BT24: 0 | BU24: 0 | BV24: 0
B25: 2 | C25: 042 | D25: 484 | E25: 161 | G25: 042484 | I25: Mercury Vapor | J25: Dusk to Dawn | K25: 10000 | L25: 515 | M25: 0 | N25: 0 | O25: 0 | P25: 7 | Q25: 0 | S25: 0 | T25: 0 | U25: 0 | V25: 9.13 | W25: 0 | Y25: 0 | Z25: 0 | AA25: 0 | AB25: 63.91 | AC25: 0 | AE25: =SUMIF($G:$G,TEXT(AE$3,"000")&TEXT($L25,"000"),$E:$E) -> 0 | AF25: =SUMIF($G:$G,TEXT(AF$3,"000")&TEXT($L25,"000"),$E:$E) -> 0 | AG25: =SUMIF($G:$G,TEXT(AG$3,"000")&TEXT($L25,"000"),$E:$E) -> 0 | AH25: =SUMIF($G:$G,TEXT(AH$3,"000")&TEXT($L25,"000"),$E:$E) -> 7 | AI25: =SUMIF($G:$G,TEXT(AI$3,"000")&TEXT($L25,"000"),$E:$E) -> 0 | AK25: 0 | AL25: 0 | AM25: 0 | AN25: 9.13 | AO25: 0 | AQ25: 0 | AR25: 0 | AS25: 0 | AT25: 63.91 | AU25: 0 | AV25: 0 | AW25: 111 | BA25: 8.87 | BD25: -0.63 | BH25: =ROUND((V25*$BE$2)+$BD25-BA25,2) -> 0 | BL25: 0 | BM25: 0 | BN25: 0 | BO25: 9.496113 | BP25: 0 | BR25: 0 | BS25: 0 | BT25: 0 | BU25: 0.626113 | BV25: 0
B26: 2 | C26: 042 | D26: 522 | E26: 31 | G26: 042522 | I26: Single High-Pressure Sodium Vapor | J26: Pedestal Base | K26: 200W | L26: 522 | M26: 0 | N26: 31 | O26: 0 | P26: 0 | Q26: 0 | S26: 0 | T26: 56.1 | U26: 0 | V26: 0 | W26: 0 | Y26: 0 | Z26: 1739.1 | AA26: 0 | AB26: 0 | AC26: 0 | AE26: 0 | AF26: 31 | AG26: 0 | AH26: 0 | AI26: 0 | AK26: 0 | AL26: 56.1 | AM26: 0 | AN26: 0 | AO26: 0 | AQ26: 0 | AR26: 1739.1 | AS26: 0 | AT26: 0 | AU26: 0 | AV26: 0 | AW26: 85 | AY26: 57.86 | BD26: -0.48 | BF26: 0.01 | BL26: 0 | BM26: 58.34961 | BN26: 0 | BO26: 0 | BP26: 0 | BR26: 0 | BS26: 0.48961 | BT26: 0 | BU26: 0 | BV26: 0
B27: 2 | C27: 042 | D27: 531 | E27: 2641 | G27: 042531 | I27: Single High-Pressure Sodium Vapor | J27: Wood Pole | K27: 200W | L27: 531 | M27: 0 | N27: 2641 | O27: 2 | P27: 0 | Q27: 0 | S27: 0 | T27: 22.36 | U27: 11.06 | V27: 0 | W27: 0 | Y27: 0 | Z27: 59052.76 | AA27: 22.12 | AB27: 0 | AC27: 0 | AE27: 0 | AF27: 2641 | AG27: 2 | AH27: 0 | AI27: 0 | AK27: 0 | AL27: 22.36 | AM27: 11.06 | AN27: 0 | AO27: 0 | AQ27: 0 | AR27: 59052.76 | AS27: 22.12 | AT27: 0 | AU27: 0 | AV27: 0 | AW27: 85 | AY27: 22.77 | AZ27: 11.01 | BD27: -0.48 | BF27: 0.01 | BG27: =ROUND((U27*$BE$2)+$BD27-AZ27,2) -> 0.01 | BL27: 0 | BM27: 23.256636 | BN27: 11.503506 | BO27: 0 | BP27: 0 | BR27: 0 | BS27: 0.486636 | BT27: 0.493506 | BU27: 0 | BV27: 0
B28: 2 | C28: 042 | D28: 532 | E28: 853 | G28: 042532 | I28: Single High-Pressure Sodium Vapor | J28: Pedestal Base | K28: 200W | L28: 532 | M28: 0 | N28: 853 | O28: 107 | P28: 0 | Q28: 0 | S28: 0 | T28: 33.11 | U28: 11.06 | V28: 0 | W28: 0 | Y28: 0 | Z28: 28242.83 | AA28: 1183.42 | AB28: 0 | AC28: 0 | AE28: 0 | AF28: 853 | AG28: 107 | AH28: 0 | AI28: 0 | AK28: 0 | AL28: 33.11 | AM28: 11.06 | AN28: 0 | AO28: 0 | AQ28: 0 | AR28: 28242.83 | AS28: 1183.42 | AT28: 0 | AU28: 0 | AV28: 0 | AW28: 85 | AY28: 33.95 | AZ28: 11.01 | BD28: -0.48 | BF28: 0.01 | BG28: 0.01 | BL28: 0 | BM28: 34.437711 | BN28: 11.503506 | BO28: 0 | BP28: 0 | BR28: 0 | BS28: 0.487711 | BT28: 0.493506 | BU28: 0 | BV28: 0
B29: 2 | C29: 042 | D29: 533 | E29: 53 | G29: 042533 | I29: Single High-Pressure Sodium Vapor | J29: Direct Burial | K29: 200W | L29: 533 | M29: 0 | N29: 53 | O29: 1 | P29: 0 | Q29: 0 | S29: 0 | T29: 33.11 | U29: 11.06 | V29: 0 | W29: 0 | Y29: 0 | Z29: 1754.83 | AA29: 11.06 | AB29: 0 | AC29: 0 | AE29: 0 | AF29: 53 | AG29: 1 | AH29: 0 | AI29: 0 | AK29: 0 | AL29: 33.11 | AM29: 11.06 | AN29: 0 | AO29: 0 | AQ29: 0 | AR29: 1754.83 | AS29: 11.06 | AT29: 0 | AU29: 0 | AV29: 0 | AW29: 85 | AY29: 33.95 | AZ29: 11.01 | BD29: -0.48 | BF29: 0.01 | BG29: 0.01 | BL29: 0 | BM29: 34.437711 | BN29: 11.503506 | BO29: 0 | BP29: 0 | BR29: 0 | BS29: 0.487711 | BT29: 0.493506 | BU29: 0 | BV29: 0
B30: 2 | C30: 042 | D30: 535 | E30: 696 | G30: 042535 | I30: Single High-Pressure Sodium Vapor | J30: No Pole / Dusk to Dawn (046) | K30: 200W | L30: 535 | M30: 0 | N30: 696 | O30: 20 | P30: 0 | Q30: 136 | S30: 0 | T30: 18.4 | U30: 11.06 | V30: 0 | W30: 8.73 | Y30: 0 | Z30: 12806.4 | AA30: 221.2 | AB30: 0 | AC30: 1187.28 | AE30: 0 | AF30: 696 | AG30: 20 | AH30: 0 | AI30: 136 | AK30: 0 | AL30: 18.4 | AM30: 11.06 | AN30: 0 | AO30: 8.73 | AQ30: 0 | AR30: 12806.4 | AS30: 221.2 | AT30: 0 | AU30: 1187.28 | AV30: 0 | AW30: 85 | AY30: 18.65 | AZ30: 11.01 | BB30: 8.59 | BD30: -0.48 | BF30: 0.01 | BG30: 0.01 | BI30: 0.01 | BL30: 0 | BM30: 19.13784 | BN30: 11.503506 | BO30: 0 | BP30: 9.080073 | BR30: 0 | BS30: 0.48784 | BT30: 0.493506 | BU30: 0 | BV30: 0.490073
B31: 2 | C31: 042 | D31: 536 | E31: 598 | G31: 042536 | I31: Single High-Pressure Sodium Vapor | J31: Developer Contributed | K31: 200W | L31: 536 | M31: 0 | N31: 598 | O31: 0 | P31: 0 | Q31: 0 | S31: 0 | T31: 22.36 | U31: 0 | V31: 0 | W31: 0 | Y31: 0 | Z31: 13371.28 | AA31: 0 | AB31: 0 | AC31: 0 | AE31: 0 | AF31: 598 | AG31: 0 | AH31: 0 | AI31: 0 | AK31: 0 | AL31: =AL27 -> 22.36 | AM31: 0 | AN31: 0 | AO31: 0 | AQ31: 0 | AR31: 13371.28 | AS31: 0 | AT31: 0 | AU31: 0 | AV31: 0 | AW31: 85 | AY31: 22.77 | BD31: -0.48 | BF31: 0.01 | BL31: 0 | BM31: 23.256636 | BN31: 0 | BO31: 0 | BP31: 0 | BR31: 0 | BS31: 0.486636 | BT31: 0 | BU31: 0 | BV31: 0
B32: 3 | C32: 042 | D32: 538 | E32: 20 | G32: =IF(OR(ISBLANK(C32),ISBLANK(D32)),"",TEXT(C32,"000")&TEXT(D32,"000")) -> 042538 | I32: Single High-Pressure Sodium Vapor (Capital Only) | J32: Direct Burial | K32: 200W | L32: 538 | M32: 0 | N32: 20 | O32: 0 | P32: 0 | Q32: 0 | S32: 0 | T32: 22.06 | U32: 0 | V32: 0 | W32: 0 | Y32: 0 | Z32: 441.2 | AA32: 0 | AB32: 0 | AC32: 0 | AE32: 0 | AF32: 20 | AG32: 0 | AH32: 0 | AI32: 0 | AK32: 0 | AL32: =ROUND(T32*(1+AL$1),2) -> 22.06 | AM32: 0 | AN32: 0 | AO32: 0 | AQ32: 0 | AR32: 441.2 | AS32: 0 | AT32: 0 | AU32: 0 | AW32: 85 | AY32: 22.45 | BD32: -0.48 | BF32: 0.01 | BL32: 0 | BM32: 22.944606 | BN32: 0 | BO32: 0 | BP32: 0 | BR32: 0 | BS32: 0.494606 | BT32: 0 | BU32: 0 | BV32: 0
B33: 2 | C33: 042 | D33: 541 | E33: 7 | G33: 042541 | I33: Double High-Pressure Sodium Vapor | J33: Wood Pole | K33: 200W | L33: 541 | M33: 0 | N33: 7 | O33: 0 | P33: 0 | Q33: 0 | S33: 0 | T33: 44.73 | U33: 0 | V33: 0 | W33: 0 | Y33: 0 | Z33: 313.11 | AA33: 0 | AB33: 0 | AC33: 0 | AE33: 0 | AF33: 7 | AG33: 0 | AH33: 0 | AI33: 0 | AK33: 0 | AL33: 44.73 | AM33: 0 | AN33: 0 | AO33: 0 | AQ33: 0 | AR33: 313.11 | AS33: 0 | AT33: 0 | AU33: 0 | AV33: =SUM(AQ33:AU33)-SUM(Y33:AC33) -> 0 | AW33: 170 | AY33: 45.55 | BD33: -0.97 | BF33: 0 | BL33: 0 | BM33: 46.523673 | BN33: 0 | BO33: 0 | BP33: 0 | BR33: 0 | BS33: 0.973673 | BT33: 0 | BU33: 0 | BV33: 0
B34: 2 | C34: 042 | D34: 542 | E34: 21 | G34: 042542 | I34: Double High-Pressure Sodium Vapor | J34: Pedestal Base | K34: 200W | L34: 542 | M34: =SUMIF($G:$G,TEXT(M$3,"000")&TEXT($L34,"000"),$E:$E) -> 0 | N34: 21 | O34: 0 | P34: 0 | Q34: 0 | S34: 0 | T34: 56.1 | U34: 20.33 | V34: 0 | W34: 0 | Y34: 0 | Z34: 1178.1 | AA34: 0 | AB34: 0 | AC34: 0 | AE34: 0 | AF34: 21 | AG34: 0 | AH34: 0 | AI34: 0 | AK34: 0 | AL34: 56.1 | AM34: 20.33 | AN34: 0 | AO34: 0 | AQ34: 0 | AR34: 1178.1 | AS34: 0 | AT34: 0 | AU34: 0 | AV34: 0 | AW34: 170 | AY34: 57.38 | AZ34: 20.18 | BD34: -0.97 | BF34: 0 | BG34: 0 | BL34: 0 | BM34: 58.34961 | BN34: 21.145233 | BO34: 0 | BP34: 0 | BR34: 0 | BS34: 0.96961 | BT34: 0.965233 | BU34: 0 | BV34: 0
B35: 2 | C35: 042 | D35: 631 | E35: 98 | G35: 042631 | I35: Single Mercury Vapor | J35: Wood Pole | K35: 20000 | L35: 611 | M35: 12 | N35: 0 | O35: 0 | P35: 0 | Q35: 0 | S35: 26.09 | T35: 0 | U35: 0 | V35: 0 | W35: 0 | Y35: 313.08 | Z35: 0 | AA35: 0 | AB35: 0 | AC35: 0 | AE35: 12 | AF35: 0 | AG35: 0 | AH35: 0 | AI35: 0 | AK35: 26.09 | AL35: 0 | AM35: 0 | AN35: 0 | AO35: 0 | AQ35: 313.08 | AR35: 0 | AS35: 0 | AT35: 0 | AU35: 0 | AV35: 0 | AW35: 182 | AX35: 26.1 | BD35: -1.04 | BE35: 0 | BL35: 27.136209 | BM35: 0 | BN35: 0 | BO35: 0 | BP35: 0 | BR35: 1.036209 | BS35: 0 | BT35: 0 | BU35: 0 | BV35: 0
B36: 2 | C36: 042 | D36: 632 | E36: 100 | G36: 042632 | I36: Mercury Vapor | J36: Dusk to Dawn | K36: 20000 | L36: 615 | M36: 0 | N36: 0 | O36: 0 | P36: 326 | Q36: 0 | S36: 0 | T36: 0 | U36: 0 | V36: 14.11 | W36: 0 | Y36: 0 | Z36: 0 | AA36: 0 | AB36: 4599.86 | AC36: 0 | AE36: 0 | AF36: 0 | AG36: 0 | AH36: 326 | AI36: 0 | AK36: 0 | AL36: 0 | AM36: 0 | AN36: 14.11 | AO36: 0 | AQ36: 0 | AR36: 0 | AS36: 0 | AT36: 4599.86 | AU36: 0 | AV36: 0 | AW36: 182 | BA36: 13.64 | BD36: -1.04 | BH36: 0 | BL36: 0 | BM36: 0 | BN36: 0 | BO36: 14.675811 | BP36: 0 | BR36: 0 | BS36: 0 | BT36: 0 | BU36: 1.035811 | BV36: 0
B37: 2 | C37: 042 | D37: 633 | E37: 52 | G37: 042633 | I37: Single High-Pressure Sodium Vapor | J37: Wood Pole | K37: 250W | L37: 631 | M37: 0 | N37: 98 | O37: 0 | P37: 0 | Q37: 0 | S37: 0 | T37: 26.36 | U37: 12.86 | V37: 0 | W37: 0 | Y37: 0 | Z37: 2583.28 | AA37: 0 | AB37: 0 | AC37: 0 | AE37: 0 | AF37: 98 | AG37: 0 | AH37: 0 | AI37: 0 | AK37: 0 | AL37: 26.36 | AM37: 12.86 | AN37: 0 | AO37: 0 | AQ37: 0 | AR37: 2583.28 | AS37: 0 | AT37: 0 | AU37: 0 | AV37: 0 | AW37: 107 | AY37: 26.81 | AZ37: 12.77 | BD37: -0.61 | BF37: 0 | BG37: 0 | BL37: 0 | BM37: 27.417036 | BN37: 13.375686 | BO37: 0 | BP37: 0 | BR37: 0 | BS37: 0.607036 | BT37: 0.605686 | BU37: 0 | BV37: 0
B38: 2 | C38: 042 | D38: 636 | E38: 22 | G38: 042636 | I38: Single High-Pressure Sodium Vapor | J38: Pedestal Base | K38: 250W | L38: 632 | M38: 0 | N38: 100 | O38: 5 | P38: 0 | Q38: 0 | S38: 0 | T38: 37.12 | U38: 12.86 | V38: 0 | W38: 0 | Y38: 0 | Z38: 3712 | AA38: 64.3 | AB38: 0 | AC38: 0 | AE38: 0 | AF38: 100 | AG38: 5 | AH38: 0 | AI38: 0 | AK38: 0 | AL38: 37.12 | AM38: 12.86 | AN38: 0 | AO38: 0 | AQ38: 0 | AR38: 3712 | AS38: 64.3 | AT38: 0 | AU38: 0 | AV38: 0 | AW38: 107 | AY38: 38 | AZ38: 12.77 | BD38: -0.61 | BF38: 0 | BG38: 0 | BL38: 0 | BM38: 38.608512 | BN38: 13.375686 | BO38: 0 | BP38: 0 | BR38: 0 | BS38: 0.608512 | BT38: 0.605686 | BU38: 0 | BV38: 0
B39: 2 | C39: 042 | D39: 831 | E39: =96+1 -> 97 | G39: 042831 | I39: Single High-Pressure Sodium Vapor | J39: Direct Burial | K39: 250W | L39: 633 | M39: 0 | N39: 52 | O39: 0 | P39: 0 | Q39: 0 | S39: 0 | T39: 37.12 | U39: 12.86 | V39: 0 | W39: 0 | Y39: 0 | Z39: 1930.24 | AA39: 0 | AB39: 0 | AC39: 0 | AE39: 0 | AF39: 52 | AG39: 0 | AH39: 0 | AI39: 0 | AK39: 0 | AL39: 37.12 | AM39: 12.86 | AN39: 0 | AO39: 0 | AQ39: 0 | AR39: 1930.24 | AS39: 0 | AT39: 0 | AU39: 0 | AV39: 0 | AW39: 107 | AY39: 38 | AZ39: 12.77 | BD39: -0.61 | BF39: 0 | BG39: 0 | BL39: 0 | BM39: 38.608512 | BN39: 13.375686 | BO39: 0 | BP39: 0 | BR39: 0 | BS39: 0.608512 | BT39: 0.605686 | BU39: 0 | BV39: 0
B40: 2 | C40: 042 | D40: 832 | E40: 5 | G40: 042832 | I40: Single High-Pressure Sodium Vapor | J40: Dusk to Dawn (046) | K40: 250W | L40: 635 | M40: 0 | N40: 0 | O40: 3 | P40: 0 | Q40: 408 | S40: 0 | T40: 0 | U40: 12.86 | V40: 0 | W40: 10.52 | Y40: 0 | Z40: 0 | AA40: 38.58 | AB40: 0 | AC40: 4292.16 | AE40: 0 | AF40: 0 | AG40: 3 | AH40: 0 | AI40: 408 | AK40: 0 | AL40: 0 | AM40: 12.86 | AN40: 0 | AO40: 10.52 | AQ40: 0 | AR40: 0 | AS40: 38.58 | AT40: 0 | AU40: 4292.16 | AV40: 0 | AW40: 107 | AZ40: 12.77 | BB40: 10.33 | BD40: -0.61 | BG40: 0 | BI40: 0 | BL40: 0 | BM40: 0 | BN40: 13.375686 | BO40: 0 | BP40: 10.941852 | BR40: 0 | BS40: 0 | BT40: 0.605686 | BU40: 0 | BV40: 0.611852
B41: 2 | C41: 042 | D41: 835 | E41: 10 | G41: =IF(OR(ISBLANK(C41),ISBLANK(D41)),"",TEXT(C41,"000")&TEXT(D41,"000")) -> 042835 | I41: Single High-Pressure Sodium Vapor | J41: Developer Contributed | K41: 250W | L41: 636 | M41: 0 | N41: 22 | O41: 0 | P41: 0 | Q41: 0 | S41: 0 | T41: 26.36 | U41: 0 | V41: 0 | W41: 0 | Y41: 0 | Z41: 579.92 | AA41: 0 | AB41: 0 | AC41: 0 | AE41: 0 | AF41: 22 | AG41: 0 | AH41: 0 | AI41: 0 | AK41: 0 | AL41: =AL37 -> 26.36 | AM41: 0 | AN41: 0 | AO41: 0 | AQ41: 0 | AR41: 579.92 | AS41: 0 | AT41: 0 | AU41: 0 | AV41: 0 | AW41: 107 | AY41: 26.81 | BD41: -0.61 | BF41: 0 | BL41: 0 | BM41: 27.417036 | BN41: 0 | BO41: 0 | BP41: 0 | BR41: 0 | BS41: 0.607036 | BT41: 0 | BU41: 0 | BV41: 0
B42: 2 | C42: 042 | D42: 836 | E42: 3 | G42: 042836 | I42: Mercury Vapor | J42: Dusk to Dawn | K42: 35000 | L42: 715 | M42: 0 | N42: 0 | O42: 0 | P42: 6 | Q42: 0 | S42: 0 | T42: 0 | U42: 0 | V42: 22.91 | W42: 0 | Y42: 0 | Z42: 0 | AA42: 0 | AB42: 137.46 | AC42: 0 | AE42: 0 | AF42: 0 | AG42: 0 | AH42: 6 | AI42: 0 | AK42: 0 | AL42: =ROUND(T42*(1+AL$1),2) -> 0 | AM42: 0 | AN42: 22.91 | AO42: 0 | AQ42: 0 | AR42: 0 | AS42: 0 | AT42: 137.46 | AU42: 0 | AV42: 0 | AW42: 285 | BA42: 22.21 | BD42: -1.62 | BH42: 0 | BL42: 0 | BM42: 0 | BN42: 0 | BO42: 23.828691 | BP42: 0 | BR42: 0 | BS42: 0 | BT42: 0 | BU42: 1.618691 | BV42: 0
B43: 2 | C43: 042 | D43: 842 | E43: 3 | G43: 042842 | I43: Single High-Pressure Sodium Vapor | J43: Pedestal Base | K43: 310W | L43: 732 | M43: 0 | N43: 0 | O43: 26 | P43: 0 | Q43: 0 | S43: 0 | T43: 0 | U43: 15.08 | V43: 0 | W43: 0 | Y43: 0 | Z43: 0 | AA43: 392.08 | AB43: 0 | AC43: 0 | AE43: 0 | AF43: 0 | AG43: 26 | AH43: 0 | AI43: 0 | AK43: 0 | AL43: 0 | AM43: 15.08 | AN43: 0 | AO43: 0 | AQ43: 0 | AR43: 0 | AS43: 392.08 | AT43: 0 | AU43: 0 | AV43: 0 | AW43: 133 | AZ43: 14.92 | BD43: -0.76 | BG43: 0 | BL43: 0 | BM43: 0 | BN43: 15.684708 | BO43: 0 | BP43: 0 | BR43: 0 | BS43: 0 | BT43: 0.764708 | BU43: 0 | BV43: 0
E44: =SUM(E13:E43) -> 21444 | I44: Single High-Pressure Sodium Vapor | J44: No Pole / Dusk to Dawn (046) | K44: 310W | L44: 735 | M44: =SUMIF($G:$G,TEXT(M$3,"000")&TEXT($L44,"000"),$E:$E) -> 0 | N44: 0 | O44: 30 | P44: 0 | Q44: 438 | S44: 0 | T44: 0 | U44: 15.08 | V44: 0 | W44: 12.7 | Y44: 0 | Z44: 0 | AA44: 452.4 | AB44: 0 | AC44: 5562.6 | AE44: 0 | AF44: 0 | AG44: 30 | AH44: 0 | AI44: 438 | AK44: 0 | AL44: 0 | AM44: 15.08 | AN44: 0 | AO44: 12.7 | AQ44: 0 | AR44: 0 | AS44: 452.4 | AT44: 0 | AU44: 5562.6 | AV44: 0 | AW44: 133 | AZ44: 14.92 | BB44: 12.45 | BD44: -0.76 | BG44: 0 | BI44: 0 | BL44: 0 | BM44: 0 | BN44: 15.684708 | BO44: 0 | BP44: 13.20927 | BR44: 0 | BS44: 0 | BT44: 0.764708 | BU44: 0 | BV44: 0.75927
I45: Mercury Vapor | J45: Dusk to 1 AM | K45: 55000 | L45: 819 | M45: 0 | N45: 0 | O45: 0 | P45: 34 | Q45: 0 | S45: 0 | T45: 0 | U45: 0 | V45: 21.71 | W45: 0 | Y45: 0 | Z45: 0 | AA45: 0 | AB45: 738.14 | AC45: 0 | AE45: 0 | AF45: 0 | AG45: 0 | AH45: 34 | AI45: 0 | AK45: 0 | AL45: 0 | AM45: 0 | AN45: 21.71 | AO45: 0 | AQ45: 0 | AR45: 0 | AS45: 0 | AT45: 738.14 | AU45: 0 | AV45: 0 | AW45: 417 | BA45: 20.2 | BD45: -2.38 | BH45: 0 | BL45: 0 | BM45: 0 | BN45: 0 | BO45: 22.580571 | BP45: 0 | BR45: 0 | BS45: 0 | BT45: 0 | BU45: 2.380571 | BV45: 0
B46: 2 | C46: 044 | D46: 431 | E46: 3 | G46: =IF(OR(ISBLANK(C46),ISBLANK(D46)),"",TEXT(C46,"000")&TEXT(D46,"000")) -> 044431 | I46: Single High-Pressure Sodium Vapor | J46: Wood Pole | K46: 400W | L46: 831 | M46: 0 | N46: 97 | O46: 0 | P46: 0 | Q46: 0 | S46: 0 | T46: 33.4 | U46: 19.37 | V46: 0 | W46: 0 | Y46: 0 | Z46: 3239.8 | AA46: 0 | AB46: 0 | AC46: 0 | AE46: 0 | AF46: 97 | AG46: 0 | AH46: 0 | AI46: 0 | AK46: 0 | AL46: 33.4 | AM46: 19.37 | AN46: 0 | AO46: 0 | AQ46: 0 | AR46: =IF(AND(AF46<>0,AL46=0),#VALUE!,AF46*AL46) -> 3239.8 | AS46: 0 | AT46: 0 | AU46: 0 | AV46: 0 | AW46: 169 | AY46: 33.78 | AZ46: 19.19 | BD46: -0.96 | BF46: 0 | BG46: 0 | BL46: 0 | BM46: 34.73934 | BN46: 20.146737 | BO46: 0 | BP46: 0 | BR46: 0 | BS46: 0.95934 | BT46: 0.956737 | BU46: 0 | BV46: 0
B47: 2 | C47: 044 | D47: 432 | E47: 20 | G47: 044432 | I47: Single High-Pressure Sodium Vapor | J47: Pedestal Base | K47: 400W | L47: 832 | M47: 0 | N47: 5 | O47: 1 | P47: 0 | Q47: 0 | S47: 0 | T47: 49.51 | U47: 19.37 | V47: 0 | W47: 0 | Y47: 0 | Z47: 247.55 | AA47: 19.37 | AB47: 0 | AC47: 0 | AE47: 0 | AF47: 5 | AG47: 1 | AH47: 0 | AI47: 0 | AK47: 0 | AL47: 49.51 | AM47: 19.37 | AN47: 0 | AO47: 0 | AQ47: 0 | AR47: 247.55 | AS47: 19.37 | AT47: 0 | AU47: 0 | AV47: 0 | AW47: 169 | AY47: 50.54 | AZ47: 19.19 | BD47: -0.96 | BF47: 0 | BG47: 0 | BL47: 0 | BM47: 51.495351 | BN47: 20.146737 | BO47: 0 | BP47: 0 | BR47: 0 | BS47: 0.955351 | BT47: 0.956737 | BU47: 0 | BV47: 0
B48: 2 | C48: 044 | D48: 433 | E48: 10 | G48: 044433 | I48: Single High-Pressure Sodium Vapor | J48: No Pole / Dusk to Dawn (046) | K48: 400W | L48: 835 | M48: 0 | N48: 10 | O48: 9 | P48: 0 | Q48: 76 | S48: 0 | T48: 26.14 | U48: 19.37 | V48: 0 | W48: 16.1 | Y48: 0 | Z48: 261.4 | AA48: 174.33 | AB48: 0 | AC48: 1223.6 | AE48: 0 | AF48: 10 | AG48: 9 | AH48: 0 | AI48: 76 | AK48: 0 | AL48: 26.14 | AM48: 19.37 | AN48: 0 | AO48: 16.1 | AQ48: 0 | AR48: 261.4 | AS48: 174.33 | AT48: 0 | AU48: 1223.6 | AV48: 0 | AW48: 169 | AY48: 26.23 | AZ48: 19.19 | BB48: 15.79 | BD48: -0.96 | BF48: 0 | BG48: 0 | BI48: 0 | BL48: 0 | BM48: 27.188214 | BN48: 20.146737 | BO48: 0 | BP48: 16.74561 | BR48: 0 | BS48: 0.958214 | BT48: 0.956737 | BU48: 0 | BV48: 0.95561
B49: 2 | C49: 044 | D49: 435 | E49: 45 | G49: 044435 | I49: Single High-Pressure Sodium Vapor | J49: Developer Contributed | K49: 400W | L49: 836 | M49: 0 | N49: 3 | O49: 0 | P49: 0 | Q49: 0 | S49: 0 | T49: 33.4 | U49: 0 | V49: 0 | W49: 0 | Y49: 0 | Z49: 100.2 | AA49: 0 | AB49: 0 | AC49: 0 | AE49: 0 | AF49: 3 | AG49: 0 | AH49: 0 | AI49: 0 | AK49: 0 | AL49: =AL46 -> 33.4 | AM49: 0 | AN49: 0 | AO49: 0 | AQ49: 0 | AR49: 100.2 | AS49: 0 | AT49: 0 | AU49: 0 | AV49: 0 | AW49: 169 | AY49: 33.78 | BD49: -0.96 | BF49: 0 | BL49: 0 | BM49: 34.73934 | BN49: 0 | BO49: 0 | BP49: 0 | BR49: 0 | BS49: 0.95934 | BT49: 0 | BU49: 0 | BV49: 0
B50: 2 | C50: 044 | D50: 531 | E50: 2 | G50: 044531 | I50: Double High-Pressure Sodium Vapor | J50: Pedestal Base | K50: 400W | L50: 842 | M50: 0 | N50: 3 | O50: 0 | P50: 0 | Q50: 0 | S50: 0 | T50: 87.55 | U50: 0 | V50: 0 | W50: 0 | Y50: 0 | Z50: 262.65 | AA50: 0 | AB50: 0 | AC50: 0 | AE50: 0 | AF50: 3 | AG50: 0 | AH50: 0 | AI50: 0 | AK50: 0 | AL50: =ROUND(T50*(1+AL$1),2) -> 87.55 | AM50: 0 | AN50: 0 | AO50: 0 | AQ50: 0 | AR50: 262.65 | AS50: 0 | AT50: 0 | AU50: 0 | AV50: 0 | AW50: 338 | AY50: 89.13 | BD50: -1.93 | BF50: 0 | BL50: 0 | BM50: 91.060755 | BN50: 0 | BO50: 0 | BP50: 0 | BR50: 0 | BS50: 1.930755 | BT50: 0 | BU50: 0 | BV50: 0
B51: 2 | C51: 044 | D51: 532 | E51: 107 | G51: 044532 | I51: Double High-Pressure Sodium Vapor | J51: No Pole | K51: 400W | L51: 845 | M51: 0 | N51: 0 | O51: 1 | P51: 0 | Q51: 0 | S51: 0 | T51: 0 | U51: 36.28 | V51: 0 | W51: 0 | Y51: 0 | Z51: 0 | AA51: 36.28 | AB51: 0 | AC51: 0 | AE51: 0 | AF51: 0 | AG51: 1 | AH51: 0 | AI51: 0 | AK51: 0 | AL51: 0 | AM51: 36.28 | AN51: 0 | AO51: 0 | AQ51: 0 | AR51: 0 | AS51: 36.28 | AT51: 0 | AU51: 0 | AV51: 0 | AW51: 338 | AZ51: 35.8 | BD51: -1.93 | BG51: 0 | BL51: 0 | BM51: 0 | BN51: 37.734828 | BO51: 0 | BP51: 0 | BR51: 0 | BS51: 0 | BT51: 1.934828 | BU51: 0 | BV51: 0
B52: 2 | C52: 044 | D52: 533 | E52: 1 | G52: 044533 | I52: Single High-Pressure Sodium Vapor | J52: Dust to Dawn (046) | K52: 150W | L52: 935 | M52: 0 | N52: 0 | O52: 0 | P52: 0 | Q52: 112 | S52: 0 | T52: 0 | U52: 0 | V52: 0 | W52: 6.52 | Y52: 0 | Z52: 0 | AA52: 0 | AB52: 0 | AC52: 730.24 | AE52: 0 | AF52: 0 | AG52: 0 | AH52: 0 | AI52: 112 | AK52: =ROUND(S52*(1+AK$1),2) -> 0 | AL52: 0 | AM52: =ROUND(U52*(1+AM$1),2) -> 0 | AN52: =ROUND(V52*(1+AN$1),2) -> 0 | AO52: 6.52 | AQ52: =IF(AND(AE52<>0,AK52=0),#VALUE!,AE52*AK52) -> 0 | AR52: 0 | AS52: 0 | AT52: 0 | AU52: 730.24 | AV52: 0 | AW52: 62 | BB52: 6.43 | BD52: -0.35 | BI52: 0 | BL52: 0 | BM52: 0 | BN52: 0 | BO52: 0 | BP52: 6.781452 | BR52: 0 | BS52: 0 | BT52: 0 | BU52: 0 | BV52: 0.351452
B53: 2 | C53: 044 | D53: 535 | E53: 20 | G53: 044535 | S53: 0 | T53: 0 | U53: 0 | V53: 0 | W53: 0 | AK53: 0 | AL53: 0 | AM53: 0 | AN53: 0 | AO53: =ROUND(W53*(1+AO$1),2) -> 0 | AV53: 0 | BL53: 0 | BM53: 0 | BN53: 0 | BO53: 0 | BP53: 0
B54: 2 | C54: 044 | D54: 632 | E54: 5 | G54: 044632 | M54: =SUM(M4:M53) -> 127 | N54: =SUM(N4:N53) -> 21444 | O54: =SUM(O4:O53) -> 283 | P54: =SUM(P4:P53) -> 476 | Q54: =SUM(Q4:Q53) -> 1381 | Y54: =ROUND(SUM(Y4:Y53),2) -> 1977.33 | Z54: =ROUND(SUM(Z4:Z53),2) -> 371887.73 | AA54: =ROUND(SUM(AA4:AA53),2) -> 3168.94 | AB54: =ROUND(SUM(AB4:AB53),2) -> 6185.96 | AC54: =ROUND(SUM(AC4:AC53),2) -> 13845.74 | AE54: =SUM(AE4:AE53) -> 127 | AF54: =SUM(AF4:AF53) -> 21444 | AG54: =SUM(AG4:AG53) -> 283 | AH54: =SUM(AH4:AH53) -> 476 | AI54: =SUM(AI4:AI53) -> 1381 | AK54: 0 | AL54: 0 | AM54: 0 | AN54: 0 | AO54: 0 | AQ54: =ROUND(SUM(AQ4:AQ53),2) -> 1977.33 | AR54: =ROUND(SUM(AR4:AR53),2) -> 382879.91 | AS54: =ROUND(SUM(AS4:AS53),2) -> 3168.94 | AT54: =ROUND(SUM(AT4:AT53),2) -> 6185.96 | AU54: =ROUND(SUM(AU4:AU53),2) -> 13845.74 | BL54: 0 | BM54: 0 | BN54: 0 | BO54: 0 | BP54: 0
B55: 2 | C55: 044 | D55: 635 | E55: =3 -> 3 | G55: =IF(OR(ISBLANK(C55),ISBLANK(D55)),"",TEXT(C55,"000")&TEXT(D55,"000")) -> 044635 | K55: Total | Q55: =SUM(M54:Q54) -> 23711 | AI55: =SUM(AE54:AI54) -> 23711 | AK55: 0 | AL55: 0 | AM55: 0 | AN55: 0 | AO55: 0 | AU55: =SUM(AQ54:AU54) -> 408057.88 | BL55: 0 | BM55: 0 | BN55: 0 | BO55: 0 | BP55: 0
B56: 2 | C56: 044 | D56: 732 | E56: 26 | G56: =IF(OR(ISBLANK(C56),ISBLANK(D56)),"",TEXT(C56,"000")&TEXT(D56,"000")) -> 044732 | I56: (1) from Street Light Report and Area Light Report, 1/10/12, PDE-E-24-28 | Q56: =ROUND(Q55-E82,0) -> 0 | AC56: =SUM(Y54:AC54) -> 397065.7 | AI56: =AI55-Q55 -> 0 | AK56: 0 | AL56: 0 | AM56: 0 | AN56: 0 | AO56: 0 | AU56: =AU55/AC56-1 -> 0.02768352945 | BL56: 0 | BM56: 0 | BN56: 0 | BO56: 0 | BP56: 0
B57: 2 | C57: 044 | D57: 735 | E57: 30 | G57: 044735 | Y57: 1953 | Z57: 374990 | AA57: =3105+336 -> 3441 | AB57: 5969 | AC57: 13415 | AD57: Jun '13 revenue | AK57: 0 | AL57: 0 | AM57: 0 | AN57: 0 | AO57: 0 | BL57: 0 | BM57: 0 | BN57: 0 | BO57: 0 | BP57: 0
B58: 2 | C58: 044 | D58: 832 | E58: 1 | G58: 044832 | I58: no customer count - taken out of exhibit to limit print range | Y58: =Y54-Y57 -> 24.33 | Z58: =Z54-Z57 -> -3102.27 | AA58: =AA54-AA57 -> -272.06 | AB58: =AB54-AB57 -> 216.96 | AC58: =AC54-AC57 -> 430.74 | AK58: 0 | AL58: 0 | AM58: 0 | AN58: 0 | AO58: 0 | BL58: 0 | BM58: 0 | BN58: 0 | BO58: 0 | BP58: 0
B59: 2 | C59: 044 | D59: 835 | E59: 9 | G59: 044835 | I59: Single High-Pressure Sodium Vapor | J59: Dusk to 1 AM (046) | K59: 100W | L59: 439 | M59: =SUMIF($G:$G,TEXT(M$3,"000")&TEXT($L59,"000"),$E:$E) -> 0 | N59: =SUMIF($G:$G,TEXT(N$3,"000")&TEXT($L59,"000"),$E:$E) -> 0 | O59: 0 | P59: 0 | Q59: 0 | R59: =IF(SUM(M59:Q59)>0,0,1) -> 1 | T59: 0 | U59: 0 | V59: 0 | W59: 3.67 | AC59: =SUM(Y58:AC58) -> -2702.3 | AE59: =SUMIF($G:$G,TEXT(AE$3,"000")&TEXT($L59,"000"),$E:$E) -> 0 | AF59: 0 | AG59: 0 | AH59: 0 | AI59: 0 | AK59: 0 | AL59: 0 | AM59: 0 | AN59: 0 | AO59: 3.67 | AW59: 40 | BB59: 3.6 | BD59: =ROUND(AW59*$BD$2,2) -> -0.23 | BI59: -0.01 | BL59: 0 | BM59: 0 | BN59: 0 | BO59: 0 | BP59: 3.817167 | BR59: 0 | BS59: 0 | BT59: 0 | BU59: 0 | BV59: 0.217167
B60: 2 | C60: 044 | D60: 845 | E60: 1 | G60: 044845 | I60: Double High-Pressure Sodium Vapor | J60: Pedestal Base | K60: 100W | L60: 442 | M60: 0 | N60: 0 | O60: 0 | P60: 0 | Q60: 0 | R60: =IF(SUM(M60:Q60)>0,0,1) -> 1 | S60: 0 | T60: 38.52 | U60: 12.45 | V60: 0 | W60: 0 | AC60: =AC59/SUM(Y57:AC57) -> -0.006759670609 | AE60: 0 | AF60: 0 | AG60: 0 | AH60: 0 | AI60: 0 | AK60: 0 | AL60: 38.52 | AM60: 12.45 | AN60: 0 | AO60: 0 | AQ60: Surch Rate | AW60: 80 | AY60: 38.7 | AZ60: 12.37 | BD60: -0.46 | BF60: 0.9 | BG60: 0.12 | BL60: 0 | BM60: 40.064652 | BN60: 12.949245 | BO60: 0 | BP60: 0 | BR60: 0 | BS60: 1.364652 | BT60: 0.579245 | BU60: 0 | BV60: 0
E61: =SUM(E46:E60) -> 283 | I61: Double High-Pressure Sodium Vapor | J61: Direct Burial | K61: 100W | L61: 443 | M61: 0 | N61: 0 | O61: 0 | P61: 0 | Q61: 0 | R61: =IF(SUM(M61:Q61)>0,0,1) -> 1 | S61: 0 | T61: 0 | U61: 12.45 | V61: 0 | W61: 0 | Y61: Surch Rate | AE61: 0 | AF61: 0 | AG61: 0 | AH61: 0 | AI61: 0 | AK61: 0 | AL61: 0 | AM61: 12.45 | AN61: 0 | AO61: 0 | AQ61: =1+'Lighting summary'!D39 -> 1.0401 | AT61: Billed | AU61: =AU55*AQ61 -> 424421.001 | AW61: 80 | AZ61: 12.37 | BD61: -0.46 | BG61: 0.12 | BL61: 0 | BM61: 0 | BN61: 12.949245 | BO61: 0 | BP61: 0 | BR61: 0 | BS61: 0 | BT61: 0.579245 | BU61: 0 | BV61: 0
I62: Double High-Pressure Sodium Vapor | J62: Developer Contributed | K62: 100W | L62: 446 | M62: 0 | N62: 0 | O62: 0 | P62: 0 | Q62: 0 | R62: 1 | S62: 0 | T62: 27.19 | U62: 0 | V62: 0 | W62: 0 | Y62: =1+'Lighting summary'!I39 -> 1.0401 | AB62: Billed | AC62: =AC56*$Y$62 -> 412988.0346 | AE62: 0 | AF62: 0 | AG62: 0 | AH62: 0 | AI62: 0 | AK62: 0 | AL62: 27.19 | AM62: 0 | AN62: 0 | AO62: 0 | AW62: 80 | AY62: 27.26 | BD62: -0.46 | BF62: 0.56 | BL62: 0 | BM62: 28.280319 | BN62: 0 | BO62: 0 | BP62: 0 | BR62: 0 | BS62: 1.020319 | BT62: 0 | BU62: 0 | BV62: 0
B63: 2 | C63: 045 | D63: 415 | E63: =6+81 -> 87 | G63: 045415 | AB63: Actual | AC63: =SUM(Y57:AC57) -> 399768 | AD63: Diff is Sch 93
B64: 2 | C64: 045 | D64: 419 | E64: 16 | G64: =IF(OR(ISBLANK(C64),ISBLANK(D64)),"",TEXT(C64,"000")&TEXT(D64,"000")) -> 045419 | AB64: Diff | AC64: =AC63-AC62 -> -13220.03457
B65: 2 | C65: 045 | D65: 515 | E65: 7 | G65: =IF(OR(ISBLANK(C65),ISBLANK(D65)),"",TEXT(C65,"000")&TEXT(D65,"000")) -> 045515 | I65: Decorative Sodium Vapor | J65: No Pole | K65: Granville 100W | L65: 475 | M65: =SUMIF($G:$G,TEXT(M$3,"000")&TEXT($L65,"000"),$E:$E) -> 0 | N65: 0 | O65: 0 | P65: 0 | Q65: 0 | R65: 1 | S65: 0 | T65: 18.66 | U65: 0 | V65: 0 | W65: 0 | AE65: =SUMIF($G:$G,TEXT(AE$3,"000")&TEXT($L65,"000"),$E:$E) -> 0 | AF65: 0 | AG65: 0 | AH65: 0 | AI65: 0 | AK65: 0 | AL65: 18.66 | AM65: 0 | AN65: 0 | AO65: 0 | AW65: 40 | AY65: 18.75 | BD65: -0.23 | BF65: 0.43 | BL65: 0 | BM65: 19.408266 | BN65: 0 | BO65: 0 | BP65: 0 | BR65: 0 | BS65: 0.658266 | BT65: 0 | BU65: 0 | BV65: 0
B66: 2 | C66: 045 | D66: 615 | E66: =34+292 -> 326 | G66: 045615 | I66: Single High-Pressure Sodium Vapor | J66: Dusk to 1 AM (046) | K66: 200W | L66: 539 | M66: 0 | N66: 0 | O66: 0 | P66: 0 | Q66: 0 | R66: 1 | S66: 0 | T66: 0 | U66: 0 | V66: 0 | W66: 6.54 | AE66: 0 | AF66: 0 | AG66: 0 | AH66: 0 | AI66: 0 | AK66: 0 | AL66: 0 | AM66: 0 | AN66: 0 | AO66: 6.54 | AW66: 85 | BB66: 6.39 | BD66: -0.48 | BI66: -0.07 | BL66: 0 | BM66: 0 | BN66: 0 | BO66: 0 | BP66: 6.802254 | BR66: 0 | BS66: 0 | BT66: 0 | BU66: 0 | BV66: 0.412254
B67: 2 | C67: 045 | D67: 715 | E67: 6 | G67: 045715 | I67: Double High-Pressure Sodium Vapor | J67: Direct Burial | K67: 200W | L67: 543 | M67: 0 | N67: 0 | O67: 0 | P67: 0 | Q67: 0 | R67: 1 | S67: 0 | T67: 0 | U67: 20.33 | V67: 0 | W67: 0 | AE67: 0 | AF67: 0 | AG67: 0 | AH67: 0 | AI67: 0 | AK67: 0 | AL67: 0 | AM67: 20.33 | AN67: 0 | AO67: 0 | AW67: 170 | AZ67: 20.11 | BD67: -0.97 | BG67: 0.07 | BL67: 0 | BM67: 0 | BN67: 21.145233 | BO67: 0 | BP67: 0 | BR67: 0 | BS67: 0 | BT67: 1.035233 | BU67: 0 | BV67: 0
B68: 2 | C68: 045 | D68: 819 | E68: 34 | G68: 045819 | I68: Mercury Vapor | J68: Dusk to 1 AM | K68: 20000 | L68: 619 | M68: 0 | N68: 0 | O68: 0 | P68: 0 | Q68: 0 | R68: 1 | S68: 0 | T68: 0 | U68: 0 | V68: 9.39 | W68: 0 | AE68: 0 | AF68: 0 | AG68: 0 | AH68: 0 | AI68: 0 | AK68: 0 | AL68: 0 | AM68: 0 | AN68: 9.39 | AO68: 0 | AW68: 182 | BA68: 9.04 | BD68: -1.04 | BH68: -0.31 | BL68: 0 | BM68: 0 | BN68: 0 | BO68: 9.766539 | BP68: 0 | BR68: 0 | BS68: 0 | BT68: 0 | BU68: =BO68-BA68 -> 0.726539 | BV68: 0
E69: =SUM(E63:E68) -> 476 | I69: Single High-Pressure Sodium Vapor | J69: Dusk to 1 AM (046) | K69: 250W | L69: 639 | M69: 0 | N69: 0 | O69: 0 | P69: 0 | Q69: 0 | R69: 1 | S69: 0 | T69: 0 | U69: 0 | V69: 0 | W69: 8.09 | AE69: 0 | AF69: 0 | AG69: 0 | AH69: 0 | AI69: 0 | AK69: 0 | AL69: 0 | AM69: 0 | AN69: 0 | AO69: 8.09 | AW69: 107 | BB69: 7.9 | BD69: =ROUND(AW69*$BD$2,2) -> -0.61 | BI69: -0.1 | BL69: 0 | BM69: 0 | BN69: 0 | BO69: 0 | BP69: 8.414409 | BR69: =BL69-AX69 -> 0 | BS69: 0 | BT69: 0 | BU69: 0 | BV69: 0.514409
I70: Double High-Pressure Sodium Vapor | J70: Pedestal Base | K70: 250W | L70: 642 | M70: 0 | N70: 0 | O70: 0 | P70: 0 | Q70: 0 | R70: 1 | S70: 0 | T70: 0 | U70: 22.75 | V70: 0 | W70: 0 | AE70: 0 | AF70: 0 | AG70: 0 | AH70: 0 | AI70: 0 | AK70: 0 | AL70: 0 | AM70: 22.75 | AN70: 0 | AO70: 0 | AW70: 214 | AZ70: 22.45 | BD70: -1.22 | BG70: -0.01 | BL70: 0 | BM70: 0 | BN70: 23.662275 | BO70: 0 | BP70: 0 | BR70: 0 | BS70: 0 | BT70: 1.212275 | BU70: 0 | BV70: 0
B71: 2 | C71: 046 | D71: 335 | E71: 41 | G71: 046335 | I71: Single High-Pressure Sodium Vapor | J71: Wood Pole | K71: 310W | L71: 731 | M71: 0 | N71: 0 | O71: 0 | P71: 0 | Q71: 0 | R71: 1 | S71: 0 | T71: 0 | U71: 15.08 | V71: 0 | W71: 0 | AE71: 0 | AF71: 0 | AG71: 0 | AH71: 0 | AI71: 0 | AK71: 0 | AL71: 0 | AM71: 15.08 | AN71: 0 | AO71: 0 | AW71: 133 | AZ71: 14.9 | BD71: -0.76 | BG71: 0.02 | BL71: 0 | BM71: 0 | BN71: 15.684708 | BO71: 0 | BP71: 0 | BR71: 0 | BS71: 0 | BT71: 0.784708 | BU71: 0 | BV71: 0
B72: 2 | C72: 046 | D72: 435 | E72: 81 | G72: 046435 | I72: Single High-Pressure Sodium Vapor | J72: Direct Burial | K72: 310W | L72: 733 | M72: 0 | N72: 0 | O72: 0 | P72: 0 | Q72: 0 | R72: 1 | S72: 0 | T72: 0 | U72: 15.08 | V72: 0 | W72: 0 | AE72: 0 | AF72: 0 | AG72: 0 | AH72: 0 | AI72: 0 | AK72: 0 | AL72: 0 | AM72: 15.08 | AN72: 0 | AO72: 0 | AW72: 133 | AZ72: 14.9 | BD72: -0.76 | BG72: 0.02 | BL72: 0 | BM72: 0 | BN72: 15.684708 | BO72: 0 | BP72: 0 | BR72: 0 | BS72: 0 | BT72: 0.784708 | BU72: 0 | BV72: 0
B73: 2 | C73: 046 | D73: 495 | E73: 44 | G73: =IF(OR(ISBLANK(C73),ISBLANK(D73)),"",TEXT(C73,"000")&TEXT(D73,"000")) -> 046495 | I73: Single High-Pressure Sodium Vapor | J73: Dusk to 1 AM (046) | K73: 310W | L73: 739 | M73: 0 | N73: 0 | O73: 0 | P73: 0 | Q73: 0 | R73: 1 | S73: 0 | T73: 0 | U73: 0 | V73: 0 | W73: 9.71 | AE73: 0 | AF73: 0 | AG73: 0 | AH73: 0 | AI73: 0 | AK73: 0 | AL73: 0 | AM73: 0 | AN73: 0 | AO73: 9.71 | AW73: 133 | BB73: 9.48 | BD73: -0.76 | BI73: -0.14 | BL73: 0 | BM73: 0 | BN73: 0 | BO73: 0 | BP73: 10.099371 | BR73: =BL73-AX73 -> 0 | BS73: =BM73-AY73 -> 0 | BT73: =BN73-AZ73 -> 0 | BU73: =BO73-BA73 -> 0 | BV73: =BP73-BB73 -> 0.619371
B74: 2 | C74: 046 | D74: 499 | E74: 45 | G74: 046499 | I74: Double High-Pressure Sodium Vapor | J74: Pedestal Base | K74: 310W | L74: 742 | M74: 0 | N74: 0 | O74: 0 | P74: 0 | Q74: 0 | R74: 1 | S74: 0 | T74: 0 | U74: 28.38 | V74: 0 | W74: 0 | AE74: 0 | AF74: 0 | AG74: 0 | AH74: 0 | AI74: 0 | AK74: 0 | AL74: 0 | AM74: 28.38 | AN74: 0 | AO74: 0 | AW74: 266 | AZ74: 28 | BD74: -1.52 | BG74: 0 | BL74: 0 | BM74: 0 | BN74: 29.518038 | BO74: 0 | BP74: 0 | BR74: 0 | BS74: 0 | BT74: 1.518038 | BU74: 0 | BV74: 0
B75: 2 | C75: 046 | D75: 535 | E75: 136 | G75: 046535 | I75: Mercury Vapor | J75: Dusk to Dawn | K75: 55000 | L75: 815 | M75: 0 | N75: 0 | O75: 0 | P75: 0 | Q75: 0 | R75: 1 | S75: 0 | T75: 0 | U75: 0 | V75: 32.61 | W75: 0 | AE75: 0 | AF75: 0 | AG75: 0 | AH75: 0 | AI75: 0 | AK75: 0 | AL75: 0 | AM75: 0 | AN75: 32.61 | AO75: 0 | AW75: 417 | BA75: 31.9 | BD75: -2.38 | BH75: -0.36 | BL75: 0 | BM75: 0 | BN75: 0 | BO75: 33.917661 | BP75: 0 | BR75: 0 | BS75: 0 | BT75: 0 | BU75: 2.017661 | BV75: 0
B76: 2 | C76: 046 | D76: 635 | E76: 408 | G76: 046635 | I76: Single High-Pressure Sodium Vapor | J76: Direct Burial | K76: 400W | L76: 833 | M76: 0 | N76: 0 | O76: 0 | P76: 0 | Q76: 0 | R76: 1 | S76: 0 | T76: 0 | U76: 19.37 | V76: 0 | W76: 0 | AE76: 0 | AF76: 0 | AG76: 0 | AH76: 0 | AI76: 0 | AK76: 0 | AL76: 0 | AM76: 19.37 | AN76: 0 | AO76: 0 | AW76: 169 | AZ76: 19.14 | BD76: -0.96 | BG76: 0.05 | BL76: 0 | BM76: 0 | BN76: 20.146737 | BO76: 0 | BP76: 0 | BR76: 0 | BS76: 0 | BT76: 1.006737 | BU76: 0 | BV76: 0
B77: 2 | C77: 046 | D77: 735 | E77: 438 | G77: 046735 | I77: Single High-Pressure Sodium Vapor | J77: Dusk to 1 AM (046) | K77: 400W | L77: 839 | M77: 0 | N77: 0 | O77: 0 | P77: 0 | Q77: 0 | R77: 1 | S77: 0 | T77: 0 | U77: 0 | V77: 0 | W77: 12.15 | AE77: 0 | AF77: 0 | AG77: 0 | AH77: 0 | AI77: 0 | AK77: 0 | AL77: 0 | AM77: 0 | AN77: 0 | AO77: 12.15 | AW77: 169 | BB77: 11.85 | BD77: -0.96 | BI77: -0.17 | BL77: =AK77*$BL$1 -> 0 | BM77: =AL77*$BL$1 -> 0 | BN77: =AM77*$BL$1 -> 0 | BO77: =AN77*$BL$1 -> 0 | BP77: =AO77*$BL$1 -> 12.637215 | BR77: 0 | BS77: 0 | BT77: 0 | BU77: 0 | BV77: 0.787215
B78: 2 | C78: 046 | D78: 835 | E78: 76 | G78: 046835 | BD78: 0 | BL78: =AK78*1.0516 -> 0 | BM78: =AL78*1.0516 -> 0 | BN78: =AM78*1.0516 -> 0 | BP78: =AO78*1.0516 -> 0
B79: 2 | C79: 046 | D79: 935 | E79: 112 | G79: 046935
E80: =SUM(E71:E79) -> 1381
B82: 2 | E82: =E11+E44+E61+E69+E80 -> 23711
D84: Street Light Summary total, WA | E84: 23711
D85: Area Light Count, WA | E85: 8715
E86: =E84+E85 -> 32426
E87: =E82+'Area Lts'!E63-E86 -> 0

Sheet Area Lts (hidden)
A1: Area Light Summary | I1: WASHINGTON Area Lights | S1: Monthly Rev. | Z1: =SL_RateIncr -> 0 | AC1: % rate increase --> | AD1: ='Lighting summary'!L16 -> 0 | AG1: Monthly Rev. | AJ1: -0.00195 | AK1: =-0.00503-0.00067 -> -0.0057 | AO1: compare input Present Billing Rates to calculated Present Billing Rates
A2: DWWPWMS.AREA_LIGHT_ASMBLY1, as of 2/10/11 | M2: # of Lights(1) | P2: Pres. Rates | S2: at Pres. Rates | V2: # of Lights(1) | AA2: # of Lights | AD2: Prop. Rates | AG2: at Prop. Rates | AK2: Pres. Billing Rates | AO2: ='St Lts'!BE2 -> 1.0401 | AP2: ='St Lts'!BF2 -> Sch 91 & 93 | AR2: New Billing Rates | AT2: ='Lighting summary'!I39 -> 0.0401 | AU2: Increase
I3: Fixture Type | J3: Pole Facility | K3: Size | L3: Sched | M3: 047 | N3: 048 | P3: 047 | Q3: 048 | S3: 047 | T3: 048 | V3: 047 | W3: 048 | AA3: 047 | AB3: 048 | AD3: 047 | AE3: 048 | AG3: 047 | AH3: 048 | AJ3: kwh | AK3: 047 | AL3: 048 | AM3: Sch 59 | AN3: Sch 93 | AO3: 047 | AP3: 048 | AR3: 047 | AS3: 048 | AU3: 047 | AV3: 048
I4: Sodium Vapor | J4: Granville w/16' decorative pole | K4: 100W | L4: HAG | M4: =SUMIF($G:$G,TEXT(M$3,"000")&TEXT($L4,"000"),$E:$E) -> 0 | N4: 0 | P4: 29.14 | Q4: =P4 -> 29.14 | S4: =IF(AND(M4<>0,P4=0),#VALUE!,M4*P4) -> 0 | T4: =IF(AND(N4<>0,Q4=0),#VALUE!,N4*Q4) -> 0 | V4: =SUMIF($G:$G,TEXT(V$3,"000")&TEXT($L4,"000"),$E:$E) -> 0 | W4: 0 | AA4: =M4 -> 0 | AB4: =N4 -> 0 | AD4: =ROUND(P4*(1+AD$1),2) -> 29.14 | AE4: =AD4 -> 29.14 | AG4: =IF(AND(AA4<>0,AD4=0),#VALUE!,AA4*AD4) -> 0 | AH4: =IF(AND(AB4<>0,AE4=0),#VALUE!,AB4*AE4) -> 0 | AJ4: 40 | AK4: 30.08 | AL4: 30 | AM4: =ROUND($AJ$1*$AJ4,2) -> -0.08 | AN4: =ROUND($AK$1*$AJ4,2) -> -0.23 | AO4: =ROUND(P4*$AO$2-AK4+AN4,2) -> 0 | AP4: =ROUND(Q4*$AO$2-AL4+AM4+AN4,2) -> 0 | AR4: =AD4*$AT$2 -> 1.168514 | AS4: =AE4*$AT$2+AM4 -> 1.088514 | AU4: =AR4-AK4 -> -28.911486 | AV4: =AS4-AL4 -> -28.911486
B5: State | C5: Sched | D5: Rate Sub | E5: # of Lights | I5: Sodium Vapor | J5: Floodlight on existing standard | K5: 250W | L5: HAH | M5: 95 | N5: 9 | P5: 21.56 | Q5: =P5 -> 21.56 | S5: 2048.2 | T5: 194.04 | V5: 95 | W5: 9 | AA5: =M5 -> 95 | AB5: 9 | AD5: 21.56 | AE5: =AD5 -> 21.56 | AG5: 2048.2 | AH5: 194.04 | AJ5: 107 | AK5: 21.81 | AL5: 21.6 | AM5: =ROUND($AJ$1*$AJ5,2) -> -0.21 | AN5: =ROUND($AK$1*$AJ5,2) -> -0.61 | AO5: =ROUND(P5*$AO$2-AK5+AN5,2) -> 0 | AP5: =ROUND(Q5*$AO$2-AL5+AM5+AN5,2) -> 0 | AR5: =AD5*$AT$2 -> 0.864556 | AS5: =AE5*$AT$2+AM5 -> 0.654556 | AU5: =AR5-AK5 -> -20.945444 | AV5: =AS5-AL5 -> -20.945444
I6: Sodium Vapor | J6: Kim light w/25' fiberglass pole | K6: 100W | L6: HAI | M6: 15 | N6: 3 | P6: 28.14 | Q6: 28.14 | S6: 422.1 | T6: 84.42 | V6: 15 | W6: 3 | AA6: 15 | AB6: 3 | AD6: =ROUND(P6*(1+AD$1),2) -> 28.14 | AE6: =AD6 -> 28.14 | AG6: 422.1 | AH6: 84.42 | AJ6: 40 | AK6: 29.04 | AL6: 28.96 | AM6: -0.08 | AN6: -0.23 | AO6: 0 | AP6: 0 | AR6: =AD6*$AT$2 -> 1.128414 | AS6: 1.048414 | AU6: -27.911586 | AV6: -27.911586
B7: WA | C7: 047 | D7: HAH | E7: 95 | G7: =IF(OR(ISBLANK(C7),ISBLANK(D7)),"",TEXT(C7,"000")&TEXT(D7,"000")) -> 047HAH | I7: Sodium Vapor | J7: Post Top w/16' decorative pole | K7: 100W | L7: HAP | M7: 0 | N7: 0 | P7: 27.79 | Q7: 27.79 | S7: 0 | T7: 0 | V7: 0 | W7: 0 | AA7: 0 | AB7: 0 | AD7: 27.79 | AE7: 27.79 | AG7: 0 | AH7: 0 | AJ7: 40 | AK7: 28.67 | AL7: 28.59 | AM7: -0.08 | AN7: -0.23 | AO7: 0 | AP7: 0 | AR7: 1.114379 | AS7: 1.034379 | AU7: -27.555621 | AV7: -27.555621
B8: WA | C8: 047 | D8: HAI | E8: 15 | G8: =IF(OR(ISBLANK(C8),ISBLANK(D8)),"",TEXT(C8,"000")&TEXT(D8,"000")) -> 047HAI | I8: Sodium Vapor | J8: on existing standard | K8: 100W | L8: HPA | M8: 609 | N8: 881 | P8: 13.36 | Q8: 13.36 | S8: 8136.24 | T8: 11770.16 | V8: 609 | W8: 881 | AA8: 609 | AB8: 881 | AD8: 13.36 | AE8: 13.36 | AG8: 8136.24 | AH8: 11770.16 | AJ8: 40 | AK8: 13.67 | AL8: 13.59 | AM8: -0.08 | AN8: -0.23 | AO8: 0 | AP8: 0 | AR8: 0.535736 | AS8: 0.455736 | AU8: -13.134264 | AV8: -13.134264
B9: WA | C9: 047 | D9: HPA | E9: 609 | G9: 047HPA | I9: Sodium Vapor | J9: on existing standard | K9: 200W | L9: HPB | M9: 1188 | N9: 565 | P9: 18.98 | Q9: 18.98 | S9: 22548.24 | T9: 10723.7 | V9: 1188 | W9: 565 | AA9: 1188 | AB9: 565 | AD9: 18.98 | AE9: 18.98 | AG9: 22548.24 | AH9: 10723.7 | AJ9: 84 | AK9: 19.25 | AL9: 19.08 | AM9: -0.16 | AN9: -0.48 | AO9: 0.01 | AP9: 0.02 | AR9: 0.761098 | AS9: 0.601098 | AU9: -18.488902 | AV9: -18.478902
B10: WA | C10: 047 | D10: HPB | E10: 1188 | G10: 047HPB | I10: Sodium Vapor | J10: on existing standard | K10: 400W | L10: HPC | M10: 130 | N10: 10 | P10: 26.21 | Q10: 26.21 | S10: 3407.3 | T10: 262.1 | V10: 130 | W10: 10 | AA10: 130 | AB10: 10 | AD10: 26.21 | AE10: 26.21 | AG10: 3407.3 | AH10: 262.1 | AJ10: 169 | AK10: 26.3 | AL10: 25.97 | AM10: -0.33 | AN10: =ROUND($AK$1*$AJ10,2) -> -0.96 | AO10: 0 | AP10: 0 | AR10: 1.051021 | AS10: 0.721021 | AU10: -25.248979 | AV10: -25.248979
B11: WA | C11: 047 | D11: HPC | E11: 130 | G11: 047HPC | I11: Sodium Vapor | J11: 30' wood pole | K11: 200W | L11: HPD | M11: 971 | N11: 265 | P11: 26.36 | Q11: 26.36 | S11: 25595.56 | T11: 6985.4 | V11: 971 | W11: 265 | AA11: 971 | AB11: 265 | AD11: 26.36 | AE11: 26.36 | AG11: 25595.56 | AH11: 6985.4 | AJ11: 84 | AK11: 26.93 | AL11: 26.76 | AM11: -0.16 | AN11: -0.48 | AO11: 0.01 | AP11: 0.02 | AR11: 1.057036 | AS11: 0.897036 | AU11: -25.872964 | AV11: -25.862964
B12: WA | C12: 047 | D12: HPD | E12: 971 | G12: 047HPD | I12: Sodium Vapor | J12: 30' wood pole | K12: 100W | L12: HPE | M12: 419 | N12: 322 | P12: 19.57 | Q12: 19.57 | S12: 8199.83 | T12: 6301.54 | V12: 419 | W12: 322 | AA12: 419 | AB12: 322 | AD12: 19.57 | AE12: 19.57 | AG12: 8199.83 | AH12: 6301.54 | AJ12: 40 | AK12: 20.12 | AL12: 20.04 | AM12: -0.08 | AN12: -0.23 | AO12: 0 | AP12: 0 | AR12: 0.784757 | AS12: 0.704757 | AU12: -19.335243 | AV12: -19.335243
B13: WA | C13: 047 | D13: HPE | E13: 419 | G13: 047HPE | I13: Sodium Vapor | J13: 30' wood pole | K13: 400W | L13: HPG | M13: 54 | N13: 7 | P13: 33.69 | Q13: 33.69 | S13: 1819.26 | T13: 235.83 | V13: 54 | W13: 7 | AA13: 54 | AB13: 7 | AD13: 33.69 | AE13: 33.69 | AG13: 1819.26 | AH13: 235.83 | AJ13: 169 | AK13: 34.08 | AL13: 33.75 | AM13: -0.33 | AN13: -0.96 | AO13: 0 | AP13: 0 | AR13: 1.350969 | AS13: 1.020969 | AU13: -32.729031 | AV13: -32.729031
B14: WA | C14: 047 | D14: HPG | E14: 54 | G14: 047HPG | I14: Sodium Vapor | J14: 30' steel pole | K14: 200W | L14: HPL | M14: 46 | N14: 5 | P14: 33.11 | Q14: 33.11 | S14: 1523.06 | T14: 165.55 | V14: 46 | W14: 5 | AA14: 46 | AB14: 5 | AD14: 33.11 | AE14: 33.11 | AG14: 1523.06 | AH14: 165.55 | AJ14: 84 | AK14: 33.95 | AL14: 33.78 | AM14: -0.16 | AN14: -0.48 | AO14: 0.01 | AP14: 0.02 | AR14: 1.327711 | AS14: 1.167711 | AU14: -32.622289 | AV14: -32.612289
B15: WA | C15: 047 | D15: HPL | E15: 46 | G15: 047HPL | I15: Sodium Vapor | J15: 25' steel pole | K15: 200W | L15: HPO | M15: 8 | N15: 13 | P15: 28.68 | Q15: 28.68 | S15: 229.44 | T15: 372.84 | V15: 8 | W15: 13 | AA15: 8 | AB15: 13 | AD15: 28.68 | AE15: 28.68 | AG15: 229.44 | AH15: 372.84 | AJ15: 84 | AK15: 29.34 | AL15: 29.17 | AM15: =ROUND($AJ$1*$AJ15,2) -> -0.16 | AN15: -0.48 | AO15: 0.01 | AP15: 0.02 | AR15: 1.150068 | AS15: 0.990068 | AU15: -28.189932 | AV15: -28.179932
B16: WA | C16: 047 | D16: HPO | E16: 8 | G16: =IF(OR(ISBLANK(C16),ISBLANK(D16)),"",TEXT(C16,"000")&TEXT(D16,"000")) -> 047HPO | I16: Sodium Vapor | J16: 20' fiberglass pole | K16: 100W | L16: HPS | M16: 68 | N16: 154 | P16: 19.57 | Q16: 19.57 | S16: 1330.76 | T16: 3013.78 | V16: 68 | W16: 154 | AA16: 68 | AB16: 154 | AD16: 19.57 | AE16: 19.57 | AG16: 1330.76 | AH16: 3013.78 | AJ16: 40 | AK16: 20.12 | AL16: 20.04 | AM16: -0.08 | AN16: -0.23 | AO16: 0 | AP16: 0 | AR16: 0.784757 | AS16: 0.704757 | AU16: -19.335243 | AV16: -19.335243
B17: WA | C17: 047 | D17: HPS | E17: 68 | G17: 047HPS | I17: Sodium Vapor | J17: 30' steel pole w/2 arms | K17: 200W | L17: HPY | M17: 15 | N17: 0 | P17: 56.1 | Q17: 56.1 | S17: 841.5 | T17: 0 | V17: 15 | W17: 0 | AA17: 15 | AB17: 0 | AD17: 56.1 | AE17: 56.1 | AG17: 841.5 | AH17: 0 | AJ17: 84 | AK17: 57.86 | AL17: 57.69 | AM17: -0.16 | AN17: -0.48 | AO17: 0.01 | AP17: 0.02 | AR17: 2.24961 | AS17: 2.08961 | AU17: -55.61039 | AV17: -55.60039
B18: WA | C18: 047 | D18: HPY | E18: 15 | G18: 047HPY | I18: Mercury Vapor | J18: on existing standard | K18: 7000 | L18: MVA | M18: 140 | N18: 422 | P18: 15.37 | Q18: 15.37 | S18: 2151.8 | T18: 6486.14 | V18: 140 | W18: 422 | AA18: 140 | AB18: 422 | AD18: 15.37 | AE18: 15.37 | AG18: 2151.8 | AH18: 6486.14 | AJ18: 80 | AK18: 15.54 | AL18: 15.38 | AM18: -0.16 | AN18: -0.46 | AO18: -0.01 | AP18: -0.01 | AR18: 0.616337 | AS18: 0.456337 | AU18: -14.923663 | AV18: -14.923663
B19: WA | C19: 047 | D19: MVA | E19: 140 | G19: 047MVA | I19: Mercury Vapor | J19: on existing standard | K19: 10000 | L19: MVB | M19: 276 | N19: 499 | P19: 18.41 | Q19: 18.41 | S19: 5081.16 | T19: 9186.59 | V19: 276 | W19: 499 | AA19: 276 | AB19: 499 | AD19: 18.41 | AE19: 18.41 | AG19: 5081.16 | AH19: 9186.59 | AJ19: 111 | AK19: 18.52 | AL19: 18.3 | AM19: =ROUND($AJ$1*$AJ19,2) -> -0.22 | AN19: -0.63 | AO19: 0 | AP19: 0 | AR19: 0.738241 | AS19: 0.518241 | AU19: -17.781759 | AV19: -17.781759
B20: WA | C20: 047 | D20: MVB | E20: 276 | G20: 047MVB | I20: Mercury Vapor | J20: on existing standard | K20: 20000 | L20: MVC | M20: 493 | N20: 51 | P20: 26.2 | Q20: 26.2 | S20: 12916.6 | T20: 1336.2 | V20: 493 | W20: 51 | AA20: 493 | AB20: 51 | AD20: 26.2 | AE20: 26.2 | AG20: 12916.6 | AH20: 1336.2 | AJ20: 182 | AK20: 26.21 | AL20: 25.86 | AM20: -0.35 | AN20: -1.04 | AO20: 0 | AP20: 0 | AR20: 1.05062 | AS20: 0.70062 | AU20: -25.15938 | AV20: -25.15938
B21: WA | C21: 047 | D21: MVC | E21: 493 | G21: 047MVC | I21: Mercury Vapor | J21: 30' wood pole | K21: 7000 | L21: MVD | M21: 57 | N21: 177 | P21: 19.18 | Q21: 19.18 | S21: 1093.26 | T21: 3394.86 | V21: 57 | W21: 177 | AA21: 57 | AB21: 177 | AD21: 19.18 | AE21: 19.18 | AG21: 1093.26 | AH21: 3394.86 | AJ21: 80 | AK21: 19.5 | AL21: 19.34 | AM21: -0.16 | AN21: -0.46 | AO21: -0.01 | AP21: -0.01 | AR21: 0.769118 | AS21: 0.609118 | AU21: -18.730882 | AV21: -18.730882
B22: WA | C22: 047 | D22: MVD | E22: 57 | G22: 047MVD | I22: Mercury Vapor | J22: 30' wood pole | K22: 10000 | L22: MVE | M22: 94 | N22: 150 | P22: 22.28 | Q22: 22.28 | S22: 2094.32 | T22: 3342 | V22: 94 | W22: 150 | AA22: 94 | AB22: 150 | AD22: 22.28 | AE22: 22.28 | AG22: 2094.32 | AH22: 3342 | AJ22: 111 | AK22: 22.54 | AL22: 22.32 | AM22: -0.22 | AN22: -0.63 | AO22: 0 | AP22: 0 | AR22: 0.893428 | AS22: 0.673428 | AU22: -21.646572 | AV22: -21.646572
B23: WA | C23: 047 | D23: MVE | E23: 94 | G23: 047MVE | I23: Mercury Vapor | J23: 30' wood pole | K23: 20000 | L23: MVF | M23: 287 | N23: 29 | P23: 30.06 | Q23: 30.06 | S23: 8627.22 | T23: 871.74 | V23: 287 | W23: 29 | AA23: 287 | AB23: 29 | AD23: 30.06 | AE23: 30.06 | AG23: 8627.22 | AH23: 871.74 | AJ23: 182 | AK23: 30.23 | AL23: 29.88 | AM23: -0.35 | AN23: -1.04 | AO23: 0 | AP23: 0 | AR23: 1.205406 | AS23: 0.855406 | AU23: -29.024594 | AV23: -29.024594
B24: WA | C24: 047 | D24: MVF | E24: 287 | G24: 047MVF | I24: Mercury Vapor | J24: 25' steel | K24: 7000 | L24: MVG | M24: =SUMIF($G:$G,TEXT(M$3,"000")&TEXT($L24,"000"),$E:$E) -> 0 | N24: 1 | P24: 25 | Q24: 25 | S24: 0 | T24: 25 | V24: =SUMIF($G:$G,TEXT(V$3,"000")&TEXT($L24,"000"),$E:$E) -> 0 | W24: 1 | AA24: 0 | AB24: 1 | AD24: 25 | AE24: 25 | AG24: 0 | AH24: 25 | AJ24: 80 | AK24: 25.55 | AL24: 25.39 | AM24: -0.16 | AN24: -0.46 | AO24: -0.01 | AP24: -0.01 | AR24: 1.0025 | AS24: 0.8425 | AU24: -24.5475 | AV24: -24.5475
B25: WA | C25: 047 | D25: MVH | E25: 5 | G25: 047MVH | I25: Mercury Vapor | J25: 25' steel | K25: 10000 | L25: MVH | M25: 5 | N25: 23 | P25: 28.11 | Q25: 28.11 | S25: 140.55 | T25: 646.53 | V25: 5 | W25: 23 | AA25: 5 | AB25: 23 | AD25: 28.11 | AE25: 28.11 | AG25: 140.55 | AH25: 646.53 | AJ25: 111 | AK25: 28.61 | AL25: 28.39 | AM25: -0.22 | AN25: -0.63 | AO25: 0 | AP25: 0 | AR25: 1.127211 | AS25: 0.907211 | AU25: -27.482789 | AV25: -27.482789
B26: WA | C26: 047 | D26: MVI | E26: 2 | G26: 047MVI | I26: Mercury Vapor | J26: 25' steel | K26: 20000 | L26: MVI | M26: 2 | N26: 0 | P26: 35.86 | Q26: 35.86 | S26: 71.72 | T26: 0 | V26: 2 | W26: 0 | AA26: 2 | AB26: 0 | AD26: 35.86 | AE26: 35.86 | AG26: 71.72 | AH26: 0 | AJ26: 182 | AK26: 36.26 | AL26: 35.91 | AM26: -0.35 | AN26: -1.04 | AO26: 0 | AP26: 0 | AR26: 1.437986 | AS26: 1.087986 | AU26: -34.822014 | AV26: -34.822014
B27: WA | C27: 047 | D27: MVJ | E27: 2 | G27: 047MVJ | I27: Mercury Vapor | J27: 30' steel | K27: 7000 | L27: MVJ | M27: 2 | N27: 0 | P27: 26.22 | Q27: 26.22 | S27: 52.44 | T27: 0 | V27: 2 | W27: 0 | AA27: 2 | AB27: 0 | AD27: 26.22 | AE27: 26.22 | AG27: 52.44 | AH27: 0 | AJ27: 80 | AK27: 26.82 | AL27: 26.66 | AM27: -0.16 | AN27: -0.46 | AO27: -0.01 | AP27: -0.01 | AR27: 1.051422 | AS27: 0.891422 | AU27: -25.768578 | AV27: -25.768578
B28: WA | C28: 047 | D28: MVK | E28: 2 | G28: 047MVK | I28: Mercury Vapor | J28: 30' steel | K28: 10000 | L28: MVK | M28: 2 | N28: 38 | P28: 29.31 | Q28: 29.31 | S28: 58.62 | T28: 1113.78 | V28: 2 | W28: 38 | AA28: 2 | AB28: 38 | AD28: 29.31 | AE28: 29.31 | AG28: 58.62 | AH28: 1113.78 | AJ28: 111 | AK28: 29.86 | AL28: 29.64 | AM28: -0.22 | AN28: -0.63 | AO28: 0 | AP28: 0 | AR28: 1.175331 | AS28: 0.955331 | AU28: -28.684669 | AV28: -28.684669
B29: WA | C29: 047 | D29: MVL | E29: 6 | G29: 047MVL | I29: Mercury Vapor | J29: 30' steel | K29: 20000 | L29: MVL | M29: 6 | N29: 0 | P29: 37.08 | Q29: 37.08 | S29: 222.48 | T29: 0 | V29: 6 | W29: 0 | AA29: 6 | AB29: 0 | AD29: 37.08 | AE29: 37.08 | AG29: 222.48 | AH29: 0 | AJ29: 182 | AK29: 37.53 | AL29: 37.18 | AM29: -0.35 | AN29: -1.04 | AO29: 0 | AP29: 0 | AR29: 1.486908 | AS29: 1.136908 | AU29: -36.043092 | AV29: -36.043092
B30: WA | C30: 047 | D30: MVO | E30: 0 | G30: 047MVO | I30: Mercury Vapor | J30: 25' aluminum | K30: 7000 | L30: MVM | M30: 0 | N30: 0 | P30: 27.06 | Q30: 27.06 | S30: 0 | T30: 0 | V30: 0 | W30: 0 | AA30: 0 | AB30: 0 | AD30: 27.06 | AE30: 27.06 | AG30: 0 | AH30: 0 | AJ30: 80 | AK30: 27.7 | AL30: 27.54 | AM30: -0.16 | AN30: -0.46 | AO30: -0.01 | AP30: -0.01 | AR30: 1.085106 | AS30: 0.925106 | AU30: -26.614894 | AV30: -26.614894
B31: WA | C31: 047 | D31: PA | E31: 54 | G31: 047PA | I31: Mercury Vapor | J31: 25' aluminum | K31: 10000 | L31: MVN | M31: 0 | N31: 0 | P31: 30.16 | Q31: 30.16 | S31: 0 | T31: 0 | V31: 0 | W31: 0 | AA31: 0 | AB31: 0 | AD31: 30.16 | AE31: 30.16 | AG31: 0 | AH31: 0 | AJ31: 111 | AK31: 30.74 | AL31: 30.52 | AM31: -0.22 | AN31: -0.63 | AO31: 0 | AP31: 0 | AR31: 1.209416 | AS31: 0.989416 | AU31: -29.530584 | AV31: -29.530584
E32: =SUM(E7:E31) -> 5036 | I32: Mercury Vapor | J32: 25' aluminum | K32: 20000 | L32: MVO | M32: 0 | N32: 0 | P32: 37.9 | Q32: 37.9 | S32: 0 | T32: 0 | V32: 0 | W32: 0 | AA32: 0 | AB32: 0 | AD32: 37.9 | AE32: 37.9 | AG32: 0 | AH32: 0 | AJ32: 182 | AK32: 38.38 | AL32: 38.03 | AM32: -0.35 | AN32: -1.04 | AO32: 0 | AP32: 0 | AR32: 1.51979 | AS32: 1.16979 | AU32: -36.86021 | AV32: -36.86021
I33: Mercury Vapor | J33: Special | K33: 7000 | L33: MVV | M33: 0 | N33: 2 | P33: 7.77 | Q33: 7.77 | S33: 0 | T33: 15.54 | V33: 0 | W33: 2 | AA33: 0 | AB33: 2 | AD33: 7.77 | AE33: 7.77 | AG33: 0 | AH33: 15.54 | AJ33: 42 | AK33: 7.77 | AL33: 7.69 | AM33: =ROUND($AJ$1*$AJ33,2) -> -0.08 | AN33: =ROUND($AK$1*$AJ33,2) -> -0.24 | AO33: =ROUND(P33*$AO$2-AK33+AN33,2) -> 0.07 | AP33: 0.07 | AR33: 0.311577 | AS33: 0.231577 | AU33: -7.458423 | AV33: -7.458423
B34: WA | C34: 048 | D34: HAH | E34: 9 | G34: 048HAH | I34: none | J34: 30' wood pole | K34: n/a | L34: PA | M34: 54 | N34: 2 | P34: 6.19 | Q34: 6.19 | S34: 334.26 | T34: 12.38 | V34: 54 | W34: 2 | AA34: 54 | AB34: 2 | AD34: 6.19 | AE34: 6.19 | AG34: 334.26 | AH34: 12.38 | AK34: 6.44 | AL34: 6.44 | AM34: 0 | AN34: 0 | AO34: 0 | AP34: 0 | AR34: 0.248219 | AS34: 0.248219 | AU34: -6.191781 | AV34: -6.191781
B35: WA | C35: 048 | D35: HAI | E35: 3 | G35: =IF(OR(ISBLANK(C35),ISBLANK(D35)),"",TEXT(C35,"000")&TEXT(D35,"000")) -> 048HAI | I35: none | J35: 55' wood pole | K35: n/a | L35: PB | M35: 0 | N35: 1 | P35: 11.82 | Q35: 11.82 | S35: 0 | T35: 11.82 | V35: 0 | W35: 1 | AA35: 0 | AB35: 1 | AD35: 11.82 | AE35: 11.82 | AG35: 0 | AH35: 11.82 | AK35: 12.29 | AL35: 12.29 | AM35: 0 | AN35: 0 | AO35: 0 | AP35: 0 | AR35: 0.473982 | AS35: 0.473982 | AU35: -11.816018 | AV35: -11.816018
B36: WA | C36: 048 | D36: HPA | E36: 881 | G36: 048HPA | L36: SLB | M36: 0 | N36: 30 | Q36: 1e-07 | S36: 0 | T36: 3e-06 | V36: 0 | W36: 30 | AA36: 0 | AB36: 30 | AD36: =ROUND(P36*(1+$Z$1),2) -> 0 | AE36: 1e-06 | AG36: 0 | AH36: 3e-05 | AO36: 0 | AP36: 0 | AR36: 0 | AS36: 4.01e-08 | AU36: 0 | AV36: 4.01e-08
B37: WA | C37: 048 | D37: HPB | E37: 565 | G37: 048HPB | L37: SLC | M37: 0 | N37: 19 | Q37: 1e-06 | S37: 0 | T37: 1.9e-05 | V37: 0 | W37: 19 | AA37: 0 | AB37: 19 | AD37: =ROUND(P37*(1+$Z$1),2) -> 0 | AE37: 1e-06 | AG37: 0 | AH37: 1.9e-05 | AO37: 0 | AP37: 0 | AR37: 0 | AS37: 4.01e-08 | AU37: 0 | AV37: 4.01e-08
B38: WA | C38: 048 | D38: HPC | E38: 10 | G38: 048HPC | L38: SLD | M38: 0 | N38: 1 | Q38: 1e-06 | S38: 0 | T38: 1e-06 | V38: 0 | W38: 1 | AA38: 0 | AB38: 1 | AD38: =ROUND(P38*(1+$Z$1),2) -> 0 | AE38: 1e-06 | AG38: 0 | AH38: 1e-06 | AO38: 0 | AP38: 0 | AR38: 0 | AS38: 4.01e-08 | AU38: 0 | AV38: 4.01e-08
B39: WA | C39: 048 | D39: HPD | E39: 265 | G39: 048HPD
B40: WA | C40: 048 | D40: HPE | E40: 322 | G40: 048HPE | M40: =SUM(M5:M39) -> 5036 | N40: =SUM(N5:N39) -> 3679 | S40: =SUM(S5:S39) -> 108945.92 | T40: =SUM(T5:T39) -> 66551.94002 | V40: =SUM(V5:V39) -> 5036 | W40: =SUM(W5:W39) -> 3679 | AA40: =SUM(AA5:AA39) -> 5036 | AB40: =SUM(AB5:AB39) -> 3679 | AG40: =SUM(AG5:AG39) -> 108945.92 | AH40: =SUM(AH5:AH39) -> 66551.94005
B41: WA | C41: 048 | D41: HPG | E41: 7 | G41: 048HPG | K41: Total | N41: =SUM(M40:N40) -> 8715 | T41: =ROUND(SUM(S40:T40),2) -> 175497.86 | W41: =SUM(V40:W40) -> 8715 | AB41: =SUM(AA40:AB40) -> 8715 | AH41: =ROUND(SUM(AG40:AH40),2) -> 175497.86
B42: WA | C42: 048 | D42: HPL | E42: 5 | G42: =IF(OR(ISBLANK(C42),ISBLANK(D42)),"",TEXT(C42,"000")&TEXT(D42,"000")) -> 048HPL | I42: ='St Lts'!I56 -> (1) from Street Light Report and Area Light Report, 1/10/12, PDE-E-24-28 | N42: =ROUND(N41-E63,0) -> 0 | S42: 105403 | T42: 63154 | Z42: Dec '10 revenue | AB42: =AB41-N41 -> 0 | AH42: =AH41/T41-1 -> 0
B43: WA | C43: 048 | D43: HPO | E43: 13 | G43: 048HPO | S43: =S40-S42 -> 3542.92 | T43: =T40-T42 -> 3397.940023
B44: WA | C44: 048 | D44: HPS | E44: 154 | G44: 048HPS | T44: =SUM(S43:T43) -> 6940.860023
B45: WA | C45: 048 | D45: MVA | E45: 422 | G45: 048MVA | S45: Surch Rate | T45: =T44/SUM(P42:T42) -> 0.04117811792 | AG45: Surch Rate
B46: WA | C46: 048 | D46: MVB | E46: 499 | G46: 048MVB | S46: ='St Lts'!Y62 -> 1.0401 | AG46: ='St Lts'!AQ61 -> 1.0401
B47: WA | C47: 048 | D47: MVC | E47: 51 | G47: 048MVC | R47: Billed | S47: =S40*$S46 -> 113314.6514 | T47: =T40*$S46 -> 69220.67282 | AF47: Billed | AG47: =AG40*$AG46 -> 113314.6514 | AH47: =AH40*$AG46 -> 69220.67285
B48: WA | C48: 048 | D48: MVD | E48: 177 | G48: 048MVD | R48: less Sch 59 | T48: =SUMPRODUCT($N$4:$N$38,$AM$4:$AM$38) -> -532.34 | AF48: less Sch 59/93 | AG48: =SUMPRODUCT($N$4:$N$38,$AN$4:$AN$38) -> -1548.63 | AH48: =SUMPRODUCT($N$4:$N$38,$AM$4:$AM$38) -> -532.34
B49: WA | C49: 048 | D49: MVE | E49: 150 | G49: 048MVE | S49: =S47+S48 -> 113314.6514 | T49: =T47+T48 -> 68688.33282 | AG49: =AG47+AG48 -> 111766.0214 | AH49: =AH47+AH48 -> 68688.33285
B50: WA | C50: 048 | D50: MVF | E50: 29 | G50: 048MVF | T50: =S49+T49 -> 182002.9842 | AH50: =AG49+AH49 -> 180454.3542
B51: WA | C51: 048 | D51: MVG | E51: 1 | G51: 048MVG
B52: WA | C52: 048 | D52: MVH | E52: 23 | G52: 048MVH
B53: WA | C53: 048 | D53: MVK | E53: 38 | G53: 048MVK | X53: Monthly Increase (Decrease)
B54: WA | C54: 048 | D54: MVN | E54: 0 | G54: 048MVN | X54: Annual Increase (Decrease)
B55: WA | C55: 048 | D55: MVV | E55: 2 | G55: 048MVV
B56: WA | C56: 048 | D56: PA | E56: 2 | G56: 048PA
B57: WA | C57: 048 | D57: PB | E57: 1 | G57: 048PB
B58: WA | C58: 048 | D58: SLB | E58: 30 | G58: 048SLB
B59: WA | C59: 048 | D59: SLC | E59: 19 | G59: 048SLC
B60: WA | C60: 048 | D60: SLD | E60: 1 | G60: 048SLD
E61: =SUM(E34:E60) -> 3679
B63: WA | E63: =E32+E61 -> 8715

Sheet Capital Recovery Factor Calc (hidden)
A5: Avista | F5: Avista
A6: Capital Recovery Factor Calculation | F6: Capital Recovery Factor Calculation
A7: Present - UE-120436 | F7: Proposed - UE-14____
A10: Cost of Capital | F10: Cost of Capital | J10: Source
A11: Capital | B11: Capital | C11: Component | D11: Weighted | F11: Capital | G11: Capital | H11: Component | I11: Weighted
A12: Component | B12: Structure | C12: Cost | D12: Cost | F12: Component | G12: Structure | H12: Cost | I12: Cost
A13: Long Term Debt | B13: 0.53 | C13: 0.0572 | D13: =B13*C13 -> 0.030316 | F13: Long Term Debt | G13: 0.51 | H13: 0.0542 | I13: =G13*H13 -> 0.027642 | J13: Andrews | K13: PDE-33
A14: Preferred Equity | B14: 0 | C14: 0 | D14: =B14*C14 -> 0 | F14: Preferred Equity | G14: 0 | H14: 0 | I14: =G14*H14 -> 0 | J14: Andrews | K14: PDE-33
A15: Common Equity | B15: 0.47 | C15: 0.098 | D15: 0.04606 | F15: Common Equity | G15: 0.49 | H15: 0.101 | I15: 0.04949 | J15: Andrews | K15: PDE-33
A16: Total | B16: =SUM(B13:B15) -> 1 | D16: =SUM(D13:D15) -> 0.076376 | F16: Total | G16: =SUM(G13:G15) -> 1 | I16: =SUM(I13:I15) -> 0.077132
A19: Grossed-up Rate of Return | F19: Grossed-up Rate of Return
A21: Tax Gross-up Factor | D21: =1/0.62082 -> 1.610772849 | F21: Tax Gross-up Factor | I21: =1/0.62074 -> 1.610980443 | J21: Andrews | K21: PDE-34
A24: Weighted ROE * Tax Gross-up | C24: 1.611 * 4.606% | D24: =D15*D21 -> 0.07419219742 | F24: Weighted ROE * Tax Gross-up | H24: 1.611 * 4.949% | I24: =I15*I21 -> 0.07972742211
A25: Long Term Debt | D25: =D13 -> 0.030316 | F25: Long Term Debt | I25: =I13 -> 0.027642
A26: Preferred Equity * Tax Gross-up | C26: 1.611 * 0.000% | D26: =D14*D21 -> 0 | F26: Preferred Equity * Tax Gross-up | H26: 1.611 * 0.000% | I26: =I14*I21 -> 0
A27: Grossed-up Rate of Return | D27: =SUM(D24:D26) -> 0.1045081974 | F27: Grossed-up Rate of Return | I27: =SUM(I24:I26) -> 0.1073694221
C31: Test Year | D31: Effective | H31: Test Year | I31: Effective
A32: Account | B32: Plant in | C32: Depreciation | D32: Depreciation | F32: Account | G32: Plant in | H32: Depreciation | I32: Depreciation
A33: Number | B33: Service | C33: Expense | D33: Rate | F33: Number | G33: Service | H33: Expense | I33: Rate
A34: 373 - Street Lighting | B34: 20810000 | C34: 593000 | D34: =C34/B34 -> 0.02849591543 | F34: 373 - Street Lighting | G34: 23600000 | H34: 641000 | I34: =H34/G34 -> 0.02716101695 | J34: Knox
A36: *From Cost of Service (Knox) | F36: *From Cost of Service (Knox)
A38: Capital Recovery Factor | B38: =D27+D34 -> 0.1330041128 | F38: Capital Recovery Factor | G38: =I27+I34 -> 0.1345304391

Sheet Block Data (hidden)
U2: Rate Design
A3: WASHINGTON ELECTRIC SYSTEM
C4: July | D4: August | E4: September | F4: October | G4: November | H4: December | I4: January | J4: February | K4: March | L4: April | M4: May | N4: June | O4: Annual Total | U4: May
A5: Rate Design Program Monthly Results
A6: Block ID 900 | B6: Schedule 001
B7: Block 1 | C7: 117669129 | D7: 123766009 | E7: 120879903 | F7: 115292478 | G7: 125210871 | H7: 137873168 | I7: 142115857 | J7: 140917325 | K7: 135542628 | L7: 130705783 | M7: 14978538 | N7: 119292151 | O7: =SUM(C7:N7) -> 1424243840 | R7: =SUM(C7:L7,N7) -> 1409265302 | S7: =R7/$R$10 -> 0.6454482076 | U7: 14978538
B8: Block 2 | C8: 29167233 | D8: 41014399 | E8: 33822151 | F8: 24022052 | G8: 34477861 | H8: 56677282 | I8: 68578636 | J8: 65463345 | K8: 52517788 | L8: 43107819 | M8: 3538501 | N8: 27377223 | O8: =SUM(C8:N8) -> 479764290 | R8: =SUM(C8:L8,N8) -> 476225789 | S8: =R8/$R$10 -> 0.2181129994 | U8: 3538501
B9: Block 3 | C9: 11159141 | D9: 19211628 | E9: 13129691 | F9: 7755916 | G9: 14517428 | H9: 36380182 | I9: 63215888 | J9: 64427364 | K9: 35015459 | L9: 20804038 | M9: 1286158 | N9: 12282391 | O9: =SUM(C9:N9) -> 299185284 | R9: 297899126 | S9: 0.1364387931 | U9: 1286158
A10: kWhs | B10: Total | C10: =SUM(C7:C9) -> 157995503 | D10: =SUM(D7:D9) -> 183992036 | E10: 167831745 | F10: 147070446 | G10: 174206160 | H10: 230930632 | I10: 273910381 | J10: 270808034 | K10: 223075875 | L10: 194617640 | M10: 19803197 | N10: 158951765 | O10: 2203193414 | R10: =SUM(R7:R9) -> 2183390217 | S10: =SUM(S7:S9) -> 1 | U10: 19803197
B11: Billed Customers | C11: 202281 | D11: 201833 | E11: 203291 | F11: 202476 | G11: 203015 | H11: 203421 | I11: 203757 | J11: 203839 | K11: 203429 | L11: 203540 | M11: 203177 | N11: 203022 | O11: =SUM(C11:N11) -> 2437081 | U11: 203177
B12: Block 1 Limit | C12: =C11*800 -> 161824800 | D12: =D11*800 -> 161466400 | E12: 162632800 | F12: 161980800 | G12: 162412000 | H12: 162736800 | I12: 163005600 | J12: 163071200 | K12: 162743200 | L12: 162832000 | M12: 162541600 | N12: 162417600 | O12: =SUM(C12:N12) -> 1949664800 | U12: 162541600
B13: Revenue Run Total | C13: ='Rev Runs 12MEJUNE2013'!D45 -> 158134847 | D13: ='Rev Runs 12MEJUNE2013'!E45 -> 183523410 | E13: ='Rev Runs 12MEJUNE2013'!F45 -> 167506156 | F13: ='Rev Runs 12MEJUNE2013'!G45 -> 147406008 | G13: ='Rev Runs 12MEJUNE2013'!H45 -> 174458061 | H13: ='Rev Runs 12MEJUNE2013'!I45 -> 233052070 | I13: ='Rev Runs 12MEJUNE2013'!J45 -> 276010396 | J13: ='Rev Runs 12MEJUNE2013'!K45 -> 271466630 | K13: ='Rev Runs 12MEJUNE2013'!L45 -> 220392514 | L13: ='Rev Runs 12MEJUNE2013'!M45 -> 195685539 | M13: ='Rev Runs 12MEJUNE2013'!N45 -> 172072750 | N13: ='Rev Runs 12MEJUNE2013'!O45 -> 157012413 | O13: =SUM(C13:N13) -> 2356720794 | U13: 172072750
B14: Difference | C14: =C13-C10 -> 139344 | D14: -468626 | E14: -325589 | F14: 335562 | G14: 251901 | H14: 2121438 | I14: 2100015 | J14: 658596 | K14: -2683361 | L14: 1067899 | M14: 152269553 | N14: -1939352 | O14: =SUM(C14:N14) -> 153527380 | P14: =O14/O13 -> 0.06514449246 | U14: 152269553
B16: Block 1 | C16: =(C7/C$10)*C$14 -> 103778.1886 | D16: =(D7/D$10)*D$14 -> -315230.8708 | E16: -234503.7093 | F16: 263056.0766 | G16: 181054.1235 | H16: =(H7/H$10)*H$14 -> 1266568.126 | I16: 1089573.277 | J16: 342706.179 | K16: -1630430.91 | L16: 717204.1289 | M16: =(M7/M$10)*M$14 -> 115172074.8 | N16: -1455469.662 | O16: =SUM(C16:N16) -> 115500379.7
B17: Block 2 | C17: =(C8/C$10)*C$14 -> 25724.01643 | D17: -104463.2918 | E17: -65614.04889 | F17: 54809.70537 | G17: =(G8/G$10)*G$14 -> 49854.76784 | H17: 520664.3169 | I17: 525778.4088 | J17: 159204.6459 | K17: -631732.0693 | L17: 236539.6929 | M17: 27208029.37 | N17: -334026.3141 | O17: =SUM(C17:N17) -> 27644769.2
B18: Block 3 | C18: 9841.79495 | D18: -48931.83737 | E18: -25471.24183 | F18: 17696.21807 | G18: =(G9/G$10)*G$14 -> 20992.10861 | H18: 334205.5572 | I18: 484663.3142 | J18: 156685.1751 | K18: -421198.021 | L18: 114155.1782 | M18: 9889448.847 | N18: -149856.0243 | O18: 10382231.07
C19: =SUM(C16:C18) -> 139344 | D19: =SUM(D16:D18) -> -468626 | E19: -325589 | F19: 335562 | G19: 251901 | H19: =SUM(H16:H18) -> 2121438 | I19: =SUM(I16:I18) -> 2100015 | J19: =SUM(J16:J18) -> 658596 | K19: -2683361 | L19: =SUM(L16:L18) -> 1067899 | M19: =SUM(M16:M18) -> 152269553 | N19: =SUM(N16:N18) -> -1939352 | O19: 153527380
B21: Block 1 | C21: =C7+C16 -> 117772907.2 | D21: =D7+D16 -> 123450778.1 | E21: 120645399.3 | F21: 115555534.1 | G21: 125391925.1 | H21: =H7+H16 -> 139139736.1 | I21: 143205430.3 | J21: 141260031.2 | K21: 133912197.1 | L21: 131422987.1 | M21: 130150612.8 | N21: 117836681.3 | O21: =SUM(C21:N21) -> 1539744220
B22: Block 2 | C22: =C8+C17 -> 29192957.02 | D22: 40909935.71 | E22: 33756536.95 | F22: 24076861.71 | G22: =G8+G17 -> 34527715.77 | H22: 57197946.32 | I22: 69104414.41 | J22: 65622549.65 | K22: 51886055.93 | L22: 43344358.69 | M22: 30746530.37 | N22: 27043196.69 | O22: =SUM(C22:N22) -> 507409059.2
B23: Block 3 | C23: 11168982.79 | D23: 19162696.16 | E23: 13104219.76 | F23: 7773612.218 | G23: =G9+G18 -> 14538420.11 | H23: 36714387.56 | I23: 63700551.31 | J23: 64584049.18 | K23: 34594260.98 | L23: 20918193.18 | M23: 11175606.85 | N23: 12132534.98 | O23: 309567515.1
C24: =SUM(C21:C23) -> 158134847 | D24: =SUM(D21:D23) -> 183523410 | E24: 167506156 | F24: 147406008 | G24: 174458061 | H24: =SUM(H21:H23) -> 233052070 | I24: =SUM(I21:I23) -> 276010396 | J24: =SUM(J21:J23) -> 271466630 | K24: 220392514 | L24: =SUM(L21:L23) -> 195685539 | M24: =SUM(M21:M23) -> 172072750 | N24: =SUM(N21:N23) -> 157012413 | O24: 2356720794
C25: =C24-C13 -> 0 | D25: =D24-D13 -> 0 | E25: 0 | F25: 0 | G25: 0 | H25: =H24-H13 -> 0 | I25: =I24-I13 -> 0 | J25: =J24-J13 -> 0 | K25: 0 | L25: =L24-L13 -> 0 | M25: =M24-M13 -> 0 | N25: =N24-N13 -> 0 | O25: 0
A27: Block ID 98 | B27: Schedule 011/012
B28: Block 1 | C28: 29481078 | D28: 31167600 | E28: 30696545 | F28: 29539252 | G28: 31143102 | H28: 35135247 | I28: 37479645 | J28: 37687382 | K28: 35255152 | L28: 33615393 | M28: 3577080 | N28: 30988893 | O28: =SUM(C28:N28) -> 365766369 | R28: =SUM(C28:L28,N28) -> 362189289 | S28: =R28/$R$30 -> 0.7257683285 | U28: 3577080
B29: Block 2 | C29: 10468523 | D29: 13170446 | E29: 12026538 | F29: 10003413 | G29: 10113824 | H29: 12961970 | I29: 15202727 | J29: 15338253 | K29: 12773690 | L29: 12265174 | M29: 1305201 | N29: 12528719 | O29: =SUM(C29:N29) -> 138158478 | R29: =SUM(C29:L29,N29) -> 136853277 | S29: =R29/$R$30 -> 0.2742316715 | U29: 1305201
A30: kWhs | B30: Total | C30: =SUM(C28:C29) -> 39949601 | D30: 44338046 | E30: 42723083 | F30: 39542665 | G30: 41256926 | H30: 48097217 | I30: =SUM(I28:I29) -> 52682372 | J30: =SUM(J28:J29) -> 53025635 | K30: 48028842 | L30: 45880567 | M30: 4882281 | N30: 43517612 | O30: 503924847 | R30: =SUM(R28:R29) -> 499042566 | S30: =SUM(S28:S29) -> 1 | U30: 4882281
B31: Revenue Run Total | C31: ='Rev Runs 12MEJUNE2013'!D46+'Rev Runs 12MEJUNE2013'!D47 -> 40373228 | D31: ='Rev Runs 12MEJUNE2013'!E46+'Rev Runs 12MEJUNE2013'!E47 -> 44288853 | E31: ='Rev Runs 12MEJUNE2013'!F46+'Rev Runs 12MEJUNE2013'!F47 -> 42731370 | F31: ='Rev Runs 12MEJUNE2013'!G46+'Rev Runs 12MEJUNE2013'!G47 -> 39770491 | G31: ='Rev Runs 12MEJUNE2013'!H46+'Rev Runs 12MEJUNE2013'!H47 -> 41678120 | H31: ='Rev Runs 12MEJUNE2013'!I46+'Rev Runs 12MEJUNE2013'!I47 -> 48405846 | I31: ='Rev Runs 12MEJUNE2013'!J46+'Rev Runs 12MEJUNE2013'!J47 -> 52490617 | J31: ='Rev Runs 12MEJUNE2013'!K46+'Rev Runs 12MEJUNE2013'!K47 -> 53404915 | K31: ='Rev Runs 12MEJUNE2013'!L46+'Rev Runs 12MEJUNE2013'!L47 -> 47749692 | L31: ='Rev Runs 12MEJUNE2013'!M46+'Rev Runs 12MEJUNE2013'!M47 -> 45823490 | M31: ='Rev Runs 12MEJUNE2013'!N46+'Rev Runs 12MEJUNE2013'!N47 -> 43938991 | N31: ='Rev Runs 12MEJUNE2013'!O46+'Rev Runs 12MEJUNE2013'!O47 -> 43996886 | O31: =SUM(C31:N31) -> 544652499 | U31: 43938991
C32: =C31-C30 -> 423627 | D32: -49193 | E32: 8287 | F32: 227826 | G32: 421194 | H32: 308629 | I32: -191755 | J32: 379280 | K32: -279150 | L32: -57077 | M32: 39056710 | N32: 479274 | O32: =SUM(C32:N32) -> 40727652 | P32: =O32/O31 -> 0.07477731595 | U32: 39056710
B34: Block 1 | C34: =(C28/C$30)*C$32 -> 312618.4071 | D34: =(D28/D$30)*D$32 -> -34580.40859 | E34: 5954.211413 | F34: 170191.0993 | G34: 317941.4701 | H34: 225454.9602 | I34: -136419.623 | J34: 269569.0536 | K34: -204907.6195 | L34: -41818.70259 | M34: 28615513.16 | N34: 341291.0319 | O34: =SUM(C34:N34) -> 29840807.04
B35: Block 2 | C35: =(C29/C$30)*C$32 -> 111008.5929 | D35: -14612.59141 | E35: 2332.788587 | F35: 57634.90069 | G35: 103252.5299 | H35: 83174.03976 | I35: -55335.377 | J35: 109710.9464 | K35: -74242.38052 | L35: -15258.29741 | M35: 10441196.84 | N35: 137982.9681 | O35: =SUM(C35:N35) -> 10886844.96
C36: =SUM(C34:C35) -> 423627 | D36: =SUM(D34:D35) -> -49193 | E36: 8287 | F36: 227826 | G36: 421194 | H36: 308629 | I36: -191755 | J36: 379280 | K36: -279150 | L36: -57077 | M36: 39056710 | N36: 479274 | O36: =SUM(O34:O35) -> 40727652
B38: Block 1 | C38: =C28+C34 -> 29793696.41 | D38: =D28+D34 -> 31133019.59 | E38: 30702499.21 | F38: 29709443.1 | G38: 31461043.47 | H38: 35360701.96 | I38: 37343225.38 | J38: 37956951.05 | K38: 35050244.38 | L38: 33573574.3 | M38: 32192593.16 | N38: 31330184.03 | O38: =SUM(C38:N38) -> 395607176
B39: Block 2 | C39: =C29+C35 -> 10579531.59 | D39: =D29+D35 -> 13155833.41 | E39: 12028870.79 | F39: 10061047.9 | G39: 10217076.53 | H39: 13045144.04 | I39: 15147391.62 | J39: 15447963.95 | K39: 12699447.62 | L39: 12249915.7 | M39: 11746397.84 | N39: 12666701.97 | O39: =SUM(C39:N39) -> 149045323
C40: =SUM(C38:C39) -> 40373228 | D40: 44288853 | E40: 42731370 | F40: 39770491 | G40: 41678120 | H40: 48405846 | I40: 52490617 | J40: 53404915 | K40: 47749692 | L40: 45823490 | M40: 43938991 | N40: 43996886 | O40: 544652499
C41: =C40-C31 -> 0 | D41: 0 | E41: 0 | F41: 0 | G41: 0 | H41: 0 | I41: 0 | J41: 0 | K41: 0 | L41: 0 | M41: 0 | N41: 0 | O41: 0
A43: Block ID 11 | B43: Schedule 011/012
B44: Block 1 | C44: 67254 | D44: 68325 | E44: 69036 | F44: 68912 | G44: 69470 | H44: 69314 | I44: 69545 | J44: 71550 | K44: 71152 | L44: 73886 | M44: =R44 -> 70323 | N44: 75109 | O44: =SUM(C44:N44) -> 843876 | R44: =AVERAGE(C44:L44,N44) -> 70323 | U44: 7949
B45: Block 2 | C45: 24168 | D45: 29342 | E45: 28586 | F45: 25116 | G45: 23484 | H45: 23687 | I45: 23186 | J45: 26474 | K45: 24326 | L45: 27908 | M45: =R45 -> 26091 | N45: 30724 | O45: =SUM(C45:N45) -> 313092 | R45: =AVERAGE(C45:L45,N45) -> 26091 | U45: 2528
A46: kW | B46: Total | C46: =SUM(C44:C45) -> 91422 | D46: 97667 | E46: 97622 | F46: 94028 | G46: 92954 | H46: 93001 | I46: =SUM(I44:I45) -> 92731 | J46: =SUM(J44:J45) -> 98024 | K46: 95478 | L46: 101794 | M46: 96414 | N46: 105833 | O46: 1156968 | R46: =SUM(R44:R45) -> 96414 | U46: 10477
A48: Block ID 111 | B48: Schedule 011/012
B49: kVar | C49: 723 | D49: 517 | E49: 828 | F49: 913 | G49: 872 | H49: 789 | I49: 548 | J49: 910 | K49: 841 | L49: 1019 | M49: =R49 -> 847.3636364 | N49: 1361 | O49: =SUM(C49:N49) -> 10168.36364 | R49: =AVERAGE(C49:L49,N49) -> 847.3636364 | U49: 155
B50: pf Charge | C50: 0.5 | D50: 0.5 | E50: 0.5 | F50: 0.5 | G50: 0.5 | H50: 0.5 | I50: 0.5 | J50: 0.5 | K50: 0.5 | L50: 0.5 | M50: 0.5 | N50: 0.5 | O50: 0.5 | U50: 0.5
B51: pf Revenue | C51: =C49*C50 -> 361.5 | D51: 258.5 | E51: 414 | F51: 456.5 | G51: 436 | H51: 394.5 | I51: 274 | J51: 455 | K51: 420.5 | L51: 509.5 | M51: 423.6818182 | N51: 680.5 | O51: 5084.181818 | U51: 77.5
A53: Block ID 221 | B53: Schedule 021/022
B54: Block 1 | C54: 108318270 | D54: 111371965 | E54: 108746047 | F54: 106499607 | G54: 106302759 | H54: 112768930 | I54: 113667817 | J54: 110004747 | K54: 105930592 | L54: 99955213 | M54: 13826999 | N54: 103856411 | O54: =SUM(C54:N54) -> 1201249357 | R54: =SUM(C54:L54,N54) -> 1187422358 | S54: =R54/$R$56 -> 0.8920659353 | U54: 13826999
B55: Block 2 | C55: 15087290 | D55: 15095294 | E55: 13263254 | F55: 12216531 | G55: 11622305 | H55: 14195283 | I55: 14044005 | J55: 12838494 | K55: 11238941 | L55: 10682718 | M55: 3190875 | N55: 13386119 | O55: =SUM(C55:N55) -> 146861109 | R55: =SUM(C55:L55,N55) -> 143670234 | S55: =R55/$R$56 -> 0.1079340647 | U55: 3190875
A56: kWhs | B56: Total | C56: =SUM(C54:C55) -> 123405560 | D56: 126467259 | E56: 122009301 | F56: 118716138 | G56: 117925064 | H56: 126964213 | I56: =SUM(I54:I55) -> 127711822 | J56: =SUM(J54:J55) -> 122843241 | K56: 117169533 | L56: 110637931 | M56: 17017874 | N56: 117242530 | O56: 1348110466 | R56: =SUM(R54:R55) -> 1331092592 | S56: =SUM(S54:S55) -> 1 | U56: 17017874
B57: Revenue Run Total | C57: ='Rev Runs 12MEJUNE2013'!D48+'Rev Runs 12MEJUNE2013'!D49 -> 121107265 | D57: ='Rev Runs 12MEJUNE2013'!E48+'Rev Runs 12MEJUNE2013'!E49 -> 126512976 | E57: ='Rev Runs 12MEJUNE2013'!F48+'Rev Runs 12MEJUNE2013'!F49 -> 122113063 | F57: ='Rev Runs 12MEJUNE2013'!G48+'Rev Runs 12MEJUNE2013'!G49 -> 118391398 | G57: ='Rev Runs 12MEJUNE2013'!H48+'Rev Runs 12MEJUNE2013'!H49 -> 118063968 | H57: ='Rev Runs 12MEJUNE2013'!I48+'Rev Runs 12MEJUNE2013'!I49 -> 125942489 | I57: ='Rev Runs 12MEJUNE2013'!J48+'Rev Runs 12MEJUNE2013'!J49 -> 128129769 | J57: ='Rev Runs 12MEJUNE2013'!K48+'Rev Runs 12MEJUNE2013'!K49 -> 122554592 | K57: ='Rev Runs 12MEJUNE2013'!L48+'Rev Runs 12MEJUNE2013'!L49 -> 117894577 | L57: ='Rev Runs 12MEJUNE2013'!M48+'Rev Runs 12MEJUNE2013'!M49 -> 110974169 | M57: ='Rev Runs 12MEJUNE2013'!N48+'Rev Runs 12MEJUNE2013'!N49 -> 113575945 | N57: ='Rev Runs 12MEJUNE2013'!O48+'Rev Runs 12MEJUNE2013'!O49 -> 117273821 | O57: =SUM(C57:N57) -> 1442534032 | U57: 113575945
C58: =C57-C56 -> -2298295 | D58: 45717 | E58: 103762 | F58: -324740 | G58: 138904 | H58: -1021724 | I58: 417947 | J58: -288649 | K58: 725044 | L58: 336238 | M58: 96558071 | N58: 31291 | O58: =SUM(C58:N58) -> 94423566 | P58: =O58/O57 -> 0.06545673371 | U58: 96558071
B60: Block 1 | C60: =(C54/C$56)*C$58 -> -2017310.552 | D60: =(D54/D$56)*D$58 -> 40260.16033 | E60: 92482.35369 | F60: -291322.5022 | G60: 125214.0803 | H60: -907489.7525 | I60: 371986.8871 | J60: -258481.9479 | K60: 655497.5357 | L60: 303772.3194 | M60: 78453298.64 | N60: 27718.36258 | O60: =SUM(C60:N60) -> 76595625.59
B61: Block 2 | C61: =(C55/C$56)*C$58 -> -280984.4481 | D61: =(D55/D$56)*D$58 -> 5456.839669 | E61: 11279.64631 | F61: -33417.49777 | G61: 13689.91967 | H61: -114234.2475 | I61: 45960.1129 | J61: -30167.05213 | K61: 69546.46425 | L61: 32465.68064 | M61: 18104772.36 | N61: 3572.637418 | O61: =SUM(C61:N61) -> 17827940.41
C62: =SUM(C60:C61) -> -2298295 | D62: =SUM(D60:D61) -> 45717 | E62: =SUM(E60:E61) -> 103762 | F62: =SUM(F60:F61) -> -324740 | G62: =SUM(G60:G61) -> 138904 | H62: =SUM(H60:H61) -> -1021724 | I62: =SUM(I60:I61) -> 417947 | J62: =SUM(J60:J61) -> -288649 | K62: =SUM(K60:K61) -> 725044 | L62: =SUM(L60:L61) -> 336238 | M62: =SUM(M60:M61) -> 96558071 | N62: =SUM(N60:N61) -> 31291 | O62: =SUM(O60:O61) -> 94423566
B64: Block 1 | C64: =C54+C60 -> 106300959.4 | D64: =D54+D60 -> 111412225.2 | E64: 108838529.4 | F64: 106208284.5 | G64: 106427973.1 | H64: 111861440.2 | I64: 114039803.9 | J64: 109746265.1 | K64: 106586089.5 | L64: 100258985.3 | M64: 92280297.64 | N64: 103884129.4 | O64: =SUM(C64:N64) -> 1277844983
B65: Block 2 | C65: =C55+C61 -> 14806305.55 | D65: =D55+D61 -> 15100750.84 | E65: 13274533.65 | F65: 12183113.5 | G65: 11635994.92 | H65: 14081048.75 | I65: 14089965.11 | J65: 12808326.95 | K65: 11308487.46 | L65: 10715183.68 | M65: 21295647.36 | N65: 13389691.64 | O65: =SUM(C65:N65) -> 164689049.4
C66: =SUM(C64:C65) -> 121107265 | D66: 126512976 | E66: 122113063 | F66: 118391398 | G66: 118063968 | H66: 125942489 | I66: 128129769 | J66: 122554592 | K66: 117894577 | L66: 110974169 | M66: 113575945 | N66: 117273821 | O66: 1442534032
C67: =C66-C57 -> 0 | D67: 0 | E67: 0 | F67: 0 | G67: 0 | H67: 0 | I67: 0 | J67: 0 | K67: 0 | L67: 0 | M67: 0 | N67: 0 | O67: 0
A69: Block ID 21 | B69: Schedule 021/022
B70: Block 1 | C70: 109786 | D70: 109121 | E70: 108773 | F70: 108061 | G70: 106939 | H70: 105941 | I70: 105555 | J70: 101713 | K70: 101223 | L70: 96140 | M70: =R70 -> 104464.6364 | N70: 95859 | O70: =SUM(C70:N70) -> 1253575.636 | R70: =AVERAGE(C70:L70,N70) -> 104464.6364 | U70: 12097
B71: Block 2 | C71: 250417 | D71: 244286 | E71: 248468 | F71: 237430 | G71: 225701 | H71: 218647 | I71: 217068 | J71: 211102 | K71: 209504 | L71: 209878 | M71: =R71 -> 227719.1818 | N71: 232410 | O71: =SUM(C71:N71) -> 2732630.182 | R71: =AVERAGE(C71:L71,N71) -> 227719.1818 | U71: 30948
A72: kW | B72: Total | C72: =SUM(C70:C71) -> 360203 | D72: 353407 | E72: 357241 | F72: 345491 | G72: 332640 | H72: 324588 | I72: 322623 | J72: 312815 | K72: 310727 | L72: 306018 | M72: 332183.8182 | N72: 328269 | O72: 3986205.818 | R72: =SUM(R70:R71) -> 332183.8182 | U72: 43045
A74: Block ID 21 | B74: Schedule 021/022
B75: kVar | C75: 22679 | D75: 22929 | E75: 24798 | F75: 27579 | G75: 21310 | H75: 20064 | I75: 17128 | J75: 16621 | K75: 18738 | L75: 19258 | M75: =R75 -> 21064.36364 | N75: 20604 | O75: =SUM(C75:N75) -> 252772.3636 | R75: =AVERAGE(C75:L75,N75) -> 21064.36364 | U75: 2175
B76: pf Charge | C76: 0.5 | D76: 0.5 | E76: 0.5 | F76: 0.5 | G76: 0.5 | H76: 0.5 | I76: 0.5 | J76: 0.5 | K76: 0.5 | L76: 0.5 | M76: 0.5 | N76: 0.5 | O76: 0.5 | U76: 0.5
B77: pf Revenue | C77: =C75*C76 -> 11339.5 | D77: 11464.5 | E77: 12399 | F77: 13789.5 | G77: 10655 | H77: 10032 | I77: =I75*I76 -> 8564 | J77: =J75*J76 -> 8310.5 | K77: 9369 | L77: 9629 | M77: 10532.18182 | N77: 10302 | O77: 126386.1818 | U77: 1087.5
A79: Block ID 30 | B79: Schedule 30/31/32
B80: Block 1 | C80: 4755578 | D80: 5123989 | E80: 5265525 | F80: 4515242 | G80: 2640799 | H80: 1583191 | I80: 1486104 | J80: 1539534 | K80: 1501567 | L80: 2372543 | M80: 159803 | N80: 4974958 | O80: =SUM(C80:N80) -> 35918833 | R80: =SUM(C80:L80,N80) -> 35759030 | S80: =R80/$R$83 -> 0.2981143771 | U80: 159803
B81: Block 2 | C81: 1320808 | D81: 1515504 | E81: 1507392 | F81: 1057732 | G81: 508805 | H81: 399526 | I81: 429522 | J81: 415247 | K81: 417470 | L81: 526213 | M81: 44908 | N81: 1373923 | O81: =SUM(C81:N81) -> 9517050 | R81: =SUM(C81:L81,N81) -> 9472142 | S81: =R81/$R$83 -> 0.07896695498 | U81: 44908
B82: Block 3 | C82: 10443519 | D82: 14509843 | E82: 15398541 | F82: 9308431 | G82: 3616215 | H82: 1934148 | I82: 2036495 | J82: 2047521 | K82: 1910514 | L82: 2363247 | M82: 193602 | N82: 11151060 | O82: =SUM(C82:N82) -> 74913136 | R82: 74719534 | S82: 0.6229186679 | U82: 193602
A83: kWhs | B83: Total | C83: =SUM(C80:C82) -> 16519905 | D83: 21149336 | E83: 22171458 | F83: 14881405 | G83: 6765819 | H83: 3916865 | I83: 3952121 | J83: 4002302 | K83: 3829551 | L83: 5262003 | M83: 398313 | N83: 17499941 | O83: 120349019 | R83: =SUM(R80:R82) -> 119950706 | S83: =SUM(S80:S82) -> 1 | U83: 398313
B84: Revenue Run Total | C84: ='Rev Runs 12MEJUNE2013'!D52+'Rev Runs 12MEJUNE2013'!D53+'Rev Runs 12MEJUNE2013'!D54 -> 16554637 | D84: ='Rev Runs 12MEJUNE2013'!E52+'Rev Runs 12MEJUNE2013'!E53+'Rev Runs 12MEJUNE2013'!E54 -> 21168659 | E84: ='Rev Runs 12MEJUNE2013'!F52+'Rev Runs 12MEJUNE2013'!F53+'Rev Runs 12MEJUNE2013'!F54 -> 22186328 | F84: ='Rev Runs 12MEJUNE2013'!G52+'Rev Runs 12MEJUNE2013'!G53+'Rev Runs 12MEJUNE2013'!G54 -> 14842915 | G84: ='Rev Runs 12MEJUNE2013'!H52+'Rev Runs 12MEJUNE2013'!H53+'Rev Runs 12MEJUNE2013'!H54 -> 5844571 | H84: ='Rev Runs 12MEJUNE2013'!I52+'Rev Runs 12MEJUNE2013'!I53+'Rev Runs 12MEJUNE2013'!I54 -> 3658237 | I84: ='Rev Runs 12MEJUNE2013'!J52+'Rev Runs 12MEJUNE2013'!J53+'Rev Runs 12MEJUNE2013'!J54 -> 3985173 | J84: ='Rev Runs 12MEJUNE2013'!K52+'Rev Runs 12MEJUNE2013'!K53+'Rev Runs 12MEJUNE2013'!K54 -> 4037555 | K84: ='Rev Runs 12MEJUNE2013'!L52+'Rev Runs 12MEJUNE2013'!L53+'Rev Runs 12MEJUNE2013'!L54 -> 3852067 | L84: ='Rev Runs 12MEJUNE2013'!M52+'Rev Runs 12MEJUNE2013'!M53+'Rev Runs 12MEJUNE2013'!M54 -> 5243679 | M84: ='Rev Runs 12MEJUNE2013'!N52+'Rev Runs 12MEJUNE2013'!N53+'Rev Runs 12MEJUNE2013'!N54 -> 11987118 | N84: ='Rev Runs 12MEJUNE2013'!O52+'Rev Runs 12MEJUNE2013'!O53+'Rev Runs 12MEJUNE2013'!O54 -> 17532534 | O84: =SUM(C84:N84) -> 130893473 | U84: 11987118
C85: =C84-C83 -> 34732 | D85: 19323 | E85: 14870 | F85: -38490 | G85: -921248 | H85: -258628 | I85: 33052 | J85: 35253 | K85: 22516 | L85: -18324 | M85: 11588805 | N85: 32593 | O85: =SUM(C85:N85) -> 10544454 | P85: =O85/O84 -> 0.08055752329 | U85: 11588805
B87: Block 1 | C87: =(C80/C$83)*C$85 -> 9998.286013 | D87: =(D80/D$83)*D$85 -> 4681.510542 | E87: 3531.493362 | F87: -11678.44465 | G87: -359576.6894 | H87: -104537.0525 | I87: 12428.4427 | J87: 13560.49396 | K87: 8828.523911 | L87: -8261.96373 | M87: 4649423.457 | N87: 9265.677301 | O87: =SUM(C87:N87) -> 4227663.735 | P87: =O87/$O$90 -> 0.4009371879
B88: Block 2 | C88: =(C81/C$83)*C$85 -> 2776.910851 | D88: 1384.633721 | E88: 1010.980831 | F88: -2735.770223 | G88: -69279.94802 | H88: -26380.43699 | I88: 3592.137271 | J88: 3657.570691 | K88: 2454.531751 | L88: -1832.444226 | M88: 1306585.662 | N88: 2558.881332 | O88: =SUM(C88:N88) -> 1223792.709 | P88: =O88/$O$90 -> 0.1160603204
B89: Block 3 | C89: 21956.80314 | D89: 13256.85574 | E89: 10327.52581 | F89: -24075.78513 | G89: -492391.3626 | H89: -127710.5106 | I89: 17031.42002 | J89: 18034.93535 | K89: 11232.94434 | L89: -8229.592045 | M89: 5632795.881 | N89: 20768.44137 | O89: 5092997.556 | P89: 0.4830024917
C90: =SUM(C87:C89) -> 34732 | D90: =SUM(D87:D89) -> 19323 | E90: =SUM(E87:E89) -> 14870 | F90: =SUM(F87:F89) -> -38490 | G90: =SUM(G87:G89) -> -921248 | H90: =SUM(H87:H89) -> -258628 | I90: =SUM(I87:I89) -> 33052 | J90: =SUM(J87:J89) -> 35253 | K90: =SUM(K87:K89) -> 22516 | L90: =SUM(L87:L89) -> -18324 | M90: =SUM(M87:M89) -> 11588805 | N90: =SUM(N87:N89) -> 32593 | O90: =SUM(O87:O89) -> 10544454 | P90: =SUM(P87:P89) -> 1
B92: Block 1 | C92: =C80+C87 -> 4765576.286 | D92: =D80+D87 -> 5128670.511 | E92: 5269056.493 | F92: 4503563.555 | G92: 2281222.311 | H92: 1478653.948 | I92: 1498532.443 | J92: 1553094.494 | K92: 1510395.524 | L92: 2364281.036 | M92: 4809226.457 | N92: 4984223.677 | O92: =SUM(C92:N92) -> 40146496.73 | P92: =O92/$O$95 -> 0.3067112195
B93: Block 2 | C93: =C81+C88 -> 1323584.911 | D93: 1516888.634 | E93: 1508402.981 | F93: 1054996.23 | G93: 439525.052 | H93: 373145.563 | I93: 433114.1373 | J93: 418904.5707 | K93: 419924.5318 | L93: 524380.5558 | M93: 1351493.662 | N93: 1376481.881 | O93: =SUM(C93:N93) -> 10740842.71 | P93: =O93/$O$95 -> 0.08205789382
B94: Block 3 | C94: 10465475.8 | D94: 14523099.86 | E94: 15408868.53 | F94: 9284355.215 | G94: 3123823.637 | H94: 1806437.489 | I94: 2053526.42 | J94: 2065555.935 | K94: 1921746.944 | L94: 2355017.408 | M94: 5826397.881 | N94: 11171828.44 | O94: 80006133.56 | P94: 0.6112308866
C95: =SUM(C92:C94) -> 16554637 | D95: =SUM(D92:D94) -> 21168659 | E95: =SUM(E92:E94) -> 22186328 | F95: =SUM(F92:F94) -> 14842915 | G95: =SUM(G92:G94) -> 5844571 | H95: =SUM(H92:H94) -> 3658237 | I95: =SUM(I92:I94) -> 3985173 | J95: =SUM(J92:J94) -> 4037555 | K95: =SUM(K92:K94) -> 3852067 | L95: =SUM(L92:L94) -> 5243679 | M95: =SUM(M92:M94) -> 11987118 | N95: =SUM(N92:N94) -> 17532534 | O95: =SUM(O92:O94) -> 130893473 | P95: 1
C96: =C95-C84 -> 0 | D96: =D95-D84 -> 0 | E96: =E95-E84 -> 0 | F96: =F95-F84 -> 0 | G96: =G95-G84 -> 0 | H96: =H95-H84 -> 0 | I96: =I95-I84 -> 0 | J96: =J95-J84 -> 0 | K96: =K95-K84 -> 0 | L96: =L95-L84 -> 0 | M96: =M95-M84 -> 0 | N96: =N95-N84 -> 0 | O96: =O95-O84 -> 0
A98: Block ID 131 | B98: Schedule 31/32
